Workbook

Sheet Reaction1
B2: REACTION-1
B4: =C7&"("&C8&","&C9&")"&C10&", "&Calculation1!E9 -> 15C(d,p)16C, n-Adding
C6: REACTION
B7: BEAM (A) | C7: 15C
B8: TARGET (a) | C8: d
B9: LIGHT (b) | C9: p
B10: HEAVY (B) | C10: =Calculation1!F5 -> 16C
B11: Q-value | C11: =Calculation1!M6 -> 2.0257634 | D11: [MeV]
B12: min KE/A | C12: =Calculation1!M7 -> -1.141532108 | D12: [MeV/u]
B13: Beam Ex | C13: 0 | D13: [MeV]
B15: E beam/ u | C15: 8 | D15: [MeV/u]
B16: E BEAM | C16: =Calculation1!F13 -> 120 | D16: [MeV]
B18: B FIELD | C18: 2 | D18: [T]
B20: RADIUS DET. | C20: 0.0115 | D20: [m]
B21: BORE RADIUS | C21: 0.462 | D21: [m] | H21: ="QUANTITIES AT A GIVEN CM ANGLE "&B4 -> QUANTITIES AT A GIVEN CM ANGLE 15C(d,p)16C, n-Adding | R21: # of Cycle
F22: min 𝜃cm | G22: =Calculation1!K21 -> 1.163118184
B23: show ideal line | C23: off | F23: Max Ex | G23: =Calculation1!F21 -> 16.21531051 | R23: 1
B24: θCM | C24: 0 | D24: [deg] | G24: Ex [MeV] | H24: 𝜃cm [deg] | I24: Eb[MeV] | J24: Zb0[m] | K24: Zb[m] | L24: 2ρ[cm] | M24: θbLab [deg] | N24: Tcyc [ns] | O24: EB[MeV] | P24: θBLab [deg] | Q24: ZB0/2[m] | R24: 2ρB[cm] | U24: Inverse Calculation
B25: θCM Limit | C25: 0 | D25: [deg] | F25: Ex1 | G25: 0 | H25: 13 | I25: =Calculation1!C33 -> 2.463628699 | J25: =Calculation1!E33 -> -0.5899584779 | K25: =Calculation1!F33 -> -0.5814828402 | L25: =Calculation1!G33 -> 12.74425609 | M25: =Calculation1!H33 -> -34.16259681 | N25: =Calculation1!I33 -> 32.88335313 | O25: =Calculation1!J33 -> 119.5621347 | P25: =Calculation1!K33 -> 1.156916538 | Q25: =Calculation1!L33 -> 1.652131799 | R25: =Calculation1!M33 -> 2.124042682 | U25: e | V25: -4
B26: n-loop | C26: off | F26: Ex2 | H26: 10 | I26: =Calculation1!C34 ->  | J26: =Calculation1!E34 ->  | K26: =Calculation1!F34 ->  | L26: =Calculation1!G34 ->  | M26: =Calculation1!H34 ->  | N26: =Calculation1!I34 ->  | O26: =Calculation1!J34 ->  | P26: =Calculation1!K34 ->  | Q26: =Calculation1!L34 ->  | R26: =Calculation1!M34 ->  | U26: z | V26: -0.42
F27: Ex3 | G27: 1.83 | H27: 15 | I27: =Calculation1!C35 -> 2.008460735 | J27: =Calculation1!E35 -> -0.4756433318 | K27: =Calculation1!F35 -> -0.4693353625 | L27: =Calculation1!G35 -> 13.80496994 | M27: =Calculation1!H35 -> -42.35884379 | N27: =Calculation1!I35 -> 32.86744277 | O27: =Calculation1!J35 -> 118.1752066 | P27: =Calculation1!K35 -> 1.260585283 | Q27: =Calculation1!L35 -> 1.642420695 | R27: =Calculation1!M35 -> 2.300828323 | U27: Ex | V27: =Calculation1!I56 -> 
F28: Ex4 | G28: 3.82 | H28: 16 | I28: =Calculation1!C36 -> 1.494765354 | J28: =Calculation1!E36 -> -0.3530199901 | K28: =Calculation1!F36 -> -0.3482819349 | L28: =Calculation1!G36 -> 13.64098869 | M28: =Calculation1!H36 -> -50.51948217 | N28: =Calculation1!I36 -> 32.84948658 | O28: =Calculation1!J36 -> 116.6857175 | P28: =Calculation1!K36 -> 1.253566454 | Q28: =Calculation1!L36 -> 1.632001077 | R28: =Calculation1!M36 -> 2.273498114 | U28: thetaCM | V28: =Calculation1!I58 -> 
F29: Ex5 | G29: 0.52 | H29: 13 | I29: =Calculation1!C37 -> 2.28334292 | J29: =Calculation1!E37 -> -0.5621238579 | K29: =Calculation1!F37 -> -0.5539143357 | L29: =Calculation1!G37 -> 12.53673624 | M29: =Calculation1!H37 -> -35.01708279 | N29: =Calculation1!I37 -> 32.87705125 | O29: =Calculation1!J37 -> 119.2189861 | P29: =Calculation1!K37 -> 1.139718935 | Q29: =Calculation1!L37 -> 1.649759724 | R29: =Calculation1!M37 -> 2.08945604
F32: Plots Axes Range Control (need macro enable) | P32: Save PNG | R32: θLab -> θCM (light-particle)
F33: Min E [MeV] | G33: 0 | P33: 0 | R33: θLab | S33: 95.32 | T33: deg
F34: Max E [MeV] | G34: 10 | H34: r Max | I34: 6 | J34: 𝜃cm Max | K34: 50 | P34: Range | R34: Ex | S34: 0 | T34: MeV
F35: Min Z [m] | G35: -1 | P35: A1 | R35: |θCM| | S35: =Calculation1!K69 -> -55.31749523 | T35: deg
F36: Max Z [m] | G36: 1 | P36: T30 | R36: |θCM| | S36: =Calculation1!K72 -> 44.74756965 | T36: deg
F37: resol. [m] | G37: =(G36-G35)/400 -> 0.005
B41: =setChartAxis("Reaction1", "Chart 1", "Min", "Y", "Primary", G33) -> Y Min: 0 | C41: =setChartAxis("Reaction1", "Chart 2", "Min", "Y", "Primary",0) -> Y Min: 0 | D41: =setChartAxis("Reaction1", "Chart 3", "Min", "Y", "Primary", 0) -> Y Min: 0
B42: =setChartAxis("Reaction1", "Chart 1", "Max", "Y", "Primary", G34) -> Y Max: 10 | C42: =setChartAxis("Reaction1", "Chart 2", "Max", "Y", "Primary", I34) -> Y Max: 6 | D42: =setChartAxis("Reaction1", "Chart 3", "Max", "Y", "Primary", K34) -> Y Max: 50
B43: =setChartAxis("Reaction1", "Chart 1", "Min", "X", "Primary", G35) -> X Min: -1 | C43: =setChartAxis("Reaction1", "Chart 2", "Min", "X", "Primary", G35) -> X Min: -1 | D43: =setChartAxis("Reaction1", "Chart 3", "Min", "X", "Primary", G35) -> X Min: -1
B44: =setChartAxis("Reaction1", "Chart 1", "Max", "X", "Primary", G36) -> X Max: 1 | C44: =setChartAxis("Reaction1", "Chart 2", "Max", "X", "Primary", G36) -> X Max: 1 | D44: =setChartAxis("Reaction1", "Chart 3", "Max", "X", "Primary", G36) -> X Max: 1
B46: on
B47: off

Sheet Reaction2
B2: REACTION-2
B4: =C7&"("&C8&","&C9&")"&C10&", "&Calculation2!E9 -> 14C(d,p)15C, n-Adding
C6: REACTION
B7: BEAM (A) | C7: 14C
B8: TARGET (a) | C8: d
B9: LIGHT (b) | C9: p
B10: HEAVY (B) | C10: =Calculation2!F5 -> 15C
B11: Q-value | C11: =Calculation2!M6 -> -1.0064994 | D11: (MeV)
B12: min KE/A | C12: =Calculation2!M7 -> 0.5717726699 | D12: (MeV/u)
B13: Beam Ex | C13: 0 | D13: (MeV)
B15: E beam/ u | C15: 10 | D15: (MeV/u)
B16: E BEAM | C16: =Calculation2!F13 -> 140 | D16: (MeV)
B18: B FIELD | C18: 2.5 | D18: (T)
B20: Target position | C20: 0 | D20: (m)
B21: RADIUS DET. | C21: 0.0115 | D21: (m) | H21: ="QUANTITIES AT A GIVEN CM ANGLE "&B4 -> QUANTITIES AT A GIVEN CM ANGLE 14C(d,p)15C, n-Adding | R21: # of Cycle
B22: BORE RADIUS | C22: 0.462 | D22: (m) | F22: min 𝜃cm | G22: =Calculation2!K21 -> 1.440336987
F23: Max Ex | G23: =Calculation2!F21 -> 16.58685856 | R23: 1
B24: show ideal line | C24: off | G24: Ex [MeV] | H24: 𝜃cm [deg] | I24: Eb[MeV] | J24: Zb0[m] | K24: Zb[m] | L24: 2ρ[cm] | M24: θbLab [deg] | N24: Tcyc [ns] | O24: EB[MeV] | P24: θBLab [deg] | Q24: ZB0/2[m] | R24: 2ρB[cm]
B25: θCM | C25: 0 | D25: deg | F25: Ex1 | G25: 0 | H25: 10 | I25: =Calculation2!C33 -> 1.691280014 | J25: =Calculation2!E33 -> -0.4012014833 | K25: =Calculation2!F33 -> -0.3919504965 | L25: =Calculation2!G33 -> 7.944605438 | M25: =Calculation2!H33 -> -31.88571209 | N25: =Calculation2!I33 -> 26.28508459 | O25: =Calculation2!J33 -> 137.3022206 | P25: =Calculation2!K33 -> 0.8685269508 | Q25: =Calculation2!L33 -> 1.371977616 | R25: =Calculation2!M33 -> 1.324100906
B26: θCM Limit | C26: 0 | D26: deg | F26: Ex2 | G26: 1 | H26: 10 | I26: =Calculation2!C34 -> 1.415472433 | J26: =Calculation2!E34 -> -0.3582036595 | K26: =Calculation2!F34 -> -0.349680853 | L26: =Calculation2!G34 -> 7.699630124 | M26: =Calculation2!H34 -> -34.0307265 | N26: =Calculation2!I34 -> 26.27737192 | O26: =Calculation2!J34 -> 136.5699029 | P26: =Calculation2!K34 -> 0.8440085449 | Q26: =Calculation2!L34 -> 1.36830484 | R26: =Calculation2!M34 -> 1.283271687
F27: Ex3 | G27: 2 | H27: 10 | I27: =Calculation2!C35 -> 1.160920933 | J27: =Calculation2!E35 -> -0.3138011279 | K27: =Calculation2!F35 -> -0.306080844 | L27: =Calculation2!G35 -> 7.446834354 | M27: =Calculation2!H35 -> -36.70575662 | N27: =Calculation2!I35 -> 26.27025366 | O27: =Calculation2!J35 -> 135.8163199 | P27: =Calculation2!K35 -> 0.8185686111 | Q27: =Calculation2!L35 -> 1.364515005 | R27: =Calculation2!M35 -> 1.241139059
F28: Ex4 | G28: 3 | H28: 10 | I28: =Calculation2!C36 -> 0.9298758442 | J28: =Calculation2!E36 -> -0.2678456386 | K28: =Calculation2!F36 -> -0.2610157024 | L28: =Calculation2!G36 -> 7.185392819 | M28: =Calculation2!H36 -> -40.12362256 | N28: =Calculation2!I36 -> 26.26379272 | O28: =Calculation2!J36 -> 135.0392214 | P28: =Calculation2!K36 -> 0.7921090818 | Q28: =Calculation2!L36 -> 1.360595755 | R28: =Calculation2!M36 -> 1.19756547
F29: Ex5 | G29: 0 | H29: 30 | I29: =Calculation2!C37 -> 4.304049641 | J29: =Calculation2!E37 -> -0.2290744609 | K29: =Calculation2!F37 -> -0.2272414364 | L29: =Calculation2!G37 -> 22.87557965 | M29: =Calculation2!H37 -> -72.32014724 | N29: =Calculation2!I37 -> 26.35814794 | O29: =Calculation2!J37 -> 134.689451 | P29: =Calculation2!K37 -> 2.52580198 | Q29: =Calculation2!L37 -> 1.357633697 | R29: =Calculation2!M37 -> 3.812596608
F32: Plots Axes Range Control (need macro enable) | P32: Save PNG
F33: Min E [MeV] | G33: 0 | P33: 0
F34: Max E [MeV] | G34: 12 | H34: r Max | I34: 30 | J34: 𝜃cm Max | K34: 50 | P34: Range
F35: Min Z [m] | G35: -1 | P35: A1
F36: Max Z [m] | G36: 1 | P36: V30
F37: resol. [m] | G37: =(G36-G35)/400 -> 0.005
B42: =setChartAxis("Reaction2", "Chart 1", "Min", "Y", "Primary", G33) -> Y Min: 0 | C42: =setChartAxis("Reaction2", "Chart 2", "Min", "Y", "Primary", 0) -> Y Min: 0 | D42: =setChartAxis("Reaction2", "Chart 3", "Min", "Y", "Primary", 0) -> Y Min: 0
B43: =setChartAxis("Reaction2", "Chart 1", "Max", "Y", "Primary", G34) -> Y Max: 12 | C43: =setChartAxis("Reaction2", "Chart 2", "Max", "Y", "Primary", I34) -> Y Max: 30 | D43: =setChartAxis("Reaction2", "Chart 3", "Max", "Y", "Primary", K34) -> Y Max: 50
B44: =setChartAxis("Reaction2", "Chart 1", "Min", "X", "Primary", G35) -> X Min: -1 | C44: =setChartAxis("Reaction2", "Chart 2", "Min", "X", "Primary", G35) -> X Min: -1 | D44: =setChartAxis("Reaction2", "Chart 3", "Min", "X", "Primary", G35) -> X Min: -1
B45: =setChartAxis("Reaction2", "Chart 1", "Max", "X", "Primary", G36) -> X Max: 1 | C45: =setChartAxis("Reaction2", "Chart 2", "Max", "X", "Primary", G36) -> X Max: 1 | D45: =setChartAxis("Reaction2", "Chart 3", "Max", "X", "Primary", G36) -> X Max: 1
B47: on
B48: off

Sheet Reaction3
B2: REACTION-3
B4: =C7&"("&C8&","&C9&")"&C10&", "&Calculation3!E9 -> 14C(d,p)15C, n-Adding
C6: REACTION
B7: BEAM (A) | C7: 14C
B8: TARGET (a) | C8: d
B9: LIGHT (b) | C9: p
B10: HEAVY (B) | C10: =Calculation3!F5 -> 15C
B11: Q-value | C11: =Calculation3!M6 -> -1.0064994 | D11: (MeV)
B12: min KE/A | C12: =Calculation3!M7 -> 0.5717726699 | D12: (MeV/u)
B13: Beam Ex | C13: 0 | D13: (MeV)
B15: E beam/ u | C15: 16 | D15: (MeV/u)
B16: E BEAM | C16: =Calculation3!F13 -> 224 | D16: (MeV)
B18: B FIELD | C18: 2.85 | D18: (T)
B20: Target position | C20: 0 | D20: (m)
B21: RADIUS DET. | C21: 0.0115 | D21: (m) | H21: ="QUANTITIES AT A GIVEN CM ANGLE "&B4 -> QUANTITIES AT A GIVEN CM ANGLE 14C(d,p)15C, n-Adding | R21: # of Cycle
B22: BORE RADIUS | C22: 0.46 | D22: (m) | F22: min 𝜃cm | G22: =Calculation3!K21 -> 1.280662877
F23: Max Ex | G23: =Calculation3!F21 -> 27.1329318 | R23: 1
B24: show ideal line | C24: off | G24: Ex [MeV] | H24: 𝜃cm [deg] | I24: Eb[MeV] | J24: Zb0[m] | K24: Zb[m] | L24: 2ρ[cm] | M24: θbLab [deg] | N24: Tcyc [ns] | O24: EB[MeV] | P24: θBLab [deg] | Q24: ZB0/2[m] | R24: 2ρB[cm]
B25: θCM | C25: 0 | D25: deg | F25: Ex1 | H25: 30 | I25: =Calculation3!C33 ->  | J25: =Calculation3!E33 ->  | K25: =Calculation3!F33 ->  | L25: =Calculation3!G33 ->  | M25: =Calculation3!H33 ->  | N25: =Calculation3!I33 ->  | O25: =Calculation3!J33 ->  | P25: =Calculation3!K33 ->  | Q25: =Calculation3!L33 ->  | R25: =Calculation3!M33 -> 
B26: θCM Limit | C26: 0 | D26: deg | F26: Ex2 | H26: 20 | I26: =Calculation3!C34 ->  | J26: =Calculation3!E34 ->  | K26: =Calculation3!F34 ->  | L26: =Calculation3!G34 ->  | M26: =Calculation3!H34 ->  | N26: =Calculation3!I34 ->  | O26: =Calculation3!J34 ->  | P26: =Calculation3!K34 ->  | Q26: =Calculation3!L34 ->  | R26: =Calculation3!M34 -> 
F27: Ex3 | H27: 30 | I27: =Calculation3!C35 ->  | J27: =Calculation3!E35 ->  | K27: =Calculation3!F35 ->  | L27: =Calculation3!G35 ->  | M27: =Calculation3!H35 ->  | N27: =Calculation3!I35 ->  | O27: =Calculation3!J35 ->  | P27: =Calculation3!K35 ->  | Q27: =Calculation3!L35 ->  | R27: =Calculation3!M35 -> 
F28: Ex4 | H28: 40 | I28: =Calculation3!C36 ->  | J28: =Calculation3!E36 ->  | K28: =Calculation3!F36 ->  | L28: =Calculation3!G36 ->  | M28: =Calculation3!H36 ->  | N28: =Calculation3!I36 ->  | O28: =Calculation3!J36 ->  | P28: =Calculation3!K36 ->  | Q28: =Calculation3!L36 ->  | R28: =Calculation3!M36 -> 
F29: Ex5 | H29: 10 | I29: =Calculation3!C37 ->  | J29: =Calculation3!E37 ->  | K29: =Calculation3!F37 ->  | L29: =Calculation3!G37 ->  | M29: =Calculation3!H37 ->  | N29: =Calculation3!I37 ->  | O29: =Calculation3!J37 ->  | P29: =Calculation3!K37 ->  | Q29: =Calculation3!L37 ->  | R29: =Calculation3!M37 -> 
F32: Plots Axes Range Control (need macro enable) | P32: Save PNG
F33: Min E [MeV] | G33: 0 | P33: 0
F34: Max E [MeV] | G34: 8 | H34: r Max | I34: 5 | J34: 𝜃cm Max | K34: 50 | P34: Range
F35: Min Z [m] | G35: -1 | P35: A1
F36: Max Z [m] | G36: 1 | P36: T30
F37: resol. [m] | G37: =(G36-G35)/400 -> 0.005
B42: =setChartAxis("Reaction3", "Chart 1", "Min", "Y", "Primary", G33) ->  | C42: =setChartAxis("Reaction3", "Chart 2", "Min", "Y", "Primary", 0) ->  | D42: =setChartAxis("Reaction3", "Chart 3", "Min", "Y", "Primary", 0) -> 
B43: =setChartAxis("Reaction3", "Chart 1", "Max", "Y", "Primary", G34) ->  | C43: =setChartAxis("Reaction3", "Chart 2", "Max", "Y", "Primary", I34) ->  | D43: =setChartAxis("Reaction3", "Chart 3", "Max", "Y", "Primary", K34) -> 
B44: =setChartAxis("Reaction3", "Chart 1", "Min", "X", "Primary", G35) ->  | C44: =setChartAxis("Reaction3", "Chart 2", "Min", "X", "Primary", G35) ->  | D44: =setChartAxis("Reaction3", "Chart 3", "Min", "X", "Primary", G35) -> 
B45: =setChartAxis("Reaction3", "Chart 1", "Max", "X", "Primary", G36) ->  | C45: =setChartAxis("Reaction3", "Chart 2", "Max", "X", "Primary", G36) ->  | D45: =setChartAxis("Reaction3", "Chart 3", "Max", "X", "Primary", G36) -> 
B47: on
B48: off

Sheet Recoil
I1: =IF(C4=1, PI(), 3*PI()) -> 9.424777961 | J1: zhit | K1: =(D6-C6)/6 -> 5 | L1: =(D7-C7)/12 -> 5
B2: Recoil pos | C2: 300 | D2: mm | I2: phi-> | J2: =C7 -> 155 | K2: =J2+$L$1 -> 160 | L2: 165 | M2: 170 | N2: 175 | O2: 180 | P2: 185 | Q2: 190 | R2: 195 | S2: 200 | T2: 205 | U2: 210 | V2: =D7 -> 215
B3: Ex | C3: 0 | D3: MeV | G3: rho [mm] | H3: z0 [mm] | I3: thetacm | J3: =J2*PI()/180 -> 2.705260341 | K3: =K2*PI()/180 -> 2.792526803 | L3: 2.879793266 | M3: 2.967059728 | N3: 3.054326191 | O3: 3.141592654 | P3: 3.228859116 | Q3: 3.316125579 | R3: 3.403392041 | S3: 3.490658504 | T3: 3.577924967 | U3: 3.665191429 | V3: 3.752457892 | X3: rho-B | Y3: z0-B
B4: Field direction | C4: -1 | G4: =$C$19/$C$12/$C$14/$C$13*SIN(I4*PI()/180)*1000000000 -> 49.1888525 | H4: =($C$21*$C$20*SQRT($C$16*$C$16+$C$19*$C$19)-$C$21*$C$19*COS(I4*PI()/180))/$C$22 -> -608.6595627 | I4: =C6 -> 10 | J4: =$H4/2/PI()*($C$4*J$3+$I$1-ASIN($C$11/$G4-$C$4*SIN(J$3))) -> -581.5628309 | K4: -583.0340083 | L4: -584.1231495 | M4: -584.9147681 | N4: -585.462365 | O4: -585.8002138 | P4: -585.9496466 | Q4: -585.9225529 | R4: -585.7233217 | S4: -585.3498275 | T4: -584.7937624 | U4: -584.0404612 | V4: -583.0682888 | X4: =G4*$C$14/$C$15 -> 8.198142083 | Y4: =($C$21*$C$20*SQRT($C$17*$C$17+$C$19*$C$19)+$C$21*$C$19*COS(I4*PI()/180))/$C$22*$C$14/$C$15 -> 3307.380446
B5: detector width | C5: 10 | D5: mm | G5: =$C$19/$C$12/$C$14/$C$13*SIN(I5*PI()/180)*1000000000 -> 73.31497516 | H5: =($C$21*$C$20*SQRT($C$16*$C$16+$C$19*$C$19)-$C$21*$C$19*COS(I5*PI()/180))/$C$22 -> -574.8290338 | I5: =I4+$K$1 -> 15 | J5: -558.2010256 | K5: -558.9800874 | L5: -559.5610545 | M5: -559.9801335 | N5: -560.2610714 | O5: -560.4191268 | P5: -560.4633307 | Q5: -560.3977642 | R5: -560.2222115 | S5: -559.9323681 | T5: -559.5196845 | U5: -558.9708601 | V5: -558.2669576 | X5: =G5*$C$14/$C$15 -> 12.21916253 | Y5: =($C$21*$C$20*SQRT($C$17*$C$17+$C$19*$C$19)+$C$21*$C$19*COS(I5*PI()/180))/$C$22*$C$14/$C$15 -> 3301.742025
B6: 𝜃cm Range | C6: 10 | D6: 40 | E6: deg | G6: =$C$19/$C$12/$C$14/$C$13*SIN(I6*PI()/180)*1000000000 -> 96.8831266 | H6: =($C$21*$C$20*SQRT($C$16*$C$16+$C$19*$C$19)-$C$21*$C$19*COS(I6*PI()/180))/$C$22 -> -527.8273042 | I6: =I5+$K$1 -> 20 | J6: -516.4300396 | K6: -516.9283027 | L6: -517.2999738 | M6: -517.5660868 | N6: -517.7405514 | O6: -517.8322114 | P6: -517.8460361 | Q6: -517.7837786 | R6: -517.6442709 | S6: -517.423436 | T6: -517.1140412 | U6: -516.7051739 | V6: -516.1813844 | X6: =G6*$C$14/$C$15 -> 16.14718777 | Y6: =($C$21*$C$20*SQRT($C$17*$C$17+$C$19*$C$19)+$C$21*$C$19*COS(I6*PI()/180))/$C$22*$C$14/$C$15 -> 3293.908403
B7: φ Range | C7: 155 | D7: 215 | E7: deg | G7: =$C$19/$C$12/$C$14/$C$13*SIN(I7*PI()/180)*1000000000 -> 119.7139389 | H7: =($C$21*$C$20*SQRT($C$16*$C$16+$C$19*$C$19)-$C$21*$C$19*COS(I7*PI()/180))/$C$22 -> -468.0120852 | I7: 25 | J7: -459.8949489 | K7: -460.2358053 | L7: -460.4898643 | M7: -460.6707422 | N7: -460.7874608 | O7: -460.8456937 | P7: -460.8484886 | Q7: -460.7966565 | R7: -460.6889209 | S7: -460.5218697 | T7: -460.2897133 | U7: -459.983823 | V7: -459.5919885 | X7: =G7*$C$14/$C$15 -> 19.95232316 | Y7: =($C$21*$C$20*SQRT($C$17*$C$17+$C$19*$C$19)+$C$21*$C$19*COS(I7*PI()/180))/$C$22*$C$14/$C$15 -> 3283.9392
B8: =IF(OR(ISNUMBER(X19), ISNUMBER(AJ13)), "Please extend φ range", "φ Range is OK") -> φ Range is OK | G8: =$C$19/$C$12/$C$14/$C$13*SIN(I8*PI()/180)*1000000000 -> 141.6336559 | H8: =($C$21*$C$20*SQRT($C$16*$C$16+$C$19*$C$19)-$C$21*$C$19*COS(I8*PI()/180))/$C$22 -> -395.8386069 | I8: 30 | J8: =$H8/2/PI()*($C$4*J$3+$I$1-ASIN($C$11/$G8-$C$4*SIN(J$3))) -> -390.063067 | K8: -390.2993243 | L8: -390.4752648 | M8: -390.5999952 | N8: -390.6795497 | O8: -390.7176867 | P8: -390.716351 | Q8: -390.6759148 | R8: -390.5952572 | S8: -390.4717014 | T8: -390.3008103 | U8: -390.076011 | V8: -389.7879954 | X8: =G8*$C$14/$C$15 -> 23.60560932 | Y8: =($C$21*$C$20*SQRT($C$17*$C$17+$C$19*$C$19)+$C$21*$C$19*COS(I8*PI()/180))/$C$22*$C$14/$C$15 -> 3271.910287
G9: 162.4754553 | H9: -311.856153 | I9: 35 | J9: -307.902354 | K9: -308.0611649 | L9: -308.1793376 | M9: -308.2628436 | N9: -308.3156371 | O9: -308.3401615 | P9: -308.3376424 | Q9: -308.3082362 | R9: -308.2510714 | S9: -308.1641925 | T9: -308.0444024 | U9: -307.8869818 | V9: -307.6852407 | X9: 27.07924255 | Y9: 3257.913211
G10: 182.0807183 | H10: -216.7038807 | I10: =D6 -> 40 | J10: -214.2578982 | K10: -214.354846 | L10: -214.4269376 | M10: -214.4777528 | N10: -214.5096604 | O10: -214.5241148 | P10: -214.5218264 | Q10: -214.5028475 | R10: -214.4665912 | S10: -214.4117904 | T10: -214.3363928 | U10: -214.2373753 | V10: -214.1104482 | X10: 30.34678638 | Y10: 3242.054499
B11: a | C11: =Calculation1!F17*1000 -> 11.5 | D11: mm
B12: B-field | C12: =Calculation1!F15 -> 2 | D12: T | J12: yHit | X12: yHit-B
B13: c | C13: =Calculation1!B3 -> 299792458 | D13: m/s | J13: =$G4*$C$4*(COS(J4/$H4*2*PI()-$C$4*J$3)-COS(J$3)) -> -7.47200196 | K13: -6.006507872 | L13: -4.706226538 | M13: -3.520751874 | N13: -2.415077615 | O13: -1.363198189 | P13: -0.344535292 | Q13: 0.6582412891 | R13: 1.660663296 | S13: 2.677523879 | T13: 3.723737754 | U13: 4.815117842 | V13: 5.969145474 | X13: =IF(ISNUMBER(J31), $X4*$C$4*(COS($C$2/$Y4*2*PI()-$C$4*(J$3+PI()))-COS(J$3+PI())), NA()) ->  | Z13: 0.1067548722 | AA13: 0.5079713083 | AB13: 0.905321776 | AC13: 1.295782198 | AD13: 1.676380936 | AE13: 2.044221402 | AF13: 2.396504109 | AG13: 2.730547973 | AH13: 3.043810718 | AI13: 3.333908225
B14: z-b | C14: =Calculation1!H4 -> 1 | J14: =$G5*$C$4*(COS(J5/$H5*2*PI()-$C$4*J$3)-COS(J$3)) -> -6.694997262 | K14: -5.353471501 | L14: -4.135939023 | M14: -3.006187575 | N14: -1.937185876 | O14: -0.9075474836 | P14: 0.1006746834 | Q14: 1.103483689 | R14: 2.116054166 | S14: 3.153662636 | T14: 4.232562332 | U14: 5.370903661 | V14: 6.589793063 | X14: =IF(ISNUMBER(J32), $X5*$C$4*(COS($C$2/$Y5*2*PI()-$C$4*(J$3+PI()))-COS(J$3+PI())), NA()) ->  | Z14: 0.1627281212 | AA14: 0.7617067705 | AB14: 1.354888371 | AC14: 1.937758454 | AD14: 2.505881024 | AE14: 3.054932327 | AF14: 3.58073375 | AG14: 4.079283627 | AH14: 4.546787693 | AJ14: =IF(ISNUMBER(V32), $X5*$C$4*(COS($C$2/$Y5*2*PI()-$C$4*(V$3+PI()))-COS(V$3+PI())), NA()) -> 
B15: z-B | C15: =Calculation1!H5 -> 6 | J15: =$G6*$C$4*(COS(J6/$H6*2*PI()-$C$4*J$3)-COS(J$3)) -> -6.344859158 | K15: -5.052165573 | L15: -3.867951499 | M15: -2.760754335 | N15: -1.70633377 | O15: -0.6849446016 | P15: 0.320457105 | Q15: 1.325500608 | R15: 2.345424067 | S15: 3.395992715 | T15: 4.494430949 | U15: 5.660477757 | V15: 6.917685293 | X15: =IF(ISNUMBER(J33), $X6*$C$4*(COS($C$2/$Y6*2*PI()-$C$4*(J$3+PI()))-COS(J$3+PI())), NA()) ->  | Z15: 0.2217226432 | AA15: 1.015045941 | AB15: 1.800644127 | AC15: 2.572538323 | AD15: 3.32485395 | AE15: 4.05186543 | AF15: 4.748039768 | AG15: 5.408078656 | AH15: 6.026958801
B16: mass-b | C16: =Calculation1!M4 -> 938.2720813 | D16: MeV/c2 | J16: =$G7*$C$4*(COS(J7/$H7*2*PI()-$C$4*J$3)-COS(J$3)) -> -6.146076794 | K16: -4.879281184 | L16: -3.712866612 | M16: -2.617700921 | N16: -1.570934542 | O16: -0.5536386024 | P16: 0.4507992938 | Q16: 1.457867022 | R16: 2.482915576 | S16: 3.542085688 | T16: 4.653291879 | U16: 5.837384125 | V16: 7.119631993 | X16: =IF(ISNUMBER(J34), $X7*$C$4*(COS($C$2/$Y7*2*PI()-$C$4*(J$3+PI()))-COS(J$3+PI())), NA()) ->  | Y16: -0.700683855 | Z16: 0.284589796 | AA16: 1.267697547 | AB16: 2.241157354 | AC16: 3.1975606 | AD16: 4.12962848 | AE16: 5.030267393 | AF16: 5.892622934 | AG16: 6.710132056 | AH16: 7.476573022
B17: mass-B | C17: =Calculation1!M5 -> 14914.53375 | D17: MeV/c2 | J17: =$G8*$C$4*(COS(J8/$H8*2*PI()-$C$4*J$3)-COS(J$3)) -> -6.018781828 | K17: -4.767896752 | L17: -3.612452762 | M17: -2.524685012 | N17: -1.482565605 | O17: -0.4676455305 | P17: 0.5364429744 | Q17: 1.545126353 | R17: 2.573860749 | S17: 3.639070655 | T17: 4.759175253 | U17: 5.955832494 | V17: 7.255566957 | X17: =IF(ISNUMBER(J35), $X8*$C$4*(COS($C$2/$Y8*2*PI()-$C$4*(J$3+PI()))-COS(J$3+PI())), NA()) ->  | Y17: -0.8178182838 | Z17: 0.3520484191 | AA17: 1.519235821 | AB17: 2.674860921 | AC17: 3.810128714 | AD17: 4.916399127 | AE17: 5.985252774 | AF17: 7.008555034 | AG17: 7.978517958 | AH17: 8.887759542
B18: Mc | C18: =Calculation1!K13 -> 15869.02114 | D18: MeV | J18: =$G9*$C$4*(COS(J9/$H9*2*PI()-$C$4*J$3)-COS(J$3)) -> -5.931040944 | K18: -4.690821606 | L18: -3.542744049 | M18: -2.459932597 | N18: -1.420895603 | O18: -0.407495558 | P18: 0.5964813797 | Q18: 1.606433231 | R18: 2.637904763 | S18: 3.707537712 | T18: 4.834130957 | U18: 6.039949045 | V18: 7.352462705 | X18: =IF(ISNUMBER(J36), $X9*$C$4*(COS($C$2/$Y9*2*PI()-$C$4*(J$3+PI()))-COS(J$3+PI())), NA()) ->  | Y18: -0.9229951505 | Z18: 0.4246531167 | AA18: 1.769069517 | AB18: 3.100022231 | AC18: 4.407381903 | AD18: 5.681198738 | AE18: 6.91177822 | AF18: 8.089754896 | AG18: 9.206163653 | AH18: 10.25250795
B19: kcm | C19: =SQRT(($C$18*$C$18-POWER($C$16+$C$17+C3,2))*($C$18*$C$18-POWER($C$16-$C$17-C3,2)))/2/$C$18 -> 169.8428074 | D19: MeV/c | J19: =$G10*$C$4*(COS(J10/$H10*2*PI()-$C$4*J$3)-COS(J$3)) -> -5.867558861 | K19: -4.634904998 | L19: -3.492057532 | M19: -2.412758144 | N19: -1.375888254 | O19: -0.3635260021 | P19: 0.6404386754 | Q19: 1.65139058 | R19: 2.684947262 | S19: 3.757919419 | T19: 4.889398133 | U19: 6.102114397 | V19: 7.424268963 | X19: =IF(ISNUMBER(J37), $X10*$C$4*(COS($C$2/$Y10*2*PI()-$C$4*(J$3+PI()))-COS(J$3+PI())), NA()) ->  | Y19: -1.014711735 | Z19: 0.502763797 | AA19: 2.016412993 | AB19: 3.514716069 | AC19: 4.986270033 | AD19: 6.419875471 | AE19: 7.804621781 | AF19: 9.129970206 | AG19: 10.38583405 | AH19: 11.56265542
B20: beta_cm | C20: =Calculation1!K15 -> 0.1149054959
B21: gamm_cm | C21: =1/SQRT(1-C20*C20) -> 1.006667737 | J21: xHit ( senity check, all should be a) | X21: xHit-B
B22: alpha | C22: =Calculation1!K18 -> 0.09542690329 | D22: MeV/mm | I22: ="Rb("&I4&")" -> Rb(10) | J22: =$G4*(SIN(J4/$H4*2*PI()-$C$4*J$3)+$C$4*SIN(J$3)) -> 11.5 | K22: 11.5 | L22: 11.5 | M22: 11.5 | N22: 11.5 | O22: 11.5 | P22: 11.5 | Q22: 11.5 | R22: 11.5 | S22: 11.5 | T22: 11.5 | U22: 11.5 | V22: 11.5 | W22: ="RB("&I4&")" -> RB(10) | X22: =$X4*(SIN($C$2/$Y4*2*PI()-$C$4*J$3-PI())+$C$4*SIN(J$3+PI())) -> 4.556633701 | Y22: 4.599872432 | Z22: 4.608103356 | AA22: 4.581263831 | AB22: 4.519558123 | AC22: 4.423455848 | AD22: 4.293688403 | AE22: 4.131243397 | AF22: 3.937357133 | AG22: 3.713505205 | AH22: 3.46139126 | AI22: 3.182934037 | AJ22: 2.880252765
B23: =IF(C4=1,"Field Out of Plane, parallel to Beam","Field Into Plane, anti-parallel to Beam") -> Field Into Plane, anti-parallel to Beam | I23: ="Rb("&I5&")" -> Rb(15) | J23: =$G5*(SIN(J5/$H5*2*PI()-$C$4*J$3)+$C$4*SIN(J$3)) -> 11.5 | K23: 11.5 | L23: 11.5 | M23: 11.5 | N23: 11.5 | O23: 11.5 | P23: 11.5 | Q23: 11.5 | R23: 11.5 | S23: 11.5 | T23: 11.5 | U23: 11.5 | V23: 11.5 | W23: ="RB("&I5&")" -> RB(15) | X23: 6.803354771 | Y23: 6.867617808 | Z23: 6.879614127 | AA23: 6.839252428 | AB23: 6.746839888 | AC23: 6.603079823 | AD23: 6.409066333 | AE23: 6.166275979 | AF23: 5.876556541 | AG23: 5.54211296 | AH23: 5.165490552 | AI23: 4.749555643 | AJ23: 4.297473747
B24: ="Recoil @ "&C2&" mm" -> Recoil @ 300 mm | I24: ="Rb("&I6&")" -> Rb(20) | J24: =$G6*(SIN(J6/$H6*2*PI()-$C$4*J$3)+$C$4*SIN(J$3)) -> 11.5 | K24: 11.5 | L24: 11.5 | M24: 11.5 | N24: 11.5 | O24: 11.5 | P24: 11.5 | Q24: 11.5 | R24: 11.5 | S24: 11.5 | T24: 11.5 | U24: 11.5 | V24: 11.5 | W24: ="RB("&I6&")" -> RB(20) | X24: 9.012113953 | Y24: 9.096694974 | Z24: 9.112044653 | AA24: 9.05804617 | AB24: 8.935110487 | AC24: 8.744173218 | AD24: 8.486687511 | AE24: 8.164612987 | AF24: 7.780400828 | AG24: 7.336975122 | AH24: 6.837710604 | AI24: 6.28640698 | AJ24: 5.687260003
I25: ="Rb("&I7&")" -> Rb(25) | J25: =$G7*(SIN(J7/$H7*2*PI()-$C$4*J$3)+$C$4*SIN(J$3)) -> 11.5 | K25: 11.5 | L25: 11.5 | M25: 11.5 | N25: 11.5 | O25: 11.5 | P25: 11.5 | Q25: 11.5 | R25: 11.5 | S25: 11.5 | T25: 11.5 | U25: 11.5 | V25: 11.5 | W25: ="RB("&I7&")" -> RB(25) | X25: 11.17018464 | Y25: 11.27415482 | Z25: 11.29232188 | AA25: 11.22454755 | AB25: 11.07134764 | AC25: 10.83388808 | AD25: 10.5139761 | AE25: 10.11404641 | AF25: 9.637142719 | AG25: 9.086894553 | AH25: 8.467489632 | AI25: 7.783642003 | AJ25: 7.040556158
I26: ="Rb("&I8&")" -> Rb(30) | J26: =$G8*(SIN(J8/$H8*2*PI()-$C$4*J$3)+$C$4*SIN(J$3)) -> 11.5 | K26: 11.5 | L26: 11.5 | M26: 11.5 | N26: 11.5 | O26: 11.5 | P26: 11.5 | Q26: 11.5 | R26: 11.5 | S26: 11.5 | T26: 11.5 | U26: 11.5 | V26: 11.5 | W26: ="RB("&I8&")" -> RB(30) | X26: =$X8*(SIN($C$2/$Y8*2*PI()-$C$4*J$3-PI())+$C$4*SIN(J$3+PI())) -> 13.2647892 | Y26: 13.38700837 | Z26: 13.40734432 | AA26: 13.32564228 | AB26: 13.14252407 | AC26: 12.8593833 | AD26: 12.47837487 | AE26: 12.00239847 | AF26: 11.43507657 | AG26: 10.78072683 | AH26: 10.04432925 | AI26: 9.231488261 | AJ26: 8.348390072
I27: Rb(35) | J27: =$G9*(SIN(J9/$H9*2*PI()-$C$4*J$3)+$C$4*SIN(J$3)) -> 11.5 | K27: 11.5 | L27: 11.5 | M27: 11.5 | N27: 11.5 | O27: 11.5 | P27: 11.5 | Q27: 11.5 | R27: 11.5 | S27: 11.5 | T27: 11.5 | U27: 11.5 | V27: 11.5 | W27: RB(35) | X27: =$X9*(SIN($C$2/$Y9*2*PI()-$C$4*J$3-PI())+$C$4*SIN(J$3+PI())) -> 15.28310036 | Y27: 15.42223094 | Z27: 15.44398902 | AA27: 15.34820902 | AB27: 15.13561988 | AC27: 14.80783954 | AD27: 14.3673626 | AE27: 13.81754135 | AF27: 13.16256027 | AG27: 12.40740416 | AH27: 11.55782021 | AI27: 10.62027427 | AJ27: 9.601901625
I28: Rb(40) | J28: =$G10*(SIN(J10/$H10*2*PI()-$C$4*J$3)+$C$4*SIN(J$3)) -> 11.5 | K28: 11.5 | L28: 11.5 | M28: 11.5 | N28: 11.5 | O28: 11.5 | P28: 11.5 | Q28: 11.5 | R28: 11.5 | S28: 11.5 | T28: 11.5 | U28: 11.5 | V28: 11.5 | W28: RB(40) | X28: =$X10*(SIN($C$2/$Y10*2*PI()-$C$4*J$3-PI())+$C$4*SIN(J$3+PI())) -> 17.21225206 | Y28: 17.36677584 | Z28: 17.38912797 | AA28: 17.27913834 | AB28: 17.03764403 | AC28: 16.66648296 | AD28: 16.16847989 | AE28: 15.54742493 | AF28: 14.80804468 | AG28: 13.95596626 | AH28: 12.99767451 | AI28: 11.94046262 | AJ28: 10.79237659
J30: yHit-gated
J31: =IF(ABS(J13)>$C$5/2, NA(), J13) ->  | L31: -4.706226538 | M31: -3.520751874 | N31: -2.415077615 | O31: -1.363198189 | P31: -0.344535292 | Q31: 0.6582412891 | R31: 1.660663296 | S31: 2.677523879 | T31: 3.723737754 | U31: 4.815117842
J32: =IF(ABS(J14)>$C$5/2, NA(), J14) ->  | L32: -4.135939023 | M32: -3.006187575 | N32: -1.937185876 | O32: -0.9075474836 | P32: 0.1006746834 | Q32: 1.103483689 | R32: 2.116054166 | S32: 3.153662636 | T32: 4.232562332
J33: =IF(ABS(J15)>$C$5/2, NA(), J15) ->  | L33: -3.867951499 | M33: -2.760754335 | N33: -1.70633377 | O33: -0.6849446016 | P33: 0.320457105 | Q33: 1.325500608 | R33: 2.345424067 | S33: 3.395992715 | T33: 4.494430949
J34: =IF(ABS(J16)>$C$5/2, NA(), J16) ->  | K34: -4.879281184 | L34: -3.712866612 | M34: -2.617700921 | N34: -1.570934542 | O34: -0.5536386024 | P34: 0.4507992938 | Q34: 1.457867022 | R34: 2.482915576 | S34: 3.542085688 | T34: 4.653291879
J35: =IF(ABS(J17)>$C$5/2, NA(), J17) ->  | K35: -4.767896752 | L35: -3.612452762 | M35: -2.524685012 | N35: -1.482565605 | O35: -0.4676455305 | P35: 0.5364429744 | Q35: 1.545126353 | R35: 2.573860749 | S35: 3.639070655 | T35: 4.759175253
J36: =IF(ABS(J18)>$C$5/2, NA(), J18) ->  | K36: -4.690821606 | L36: -3.542744049 | M36: -2.459932597 | N36: -1.420895603 | O36: -0.407495558 | P36: 0.5964813797 | Q36: 1.606433231 | R36: 2.637904763 | S36: 3.707537712 | T36: 4.834130957
J37: =IF(ABS(J19)>$C$5/2, NA(), J19) ->  | K37: -4.634904998 | L37: -3.492057532 | M37: -2.412758144 | N37: -1.375888254 | O37: -0.3635260021 | P37: 0.6404386754 | Q37: 1.65139058 | R37: 2.684947262 | S37: 3.757919419 | T37: 4.889398133

Sheet Compare
B2: ="Compare | "&Calculation1!E10& " -- "&Calculation2!E10&" -- "&Calculation3!E10 -> Compare | 15C(d,p)16C -- 14C(d,p)15C -- 14C(d,p)15C
P32: Save PNG
C33: Plots Axes Range Control (need macro enable) | P33: 1
C34: Min E [MeV] | D34: 0 | G34: 𝜃cm Min | H34: 0 | P34: Range
C35: Max E [MeV] | D35: 12 | E35: r Max | F35: 50 | G35: 𝜃cm Max | H35: 50 | P35: J5
C36: Min Z [m] | D36: -0.7 | P36: Q26
C37: Max Z [m] | D37: 1
C38: resol. [m] | D38: =(D37-D36)/400 -> 0.00425
A44: =setChartAxis("Compare", "Chart 1", "Min", "Y", "Primary", D34) -> Y Min: 0 | B44: =setChartAxis("Compare", "Chart 2", "Min", "Y", "Primary",0) -> Y Min: 0 | C44: =setChartAxis("Compare", "Chart 3", "Min", "Y", "Primary", H34) -> Y Min: 0
A45: =setChartAxis("Compare", "Chart 1", "Max", "Y", "Primary", D35) -> Y Max: 12 | B45: =setChartAxis("Compare", "Chart 2", "Max", "Y", "Primary", F35) -> Y Max: 50 | C45: =setChartAxis("Compare", "Chart 3", "Max", "Y", "Primary", H35) -> Y Max: 50
A46: =setChartAxis("Compare", "Chart 1", "Min", "X", "Primary", D36) -> X Min: -0.7 | B46: =setChartAxis("Compare", "Chart 2", "Min", "X", "Primary", D36) -> X Min: -0.7 | C46: =setChartAxis("Compare", "Chart 3", "Min", "X", "Primary", D36) -> X Min: -0.7
A47: =setChartAxis("Compare", "Chart 1", "Max", "X", "Primary", D37) -> X Max: 1 | B47: =setChartAxis("Compare", "Chart 2", "Max", "X", "Primary", D37) -> X Max: 1 | C47: =setChartAxis("Compare", "Chart 3", "Max", "X", "Primary", D37) -> X Max: 1

Sheet Resol-Checker
B1: state1 | C1: state2
A2: energy [MeV] | B2: 0 | C2: 0.1
A3: FWHM [keV] | B3: 70 | C3: =B3 -> 70
A4: sigma [keV] | B4: =B3/B13 -> 29.72626301 | C4: =C3/B13 -> 29.72626301
A5: count | B5: 1000 | C5: 700
A6: Bin [keV] | B6: 20 | C6: =B6 -> 20
A7: height | B7: =B5/B4/SQRT(2*PI())*B6 -> 268.4106511 | C7: =C5/C4/SQRT(2*PI())*C6 -> 187.8874557
A9: To generate a new random, Crtl+S
A12: title | B12: ="Start at "&F22&" MeV with bin size "&B6&" keV" -> Start at -0.09 MeV with bin size 20 keV
A13: sigma to FWHM | B13: =2*SQRT(2*LN(2)) -> 2.354820045
A14: #sigma to plot | B14: 3
A15: min energy | B15: =MIN(B2-B14*B4/1000,C2-B14*C4/1000) -> -0.08917878903
A16: max energy | B16: =MAX(B2+B14*B4/1000,C2+B14*C4/1000) -> 0.189178789
A17: diff | B17: =ABS(B15-B16) -> 0.2783575781
A18: step | B18: 1000
A19: step size [MeV] | B19: =B17/B18 -> 0.0002783575781
G20: =SUMIF(G22:G202, ">0") -> 991 | H20: =SUMIF(H22:H202, ">0") -> 710
A21: energy | B21: =B2&" MeV (Gauss)" -> 0 MeV (Gauss) | C21: =C2&" MeV (Gauss)" -> 0.1 MeV (Gauss) | D21: Sum (Gauss) | F21: energy | G21: =B2&" MeV" -> 0 MeV | H21: =C2&" MeV" -> 0.1 MeV | I21: sum | J21: Flutuation by simple sqrt
A22: =B15 -> -0.08917878903 | B22: =B$7*EXP(-POWER($A22-B$2,2)/2/B$4/B$4*1000000) -> 2.981772993 | C22: 3.014724822e-07 | D22: =B22+C22 -> 2.981773295 | F22: =FLOOR(A22, 0.01) -> -0.09 | G22: =J22+L22 -> 4 | H22: =K22+M22 -> 0 | I22: =H22+G22 -> 4 | J22: =ROUND(RAND()*SQRT(L22),0)*IF( RAND()>0.5, 1, -1) -> 1 | K22: =ROUND(RAND()*SQRT(M22),0)*IF( RAND()>0.5, 1, -1) -> 0 | L22: =ROUND(B$7*EXP(-POWER($F22-B$2,2)/2/B$4/B$4*1000000),0) -> 3 | M22: =ROUND(C$7*EXP(-POWER($F22-C$2,2)/2/C$4/C$4*1000000),0) -> 0
A23: =A22+$B$19 -> -0.08890043145 | B23: 3.066590418 | C23: 3.199701936e-07 | D23: =B23+C23 -> 3.066590737 | F23: =IF(F22="", "", IF(F22+$B$6/1000 > $B$16, #N/A, F22+$B$6/1000)) -> -0.07 | G23: =J23+L23 -> 15 | H23: =K23+M23 -> 0 | I23: =IF( F23="", "", H23+G23) -> 15 | J23: =ROUND(RAND()*SQRT(L23),0)*IF( RAND()>0.5, 1, -1) -> -2 | K23: =ROUND(RAND()*SQRT(M23),0)*IF( RAND()>0.5, 1, -1) -> 0 | L23: =ROUND(B$7*EXP(-POWER($F23-B$2,2)/2/B$4/B$4*1000000),0) -> 17 | M23: =ROUND(C$7*EXP(-POWER($F23-C$2,2)/2/C$4/C$4*1000000),0) -> 0
A24: =A23+$B$19 -> -0.08862207387 | B24: 3.153543968 | C24: 3.395731084e-07 | D24: 3.153544307 | F24: -0.05 | G24: 64 | H24: 0 | I24: 64 | J24: -1 | K24: 0 | L24: 65 | M24: 0
A25: -0.0883437163 | B25: 3.24267875 | C25: 3.603453939e-07 | D25: 3.24267911 | F25: -0.03 | G25: 150 | H25: 0 | I25: 150 | J25: -11 | K25: 0 | L25: 161 | M25: 0
A26: -0.08806535872 | B26: 3.334040565 | C26: 3.823548284e-07 | D26: 3.334040947 | F26: -0.01 | G26: 263 | H26: 0 | I26: 263 | J26: 9 | K26: 0 | L26: 254 | M26: 0
A27: -0.08778700114 | B27: 3.427675911 | C27: 4.05672998e-07 | D27: 3.427676316 | F27: 0.01 | G27: 256 | H27: 1 | I27: 257 | J27: 2 | K27: -1 | L27: 254 | M27: 2
A28: -0.08750864356 | B28: 3.523631989 | C28: 4.303755029e-07 | D28: 3.523632419 | F28: 0.03 | G28: 149 | H28: 14 | I28: 163 | J28: -12 | K28: 2 | L28: 161 | M28: 12
A29: -0.08723028598 | B29: 3.621956704 | C29: 4.565421752e-07 | D29: 3.621957161 | F29: 0.05 | G29: 69 | H29: 40 | I29: 109 | J29: 4 | K29: -6 | L29: 65 | M29: 46
A30: -0.08695192841 | B30: 3.722698669 | C30: 4.842573075e-07 | D30: 3.722699154 | F30: 0.07 | G30: 18 | H30: 123 | I30: 141 | J30: 1 | K30: 10 | L30: 17 | M30: 113
A31: -0.08667357083 | B31: 3.825907206 | C31: 5.136098939e-07 | D31: 3.82590772 | F31: 0.09 | G31: 3 | H31: 177 | I31: 180 | J31: 0 | K31: -1 | L31: 3 | M31: 178
A32: -0.08639521325 | B32: 3.931632348 | C32: 5.446938832e-07 | D32: 3.931632892 | F32: 0.11 | G32: 0 | H32: 185 | I32: 185 | J32: 0 | K32: 7 | L32: 0 | M32: 178
A33: -0.08611685567 | B33: 4.039924842 | C33: 5.77608445e-07 | D33: 4.03992542 | F33: 0.13 | G33: 0 | H33: 109 | I33: 109 | J33: 0 | K33: -4 | L33: 0 | M33: 113
A34: -0.08583849809 | B34: 4.150836152 | C34: 6.124582499e-07 | D34: 4.150836765 | F34: 0.15 | G34: 0 | H34: 51 | I34: 51 | J34: 0 | K34: 5 | L34: 0 | M34: 46
A35: -0.08556014052 | B35: 4.264418458 | C35: 6.493537647e-07 | D35: 4.264419107 | F35: 0.17 | G35: 0 | H35: 10 | I35: 10 | J35: 0 | K35: -2 | L35: 0 | M35: 12
A36: -0.08528178294 | B36: 4.380724656 | C36: 6.884115613e-07 | D36: 4.380725345
A37: -0.08500342536 | B37: 4.499808365 | C37: 7.297546429e-07 | D37: 4.499809095
A38: -0.08472506778 | B38: 4.621723919 | C38: 7.735127864e-07 | D38: 4.621724693
A39: -0.0844467102 | B39: 4.746526375 | C39: 8.198229021e-07 | D39: 4.746527195
A40: -0.08416835263 | B40: 4.874271508 | C40: 8.68829412e-07 | D40: 4.874272376
A41: -0.08388999505 | B41: 5.005015811 | C41: 9.206846476e-07 | D41: 5.005016731
A42: -0.08361163747 | B42: =B$7*EXP(-POWER($A42-B$2,2)/2/B$4/B$4*1000000) -> 5.138816497 | C42: 9.755492675e-07 | D42: 5.138817473
A43: -0.08333327989 | B43: 5.275731498 | C43: 1.033592696e-06 | D43: 5.275732531
A44: -0.08305492231 | B44: 5.415819457 | C44: 1.094993586e-06 | D44: 5.415820552
A45: -0.08277656473 | B45: 5.559139737 | C45: 1.159940301e-06 | D45: 5.559140897
A46: -0.08249820716 | B46: 5.705752408 | C46: 1.228631425e-06 | D46: 5.705753636
A47: -0.08221984958 | B47: 5.855718253 | C47: 1.301276298e-06 | D47: 5.855719554
A48: -0.081941492 | B48: 6.00909876 | C48: 1.378095576e-06 | D48: 6.009100138
A49: -0.08166313442 | B49: 6.16595612 | C49: 1.459321821e-06 | D49: 6.16595758
A50: -0.08138477684 | B50: 6.326353226 | C50: 1.54520012e-06 | D50: 6.326354772
A51: -0.08110641927 | B51: 6.490353665 | C51: 1.635988735e-06 | D51: 6.490355301
A52: -0.08082806169 | B52: 6.658021714 | C52: 1.731959784e-06 | D52: 6.658023446
A53: -0.08054970411 | B53: 6.829422339 | C53: 1.833399958e-06 | D53: 6.829424172 | I53: =IF( F53="", "", H53+G53) -> 
A54: -0.08027134653 | B54: 7.004621184 | C54: 1.94061127e-06 | D54: 7.004623124 | I54: =IF( F54="", "", H54+G54) -> 
A55: -0.07999298895 | B55: 7.18368457 | C55: 2.053911849e-06 | D55: 7.183686624
A56: -0.07971463138 | B56: 7.366679486 | C56: 2.173636762e-06 | D56: 7.366681659
A57: -0.0794362738 | B57: 7.553673584 | C57: 2.300138882e-06 | D57: 7.553675884
A58: -0.07915791622 | B58: 7.74473517 | C58: 2.433789804e-06 | D58: 7.744737603
A59: -0.07887955864 | B59: 7.939933197 | C59: 2.574980793e-06 | D59: 7.939935772
A60: -0.07860120106 | B60: 8.13933726 | C60: 2.724123794e-06 | D60: 8.139339984
A61: -0.07832284349 | B61: 8.343017581 | C61: 2.881652474e-06 | D61: 8.343020462
A62: -0.07804448591 | B62: =B$7*EXP(-POWER($A62-B$2,2)/2/B$4/B$4*1000000) -> 8.551045005 | C62: 3.048023333e-06 | D62: 8.551048053
A63: -0.07776612833 | B63: 8.76349099 | C63: 3.223716852e-06 | D63: 8.763494214
A64: -0.07748777075 | B64: 8.980427594 | C64: 3.409238706e-06 | D64: 8.980431003
A65: -0.07720941317 | B65: 9.201927468 | C65: 3.60512104e-06 | D65: 9.201931073
A66: -0.0769310556 | B66: 9.428063841 | C66: 3.811923789e-06 | D66: 9.428067653
A67: -0.07665269802 | B67: 9.658910512 | C67: 4.030236083e-06 | D67: 9.658914543
A68: -0.07637434044 | B68: 9.894541836 | C68: 4.260677704e-06 | D68: 9.894546097
A69: -0.07609598286 | B69: 10.13503271 | C69: 4.503900618e-06 | D69: 10.13503721
A70: -0.07581762528 | B70: 10.38045856 | C70: 4.760590584e-06 | D70: 10.38046332
A71: -0.07553926771 | B71: 10.63089534 | C71: 5.031468828e-06 | D71: 10.63090037
A72: -0.07526091013 | B72: 10.88641948 | C72: 5.317293814e-06 | D72: 10.88642479
A73: -0.07498255255 | B73: 11.14710792 | C73: 5.61886308e-06 | D73: 11.14711354
A74: -0.07470419497 | B74: 11.41303806 | C74: 5.937015178e-06 | D74: 11.413044
A75: -0.07442583739 | B75: 11.68428776 | C75: 6.272631691e-06 | D75: 11.68429404
A76: -0.07414747981 | B76: 11.96093532 | C76: 6.626639355e-06 | D76: 11.96094195
A77: -0.07386912224 | B77: 12.24305946 | C77: 7.000012279e-06 | D77: 12.24306646
A78: -0.07359076466 | B78: 12.53073928 | C78: 7.393774263e-06 | D78: 12.53074667
A79: -0.07331240708 | B79: 12.8240543 | C79: 7.809001232e-06 | D79: 12.82406211
A80: -0.0730340495 | B80: 13.12308438 | C80: 8.246823777e-06 | D80: 13.12309263
A81: -0.07275569192 | B81: 13.42790974 | C81: 8.708429821e-06 | D81: 13.42791845
A82: -0.07247733435 | B82: =B$7*EXP(-POWER($A82-B$2,2)/2/B$4/B$4*1000000) -> 13.73861092 | C82: 9.195067403e-06 | D82: 13.73862011
A83: -0.07219897677 | B83: 14.05526875 | C83: 9.708047593e-06 | D83: 14.05527846
A84: -0.07192061919 | B84: 14.37796436 | C84: 1.024874754e-05 | D84: 14.37797461
A85: -0.07164226161 | B85: 14.70677914 | C85: 1.081861368e-05 | D85: 14.70678996
A86: -0.07136390403 | B86: 15.0417947 | C86: 1.141916502e-05 | D86: 15.04180612
A87: -0.07108554646 | B87: 15.38309288 | C87: 1.20519967e-05 | D87: =B87+C87 -> 15.38310493 | F87: =IF(F86="", "", IF(F86+$B$6/1000 > $B$16, #N/A, F86+$B$6/1000)) ->  | G87: =J87+L87 ->  | H87: =K87+M87 ->  | J87: =ROUND(RAND()*SQRT(L87),0)*IF( RAND()>0.5, 1, -1) ->  | K87: =ROUND(RAND()*SQRT(M87),0)*IF( RAND()>0.5, 1, -1) ->  | L87: =ROUND(B$7*EXP(-POWER($F87-B$2,2)/2/B$4/B$4*1000000),0) ->  | M87: =ROUND(C$7*EXP(-POWER($F87-C$2,2)/2/C$4/C$4*1000000),0) -> 
A88: =A87+$B$19 -> -0.07080718888 | B88: 15.73075569 | C88: 1.27187836e-05 | D88: 15.73076841
A89: -0.0705288313 | B89: 16.08486534 | C89: 1.342128415e-05 | D89: 16.08487876
A90: -0.07025047372 | B90: 16.44550413 | C90: 1.416134434e-05 | D90: 16.44551829
A91: -0.06997211614 | B91: 16.81275452 | C91: 1.494090188e-05 | D91: 16.81276946
A92: -0.06969375857 | B92: 17.18669903 | C92: 1.576199056e-05 | D92: 17.18671479
A93: -0.06941540099 | B93: 17.56742023 | C93: 1.662674482e-05 | D93: 17.56743686
A94: -0.06913704341 | B94: 17.95500075 | C94: 1.753740449e-05 | D94: 17.95501829
A95: -0.06885868583 | B95: 18.3495232 | C95: 1.849631977e-05 | D95: 18.3495417
A96: -0.06858032825 | B96: 18.75107017 | C96: 1.950595644e-05 | D96: 18.75108968
A97: -0.06830197068 | B97: 19.15972419 | C97: 2.056890129e-05 | D97: 19.15974476
A98: -0.0680236131 | B98: 19.57556772 | C98: 2.168786777e-05 | D98: 19.5755894
A99: -0.06774525552 | B99: 19.99868306 | C99: 2.286570196e-05 | D99: 19.99870593
A100: -0.06746689794 | B100: 20.42915241 | C100: 2.41053887e-05 | D100: 20.42917651
A101: -0.06718854036 | B101: 20.86705775 | C101: 2.541005812e-05 | D101: 20.86708316
A102: -0.06691018279 | B102: =B$7*EXP(-POWER($A102-B$2,2)/2/B$4/B$4*1000000) -> 21.31248086 | C102: 2.678299231e-05 | D102: 21.31250765
A103: -0.06663182521 | B103: 21.76550328 | C103: 2.822763245e-05 | D103: 21.7655315
A104: -0.06635346763 | B104: 22.22620623 | C104: 2.974758608e-05 | D104: 22.22623598
A105: -0.06607511005 | B105: 22.69467066 | C105: 3.134663484e-05 | D105: 22.69470201 | I105: =IF( F105="", "", H105+G105) -> 
A106: -0.06579675247 | B106: 23.17097714 | C106: 3.302874245e-05 | D106: 23.17101017
A107: -0.0655183949 | B107: 23.65520584 | C107: 3.479806309e-05 | D107: 23.65524064
A108: -0.06524003732 | B108: 24.14743653 | C108: 3.66589501e-05 | D108: 24.14747318
A109: -0.06496167974 | B109: 24.64774849 | C109: 3.861596508e-05 | D109: 24.6477871
A110: -0.06468332216 | B110: 25.15622052 | C110: 4.067388744e-05 | D110: 25.15626119
A111: -0.06440496458 | B111: 25.67293087 | C111: 4.283772421e-05 | D111: 25.67297371
A112: -0.064126607 | B112: 26.19795721 | C112: 4.511272048e-05 | D112: 26.19800232
A113: -0.06384824943 | B113: 26.7313766 | C113: 4.750437007e-05 | D113: 26.73142411
A114: -0.06356989185 | B114: 27.27326544 | C114: 5.001842683e-05 | D114: 27.27331546
A115: -0.06329153427 | B115: 27.82369943 | C115: 5.266091634e-05 | D115: 27.82375209
A116: -0.06301317669 | B116: 28.38275352 | C116: 5.543814812e-05 | D116: 28.38280896
A117: -0.06273481911 | B117: 28.9505019 | C117: 5.835672832e-05 | D117: 28.95056026
A118: -0.06245646154 | B118: 29.52701793 | C118: 6.142357306e-05 | D118: 29.52707935 | I118: =IF( F118="", "", H118+G118) -> 
A119: -0.06217810396 | B119: 30.11237408 | C119: 6.464592221e-05 | D119: 30.11243873
A120: -0.06189974638 | B120: 30.70664196 | C120: 6.803135379e-05 | D120: 30.70670999
A121: -0.0616213888 | B121: 31.30989219 | C121: 7.158779902e-05 | D121: 31.30996377
A122: -0.06134303122 | B122: =B$7*EXP(-POWER($A122-B$2,2)/2/B$4/B$4*1000000) -> 31.9221944 | C122: 7.532355795e-05 | D122: 31.92226972
A123: -0.06106467365 | B123: 32.5436172 | C123: 7.924731571e-05 | D123: 32.54369645
A124: -0.06078631607 | B124: 33.1742281 | C124: 8.336815956e-05 | D124: 33.17431147
A125: -0.06050795849 | B125: 33.81409348 | C125: 8.769559651e-05 | D125: 33.81418118
A126: -0.06022960091 | B126: 34.46327856 | C126: 9.223957171e-05 | D126: 34.4633708
A127: -0.05995124333 | B127: 35.12184732 | C127: 9.70104877e-05 | D127: 35.12194433
A128: -0.05967288576 | B128: 35.78986249 | C128: 0.0001020192243 | D128: 35.78996451
A129: -0.05939452818 | B129: 36.46738548 | C129: 0.0001072771593 | D129: 36.46749275
A130: -0.0591161706 | B130: 37.15447634 | C130: 0.0001127961903 | D130: 37.15458913
A131: -0.05883781302 | B131: 37.85119371 | C131: 0.0001185887571 | D131: 37.8513123
A132: -0.05855945544 | B132: 38.5575948 | C132: 0.0001246678649 | D132: 38.55771947
A133: -0.05828109787 | B133: 39.27373529 | C133: 0.0001310471092 | D133: 39.27386633
A134: -0.05800274029 | B134: 39.99966931 | C134: 0.0001377407005 | D134: 39.99980705
A135: -0.05772438271 | B135: 40.73544943 | C135: 0.0001447634913 | D135: 40.73559419
A136: -0.05744602513 | B136: 41.48112653 | C136: 0.000152131003 | D136: 41.48127866
A137: -0.05716766755 | B137: 42.23674983 | C137: 0.0001598594548 | D137: 42.23690969
A138: -0.05688930998 | B138: 43.00236679 | C138: 0.0001679657932 | D138: 43.00253476
A139: -0.0566109524 | B139: 43.77802309 | C139: 0.000176467723 | D139: 43.77819956
A140: -0.05633259482 | B140: 44.56376256 | C140: 0.0001853837391 | D140: 44.56394794
A141: -0.05605423724 | B141: 45.35962715 | C141: 0.0001947331602 | D141: 45.35982189
A142: -0.05577587966 | B142: =B$7*EXP(-POWER($A142-B$2,2)/2/B$4/B$4*1000000) -> 46.16565689 | C142: 0.0002045361632 | D142: 46.16586142
A143: -0.05549752208 | B143: 46.98188978 | C143: 0.0002148138195 | D143: 46.9821046
A144: -0.05521916451 | B144: 47.80836185 | C144: 0.000225588132 | D144: 47.80858743
A145: -0.05494080693 | B145: 48.64510698 | C145: 0.0002368820746 | D145: 48.64534386
A146: -0.05466244935 | B146: 49.49215698 | C146: 0.0002487196322 | D146: 49.49240569
A147: -0.05438409177 | B147: 50.34954143 | C147: 0.0002611258426 | D147: 50.34980256
A148: -0.05410573419 | B148: 51.21728772 | C148: 0.0002741268407 | D148: 51.21756185
A149: -0.05382737662 | B149: 52.09542094 | C149: 0.0002877499032 | D149: 52.09570869
A150: -0.05354901904 | B150: 52.98396388 | C150: 0.0003020234961 | D150: 52.9842659
A151: -0.05327066146 | B151: 53.88293693 | C151: 0.0003169773233 | D151: =B151+C151 -> 53.8832539 | F151: =IF(F150="", "", IF(F150+$B$6/1000 > $B$16, #N/A, F150+$B$6/1000)) ->  | G151: =J151+L151 ->  | H151: =K151+M151 ->  | J151: =ROUND(RAND()*SQRT(L151),0)*IF( RAND()>0.5, 1, -1) ->  | K151: =ROUND(RAND()*SQRT(M151),0)*IF( RAND()>0.5, 1, -1) ->  | L151: =ROUND(B$7*EXP(-POWER($F151-B$2,2)/2/B$4/B$4*1000000),0) ->  | M151: =ROUND(C$7*EXP(-POWER($F151-C$2,2)/2/C$4/C$4*1000000),0) -> 
A152: =A151+$B$19 -> -0.05299230388 | B152: 54.79235807 | C152: 0.0003326423772 | D152: 54.79269071
A153: -0.0527139463 | B153: 55.71224282 | C153: 0.0003490509919 | D153: 55.71259187
A154: -0.05243558873 | B154: 56.64260419 | C154: 0.0003662368975 | D154: 56.64297043
A155: -0.05215723115 | B155: 57.58345261 | C155: 0.0003842352766 | D155: 57.58383685
A156: -0.05187887357 | B156: 58.53479592 | C156: 0.0004030828238 | D156: 58.535199
A157: -0.05160051599 | B157: 59.4966393 | C157: 0.0004228178064 | D157: 59.49706212
A158: -0.05132215841 | B158: 60.46898522 | C158: 0.0004434801278 | D158: 60.4694287
A159: -0.05104380084 | B159: 61.45183342 | C159: 0.0004651113934 | D159: 61.45229854
A160: -0.05076544326 | B160: 62.44518086 | C160: 0.0004877549787 | D160: 62.44566861
A161: -0.05048708568 | B161: 63.44902163 | C161: 0.0005114561004 | D161: 63.44953309
A162: -0.0502087281 | B162: =B$7*EXP(-POWER($A162-B$2,2)/2/B$4/B$4*1000000) -> 64.46334698 | C162: 0.0005362618891 | D162: 64.46388324
A163: -0.04993037052 | B163: 65.48814522 | C163: 0.0005622214661 | D163: 65.48870744
A164: -0.04965201295 | B164: 66.52340171 | C164: 0.000589386022 | D164: 66.52399109
A165: -0.04937365537 | B165: 67.56909878 | C165: 0.0006178088984 | D165: 67.56971659
A166: -0.04909529779 | B166: 68.62521575 | C166: 0.0006475456726 | D166: 68.62586329
A167: -0.04881694021 | B167: 69.69172882 | C167: 0.000678654246 | D167: 69.69240747
A168: -0.04853858263 | B168: 70.76861108 | C168: 0.0007111949343 | D168: 70.76932228
A169: -0.04826022506 | B169: 71.85583247 | C169: 0.0007452305626 | D169: 71.8565777
A170: -0.04798186748 | B170: 72.95335968 | C170: 0.0007808265629 | D170: 72.95414051
A171: -0.0477035099 | B171: 74.0611562 | C171: 0.0008180510752 | D171: 74.06197425
A172: -0.04742515232 | B172: 75.17918223 | C172: 0.0008569750524 | D172: 75.18003921
A173: -0.04714679474 | B173: 76.30739466 | C173: 0.0008976723693 | D173: 76.30829233
A174: -0.04686843717 | B174: 77.44574702 | C174: 0.0009402199346 | D174: 77.44668724
A175: -0.04659007959 | B175: 78.59418945 | C175: 0.0009846978076 | D175: 78.59517415
A176: -0.04631172201 | B176: 79.75266872 | C176: 0.001031189319 | D176: 79.75369991
A177: -0.04603336443 | B177: 80.92112809 | C177: 0.001079781195 | D177: 80.92220788
A178: -0.04575500685 | B178: 82.0995074 | C178: 0.001130563688 | D178: 82.10063796
A179: -0.04547664927 | B179: 83.28774294 | C179: 0.001183630709 | D179: 83.28892657
A180: -0.0451982917 | B180: 84.48576749 | C180: 0.001239079965 | D180: 84.48700657
A181: -0.04491993412 | B181: 85.69351025 | C181: 0.001297013104 | D181: 85.69480727
A182: -0.04464157654 | B182: =B$7*EXP(-POWER($A182-B$2,2)/2/B$4/B$4*1000000) -> 86.91089685 | C182: 0.001357535865 | D182: 86.91225438 | I182: =IF( F182="", "", H182+G182) -> 
A183: -0.04436321896 | B183: 88.13784928 | C183: 0.001420758226 | D183: 88.13927003
A184: -0.04408486138 | B184: 89.3742859 | C184: 0.001486794567 | D184: 89.3757727 | F184: =IF(F183="", "", IF(F183+$B$6/1000 > $B$16, "", F183+$B$6/1000)) -> 
A185: -0.04380650381 | B185: 90.62012143 | C185: 0.001555763829 | D185: 90.6216772
A186: -0.04352814623 | B186: 91.87526688 | C186: 0.001627789692 | D186: 91.87689467
A187: -0.04324978865 | B187: 93.13962957 | C187: 0.001703000739 | D187: 93.14133258
A188: -0.04297143107 | B188: 94.41311311 | C188: 0.001781530648 | D188: 94.41489464
A189: -0.04269307349 | B189: 95.69561734 | C189: 0.00186351837 | D189: 95.69748086
A190: -0.04241471592 | B190: 96.98703837 | C190: 0.00194910833 | D190: 96.98898748
A191: -0.04213635834 | B191: 98.28726855 | C191: 0.002038450621 | D191: 98.289307
A192: -0.04185800076 | B192: 99.59619644 | C192: 0.002131701214 | D192: 99.59832814
A193: -0.04157964318 | B193: 100.9137068 | C193: 0.002229022172 | D193: 100.9159358
A194: -0.0413012856 | B194: 102.2396806 | C194: 0.002330581867 | D194: 102.2420111
A195: -0.04102292803 | B195: 103.5739949 | C195: 0.002436555211 | D195: 103.5764315
A196: -0.04074457045 | B196: 104.9165232 | C196: 0.00254712389 | D196: 104.9190703
A197: -0.04046621287 | B197: 106.2671349 | C197: 0.002662476607 | D197: 106.2697974
A198: -0.04018785529 | B198: 107.6256958 | C198: 0.00278280933 | D198: 107.6284786
A199: -0.03990949771 | B199: 108.9920676 | C199: 0.002908325559 | D199: 108.9949759
A200: -0.03963114014 | B200: 110.3661084 | C200: 0.003039236581 | D200: 110.3691477
A201: -0.03935278256 | B201: 111.7476725 | C201: 0.003175761758 | D201: 111.7508482
A202: -0.03907442498 | B202: =B$7*EXP(-POWER($A202-B$2,2)/2/B$4/B$4*1000000) -> 113.1366102 | C202: 0.003318128803 | D202: 113.1399283
A203: -0.0387960674 | B203: 114.532768 | C203: 0.003466574077 | D203: 114.5362346
... 819 more rows

Sheet Alpha
C1: Z | D1: 2
C2: alpha mass | D2: 3727.3792
C3: c [mm/ns] | D3: =299792458000/1000000000 -> 299.792458
C4: B-field [T] | D4: 2
C6: alpha
C7: KE [MeV] | D7: thetaLab [deg] | E7: z0 [mm] | F7: rho [mm]
C8: 8.7 | D8: 10 | E8: =IF(D8="", "", 2*PI()/$D$3/$D$4/$D$1*SQRT(2*$D$2*$C$8+$C$8*$C$8) * COS(D8 *PI()/180)*1000) -> 1314.862434 | F8: =IF(D8="", "", SQRT(2*$D$2*$C$8+$C$8+$C$8) * SIN(D8* PI()/180) / $D$3/$D$4/$D$1*1000) -> 36.88282671
D9: 20 | E9: =IF(D9="", "", 2*PI()/$D$3/$D$4/$D$1*SQRT(2*$D$2*$C$8+$C$8*$C$8) * COS(D9 *PI()/180)*1000) -> 1254.627132 | F9: =IF(D9="", "", SQRT(2*$D$2*$C$8+$C$8+$C$8) * SIN(D9* PI()/180) / $D$3/$D$4/$D$1*1000) -> 72.6449874
D10: 30 | E10: 1156.270619 | F10: =IF(D10="", "", SQRT(2*$D$2*$C$8+$C$8+$C$8) * SIN(D10* PI()/180) / $D$3/$D$4/$D$1*1000) -> 106.1998669
D11: 40 | E11: 1022.781409 | F11: 136.5279172
D12: 50 | E12: 858.2155029 | F12: 162.7076358
C13: 5.6 | D13: 10 | E13: =IF(D13="", "", 2*PI()/$D$3/$D$4/$D$1*SQRT(2*$D$2*$C$13+$C$13*$C$13) * COS(D13 *PI()/180)*1000) -> 1054.689184 | F13: =IF(D13="", "", SQRT(2*$D$2*$C$13+$C$13+$C$13) * SIN(D13* PI()/180) / $D$3/$D$4/$D$1*1000) -> 29.590928
D14: 20 | E14: =IF(D14="", "", 2*PI()/$D$3/$D$4/$D$1*SQRT(2*$D$2*$C$13+$C$13*$C$13) * COS(D14 *PI()/180)*1000) -> 1006.372707 | F14: =IF(D14="", "", SQRT(2*$D$2*$C$13+$C$13+$C$13) * SIN(D14* PI()/180) / $D$3/$D$4/$D$1*1000) -> 58.28275063
D15: 30 | E15: 927.4781032 | F15: 85.20368138
D16: 40 | E16: 820.4025471 | F16: 109.5357414
D17: 50 | E17: 688.3994747 | F17: 130.5396133
C29: thetaLab | D29: =D8 -> 10 | E29: =D9 -> 20 | F29: =D10 -> 30 | G29: =D11 -> 40 | H29: =D12 -> 50 | I29: =D13 -> 10 | J29: =D14 -> 20 | K29: =D15 -> 30 | L29: =D16 -> 40 | M29: =D17 -> 50
C30: rho | D30: =F8 -> 36.88282671 | E30: =F9 -> 72.6449874 | F30: =F10 -> 106.1998669 | G30: =F11 -> 136.5279172 | H30: =F12 -> 162.7076358 | I30: =F13 -> 29.590928 | J30: =F14 -> 58.28275063 | K30: =F15 -> 85.20368138 | L30: =F16 -> 109.5357414 | M30: =F17 -> 130.5396133 | Q30: single loop
C31: z [mm] | D31: =IF(D30="", "", $C$8 & " MeV, " &D$29 & "deg") -> 8.7 MeV, 10deg | E31: 8.7 MeV, 20deg | F31: =IF(F30="", "", $C$8 & " MeV, " &F$29 & "deg") -> 8.7 MeV, 30deg | G31: =IF(G30="", "", $C$8 & " MeV, " &G$29 & "deg") -> 8.7 MeV, 40deg | H31: 8.7 MeV, 50deg | I31: =IF(I30="", "", $C$13 & " MeV, " &I$29 & "deg") -> 5.6 MeV, 10deg | J31: =IF(J30="", "", $C$13 & " MeV, " &J$29 & "deg") -> 5.6 MeV, 20deg | K31: 5.6 MeV, 30deg | L31: 5.6 MeV, 40deg | M31: 5.6 MeV, 50deg | R31: KE
C32: 0.1 | D32: =SQRT(2) * D$30 *SQRT(1- COS(TAN(D$29*PI()/180) *$C32/D$30)) -> 0.01763269791 | E32: =SQRT(2) * E$30 *SQRT(1- COS(TAN(E$29*PI()/180) *$C32/E$30)) -> 0.03639702305 | F32: 0.05773502622 | G32: 0.0839099618 | H32: 0.1191753566 | I32: =SQRT(2) * I$30 *SQRT(1- COS(TAN(I$29*PI()/180) *$C32/I$30)) -> 0.01763269781 | J32: =SQRT(2) * J$30 *SQRT(1- COS(TAN(J$29*PI()/180) *$C32/J$30)) -> 0.03639702284 | K32: =SQRT(2) * K$30 *SQRT(1- COS(TAN(K$29*PI()/180) *$C32/K$30)) -> 0.05773502582 | L32: 0.08390996106 | M32: 0.1191753551 | Q32: thetaLab | R32: =C8&" MeV" -> 8.7 MeV | S32: =C13&" MeV" -> 5.6 MeV
C33: 5 | D33: =SQRT(2) * D$30 *SQRT(1- COS(TAN(D$29*PI()/180) *$C33/D$30)) -> 0.881613914 | E33: 1.819803585 | F33: 2.886662474 | G33: 4.195333077 | H33: 5.95843497 | I33: 0.8816022949 | J33: 1.819777243 | K33: 2.886613278 | L33: 4.195241696 | M33: 5.958250639 | Q33: 0 | R33: =2*PI()/$D$3/$D$4/$D$1*SQRT(2*$D$2*C$8+C$8*C$8) * COS(Q33 *PI()/180)*1000 -> 1335.146306 | S33: =2*PI()/$D$3/$D$4/$D$1*SQRT(2*$D$2*C$13+C$13*C$13) * COS($Q33 *PI()/180)*1000 -> 1070.959465
C34: 6 | D34: 1.057925614 | E34: 2.183739177 | F34: 3.463948045 | G34: 5.034312532 | H34: 7.149946148 | I34: 1.057905537 | J34: 2.183693658 | K34: 3.463863035 | L34: 5.034154628 | M34: 7.149627631 | Q34: 5 | R34: =2*PI()/$D$3/$D$4/$D$1*SQRT(2*$D$2*C$8+C$8*C$8) * COS(Q34 *PI()/180)*1000 -> 1330.065672 | S34: =2*PI()/$D$3/$D$4/$D$1*SQRT(2*$D$2*C$13+C$13*C$13) * COS($Q34 *PI()/180)*1000 -> 1066.884141
C35: 7 | D35: 1.23423127 | E35: 2.547661064 | F35: 4.041208022 | G35: 5.873244447 | H35: 8.34136143 | I35: 1.234199388 | J35: 2.547588783 | K35: 4.04107303 | L35: 5.872993704 | M35: 8.340855648 | Q35: 10 | R35: 1314.862434 | S35: 1054.689184
C36: 8 | D36: 1.410529873 | E36: 2.911566963 | F36: 4.618438139 | G36: 6.712120899 | H36: 9.532664837 | I36: 1.410482283 | J36: 2.911459069 | K36: 4.618236638 | L36: 6.711746619 | M36: 9.53190987 | Q36: 15 | R36: 1289.652299 | S36: 1034.467406
C37: 9 | D37: 1.586820417 | E37: 3.27545459 | F37: 5.195634132 | G37: 7.550933966 | H37: 10.72384039 | I37: 1.586752657 | J37: 3.27530097 | K37: 5.195347234 | L37: 7.550401067 | M37: 10.72276548 | Q37: 20 | R37: 1254.627132 | S37: 1006.372707
C38: 10 | D38: 1.763101894 | E38: 3.639321661 | F38: 5.772791736 | G38: 8.389675728 | H38: 11.91487212 | I38: 1.763008946 | J38: 3.639110937 | K38: 5.772398193 | L38: 8.388944744 | M38: 11.91339766 | Q38: 25 | R38: 1210.053494 | S38: 970.6189028
C39: 11 | D39: 1.939373297 | E39: 4.003165894 | F39: 6.349906686 | G39: 9.228338264 | H39: 13.10574404 | I39: 1.939249585 | J39: 4.002885425 | K39: 6.349382891 | L39: 9.227365349 | M39: 13.10378161 | Q39: 30 | R39: 1156.270619 | S39: 927.4781032
C40: 12 | D40: 2.115633619 | E40: 4.366985003 | F40: 6.926974718 | G40: 10.06691365 | H40: 14.29644018 | I40: 2.11547301 | J40: 4.366620885 | K40: 6.926294705 | L40: 10.06565058 | M40: 14.29389252 | Q40: 35 | R40: 1093.687826 | S40: 877.2786352
C41: 13 | D41: 2.291881852 | E41: 4.730776707 | F41: 7.503991568 | G41: 10.90539398 | H41: 15.48694458 | I41: 2.291677656 | J41: 4.730313772 | K41: 7.503127012 | L41: 10.90378814 | M41: 15.48370559 | Q41: 40 | R41: 1022.781409 | S41: 820.4025471
C42: 14 | D42: 2.468116989 | E42: 5.094538722 | F42: 8.080952974 | G42: 11.74377132 | H42: 16.67724127 | I42: 2.467861959 | J42: 5.09396054 | K42: 8.079873191 | L42: 11.74176573 | M42: 16.67319603 | Q42: 45 | R42: 944.0910071 | S42: 757.2827002
C43: 15 | D43: 2.644338025 | E43: 5.458268765 | F43: 8.657854671 | G43: 12.58203776 | H43: 17.86731429 | I43: 2.644024355 | J43: 5.457557643 | K43: 8.656526622 | L43: 12.57957106 | M43: 17.86233906 | Q43: 50 | R43: 858.2155029 | S43: 688.3994747
C44: 16 | D44: 2.82054395 | E44: 5.821964554 | F44: 9.234692398 | G44: 13.42018539 | H44: 19.05714766 | I44: 2.82016328 | J44: 5.821101537 | K44: 9.233080685 | L44: 13.41719184 | M44: 19.0511099 | Q44: 55 | R44: 765.8084604 | S44: 614.2771135
C45: 17 | D45: 2.99673376 | E45: 6.185623807 | F45: 9.811461892 | G45: 14.25820628 | H45: 20.24672544 | I45: 2.996277171 | J45: 6.184588677 | K45: 9.809528762 | L45: 14.25461578 | M45: 20.23948378 | Q45: 60 | R45: 667.5731532 | S45: 535.4797326
C46: 18 | D46: 3.172906447 | E46: 6.54924424 | F46: 10.38815889 | G46: 15.09609253 | H46: 21.43603166 | I46: 3.172364465 | J46: 6.548015518 | K46: 10.38586424 | L46: 15.09183059 | M46: 21.42743594 | Q46: 65 | R46: 564.2572112 | S46: 452.6070275
C47: 19 | D47: 3.349061004 | E47: 6.912823573 | F47: 10.96477914 | G47: 15.93383623 | H47: 22.62505039 | I47: 3.348423597 | J47: 6.911378519 | K47: 10.96208049 | L47: 15.92882399 | M47: 22.61494162 | Q47: 70 | R47: 456.6469311 | S47: 366.2897098
C48: 20 | D48: 3.525196425 | E48: 7.276359522 | F48: 11.54131836 | G48: 16.77142945 | H48: 23.81376566 | I48: 3.524453007 | J48: 7.274674136 | K48: 11.53817092 | L48: 16.7655837 | M48: 23.80197608 | Q48: 75 | R48: 345.5612921 | S48: 277.1847061
C49: 21 | D49: 3.701311704 | E49: 7.639849808 | F49: 12.11777232 | G49: 17.6088643 | H49: 25.00216154 | I49: 3.70045113 | J49: 7.637898827 | K49: 12.11412889 | L49: 17.60209744 | M49: 24.98851459 | Q49: 80 | R49: 231.845723 | S49: 185.9701595
C50: 22 | D50: 3.877405834 | E50: 8.003292149 | F50: 12.69413673 | G50: 18.44613286 | H50: 26.1902221 | I50: 3.876416404 | J50: 8.00104905 | K50: 12.68994781 | L50: 18.43835295 | M50: 26.17453242 | Q50: 85 | R50: 116.365668 | S50: 93.34026763
C51: 23 | D51: 4.053477809 | E51: 8.366684263 | F51: 13.27040736 | G51: 19.28322723 | H51: 27.37793138 | I51: 4.052347269 | J51: 8.364121266 | K51: 13.26562106 | L51: 19.27433795 | M51: 27.36000486 | Q51: 89 | R51: 23.30151599 | S51: 18.69081986
C52: 24 | D52: 4.229526624 | E52: 8.730023871 | F52: 13.84657993 | G52: 20.1201395 | H52: 28.56527347 | I52: 4.228242161 | J52: 8.727111934 | K52: 13.84114204 | L52: 20.11004018 | M52: 28.54490721
C53: 25 | D53: 4.405551271 | E53: 9.093308693 | F53: 14.42265019 | G53: 20.95686177 | H53: 29.75223244 | I53: 4.404099519 | J53: 9.090017516 | K53: 14.41650414 | L53: 20.94544738 | M53: 29.72921479
C54: 26 | D54: 4.581550746 | E54: 9.456536447 | F54: 14.99861389 | G54: 21.79338614 | H54: 30.93879237 | I54: 4.579917783 | J54: 9.452834472 | K54: 14.99170075 | L54: 21.78054729 | M54: 30.9129029
C55: 27 | D55: 4.757524042 | E55: 9.819704856 | F55: 15.57446677 | G55: 22.62970471 | H55: 32.12493735 | I55: 4.755695392 | J55: 9.815559266 | K55: 15.56672527 | L55: 22.61532767 | M55: 32.0959469
C56: 28 | D56: 4.933470154 | E56: 10.18281164 | F56: 16.15020457 | G56: 23.46580958 | H56: 33.31065146 | I56: 4.931430784 | J56: 10.17818836 | K56: 16.1415711 | L56: 23.44977626 | M56: 33.27832212
C57: 29 | D57: 5.109388078 | E57: 10.54585452 | F57: 16.72582304 | G57: 24.30169286 | H57: 34.49591881 | I57: 5.107122401 | J57: 10.54071822 | K57: 16.71623164 | L57: 24.28388082 | M57: 34.46000393
C58: 30 | D58: 5.285276807 | E58: 10.90883122 | F58: 17.30131793 | G58: 25.13734664 | H58: 35.6807235 | I58: 5.282768683 | J58: 10.90314531 | K58: 17.2907003 | L58: 25.11762911 | M58: 35.64096772
C59: 31 | D59: 5.461135337 | E59: 11.27173945 | F59: 17.87668498 | G59: 25.97276305 | H59: 36.86504963 | I59: 5.458368071 | J59: 11.2654661 | K59: 17.86497048 | L59: 25.95100891 | M59: 36.82118886
C60: 32 | D60: 5.636962662 | E60: 11.63457695 | F60: 18.45191995 | G60: 26.80793419 | H60: 38.04888132 | I60: 5.633919005 | J60: 11.62767706 | K60: 18.43903559 | L60: 26.78400799 | M60: 38.00064278
C61: 33 | D61: 5.812757779 | E61: 11.99734144 | F61: 19.02701858 | G61: 27.64285217 | H61: 39.2322027 | I61: 5.809419927 | J61: 11.98977465 | K61: 19.01288904 | L61: 27.61661412 | M61: 39.17930489
C62: 34 | D62: 5.988519683 | E62: 12.36003063 | F62: 19.60197663 | G62: 28.47750911 | H62: 40.4149979 | I62: 5.98486928 | J62: 12.35175534 | K62: 19.58652424 | L62: 28.44881509 | M62: 40.35715064
C63: 35 | D63: 6.164247369 | E63: 12.72264225 | F63: 20.17678984 | G63: 29.31189714 | H63: 41.59725104 | I63: 6.160265506 | J63: 12.71361561 | K63: 20.15993461 | L63: 29.2805987 | M63: 41.53415548
C64: 36 | D64: 6.339939834 | E64: 13.08517404 | F64: 20.75145397 | G64: 30.14600836 | H64: 42.77894628 | I64: 6.335607049 | J64: 13.07535192 | K64: 20.73311356 | L64: 30.11195273 | M64: 42.71029489
C65: 37 | D65: =SQRT(2) * D$30 *SQRT(1- COS(TAN(D$29*PI()/180) *$C65/D$30)) -> 6.515596073 | E65: 13.4476237 | F65: 21.32596477 | G65: 30.9798349 | H65: 43.96006776 | I65: 6.51089235 | J65: 13.43696075 | K65: 21.30605452 | L65: 30.942865 | M65: 43.88554436
C66: 38 | D66: 6.691215083 | E66: 13.80998897 | F66: 21.900318 | G66: 31.81336889 | H66: 45.14059964 | I66: 6.686119856 | J66: 13.79843857 | K66: 21.87875091 | L66: 31.77332331 | M66: 45.0598794
C67: 39 | D67: 6.86679586 | E67: 14.17226757 | F67: 22.47450942 | G67: 32.64660246 | H67: 46.3205261 | I67: 6.861288009 | J67: 14.15978187 | K67: 22.45119615 | L67: 32.60331548 | M67: 46.23327554
C68: 40 | D68: 7.042337402 | E68: 14.53445724 | F68: 23.04853477 | G68: 33.47952773 | H68: 47.4998313 | I68: 7.036395256 | J68: 14.52098711 | K68: 23.02338368 | L68: 33.43282933 | M68: 47.40570834
C69: 41 | D69: 7.217838705 | E69: 14.89655569 | F69: 23.62238983 | G69: 34.31213685 | H69: 48.67849943 | I69: 7.211440042 | J69: 14.88205077 | K69: 23.59530692 | L69: 34.26185269 | M69: 48.57715337
C70: 42 | D70: 7.393298766 | E70: 15.25856065 | F70: 24.19607035 | G70: 35.14442195 | H70: 49.85651468 | I70: 7.386420812 | J70: 15.24296934 | K70: 24.16695932 | L70: 35.09037341 | M70: 49.74758621
C71: 43 | D71: 7.568716582 | E71: 15.62046986 | F71: 24.76957209 | G71: 35.97637517 | H71: 51.03386124 | I71: 7.561336015 | J71: 15.6037393 | K71: 24.7383343 | L71: 35.91837931 | M71: 50.91698248
C72: 44 | D72: 7.744091153 | E72: 15.98228104 | F72: 25.34289081 | G72: 36.80798865 | H72: 52.21052334 | I72: 7.736184096 | J72: 15.96435712 | K72: 25.30942532 | L72: 36.74585827 | M72: 52.08531781
C73: 45 | D73: 7.919421474 | E73: 16.34399192 | F73: 25.91602228 | G73: 37.63925455 | H73: 53.38648518 | I73: 7.910963504 | J73: 16.3248193 | K73: 25.88022581 | L73: 37.57279813 | M73: 53.25256785
C74: 46 | D74: 8.094706546 | E74: 16.70560022 | F74: 26.48896227 | G74: 38.47016501 | H74: 54.561731 | I74: 8.085672687 | J74: 16.68512231 | K74: 26.45072922 | L74: 38.39918677 | M74: 54.41870829
C75: 47 | D75: 8.269945365 | E75: 17.06710369 | F75: 27.06170653 | G75: 39.30071218 | H75: 55.73624504 | I75: 8.260310095 | J75: 17.04526265 | K75: 27.020929 | L75: 39.22501206 | M75: 55.58371483
C76: 48 | D76: 8.445136931 | E76: 17.42850006 | F76: 27.63425084 | G76: 40.13088822 | H76: 56.91001153 | I76: 8.434874178 | J76: 17.4052368 | K76: 27.59081862 | L76: 40.05026189 | M76: 56.7475632
C77: 49 | D77: 8.620280243 | E77: 17.78978704 | F77: 28.20659097 | G77: 40.96068529 | H77: 58.08301474 | I77: 8.609363384 | J77: 17.76504126 | K77: 28.16039152 | L77: 40.87492415 | M77: 57.91022913
C78: 50 | D78: 8.7953743 | E78: 18.15096239 | F78: 28.77872269 | G78: 41.79009556 | H78: 59.25523893 | I78: 8.783776167 | J78: 18.12467251 | K78: 28.72964117 | L78: 41.69898673 | M78: 59.07168841
C79: 51 | D79: 8.970418101 | E79: 18.51202382 | F79: 29.35064177 | G79: 42.6191112 | H79: 60.42666839 | I79: 8.958110977 | J79: 18.48412705 | K79: 29.29856103 | L79: 42.52243756 | M79: 60.23191684
C80: 52 | D80: 9.145410647 | E80: 18.87296908 | F80: 29.92234398 | G80: 43.44772437 | H80: 61.5972874 | I80: 9.132366267 | J80: 18.84340138 | K80: 29.86714458 | L80: 43.34526455 | M80: 61.39089023
C81: 53 | D81: 9.320350937 | E81: 19.2337959 | F81: 30.49382511 | G81: 44.27592725 | H81: 62.76708027 | I81: 9.306540491 | J81: 19.20249199 | K81: 30.43538528 | L81: 44.16745562 | M81: 62.54858445
C82: 54 | D82: 9.495237972 | E82: 19.59450201 | F82: 31.06508093 | G82: 45.10371201 | H82: 63.93603129 | I82: 9.480632101 | J82: 19.56139538 | K82: 31.00327662 | L82: 44.98899873 | M82: 63.70497536
C83: 55 | D83: 9.670070753 | E83: 19.95508516 | F83: 31.63610721 | G83: 45.93107085 | H83: 65.1041248 | I83: 9.654639553 | J83: 19.92010806 | K83: 31.57081208 | L83: 45.80988181 | M83: 64.86003887
C84: 56 | D84: 9.84484828 | E84: 20.31554307 | F84: 32.20689974 | G84: 46.75799595 | H84: 66.27134512 | I84: =SQRT(2) * I$30 *SQRT(1- COS(TAN(I$29*PI()/180) *$C84/I$30)) -> 9.828561302 | J84: 20.27862652 | K84: 32.13798513 | L84: 46.63009281 | M84: 66.01375093
C85: 57 | D85: 10.01956956 | E85: 20.67587349 | F85: 32.77745431 | G85: 47.5844795 | H85: 67.43767661 | I85: 10.0023958 | J85: 20.63694726 | K85: 32.70478928 | L85: 47.44961972 | M85: 67.16608747
C86: 58 | D86: 10.19423358 | E86: 21.03607415 | F86: 33.34776669 | G86: 48.4105137 | H86: 68.60310362 | I86: 10.17614152 | J86: 20.99506681 | K86: 33.271218 | L86: 48.2684505 | M86: 68.3170245
C87: 59 | D87: 10.36883936 | E87: 21.3961428 | F87: 33.91783267 | G87: 49.23609074 | H87: 69.76761051 | I87: 10.3497969 | J87: 21.35298166 | K87: 33.83726482 | L87: 49.08657314 | M87: 69.46653804
C88: 60 | D88: 10.54338589 | E88: 21.75607718 | F88: 34.48764804 | G88: 50.06120283 | H88: 70.93118168 | I88: 10.5233604 | J88: 21.71068832 | K88: 34.40292321 | L88: 49.90397564 | M88: 70.61460413
C89: 61 | D89: 10.71787218 | E89: 22.11587501 | F89: 35.05720859 | G89: 50.88584217 | H89: 72.09380151 | I89: 10.69683049 | J89: 22.06818331 | K89: 34.9681867 | L89: 50.72064601 | M89: 71.76119884
C90: 62 | D90: 10.89229722 | E90: 22.47553406 | F90: 35.62651012 | G90: 51.71000099 | H90: 73.25545441 | I90: 10.87020563 | J90: 22.42546314 | K90: 35.53304878 | L90: 51.53657226 | M90: 72.90629829
C91: 63 | D91: 11.06666003 | E91: 22.83505206 | F91: 36.1955484 | G91: 52.53367149 | H91: 74.4161248 | I91: 11.04348427 | J91: 22.78252433 | K91: 36.09750299 | L91: 52.35174243 | M91: 74.04987863
C92: 64 | D92: 11.24095961 | E92: 23.19442675 | F92: 36.76431925 | G92: 53.3568459 | H92: 75.57579712 | I92: 11.21666488 | J92: 23.1393634 | K92: 36.66154284 | L92: 53.16614456 | M92: 75.19191601
C93: 65 | D93: 11.41519496 | E93: 23.55365589 | F93: 37.33281846 | G93: 54.17951645 | H93: 76.7344558 | I93: 11.38974593 | J93: 23.49597687 | K93: 37.22516185 | L93: 53.97976669 | M93: 76.33238664
C94: 66 | D94: 11.58936508 | E94: 23.91273721 | F94: 37.90104182 | G94: 55.00167536 | H94: 77.89208532 | I94: 11.56272587 | J94: 23.85236126 | K94: 37.78835355 | L94: 54.7925969 | M94: 77.47126677
C95: 67 | D95: 11.76346898 | E95: 24.27166845 | F95: 38.46898514 | G95: 55.82331488 | H95: 79.04867014 | I95: 11.73560316 | J95: 24.20851309 | K95: 38.35111149 | L95: 55.60462325 | M95: 78.60853265
C96: 68 | D96: 11.93750567 | E96: 24.63044738 | F96: 39.03664423 | G96: 56.64442724 | H96: 80.20419475 | I96: 11.90837628 | J96: 24.5644289 | K96: 38.91342919 | L96: 56.41583383 | M96: 79.7441606
C97: 69 | D97: =SQRT(2) * D$30 *SQRT(1- COS(TAN(D$29*PI()/180) *$C97/D$30)) -> 12.11147415 | E97: 24.98907174 | F97: 39.60401488 | G97: 57.46500468 | H97: 81.35864366 | I97: 12.0810437 | J97: 24.92010521 | K97: 39.47530021 | L97: 57.22621675 | M97: 80.87812695
C98: 70 | D98: 12.28537343 | E98: 25.34753927 | F98: 40.17109291 | G98: 58.28503947 | H98: 82.51200138 | I98: 12.25360387 | J98: 25.27553856 | K98: 40.0367181 | L98: 58.03576011 | M98: 82.01040807
C99: 71 | D99: 12.45920251 | E99: 25.70584773 | F99: 40.73787413 | G99: 59.10452386 | H99: 83.66425244 | I99: 12.42605526 | J99: 25.63072548 | K99: 40.5976764 | L99: 58.84445204 | M99: 83.14098037
C100: 72 | D100: 12.63296039 | E100: 26.06399487 | F100: 41.30435434 | G100: 59.92345011 | H100: 84.81538138 | I100: 12.59839635 | J100: 25.98566251 | K100: 41.15816869 | L100: 59.65228067 | M100: 84.26982029
C101: 73 | D101: 12.8066461 | E101: 26.42197844 | F101: 41.87052937 | G101: 60.74181048 | H101: 85.96537277 | I101: 12.77062561 | J101: 26.34034618 | K101: 41.71818853 | L101: 60.45923416 | M101: 85.39690431
C102: 74 | D102: 12.98025863 | E102: 26.77979619 | F102: 42.43639503 | G102: 61.55959724 | H102: 87.11421119 | I102: 12.94274151 | J102: 26.69477305 | K102: 42.27772949 | L102: 61.26530065 | M102: 86.52220895
C103: 75 | D103: 13.153797 | E103: 27.13744588 | F103: 43.00194713 | G103: 62.37680268 | H103: 88.26188122 | I103: 13.11474251 | J103: 27.04893965 | K103: 42.83678514 | L103: 62.07046833 | M103: 87.64571075
C104: 76 | D104: 13.3272602 | E104: 27.49492527 | F104: 43.5671815 | G104: 63.19341908 | H104: 89.40836748 | I104: 13.28662709 | J104: 27.40284253 | K104: 43.39534907 | L104: 62.87472539 | M104: 88.76738632
C105: 77 | D105: 13.50064726 | E105: 27.85223211 | F105: 44.13209397 | G105: 64.00943872 | H105: 90.55365458 | I105: 13.45839374 | J105: 27.75647824 | K105: 43.95341487 | L105: 63.67806002 | M105: 89.88721227
C106: 78 | D106: 13.67395717 | E106: 28.20936415 | F106: 44.69668036 | G106: 64.82485391 | H106: 91.69772717 | I106: 13.63004091 | J106: 28.10984333 | K106: 44.51097613 | L106: 64.48046044 | M106: 91.00516527
C107: 79 | D107: 13.84718895 | E107: 28.56631917 | F107: 45.26093649 | G107: 65.63965693 | H107: 92.8405699 | I107: 13.80156709 | J107: 28.46293436 | K107: 45.06802646 | L107: 65.28191488 | M107: 92.12122204
C108: 80 | D108: 14.02034162 | E108: 28.92309491 | F108: 45.82485821 | G108: 66.4538401 | H108: 93.98216745 | I108: 13.97297076 | J108: 28.81574789 | K108: 45.62455945 | L108: 66.08241158 | M108: 93.2353593
C109: 81 | D109: 14.19341417 | E109: 29.27968914 | F109: 46.38844133 | G109: 67.26739572 | H109: 95.1225045 | I109: 14.14425039 | J109: 29.16828047 | K109: 46.18056872 | L109: 66.8819388 | M109: 94.34755386
C110: 82 | D110: 14.36640562 | E110: 29.63609962 | F110: 46.9516817 | G110: 68.08031612 | H110: 96.26156575 | I110: 14.31540446 | J110: 29.52052866 | K110: 46.73604788 | L110: 67.6804848 | M110: 95.45778253
C111: 83 | D111: 14.53931499 | E111: 29.99232411 | F111: 47.51457516 | G111: 68.89259362 | H111: 97.39933594 | I111: 14.48643146 | J111: 29.87248905 | K111: 47.29099056 | L111: 68.47803787 | M111: 96.56602218
C112: 84 | D112: 14.71214128 | E112: 30.34836038 | F112: 48.07711755 | G112: 69.70422054 | H112: 98.53579979 | I112: 14.65732986 | J112: 30.22415818 | K112: 47.8453904 | L112: 69.27458631 | M112: 97.67224972
C113: 85 | D113: 14.8848835 | E113: 30.70420619 | F113: 48.6393047 | G113: 70.51518922 | H113: 99.67094208 | I113: 14.82809815 | J113: 30.57553264 | K113: 48.39924102 | L113: 70.07011844 | M113: 98.7764421
C114: 86 | D114: 15.05754068 | E114: 31.05985932 | F114: 49.20113248 | G114: 71.32549201 | H114: 100.8047476 | I114: 14.99873482 | J114: 30.92660899 | K114: 48.95253607 | L114: 70.86462258 | M114: 99.87857632
C115: 87 | D115: 15.23011182 | E115: 31.41531752 | F115: 49.76259672 | G115: 72.13512125 | H115: 101.9372011 | I115: 15.16923834 | J115: 31.27738382 | K115: 49.50526919 | L115: 71.65808707 | M115: 100.9786294
C116: 88 | D116: 15.40259594 | E116: 31.77057857 | F116: 50.32369327 | G116: 72.94406929 | H116: 103.0682873 | I116: 15.33960721 | J116: 31.62785371 | K116: 50.05743405 | L116: 72.45050029 | M116: 102.0765784
C117: 89 | D117: 15.57499205 | E117: 32.12564024 | F117: 50.884418 | G117: 73.75232851 | H117: 104.1979913 | I117: 15.5098399 | J117: 31.97801523 | K117: 50.6090243 | L117: 73.24185059 | M117: 103.1724005
C118: 90 | D118: 15.74729917 | E118: 32.4805003 | F118: 51.44476675 | G118: 74.55989125 | H118: 105.3262977 | I118: 15.67993493 | J118: 32.32786498 | K118: 51.16003362 | L118: 74.03212637 | M118: 104.2660728
C119: 91 | D119: 15.91951631 | E119: 32.83515652 | F119: 52.0047354 | G119: 75.36674991 | H119: 106.4531915 | I119: 15.84989076 | J119: 32.67739954 | K119: 51.71045567 | L119: 74.82131604 | M119: 105.3575726
C120: 92 | D120: 16.09164248 | E120: 33.18960668 | F120: 52.56431979 | G120: 76.17289686 | H120: 107.5786575 | I120: 16.01970589 | J120: 33.0266155 | K120: 52.26028414 | L120: 75.60940802 | M120: 106.4468771
C121: 93 | D121: 16.26367672 | E121: 33.54384855 | F121: 53.1235158 | G121: 76.97832448 | H121: 108.7026806 | I121: 16.18937882 | J121: 33.37550947 | K121: 52.80951272 | L121: 76.39639075 | M121: 107.5339636
C122: 94 | D122: 16.43561802 | E122: 33.89787992 | F122: 53.68231929 | G122: 77.78302517 | H122: 109.8252459 | I122: 16.35890804 | J122: 33.72407803 | K122: 53.3581351 | L122: 77.18225267 | M122: 108.6188094
C123: 95 | D123: 16.60746541 | E123: 34.25169855 | F123: 54.24072614 | G123: 78.58699134 | H123: 110.9463381 | I123: 16.52829204 | J123: 34.0723178 | K123: 53.90614498 | L123: 77.96698227 | M123: 109.701392
C124: 96 | D124: 16.77921791 | E124: 34.60530222 | F124: 54.79873222 | G124: 79.39021538 | H124: 112.0659423 | I124: 16.69752932 | J124: 34.42022537 | K124: 54.45353608 | L124: 78.75056803 | M124: 110.7816888
C125: 97 | D125: 16.95087454 | E125: 34.95868873 | F125: 55.3563334 | G125: 80.19268972 | H125: 113.1840435 | I125: 16.86661838 | J125: 34.76779735 | K125: 55.00030212 | L125: 79.53299845 | M125: 111.8596772
C126: 98 | D126: 17.12243431 | E126: 35.31185585 | F126: 55.91352557 | G126: 80.99440677 | H126: 114.3006267 | I126: 17.03555772 | J126: 35.11503036 | K126: 55.5464368 | L126: 80.31426206 | M126: 112.9353349
C127: 99 | D127: 17.29389625 | E127: 35.66480136 | F127: 56.47030461 | G127: 81.79535897 | H127: 115.4156768 | I127: 17.20434584 | J127: 35.461921 | K127: 56.09193388 | L127: 81.09434738 | M127: 114.0086394
C128: 100 | D128: 17.46525937 | E128: 36.01752305 | F128: 57.02666641 | G128: 82.59553875 | H128: 116.529179 | I128: 17.37298123 | J128: 35.8084659 | K128: 56.63678708 | L128: 81.87324299 | M128: 115.0795683
C129: 101 | D129: =SQRT(2) * D$30 *SQRT(1- COS(TAN(D$29*PI()/180) *$C129/D$30)) -> 17.6365227 | E129: 36.37001871 | F129: 57.58260684 | G129: 83.39493856 | H129: 117.6411182 | I129: 17.54146241 | J129: 36.15466168 | K129: 57.18099014 | L129: 82.65093745 | M129: 116.1480994
C130: 102 | D130: 17.80768525 | E130: 36.72228612 | F130: 58.13812182 | G130: 84.19355084 | H130: 118.7514797 | I130: 17.70978787 | J130: 36.50050497 | K130: 57.72453683 | L130: 83.42741935 | M130: 117.2142103
C131: 103 | D131: 17.97874606 | E131: 37.07432307 | F131: 58.69320723 | G131: 84.99136806 | H131: 119.8602484 | I131: 17.87795613 | J131: 36.84599238 | K131: 58.26742091 | L131: 84.2026773 | M131: 118.2778789
C132: 104 | D132: 18.14970414 | E132: 37.42612736 | F132: 59.24785897 | G132: 85.78838268 | H132: 120.9674096 | I132: 18.04596568 | J132: 37.19112056 | K132: 58.80963614 | L132: 84.97669993 | M132: 119.3390829
C133: 105 | D133: 18.32055851 | E133: 37.77769677 | F133: 59.80207294 | G133: 86.58458718 | H133: 122.0729483 | I133: 18.21381505 | J133: 37.53588613 | K133: 59.35117629 | L133: 85.74947587 | M133: 120.3978004
C134: 106 | D134: 18.4913082 | E134: 38.12902911 | F134: 60.35584505 | G134: 87.37997403 | H134: 123.1768498 | I134: 18.38150273 | J134: 37.88028575 | K134: 59.89203516 | L134: 86.5209938 | M134: 121.4540091
C135: 107 | D135: 18.66195224 | E135: 38.48012215 | F135: 60.90917121 | G135: 88.17453572 | H135: 124.2790993 | I135: 18.54902724 | J135: 38.22431604 | K135: 60.43220653 | L135: 87.2912424 | M135: 122.5076872
C136: 108 | D136: 18.83248964 | E136: 38.83097371 | F136: 61.46204732 | G136: 88.96826476 | H136: 125.3796819 | I136: 18.7163871 | J136: 38.56797365 | K136: 60.9716842 | L136: 88.06021036 | M136: 123.5588126
C137: 109 | D137: 19.00291944 | E137: 39.18158158 | F137: 62.01446931 | G137: 89.76115364 | H137: 126.4785828 | I137: 18.88358081 | J137: 38.91125524 | K137: 61.51046198 | L137: 88.8278864 | M137: 124.6073635
C138: 110 | D138: 19.17324065 | E138: 39.53194356 | F138: 62.56643309 | G138: 90.55319488 | H138: 127.5757875 | I138: 19.05060689 | J138: 39.25415745 | K138: 62.04853369 | L138: 89.59425927 | M138: 125.6533179
C139: 111 | D139: 19.34345232 | E139: 39.88205745 | F139: 63.11793458 | G139: 91.344381 | H139: 128.6712811 | I139: 19.21746387 | J139: 39.59667695 | K139: 62.58589314 | L139: 90.35931771 | M139: 126.6966542
C140: 112 | D140: 19.51355346 | E140: 40.23192105 | F140: 63.66896971 | G140: 92.13470453 | H140: 129.7650489 | I140: 19.38415025 | J140: 39.93881039 | K140: 63.12253418 | L140: 91.1230505 | M140: 127.7373505
C141: 113 | D141: 19.6835431 | E141: 40.58153217 | F141: 64.2195344 | G141: 92.924158 | H141: 130.8570763 | I141: 19.55066456 | J141: 40.28055444 | K141: 63.65845064 | L141: 91.88544645 | M141: 128.7753853
C142: 114 | D142: 19.85342027 | E142: 40.93088861 | F142: 64.7696246 | G142: 93.71273396 | H142: 131.9473486 | I142: 19.71700533 | J142: 40.62190577 | K142: 64.19363636 | L142: 92.64649435 | M142: 129.8107368
C143: 115 | D143: 20.023184 | E143: 41.27998818 | F143: 65.31923622 | G143: 94.50042496 | H143: 133.0358513 | I143: 19.88317107 | J143: 40.96286105 | K143: 64.72808522 | L143: 93.40618306 | M143: 130.8433834
C144: 116 | D144: 20.19283333 | E144: 41.6288287 | F144: 65.86836522 | G144: 95.28722357 | H144: 134.1225697 | I144: 20.0491603 | J144: 41.30341695 | K144: 65.26179106 | L144: 94.16450142 | M144: 131.8733037
C145: 117 | D145: 20.36236727 | E145: 41.97740796 | F145: 66.41700754 | G145: 96.07312235 | H145: 135.2074892 | I145: 20.21497157 | J145: 41.64357015 | K145: 65.79474776 | L145: 94.9214383 | M145: 132.9004763
C146: 118 | D146: 20.53178487 | E146: 42.32572379 | F146: 66.96515912 | G146: 96.85811388 | H146: 136.2905952 | I146: 20.38060339 | J146: 41.98331735 | K146: 66.32694922 | L146: 95.67698262 | M146: 133.9248796
C147: 119 | D147: 20.70108515 | E147: 42.673774 | F147: 67.51281591 | G147: 97.64219076 | H147: 137.3718734 | I147: 20.54605429 | J147: 42.32265521 | K147: 66.85838931 | L147: 96.43112326 | M147: 134.9464924
C148: 120 | D148: 20.87026715 | E148: 43.0215564 | F148: 68.05997386 | G148: 98.42534557 | H148: 138.4513091 | I148: 20.71132281 | J148: 42.66158045 | K148: 67.38906193 | L148: 97.18384919 | M148: 135.9652933
C149: 121 | D149: 21.0393299 | E149: 43.36906881 | F149: 68.60662894 | G149: 99.20757092 | H149: 139.5288879 | I149: 20.87640747 | J149: 43.00008974 | K149: 67.918961 | L149: 97.93514934 | M149: 136.9812612
C150: 122 | D150: 21.20827243 | E150: 43.71630905 | F150: 69.1527771 | G150: 99.98885942 | H150: 140.6045953 | I150: 21.04130682 | J150: 43.3381798 | K150: 68.44808044 | L150: 98.68501271 | M150: 137.9943749
C151: 123 | D151: 21.37709378 | E151: 44.06327494 | F151: 69.69841431 | G151: 100.7692037 | H151: 141.6784169 | I151: 21.20601939 | J151: 43.67584733 | K151: 68.97641416 | L151: 99.43342828 | M151: 139.0046132
C152: 124 | D152: 21.54579299 | E152: 44.40996431 | F152: 70.24353653 | G152: 101.5485964 | H152: 142.7503382 | I152: 21.37054371 | J152: 44.01308902 | K152: 69.50395611 | L152: 100.1803851 | M152: 140.0119552
C153: 125 | D153: 21.71436909 | E153: 44.75637497 | F153: 70.78813974 | G153: 102.3270301 | H153: 143.8203451 | I153: 21.53487834 | J153: 44.34990161 | K153: 70.03070023 | L153: 100.9258722 | M153: 141.0163798
C154: 126 | D154: 21.88282111 | E154: 45.10250476 | F154: 71.33221992 | G154: 103.1044975 | H154: 144.8884229 | I154: =SQRT(2) * I$30 *SQRT(1- COS(TAN(I$29*PI()/180) *$C154/I$30)) -> 21.69902179 | J154: 44.68628179 | K154: 70.55664046 | L154: 101.6698786 | M154: 142.017866
C155: 127 | D155: =SQRT(2) * D$30 *SQRT(1- COS(TAN(D$29*PI()/180) *$C155/D$30)) -> 22.0511481 | E155: 45.4483515 | F155: 71.87577304 | G155: 103.8809913 | H155: 145.9545576 | I155: 21.86297263 | J155: 45.0222263 | K155: 71.08177079 | L155: 102.4123934 | M155: 143.0163931
C156: 128 | D156: 22.2193491 | E156: 45.79391301 | F156: 72.4187951 | G156: 104.6565041 | H156: 147.0187346 | I156: 22.0267294 | J156: 45.35773185 | K156: 71.60608517 | L156: 103.1534057 | M156: 144.0119402
C157: 129 | D157: 22.38742313 | E157: 46.13918715 | F157: 72.96128206 | G157: 105.4310286 | H157: 148.0809399 | I157: 22.19029063 | J157: 45.69279518 | K157: 72.12957758 | L157: 103.8929047 | M157: 145.0044866
C158: 130 | D158: 22.55536925 | E158: 46.48417172 | F158: 73.50322994 | G158: 106.2045575 | H158: 149.141159 | I158: 22.35365489 | J158: 46.02741302 | K158: 72.65224203 | L158: 104.6308795 | M158: 145.9940116
C159: 131 | D159: 22.72318648 | E159: 46.82886458 | F159: 74.04463472 | G159: 106.9770834 | H159: 150.1993779 | I159: 22.51682071 | J159: 46.36158211 | K159: 73.17407251 | L159: 105.3673193 | M159: 146.9804945
C160: 132 | D160: 22.89087389 | E160: 47.17326356 | F160: 74.5854924 | G160: 107.7485992 | H160: 151.2555823 | I160: 22.67978666 | J160: 46.69529918 | K160: 73.69506303 | L160: 106.1022133 | M160: 147.9639149
C161: 133 | D161: 23.05843049 | E161: 47.51736649 | F161: 75.12579899 | G161: 108.5190974 | H161: 152.309758 | I161: 22.84255128 | J161: 47.02856099 | K161: 74.2152076 | L161: 106.8355506 | M161: 148.9442522
C162: 134 | D162: 23.22585535 | E162: 47.86117121 | F162: 75.66555049 | G162: 109.2885709 | H162: 153.3618909 | I162: 23.00511313 | J162: 47.36136428 | K162: 74.73450027 | L162: 107.5673206 | M162: 149.921486
C163: 135 | D163: 23.39314749 | E163: 48.20467558 | F163: 76.20474292 | G163: 110.0570123 | H163: 154.411967 | I163: 23.16747076 | J163: 47.69370582 | K163: 75.25293506 | L163: 108.2975125 | M163: 150.8955959
C164: 136 | D164: 23.56030597 | E164: 48.54787743 | F164: 76.74337229 | G164: 110.8244144 | H164: 155.459972 | I164: 23.32962275 | J164: 48.02558235 | K164: 75.77050603 | L164: 109.0261156 | M164: 151.8665617
C165: 137 | D165: 23.72732983 | E165: 48.89077461 | F165: 77.28143463 | G165: 111.59077 | H165: 156.505892 | I165: 23.49156763 | J165: 48.35699065 | K165: 76.28720723 | L165: 109.7531191 | M165: 152.8343631
C166: 138 | D166: 23.89421811 | E166: 49.23336497 | F166: 77.81892595 | G166: 112.3560718 | H166: 157.5497129 | I166: 23.65330399 | J166: 48.68792748 | K166: 76.80303274 | L166: 110.4785125 | M166: 153.79898
C167: 139 | D167: 24.06096987 | E167: 49.57564635 | F167: 78.35584229 | G167: 113.1203125 | H167: 158.5914208 | I167: 23.81483038 | J167: 49.01838962 | K167: 77.31797663 | L167: 111.2022851 | M167: 154.7603922
C168: 140 | D168: 24.22758415 | E168: 49.91761662 | F168: 78.89217968 | G168: 113.8834851 | H168: 159.6310016 | I168: 23.97614536 | J168: 49.34837385 | K168: 77.83203299 | L168: 111.9244262 | M168: 155.7185797
C169: 141 | D169: 24.39405999 | E169: 50.25927361 | F169: 79.42793415 | G169: 114.6455822 | H169: 160.6684414 | I169: 24.13724752 | J169: 49.67787695 | K169: 78.34519592 | L169: 112.6449254 | M169: 156.6735226
C170: 142 | D170: 24.56039645 | E170: 50.6006152 | F170: 79.96310175 | G170: 115.4065966 | H170: 161.7037263 | I170: 24.29813541 | J170: 50.0068957 | K170: 78.85745954 | L170: 113.3637719 | M170: 157.6252009
C171: 143 | D171: 24.72659258 | E171: 50.94163923 | F171: 80.49767853 | G171: 116.1665213 | H171: 162.7368425 | I171: 24.45880761 | J171: 50.33542689 | K171: 79.36881795 | L171: 114.0809553 | M171: 158.5735948
C172: 144 | D172: 24.89264742 | E172: 51.28234358 | F172: 81.03166053 | G172: 116.925349 | H172: 163.767776 | I172: 24.61926269 | J172: 50.66346734 | K172: 79.87926529 | L172: 114.796465 | M172: 159.5186846
C173: 145 | D173: 25.05856002 | E173: 51.62272609 | F173: 81.5650438 | G173: 117.6830724 | H173: 164.796513 | I173: 24.77949923 | J173: 50.99101382 | K173: 80.38879571 | L173: 115.5102906 | M173: 160.4604506
C174: 146 | D174: 25.22432945 | E174: 51.96278463 | F174: 82.09782441 | G174: 118.4396846 | H174: 165.8230398 | I174: 24.9395158 | J174: 51.31806317 | K174: 80.89740335 | L174: 116.2224215 | M174: 161.3988731
C175: 147 | D175: 25.38995475 | E175: 52.30251707 | F175: 82.62999843 | G175: 119.1951783 | H175: 166.8473425 | I175: 25.09931099 | J175: 51.64461217 | K175: 81.40508237 | L175: 116.9328474 | M175: 162.3339326
C176: 148 | D176: 25.55543498 | E176: 52.64192128 | F176: 83.16156191 | G176: 119.9495465 | H176: 167.8694074 | I176: 25.25888338 | J176: 51.97065766 | K176: 81.91182695 | L176: 117.6415577 | M176: 163.2656096
C177: 149 | D177: 25.72076918 | E177: 52.98099512 | F177: 83.69251093 | G177: 120.7027819 | H177: 168.8892209 | I177: 25.41823154 | J177: 52.29619645 | K177: 82.41763127 | L177: 118.3485422 | M177: 164.1938847
C178: 150 | D178: 25.88595642 | E178: 53.31973647 | F178: 84.22284157 | G178: 121.4548774 | H178: 169.9067692 | I178: 25.57735408 | J178: 52.62122536 | K178: 82.92248952 | L178: 119.0537903 | M178: 165.1187385
C179: 151 | D179: 26.05099575 | E179: 53.65814321 | F179: 84.75254991 | G179: 122.2058261 | H179: 170.9220387 | I179: 25.73624956 | J179: 52.94574123 | K179: 83.42639591 | L179: 119.7572919 | M179: 166.0401518
C180: 152 | D180: 26.21588623 | E180: 53.99621321 | F180: 85.28163203 | G180: 122.9556207 | H180: 171.9350158 | I180: 25.89491659 | J180: 53.2697409 | K180: 83.92934465 | L180: 120.4590365 | M180: 166.9581054
C181: 153 | D181: 26.38062692 | E181: 54.33394434 | F181: 85.81008403 | G181: 123.7042542 | H181: 172.9456869 | I181: 26.05335375 | J181: 53.59322121 | K181: 84.43132997 | L181: 121.1590139 | M181: 167.8725802
C182: 154 | D182: 26.54521687 | E182: 54.67133449 | F182: 86.337902 | G182: 124.4517195 | H182: 173.9540384 | I182: 26.21155964 | J182: 53.916179 | K182: 84.93234611 | L182: 121.8572138 | M182: 168.7835571
C183: 155 | D183: 26.70965514 | E183: 55.00838154 | F183: 86.86508205 | G183: 125.1980096 | H183: 174.9600569 | I183: 26.36953285 | J183: 54.23861112 | K183: 85.43238732 | L183: 122.5536259 | M183: 169.6910171
C184: 156 | D184: 26.87394081 | E184: 55.34508338 | F184: 87.39162027 | G184: 125.9431174 | H184: 175.9637287 | I184: 26.52727199 | J184: 54.56051443 | K184: 85.93144786 | L184: 123.2482401 | M184: 170.5949413
C185: 157 | D185: 27.03807291 | E185: 55.68143789 | F185: 87.91751277 | G185: 126.6870359 | H185: 176.9650405 | I185: 26.68477564 | J185: 54.88188579 | K185: 86.42952199 | L185: 123.9410461 | M185: 171.4953108
C186: 158 | D186: 27.20205053 | E186: 56.01744296 | F186: 88.44275568 | G186: 127.429758 | H186: 177.9639788 | I186: 26.84204242 | J186: 55.20272207 | K186: 86.92660401 | L186: 124.6320338 | M186: 172.392107
C187: 159 | D187: 27.36587272 | E187: 56.35309648 | F187: 88.9673451 | G187: 128.1712768 | H187: 178.9605303 | I187: 26.99907092 | J187: 55.52302014 | K187: 87.4226882 | L187: 125.321193 | M187: 173.2853112
C188: 160 | D188: 27.52953854 | E188: 56.68839635 | F188: 89.49127717 | G188: 128.9115852 | H188: 179.9546815 | I188: 27.15585976 | J188: 55.84277687 | K188: 87.91776887 | L188: 126.0085137 | M188: 174.1749046
C189: 161 | D189: 27.69304706 | E189: 57.02334046 | F189: 90.01454801 | G189: 129.6506763 | H189: 180.9464192 | I189: 27.31240753 | J189: 56.16198916 | K189: 88.41184034 | L189: 126.6939857 | M189: 175.0608688
C190: 162 | D190: 27.85639735 | E190: 57.35792671 | F190: 90.53715375 | G190: 130.3885431 | H190: 181.93573 | I190: 27.46871286 | J190: 56.48065388 | K190: 88.90489693 | L190: 127.3775991 | M190: 175.9431853
C191: 163 | D191: 28.01958847 | E191: 57.69215301 | F191: 91.05909054 | G191: 131.1251785 | H191: 182.9226006 | I191: 27.62477435 | J191: 56.79876794 | K191: 89.39693299 | L191: 128.0593436 | M191: 176.8218358
C192: 164 | D192: 28.18261949 | E192: 58.02601724 | F192: 91.58035452 | G192: 131.8605757 | H192: 183.9070179 | I192: 27.78059062 | J192: 57.11632822 | K192: 89.88794287 | L192: 128.7392095 | M192: 177.6968019
C193: 165 | D193: 28.34548948 | E193: 58.35951733 | F193: 92.10094183 | G193: 132.5947277 | H193: 184.8889686 | I193: 27.93616029 | J193: 57.43333164 | K193: 90.37792093 | L193: 129.4171866 | M193: 178.5680654
C194: 166 | D194: 28.50819751 | E194: 58.69265117 | F194: 92.62084863 | G194: 133.3276276 | H194: 185.8684395 | I194: 28.09148197 | J194: 57.74977509 | K194: 90.86686155 | L194: 130.0932651 | M194: 179.4356082
C195: 167 | D195: 28.67074265 | E195: 59.02541667 | F195: 93.14007108 | G195: 134.0592684 | H195: 186.8454176 | I195: 28.24655428 | J195: 58.06565551 | K195: 91.35475911 | L195: 130.767435 | M195: 180.2994121
C196: 168 | D196: 28.83312397 | E196: 59.35781175 | F196: 93.65860535 | G196: 134.7896432 | H196: 187.8198897 | I196: 28.40137586 | J196: 58.3809698 | K196: 91.84160802 | L196: 131.4396864 | M196: 181.1594591
C197: 169 | D197: 28.99534053 | E197: 59.68983432 | F197: 94.17644759 | G197: 135.5187452 | H197: 188.7918427 | I197: 28.55594532 | J197: 58.6957149 | K197: 92.32740269 | L197: 132.1100095 | M197: 182.0157315
C198: 170 | D198: 29.15739143 | E198: 60.02148229 | F198: 94.69359399 | G198: 136.2465675 | H198: 189.7612636 | I198: 28.71026129 | J198: 59.00988773 | K198: 92.81213753 | L198: 132.7783945 | M198: 182.8682112
C199: 171 | D199: 29.31927572 | E199: 60.35275359 | F199: 95.21004072 | G199: 136.9731031 | H199: 190.7281394 | I199: 28.8643224 | J199: 59.32348523 | K199: 93.29580699 | L199: 133.4448314 | M199: 183.7168806
C200: 172 | D200: 29.48099249 | E200: 60.68364614 | F200: 95.72578397 | G200: 137.6983452 | H200: 191.6924572 | I200: 29.01812729 | J200: 59.63650434 | K200: 93.77840552 | L200: 134.1093106 | M200: 184.5617219
C201: 173 | D201: 29.6425408 | E201: 61.01415785 | F201: 96.24081993 | G201: 138.4222871 | H201: 192.654204 | I201: 29.17167459 | J201: 59.94894202 | K201: 94.25992756 | L201: 134.7718224 | M201: 185.4027176
C202: 174 | D202: 29.80391975 | E202: 61.34428666 | F202: 96.75514479 | G202: 139.1449217 | H202: 193.6133668 | I202: 29.32496293 | J202: 60.26079521 | K202: 94.74036761 | L202: 135.4323569 | M202: 186.2398501
C203: 175 | D203: 29.9651284 | E203: 61.67403049 | F203: 97.26875475 | G203: 139.8662424 | H203: 194.5699329 | I203: 29.47799096 | J203: 60.57206088 | K203: 95.21972013 | L203: 136.0909045 | M203: 187.073102
C204: 176 | D204: 30.12616583 | E204: 62.00338728 | F204: 97.78164601 | G204: 140.5862423 | H204: 195.5238895 | I204: 29.63075732 | J204: 60.88273598 | K204: 95.69797964 | L204: 136.7474555 | M204: 187.9024559
C205: 177 | D205: 30.28703112 | E205: 62.33235496 | F205: 98.29381479 | G205: 141.3049145 | H205: 196.4752236 | I205: =SQRT(2) * I$30 *SQRT(1- COS(TAN(I$29*PI()/180) *$C205/I$30)) -> 29.78326065 | J205: 61.1928175 | K205: 96.17514063 | L205: 137.4020003 | M205: 188.7278946
C206: 178 | D206: =SQRT(2) * D$30 *SQRT(1- COS(TAN(D$29*PI()/180) *$C206/D$30)) -> 30.44772336 | E206: 62.66093145 | F206: 98.80525731 | G206: 142.0222524 | H206: 197.4239226 | I206: 29.9354996 | J206: 61.50230241 | K206: 96.65119763 | L206: 138.0545294 | M206: 189.5494008
C207: 179 | D207: 30.60824163 | E207: 62.98911471 | F207: 99.31596977 | G207: 142.7382492 | H207: 198.3699737 | I207: 30.08747281 | J207: 61.81118769 | K207: 97.12614519 | L207: 138.705033 | M207: 190.3669575
C208: 180 | D208: 30.768585 | E208: 63.31690267 | F208: 99.82594842 | G208: 143.452898 | H208: 199.3133643 | I208: 30.23917895 | J208: 62.11947033 | K208: 97.59997783 | L208: 139.3535018 | M208: 191.1805475
C209: 181 | D209: 30.92875257 | E209: 63.64429327 | F209: 100.3351895 | G209: 144.1661921 | H209: 200.2540816 | I209: 30.39061665 | J209: 62.42714732 | K209: 98.07269014 | L209: 139.9999261 | M209: 191.990154
C210: 182 | D210: 31.08874342 | E210: 63.97128447 | F210: 100.8436892 | G210: 144.8781249 | H210: 201.1921132 | I210: 30.54178458 | J210: 62.73421566 | K210: 98.54427667 | L210: 140.6442965 | M210: 192.7957601
C211: 183 | D211: 31.24855663 | E211: 64.29787419 | F211: 101.3514438 | G211: 145.5886895 | H211: 202.1274463 | I211: 30.69268139 | J211: 63.04067237 | K211: 99.01473202 | L211: 141.2866035 | M211: 193.5973489
C212: 184 | D212: 31.40819129 | E212: 64.62406041 | F212: 101.8584495 | G212: 146.2978792 | H212: 203.0600684 | I212: 30.84330575 | J212: 63.34651445 | K212: 99.48405079 | L212: 141.9268377 | M212: 194.3949038
... 738 more rows

Sheet mass cal
B2: using VBA function
C4: A | D4: 23 | E4: =D4&D8 -> 23F
C5: Z | D5: 9
C6: N | D6: =D4-D7 -> 23
B8: Symbol of the elememt | C8: Symbol(A,Z) | D8: =Symbol(D4,D5) -> F | F8: total
B9: binding energy / A | C9: BEA(A,Z) | D9: =BEA(D4,D5) -> 7.6223447 | E9: A MeV | F9: =D9*D4 -> 175.3139281
B10: mass | C10: mass(A,Z) | D10: =Mass(D4,D5) -> 21423.05059 | E10: MeV/c2
D11: =D10/931.5 -> 22.998444 | E11: amu
B12: proton speration energy | C12: Sp(A,Z) | D12: =Sp(D4,D5) -> 13.2867397 | E12: MeV | F12: ∆S = Sp- Sn
B13: neutron seperation energy | C13: Sn(A,Z) | D13: =Sn(D4,D5) -> 7.5794293 | E13: MeV | F13: =D12-D13 -> 5.7073104 | I13: d | J13: =IF(I13="n",1,IF(I13="p",1,IF(I13="d",2,IF(I13="t",3,IF(I13="a",4,SUBSTITUTE(I13,L13,"")))))) -> 2 | K13: =VLOOKUP(L13,MASS2020!$D$3:$E$3800,2,FALSE) -> 1 | L13: =IF( OR(I13="p", I13="d", I13="t"), "H", IF( I13="a", "He",SUBSTITUTE(SUBSTITUTE(SUBSTITUTE(SUBSTITUTE(SUBSTITUTE(SUBSTITUTE(SUBSTITUTE(SUBSTITUTE(SUBSTITUTE(SUBSTITUTE(I13,"0",""),"1",""),"2",""),"3",""),"4",""),"5",""),"6",""),"7",""),"8",""),"9",""))) -> H | M13: =Mass(J13,K13) -> 1875.612928 | P13: ="("&I13&","&I14&") Q-value" -> (d,p) Q-value
B14: alpha separation energy | C14: Sa(A,Z) | D14: =Mass(D4-4,D5-2)+Mass(4,2) -D10 -> 14.9959069 | E14: MeV | I14: p | J14: =IF(I14="n",1,IF(I14="p",1,IF(I14="d",2,IF(I14="t",3,IF(I14="a",4,SUBSTITUTE(I14,L14,"")))))) -> 1 | K14: =VLOOKUP(L14,MASS2020!$D$3:$E$3800,2,FALSE) -> 1 | L14: =IF( OR(I14="p", I14="d", I14="t"), "H", IF( I14="a", "He",SUBSTITUTE(SUBSTITUTE(SUBSTITUTE(SUBSTITUTE(SUBSTITUTE(SUBSTITUTE(SUBSTITUTE(SUBSTITUTE(SUBSTITUTE(SUBSTITUTE(I14,"0",""),"1",""),"2",""),"3",""),"4",""),"5",""),"6",""),"7",""),"8",""),"9",""))) -> H | M14: =Mass(J14,K14) -> 938.2720813
J15: =J14-J13 -> -1 | K15: =K14-K13 -> 0
H17: =Symbol(2.55*I17,I17) -> Ca | I17: =I18+1 -> 20 | J17: =IF(OR(Mass(J$37+$I17,$I17) = -404, Mass(J$37+$I17-$J$15,$I17-$K$15) = -404), "", Mass(J$37+$I17,$I17)+$M$13-$M$14- Mass(J$37+$I17-$J$15,$I17-$K$15)) ->  | T17: =IF(OR(Mass(T$37+$I17,$I17) = -404, Mass(T$37+$I17-$J$15,$I17-$K$15) = -404), "", Mass(T$37+$I17,$I17)+$M$13-$M$14- Mass(T$37+$I17-$J$15,$I17-$K$15)) ->  | V17: 21.9764338 | W17: 15.5534338 | X17: 17.4871102 | Y17: 12.5316553 | Z17: 14.7691851 | AA17: 11.0709575 | AB17: 13.4104449 | AC17: 6.1382573 | AD17: =IF(OR(Mass(AD$37+$I17,$I17) = -404, Mass(AD$37+$I17-$J$15,$I17-$K$15) = -404), "", Mass(AD$37+$I17,$I17)+$M$13-$M$14- Mass(AD$37+$I17-$J$15,$I17-$K$15)) -> 9.2561395 | AE17: 5.7083285 | AF17: 8.9066095 | AG17: 5.1902517 | AH17: 8.1741331 | AI17: 5.0518086 | AJ17: 7.726955 | AK17: 2.921887 | AL17: 4.1359788
B18: Yeild Calculator | H18: K | I18: 19 | U18: 18.1184338 | V18: 20.2714338 | W18: 14.6194338 | X18: 15.7998653 | Y18: 12.0910411 | Z18: 13.229771 | AA18: 9.8473112 | AB18: 10.8531866 | AC18: 5.5750556 | AD18: 7.8708029 | AE18: 5.3092349 | AF18: 7.4001128 | AG18: 5.0528578 | AH18: 6.6808941 | AI18: 4.6450411 | AJ18: 6.1448015 | AK18: 2.4192525 | AL18: 3.1737683
B19: Integrated Xsec | C19: 5 | D19: mb | H19: Ar | I19: 18 | T19: 21.7514338 | U19: 16.6074338 | V19: 19.3637186 | W19: 13.0306937 | X19: 14.8407507 | Y19: 10.5157457 | Z19: 13.0310059 | AA19: 6.5628904 | AB19: 9.6138982 | AC19: 4.3741204 | AD19: 7.6444566 | AE19: 3.8743631 | AF19: 7.2019207 | AG19: 3.4338842 | AH19: 6.5101996 | AI19: 2.9442924 | AJ19: 5.8472078 | AK19: 1.4427678 | AL19: 2.8344076
B20: Beam intensity | C20: 34000 | D20: pps | H20: Cl | I20: 17 | T20: 20.0804338 | U20: 15.1995278 | V20: 17.5558529 | W20: 12.1469063 | X20: 13.5153863 | Y20: 9.2834961 | Z20: 10.4201984 | AA20: 6.355228 | AB20: 8.0862938 | AC20: 3.8833192 | AD20: 5.848854 | AE20: 3.604349 | AF20: 5.5961251 | AG20: 3.3713313 | AH20: 5.1744946 | AI20: 2.1662114 | AJ20: 3.6303261 | AK20: 1.3191565 | AL20: 1.6837516
B21: Target thickness | C21: 0.1 | D21: mg/cm2 | H21: S | I21: 16 | S21: 16.0454338 | T21: 19.2615846 | U21: 13.0143784 | V21: 16.8115814 | W21: 10.8300311 | X21: 12.8197567 | Y21: 6.4170738 | Z21: 9.192583 | AA21: 4.7612699 | AB21: 7.6646853 | AC21: 2.0790369 | AD21: 5.8115409 | AE21: 2.1482058 | AF21: 5.5219316 | AG21: 2.0174816 | AH21: 4.475921 | AI21: 0.4044656 | AJ21: 2.8555246 | AK21: -0.0342438 | AL21: 1.8704338
B22: molar mass | C22: 16 | D22: g/mol | H22: P | I22: 15 | R22: 19.6654338 | S22: 15.0734338 | T22: 17.4768476 | U22: 12.3355776 | V22: 15.6517434 | W22: 9.0947586 | X22: 10.0864405 | Y22: 5.7110847 | Z22: 7.8792251 | AA22: 4.0581033 | AB22: 6.1558594 | AC22: 1.239989 | AD22: 4.5917183 | AE22: 1.4723043 | AF22: 3.9998215 | AG22: 1.2113079 | AH22: 2.6873291 | AI22: -0.2248571 | AJ22: 1.8901214 | AK22: -0.2195662 | AL22: 1.0074338
B23: target nulceus in a molecule | C23: 2 | H23: Si | I23: 14 | Q23: 15.5494338 | R23: 19.0470234 | S23: 12.7646167 | T23: 16.8150771 | U23: 11.090252 | V23: 14.9550458 | W23: 6.2490347 | X23: 8.3846339 | Y23: 4.3628264 | Z23: 6.9754022 | AA23: 2.2833926 | AB23: 5.3241076 | AC23: 0.2465472 | AD23: 3.8913962 | AE23: -0.0178605 | AF23: 3.4455403 | AG23: -0.6439021 | AH23: 2.5002291 | AI23: -1.6955542 | AJ23: 2.2334338 | AK23: -1.6515662 | AL23: 0.8464338
B24: Avogadro's number | C24: 6.0221409e+23 | D24: #/mol | H24: Al | I24: 13 | Q24: 14.7424338 | R24: 17.2931663 | S24: 12.6436357 | T24: 14.7139144 | U24: 9.1409166 | V24: 10.8334751 | W24: 5.5006079 | X24: 7.2037969 | Y24: 3.5031045 | Z24: 4.9333448 | AA24: 1.9954126 | AB24: 3.2447646 | AC24: 0.3469866 | AD24: 3.0728639 | AE24: -0.3273623 | AF24: 1.9875714 | AG24: -0.8232582 | AH24: 0.8554338 | AI24: -1.4845662 | AJ24: 0.0754338 | AK24: -1.5865662 | AL24: -0.4265662
B25: # of target nucleus per area | C25: =C21/1000*C24*C23/C22 -> 7.527676125e+18 | D25: #/cm2 | H25: Mg | I25: 12 | P25: 20.207453 | Q25: 12.4205955 | R25: 17.1505871 | S25: 10.9204415 | T25: 14.3066543 | U25: 5.1059566 | V25: 8.8685124 | W25: 4.2188027 | X25: 6.2801031 | Y25: 1.4391663 | Z25: 4.1157645 | AA25: 0.0875304 | AB25: 3.5535024 | AC25: 0.0549792 | AD25: 2.4862978 | AE25: -1.4697078 | AF25: 1.106378 | AG25: -1.9845679 | AH25: 0.0003082999974 | AI25: -2.8625662 | AJ25: -0.9305662 | AK25: -2.7195662
B26: mb to cm2 | C26: 1e-27 | D26: cm2/mb | H26: Na | I26: 11 | O26: 15.5283405 | P26: 17.9553586 | Q26: 11.9256482 | R26: 14.8820979 | S26: 8.8432865 | T26: 10.1952138 | U26: 4.7347978 | V26: 6.7866645 | W26: 3.3497201 | X26: 4.5037609 | Y26: 1.3172761 | Z26: 2.1784444 | AA26: 0.052075 | AB26: 2.0753906 | AC26: -0.54737 | AD26: 0.7067904 | AE26: -2.053249 | AF26: -0.288448 | AG26: -2.2475662 | AH26: -1.3655662 | AI26: -2.9275662 | AJ26: -2.2485662
B27: count per sec | C27: =C19*C20*C25*C26 -> 0.001279704941 | D27: #/sec | H27: Ne | I27: 10 | J27: =IF(OR(Mass(J$37+$I27,$I27) = -404, Mass(J$37+$I27-$J$15,$I27-$K$15) = -404), "", Mass(J$37+$I27,$I27)+$M$13-$M$14- Mass(J$37+$I27-$J$15,$I27-$K$15)) ->  | N27: 22.0753495 | O27: 13.3330753 | P27: 17.0295877 | Q27: 9.4123141 | R27: 14.6407389 | S27: 4.5365954 | T27: =IF(OR(Mass(T$37+$I27,$I27) = -404, Mass(T$37+$I27-$J$15,$I27-$K$15) = -404), "", Mass(T$37+$I27,$I27)+$M$13-$M$14- Mass(T$37+$I27-$J$15,$I27-$K$15)) -> 8.1396914 | U27: 2.9760809 | V27: 6.6443483 | W27: 1.930614 | X27: 3.3301348 | Y27: -0.7230445 | Z27: 1.5979225 | AA27: -1.2533109 | AB27: 0.9664331 | AC27: -2.054721 | AD27: =IF(OR(Mass(AD$37+$I27,$I27) = -404, Mass(AD$37+$I27-$J$15,$I27-$K$15) = -404), "", Mass(AD$37+$I27,$I27)+$M$13-$M$14- Mass(AD$37+$I27-$J$15,$I27-$K$15)) -> 0.0416376 | AE27: -3.3085662 | AF27: -0.8545662
B28: count per min | C28: =C27*60 -> 0.07678229647 | D28: #/min | H28: F | I28: 9 | M28: 15.9073612 | N28: 21.2444019 | O28: 11.7383223 | P28: 14.5702326 | Q28: 6.9253404 | R28: 8.2073092 | S28: 4.376771 | T28: 5.8768932 | U28: 3.0057712 | V28: 5.3548631 | W28: 1.5875001 | X28: 2.0571019 | Y28: -1.4937365 | Z28: -0.612071 | AA28: -2.423566 | AB28: -0.8996432 | AC28: -2.9514768 | AD28: -2.0335662
B29: Spectroscopic factor | C29: 1 | H29: O | I29: 8 | L29: 21.5723306 | M29: 14.7446546 | N29: 20.9544032 | O29: 10.9989101 | P29: 13.4393765 | Q29: 1.9185133 | R29: 5.8208049 | S29: 1.7310768 | T29: 5.383439 | U29: 1.5808885 | V29: 4.6257535 | W29: 0.5084142 | X29: 1.967717 | Y29: -2.9818732 | Z29: -1.4852572 | AA29: -4.1640202 | AB29: -1.5555662
B30: Expected count | C30: 500 | D30: # | H30: N | I30: 7 | L30: 20.2811351 | M30: 12.8743285 | N30: 17.839338 | O30: 8.3288168 | P30: 8.6087311 | Q30: 0.2642829 | R30: 3.66058 | S30: 0.6036626 | T30: 3.103664 | U30: -0.063491 | V30: 2.3813337 | W30: -0.6861367 | X30: 0.8911287 | Y30: -4.3800245 | Z30: -3.1875662
B31: uncertaintly | C31: =SQRT(C30)/C30*100 -> 4.472135955 | D31: % | H31: C | I31: 6 | K31: 12.0000499 | L31: 19.0590501 | M31: 10.8960271 | N31: 16.4961497 | O31: 2.7217421 | P31: 5.9518675 | Q31: -1.0064994 | R31: 2.0257634 | S31: -1.4909944 | T31: 1.9593662 | U31: -1.647738 | V31: 0.7569398 | W31: -2.2992782 | X31: -2.1148546 | Y31: -4.7172778
B32: Time required | C32: =C30/C28/C29/60/24 -> 4.52216511 | D32: day | H32: B | I32: 5 | J32: 25.4883723 | K32: 10.6017361 | L32: 16.3518347 | M32: =IF(OR(Mass(M$37+$I32,$I32) = -404, Mass(M$37+$I32-$J$15,$I32-$K$15) = -404), "", Mass(M$37+$I32,$I32)+$M$13-$M$14- Mass(M$37+$I32-$J$15,$I32-$K$15)) -> 6.2126271 | N32: 9.2296541 | O32: 1.1450629 | P32: 2.6542016 | Q32: -1.254987 | R32: 0.5530594 | S32: -2.3075672 | T32: -0.7578713 | U32: -2.2295663 | V32: -2.1308596 | W32: -3.7845656 | X32: -3.1345677
H33: Be | I33: 4 | J33: 24.6089206 | K33: 8.4527879 | L33: 16.6740777 | M33: -0.5600273 | N33: 4.5877161 | O33: -1.72293 | P33: 0.9461592 | Q33: -2.7345671 | R33: -0.4486707 | S33: -4.0245664 | T33: -1.7745666
H34: Li | I34: 3 | J34: 19.4910551 | K34: 3.4387585 | L34: 5.0265273 | M34: -0.1919477 | N34: 1.8376511 | O34: -2.2509707 | P34: -1.8288795 | Q34: -2.4345661 | R34: -2.1245659
B35: enA, pnA, pps convertor | H35: He | I35: =I36+1 -> 2 | J35: 18.35305488 | K35: -2.9595661 | L35: -0.5141093 | M35: -2.634281 | N35: 0.3101972 | O35: -3.4793922 | P35: -2.4145682
B36: Charge State | C36: 6 | H36: =Symbol(2.55*I36,I36) -> H | I36: 1 | J36: 4.0326638 | K36: -3.824566 | L36: -2.4245666 | M36: -3.1365252 | N36: -1.4144032
E37: attenuation | F37: 500000 | I37: Z/N | J37: 1 | K37: =J37+1 -> 2 | L37: =K37+1 -> 3 | M37: 4 | N37: 5 | O37: 6 | P37: 7 | Q37: 8 | R37: 9 | S37: 10 | T37: 11 | U37: 12 | V37: 13 | W37: 14 | X37: 15 | Y37: 16 | Z37: 17 | AA37: 18 | AB37: 19 | AC37: 20 | AD37: 21 | AE37: 22 | AF37: 23 | AG37: 24 | AH37: 25 | AI37: 26 | AJ37: 27 | AK37: 28 | AL37: 29
B38: 6241510000 | C38: enA | D38: pnA | E38: pps | F38: att
B39: enA | C39: 3 | D39: =C39/C36 -> 0.5 | E39: =D39*B38 -> 3120755000 | F39: =E39/F37 -> 6241.51
B40: pnA | C40: =C36*D40 -> 6 | D40: 1 | E40: =D40*$B$38 -> 6241510000 | F40: =E40/F37 -> 12483.02 | P40: ="Sn-Sp" -> Sn-Sp
B41: pps | C41: =C36*D41 -> 9.613058379e-10 | D41: =E41/$B$38 -> 1.602176396e-10 | E41: 1 | F41: =E41/F37 -> 2e-06
H44: Ca | I44: =I17 -> 20 | J44: =IF(OR(Sn(J$37+$I44,$I44) = -404, Sp(J$37+$I44,$I44) = -404), "", Sn(J$37+$I44,$I44)- Sp(J$37+$I44,$I44)) ->  | T44: =IF(OR(Sn(T$37+$I44,$I44) = -404, Sp(T$37+$I44,$I44) = -404), "", Sn(T$37+$I44,$I44)- Sp(T$37+$I44,$I44)) ->  | W44: 24.255 | X44: 16.898 | Y44: 17.1444315 | Z44: 11.7483624 | AA44: 12.4464781 | AB44: 7.5246042 | AC44: 7.3068333 | AD44: =IF(OR(Sn(AD$37+$I44,$I44) = -404, Sp(AD$37+$I44,$I44) = -404), "", Sn(AD$37+$I44,$I44)- Sp(AD$37+$I44,$I44)) -> -0.528556 | AE44: 1.2039896 | AF44: -2.742915 | AG44: -1.0511307 | AH44: -4.9048824 | AI44: -3.41424 | AJ44: -6.943332 | AK44: -5.8503391 | AL44: -11.1580416
H45: K | I45: 19 | V45: 23.715 | W45: 24.9602848 | X45: 17.7195447 | Y45: 17.9408616 | Z45: 12.656742 | AA45: 13.5967068 | AB45: 6.9298262 | AC45: 6.6964132 | AD45: 0.217347 | AE45: 2.286748 | AF45: -1.7096918 | AG45: 0.182994 | AH45: -3.7832346 | AI45: -2.3258928 | AJ45: -6.0624945 | AK45: -4.8603278 | AL45: -9.5623615
H46: Ar | I46: 18 | U46: 24.737 | V46: 18.185094 | W46: 19.1335131 | X46: 11.9167008 | Y46: 12.4013934 | Z46: 6.8441388 | AA46: 6.7485915 | AB46: 0.0728136 | AC46: 1.596217 | AD46: -4.134362 | AE46: -2.6596284 | AF46: -6.699736 | AG46: -4.977974 | AH46: -8.8085634 | AI46: -7.067953 | AJ46: -11.4119412 | AK46: -10.7259075 | AL46: -15.2539588
H47: Cl | I47: 17 | U47: 24.9701508 | V47: 17.9040954 | W47: 19.516149 | X47: 12.7903272 | Y47: 13.4631776 | Z47: 6.3648651 | AA47: 6.273952 | AB47: 0.6150235 | AC47: 1.9244808 | AD47: -4.0827761 | AE47: -2.1545544 | AF47: -5.8552026 | AG47: -3.93762 | AH47: -7.5162635 | AI47: -6.4116738 | AJ47: -11.1817028 | AK47: -10.4923896 | AL47: -14.1569595
H48: S | I48: 16 | T48: 17.498 | U48: 18.9294138 | V48: 12.0034068 | W48: 14.6407718 | X48: 6.923949 | Y48: 6.1803584 | Z48: -0.9283136 | AA48: 0.5338377 | AB48: -4.600642 | AC48: -3.2060525 | AD48: -9.6307488 | AE48: -7.1180674 | AF48: -11.457304 | AG48: -9.6056883 | AH48: -13.916312 | AI48: -13.2464645 | AJ48: -17.9472426 | AK48: -16.4615868 | AL48: -19.5366776
H49: P | I49: 15 | S49: 24.0535896 | T49: 17.1527725 | U49: 18.8944158 | V49: 12.5078202 | W49: 15.1272884 | X49: 5.7245797 | Y49: 5.014455 | Z49: -0.7091591 | AA49: 0.5551584 | AB49: -5.0406741 | AC49: -3.7746698 | AD49: -9.683982 | AE49: -7.0325748 | AF49: -11.6421536 | AG49: -9.6689176 | AH49: -14.3126412 | AI49: -13.02372 | AJ49: -17.4066033 | AK49: -14.9483124 | AL49: -18.49
H50: Si | I50: 14 | R50: 16.236 | S50: 17.9797325 | T50: 11.5763448 | U50: 13.5256425 | V50: 5.851482 | W50: 5.5947051 | X50: -3.8597328 | Y50: -2.9049706 | Z50: -7.7865 | AA50: -7.2159816 | AB50: -12.1959712 | AC50: -11.2345992 | AD50: -16.2117202 | AE50: -13.3854035 | AF50: -17.604162 | AG50: -15.5987301 | AH50: -19.8675286 | AI50: -18.3681927 | AJ50: -22.352988 | AK50: -20.582 | AL50: -24.402
H51: Al | I51: 13 | R51: 16.9686657 | S51: 19.376819 | T51: 13.0040942 | U51: 14.6671128 | V51: 5.059155 | W51: 4.7867508 | X51: -1.8279216 | Y51: -1.0484264 | Z51: -6.813057 | AA51: -6.200397 | AB51: -11.0462114 | AC51: -9.4881216 | AD51: -12.677907 | AE51: -10.5385958 | AF51: -15.0811675 | AG51: -13.6474272 | AH51: -17.6195665 | AI51: -16.796 | AJ51: -20.514 | AK51: -19.96 | AL51: -22.755
H52: Mg | I52: 12 | Q52: 19.6913568 | R52: 11.409552 | S52: 13.8710544 | T52: 5.5637538 | U52: 4.8385261 | V52: -4.7333304 | W52: -3.0526225 | X52: -8.5714148 | Y52: -8.2864566 | Z52: -13.2492836 | AA52: -12.5100055 | AB52: -16.573695 | AC52: -14.5858348 | AD52: -18.6867072 | AE52: -18.034896 | AF52: -22.5744428 | AG52: -21.393183 | AH52: -24.7471272 | AI52: -24.1281255 | AJ52: -27.056 | AK52: -26.442
H53: Na | I53: 11 | P53: 19.0014746 | Q53: 20.5027218 | R53: 11.9596773 | S53: 14.674768 | T53: 4.3292655 | U53: 3.6256704 | V53: -3.5934625 | W53: -1.683912 | X53: -6.5399625 | Y53: -6.5595478 | Z53: -11.7863532 | AA53: -11.5057068 | AB53: -14.9374621 | AC53: -14.023104 | AD53: -18.1532156 | AE53: -17.564208 | AF53: -21.5795646 | AG53: -20.3808818
H54: Ne | I54: 10 | J54: =IF(OR(Sn(J$37+$I54,$I54) = -404, Sp(J$37+$I54,$I54) = -404), "", Sn(J$37+$I54,$I54)- Sp(J$37+$I54,$I54)) ->  | O54: 24.430968 | P54: 14.0939408 | Q54: 15.3310981 | R54: 5.2268508 | S54: 4.0218459 | T54: =IF(OR(Sn(T$37+$I54,$I54) = -404, Sp(T$37+$I54,$I54) = -404), "", Sn(T$37+$I54,$I54)- Sp(T$37+$I54,$I54)) -> -6.242122 | U54: -4.9018242 | V54: -10.0357444 | W54: -7.6569622 | X54: -12.7138104 | Y54: -12.5873225 | Z54: -17.4111938 | AA54: -17.3002203 | AB54: -21.3217088 | AC54: -20.9680411 | AD54: =IF(OR(Sn(AD$37+$I54,$I54) = -404, Sp(AD$37+$I54,$I54) = -404), "", Sn(AD$37+$I54,$I54)- Sp(AD$37+$I54,$I54)) -> -24.885951 | AE54: -24.8647962
H55: F | I55: 9 | N55: 19.6919268 | O55: 24.7389688 | P55: 14.493477 | Q55: 16.1945312 | R55: 3.5428119 | S55: 2.4382764 | T55: -4.037956 | U55: -3.031288 | V55: -7.3272927 | W55: -5.7073104 | X55: -10.5537593 | Y55: -10.1735424 | Z55: -15.2125175 | AA55: -15.2040382 | AB55: -18.7559874 | AC55: -17.8879876
H56: O | I56: 8 | M56: 24.1556161 | N56: 15.457614 | O56: 18.5522974 | P56: 5.926711 | Q56: 3.536532 | R56: -9.6385616 | S56: -7.8964949 | T56: -13.1136372 | U56: -11.74105 | V56: -17.18798 | W56: -16.3875348 | X56: -21.699425 | Y56: -21.3167105 | Z56: -27.664452 | AA56: -27.870145
H57: N | I57: 7 | M57: 23.883702 | N57: 14.498594 | O57: 18.1204152 | P57: 3.0028193 | Q57: 0.62587 | R57: -8.9893605 | S57: -7.22788 | T57: -12.3794544 | U57: -11.0237508 | V57: -15.7751528 | W57: -14.954722 | X57: -19.6353339 | Y57: -21.0640518 | Z57: -26.6724583
H58: C | I58: 6 | L58: 12.9250472 | M58: 17.276832 | N58: 4.430409 | O58: 2.764036 | P58: -12.5870508 | Q58: -12.6545913 | R58: -19.8614458 | S58: -18.301887 | T58: -22.6352176 | U58: -21.9020945 | V58: -26.091027 | W58: -26.5741486 | X58: -31.115654 | Y58: -31.9509435
H59: B | I59: 5 | K59: 29.7254868 | L59: 12.6899024 | M59: 18.762244 | N59: 1.850382 | O59: 0.225471 | P59: -10.7271131 | Q59: -10.9260168 | R59: -16.3147855 | S59: -15.5084692 | T59: -20.086095 | U59: -19.5530944
H60: Be | I60: 4 | K60: 26.2406625 | L60: 5.0705004 | M60: 1.6442398 | N60: -15.2217856 | O60: -12.8241072 | P60: -19.662794 | Q60: -19.7687435 | R60: -23.1494688 | S60: -22.5394676
H61: Li | I61: 3 | J61: 14.51904132 | K61: 23.6806212 | L61: 1.23 | M61: -2.7228678 | N61: -10.3836761 | O61: -9.8815312 | P61: -15.1985745 | Q61: -15.362172
H62: He | I62: 2 | K62: 0.76375488 | L62: -21.413866 | M62: -20.8788665 | N62: -23.5012824 | O62: -22.2814046
H63: H | I63: =I36 -> 1 | J63: 0
I64: Z/N | J64: =J37 -> 1 | K64: =K37 -> 2 | L64: 3 | M64: 4 | N64: 5 | O64: 6 | P64: 7 | Q64: 8 | R64: 9 | S64: 10 | T64: 11 | U64: 12 | V64: 13 | W64: 14 | X64: 15 | Y64: 16 | Z64: 17 | AA64: 18 | AB64: 19 | AC64: 20 | AD64: 21 | AE64: 22 | AF64: 23 | AG64: 24 | AH64: 25 | AI64: 26 | AJ64: 27 | AK64: 28 | AL64: 29

Sheet penertration
A1: Penertration Energy (MeV) for 800 um Si ( LISE++ )
B4: C | C4: 6 | J4: 239.1 | N4: C | O4: 6 | V4: =J4/($O4+V$10) -> 19.925
B5: B | C5: 5 | I5: 180.5 | J5: 187.9 | N5: B | O5: 5 | U5: =I5/($O5+U$10) -> 18.05 | V5: 17.08181818
B6: Be | C6: 4 | I6: 134.3 | N6: Be | O6: 4 | U6: 14.92222222
B7: Li | C7: 3 | G7: 81.8 | H7: 87.4 | N7: Li | O7: 3 | S7: =G7/($O7+S$10) -> 13.63333333 | T7: =H7/($O7+T$10) -> 12.48571429
B8: He | C8: 2 | E8: 38.3 | F8: 43.3 | N8: He | O8: 2 | Q8: =E8/($O8+Q$10) -> 12.76666667 | R8: =F8/($O8+R$10) -> 10.825
B9: H | C9: 1 | D9: 10.8 | E9: 14.5 | F9: 17.1 | N9: H | O9: 1 | P9: =D9/($O9+P$10) -> 10.8 | Q9: =E9/($O9+Q$10) -> 7.25 | R9: =F9/(O9+R10) -> 5.7
C10: Z/N | D10: 0 | E10: 1 | F10: 2 | G10: 3 | H10: 4 | I10: 5 | J10: 6 | O10: Z/N | P10: 0 | Q10: 1 | R10: 2 | S10: 3 | T10: 4 | U10: 5 | V10: 6
C15: A | D15: MeV
C16: 1 | D16: 10.8
C17: 2 | D17: 14.5
C18: 3 | D18: 17.1
C19: 3 | D19: 38.3
C20: 4 | D20: 43.3

Sheet Calculation1
A1: mp | B1: 938.2720813 | G1: A | H1: Z | I1: Sysmbol | J1: index | K1: Binding energy | L1: N | M1: Mass (MeV/c^2) | P1: =Reaction1!C24 -> 0
A2: mn | B2: 939.5654133 | E2: BEAM | F2: =Reaction1!C7 -> 15C | G2: =IF(F2="n",1,IF(F2="p",1,IF(F2="d",2,IF(F2="t",3,IF(F2="a",4,SUBSTITUTE(F2,I2,"")))))) -> 15 | H2: =VLOOKUP(I2,MASS2020!$D$3:$E$3800,2,FALSE) -> 6 | I2: =IF(F2="n","nn",IF(OR(F2="p",F2="d",F2="t"),"H",IF(F2="a","He",SUBSTITUTE(SUBSTITUTE(SUBSTITUTE(SUBSTITUTE(SUBSTITUTE(SUBSTITUTE(SUBSTITUTE(SUBSTITUTE(SUBSTITUTE(SUBSTITUTE(F2,"0",""),"1",""),"2",""),"3",""),"4",""),"5",""),"6",""),"7",""),"8",""),"9","")))) -> C | J2: =G2+10000*H2 -> 60015 | K2: =VLOOKUP(J2,MASS2020!$A$3:$I$3800, 9, FALSE)/1000*G2 -> 106.502544 | L2: =G2-H2 -> 9 | M2: =H2*$B$1+L2*$B$2-K2 + K11 -> 13979.21866 | P2: =POWER(K16*SIN(P1*PI()/180),2) -> 0 | Q2: 2*rho-> | R2: =Reaction1!G35 -> -1 | S2: =IF(G33="", NA(), G33) -> 12.74425609 | T2: =IF(M33="", NA(), M33) -> 2.124042682 | U2: =IF(G34="", NA(), G34) ->  | V2: =IF(M34="", NA(), M34) ->  | W2: =IF(G35="", NA(), G35) -> 13.80496994 | X2: =IF(M35="", NA(), M35) -> 2.300828323 | Y2: =IF(G36="", NA(), G36) -> 13.64098869 | Z2: =IF(M36="", NA(), M36) -> 2.273498114 | AA2: =IF(G37="", NA(), G37) -> 12.53673624 | AB2: =IF(M37="", NA(), M37) -> 2.08945604 | AE2: is n-loop | AF2: =Reaction1!C26 -> off
A3: c | B3: 299792458 | E3: TARGET | F3: =Reaction1!C8 -> d | G3: =IF(F3="n",1,IF(F3="p",1,IF(F3="d",2,IF(F3="t",3,IF(F3="a",4,SUBSTITUTE(F3,I3,"")))))) -> 2 | H3: =VLOOKUP(I3,MASS2020!$D$3:$E$3800,2,FALSE) -> 1 | I3: =IF(F3="n","nn",IF(OR(F3="p",F3="d",F3="t"),"H",IF(F3="a","He",SUBSTITUTE(SUBSTITUTE(SUBSTITUTE(SUBSTITUTE(SUBSTITUTE(SUBSTITUTE(SUBSTITUTE(SUBSTITUTE(SUBSTITUTE(SUBSTITUTE(F3,"0",""),"1",""),"2",""),"3",""),"4",""),"5",""),"6",""),"7",""),"8",""),"9","")))) -> H | J3: =G3+10000*H3 -> 10002 | K3: =VLOOKUP(J3,MASS2020!$A$3:$I$3800, 9, FALSE)/1000*G3 -> 2.2245662 | L3: =G3-H3 -> 1 | M3: =H3*$B$1+L3*$B$2-K3 -> 1875.612928 | P3: =M4*M4*(1-P2) -> 880354.4985 | Q3: z0-> | R3: =Reaction1!G36 -> 1 | S3: =IF(E33="", NA(),E33) -> -0.5899584779 | T3: =IF(L33="", NA(),2*L33) -> 3.304263599 | U3: =IF(E34="", NA(),E34) ->  | V3: =IF(L34="", NA(), L34*2) ->  | W3: =IF(E35="", NA(),E35) -> -0.4756433318 | X3: =IF(L35="", NA(), L35*2) -> 3.28484139 | Y3: =IF(E36="", NA(),E36) -> -0.3530199901 | Z3: =IF(L36="", NA(), L36*2) -> 3.264002154 | AA3: =IF(E37="", NA(),E37) -> -0.5621238579 | AB3: =IF(L37="", NA(), L37*2) -> 3.299519449 | AD3: =K21 -> 1.163118184 | AE3: n | AF3: =Reaction1!R23 -> 1
A4: eV | B4: 1.60217646e-19 | E4: LIGHT | F4: =Reaction1!C9 -> p | G4: =IF(F4="n",1,IF(F4="p",1,IF(F4="d",2,IF(F4="t",3,IF(F4="a",4,SUBSTITUTE(F4,I4,"")))))) -> 1 | H4: =VLOOKUP(I4,MASS2020!$D$3:$E$3800,2,FALSE) -> 1 | I4: =IF(F4="n","nn",IF(OR(F4="p",F4="d",F4="t"),"H",IF(F4="a","He",SUBSTITUTE(SUBSTITUTE(SUBSTITUTE(SUBSTITUTE(SUBSTITUTE(SUBSTITUTE(SUBSTITUTE(SUBSTITUTE(SUBSTITUTE(SUBSTITUTE(F4,"0",""),"1",""),"2",""),"3",""),"4",""),"5",""),"6",""),"7",""),"8",""),"9","")))) -> H | J4: =G4+10000*H4 -> 10001 | K4: =VLOOKUP(J4,MASS2020!$A$3:$I$3800, 9, FALSE)/1000*G4 -> 0 | L4: =G4-H4 -> 0 | M4: =H4*$B$1+L4*$B$2-K4 -> 938.2720813 | R4: =(R3-R2)/400 -> 0.005 | AD4: =(AD18-AD3)/12 -> 0.3197401513 | AE4: eff-n | AF4: =IF(AF2="on", AF3, 1) -> 1
A5: MeV | B5: 1.60217646e-13 | E5: HEAVY | F5: =G5&I5 -> 16C | G5: =G2+G3-G4 -> 16 | H5: =H2+H3-H4 -> 6 | I5: =VLOOKUP(J5, MASS2020!A3:D3800, 4, FALSE) -> C | J5: =G5+10000*H5 -> 60016 | K5: =VLOOKUP(J5,MASS2020!$A$3:$I$3800, 9, FALSE)/1000*G5 -> 110.7528736 | L5: =G5-H5 -> 10 | M5: =H5*$B$1+L5*$B$2-K5 -> 14914.53375 | O5: thetaCM = 0 | P5: ="thetaCM="&P1 -> thetaCM=0 | Q5: Bore radius Boundary | R5: z [m] | S5: Rb(Ex1) | T5: RB(Ex1) | U5: Rb(Ex2) | V5: RB(Ex2) | W5: Rb(Ex3) | X5: RB(Ex3) | Y5: Rb(Ex4) | Z5: RB(Ex4) | AA5: Rb(Ex5) | AB5: RB(Ex5) | AD5: thetaCM | AE5: e | AF5: z(Ex1) | AG5: z0(Ex1) | AH5: e | AI5: z(Ex2) | AJ5: e | AK5: z(Ex3) | AL5: e | AM5: z(Ex4) | AN5: e | AO5: z(Ex5)
A6: amu | B6: 1.66053886e-27 | E6: =IF( G2-G5 > 0, "Removal", IF( G2-G5 < 0, "Adding", "Inelastic")) -> Adding | F6: =IF(G6=0, "",IF( I6="nn", "n", IF(G6&I6 = "1H", "p", IF(G6&I6 = "2H", "d", IF(G6&I6="3H", "t", IF(G6&I6="4He", "a", G6&I6)))))) -> n | G6: =ABS(G2-G5) -> 1 | H6: =ABS(H2-H5) -> 0 | I6: =IF(ISNA(I7), IF( G6=1, IF(H6=1, "p","n"), ""), I7) -> nn | J6: =G6+10000*H6 -> 1 | L6: Q-value | M6: =M2+M3-M4-M5 -> 2.0257634 | O6: =(SQRT($K$18*$K$18*R6*R6*1000000+$M$4*$M$4))-$M$4 -> 4.840209161 | P6: =(COS($P$1*PI()/180)*SQRT($K$18*$K$18*R6*R6*1000000+$P$3)-$P$2*$K$17*R6*1000)/(1-$P$2)-$M$4 -> 4.840209161 | Q6: =SQRT((R6*R6+PI()*PI()*$F$18*$F$18)*$K$18*$K$18*1000000+$M$4*$M$4) - $M$4 -> 14.95621376 | R6: =R2 -> -1 | S6: =IF( AND($R6/S$3>= 0, $R6/S$3<=$K$31),S$2*ABS(SIN($R6/S$3*PI()))*$K$30,#N/A) ->  | T6: =IF( AND($R6/T$3>0,$R6/T$3<=$K$31),T$2*ABS(SIN($R6/T$3*PI()))*$K$30,#N/A) ->  | U6: =IF( AND($R6/U$3>= 0, $R6/U$3<=$K$31),U$2*ABS(SIN($R6/U$3*PI()))*$K$30,#N/A) ->  | V6: =IF( AND($R6/V$3>0,$R6/V$3<=$K$31),V$2*ABS(SIN($R6/V$3*PI()))*$K$30,#N/A) ->  | W6: =IF( AND($R6/W$3>= 0, $R6/W$3<=$K$31),W$2*ABS(SIN($R6/W$3*PI()))*$K$30,#N/A) ->  | X6: =IF( AND($R6/X$3>0,$R6/X$3<=$K$31),X$2*ABS(SIN($R6/X$3*PI()))*$K$30,#N/A) ->  | Y6: =IF( AND($R6/Y$3>= 0, $R6/Y$3<=$K$31),Y$2*ABS(SIN($R6/Y$3*PI()))*$K$30,#N/A) ->  | Z6: =IF( AND($R6/Z$3>0,$R6/Z$3<=$K$31),Z$2*ABS(SIN($R6/Z$3*PI()))*$K$30,#N/A) ->  | AA6: =IF( AND($R6/AA$3>= 0, $R6/AA$3<=$K$31),AA$2*ABS(SIN($R6/AA$3*PI()))*$K$30,#N/A) ->  | AB6: =IF( AND($R6/AB$3>0,$R6/AB$3<=$K$31),AB$2*ABS(SIN($R6/AB$3*PI()))*$K$30,#N/A) ->  | AD6: =AD3 -> 1.163118184 | AE6: =IF( $K$10 < AD6, $K$16*$I$23-$M$4-$K$16*$K$15*$H$23*COS($AD6*PI()/180), #N/A) -> 1.964150942 | AF6: =IF(ABS(PI()*$K$18*$F$17*1000/$H$23/SIN($AD6*PI()/180))<1, $AF$4* ($K$16*$K$15*$I$23-$K$16*$H$23*COS($AD6*PI()/180))/$K$18/1000*(1-ASIN(PI()*$K$18*$F$17*1000/$H$23/SIN($AD6*PI()/180))/PI()), #N/A) ->  | AG6: =IF($K$9=1, $AF$4*($K$16*$K$15*$I$23-$K$16*$H$23*COS($AD6*PI()/180))/$K$18/1000,#N/A) ->  | AH6: =IF( $K$10 < AD6, $K$16*$I$24-$M$4-$K$16*$K$15*$H$24*COS($AD6*PI()/180), #N/A) ->  | AI6: =IF(ABS(PI()*$K$18*$F$17*1000/$H$24/SIN($AD6*PI()/180))<1, $AF$4*($K$16*$K$15*$I$24-$K$16*$H$24*COS($AD6*PI()/180))/$K$18/1000*(1-ASIN(PI()*$K$18*$F$17*1000/$H$24/SIN($AD6*PI()/180))/PI()), #N/A) ->  | AJ6: =IF( $K$10 > AD6, #N/A, $K$16*$I$25-$M$4-$K$16*$K$15*$H$25*COS($AD6*PI()/180)) -> 1.382022701 | AK6: =IF(ABS(PI()*$K$18*$F$17*1000/$H$25/SIN($AD6*PI()/180))<1,$AF$4* ($K$16*$K$15*$I$25-$K$16*$H$25*COS($AD6*PI()/180))/$K$18/1000*(1-ASIN(PI()*$K$18*$F$17*1000/$H$25/SIN($AD6*PI()/180))/PI()), #N/A) ->  | AL6: =IF( $K$10 > AD6, #N/A, $K$16*$I$26-$M$4-$K$16*$K$15*$H$26*COS($AD6*PI()/180)) -> 0.8334936744 | AM6: =IF(ABS(PI()*$K$18*$F$17*1000/$H$26/SIN($AD6*PI()/180))<1, $AF$4* ($K$16*$K$15*$I$26-$K$16*$H$26*COS($AD6*PI()/180))/$K$18/1000*(1-ASIN(PI()*$K$18*$F$17*1000/$H$26/SIN($AD6*PI()/180))/PI()), #N/A) ->  | AN6: =IF( $K$10 > AD6, #N/A, $K$16*$I$27-$M$4-$K$16*$K$15*$H$27*COS($AD6*PI()/180)) -> 1.791998361 | AO6: =IF(ABS(PI()*$K$18*$F$17*1000/$H$27/SIN($AD6*PI()/180))<1, $AF$4*($K$16*$K$15*$I$27-$K$16*$H$27*COS($AD6*PI()/180))/$K$18/1000*(1-ASIN(PI()*$K$18*$F$17*1000/$H$27/SIN($AD6*PI()/180))/PI()), #N/A) -> 
A7: PI | B7: 3.14159265 | I7: =VLOOKUP(J6, MASS2020!A3:D3800, 4, FALSE) -> nn | L7: min KE/A | M7: =(POWER(M4+M5,2)-POWER(M2+M3,2))/2/M3/G2 -> -1.141532108 | O7: 4.792050739 | P7: 4.792050739 | Q7: =SQRT((R7*R7+PI()*PI()*$F$18*$F$18)*$K$18*$K$18*1000000+$M$4*$M$4) - $M$4 -> 14.90856644 | R7: =R6+$R$4 -> -0.995 | S7: =IF( AND($R7/S$3>= 0, $R7/S$3<=$K$31),S$2*ABS(SIN($R7/S$3*PI()))*$K$30,#N/A) ->  | T7: =IF( AND($R7/T$3>0,$R7/T$3<=$K$31),T$2*ABS(SIN($R7/T$3*PI()))*$K$30,#N/A) ->  | U7: =IF( AND($R7/U$3>= 0, $R7/U$3<=$K$31),U$2*ABS(SIN($R7/U$3*PI()))*$K$30,#N/A) ->  | V7: =IF( AND($R7/V$3>0,$R7/V$3<=$K$31),V$2*ABS(SIN($R7/V$3*PI()))*$K$30,#N/A) ->  | W7: =IF( AND($R7/W$3>= 0, $R7/W$3<=$K$31),W$2*ABS(SIN($R7/W$3*PI()))*$K$30,#N/A) ->  | X7: =IF( AND($R7/X$3>0,$R7/X$3<=$K$31),X$2*ABS(SIN($R7/X$3*PI()))*$K$30,#N/A) ->  | Y7: =IF( AND($R7/Y$3>= 0, $R7/Y$3<=$K$31),Y$2*ABS(SIN($R7/Y$3*PI()))*$K$30,#N/A) ->  | Z7: =IF( AND($R7/Z$3>0,$R7/Z$3<=$K$31),Z$2*ABS(SIN($R7/Z$3*PI()))*$K$30,#N/A) ->  | AA7: =IF( AND($R7/AA$3>= 0, $R7/AA$3<=$K$31),AA$2*ABS(SIN($R7/AA$3*PI()))*$K$30,#N/A) ->  | AB7: =IF( AND($R7/AB$3>0,$R7/AB$3<=$K$31),AB$2*ABS(SIN($R7/AB$3*PI()))*$K$30,#N/A) ->  | AD7: =AD6+AD$4 -> 1.482858336 | AE7: 1.966682238 | AF7: =IF(ABS(PI()*$K$18*$F$17*1000/$H$23/SIN($AD7*PI()/180))<1, $AF$4* ($K$16*$K$15*$I$23-$K$16*$H$23*COS($AD7*PI()/180))/$K$18/1000*(1-ASIN(PI()*$K$18*$F$17*1000/$H$23/SIN($AD7*PI()/180))/PI()), #N/A) -> -0.4529326405 | AG7: =IF($K$9=1, $AF$4*($K$16*$K$15*$I$23-$K$16*$H$23*COS($AD7*PI()/180))/$K$18/1000,#N/A) ->  | AH7: =IF( $K$10 < AD7, $K$16*$I$24-$M$4-$K$16*$K$15*$H$24*COS($AD7*PI()/180), #N/A) ->  | AI7: =IF(ABS(PI()*$K$18*$F$17*1000/$H$24/SIN($AD7*PI()/180))<1, $AF$4*($K$16*$K$15*$I$24-$K$16*$H$24*COS($AD7*PI()/180))/$K$18/1000*(1-ASIN(PI()*$K$18*$F$17*1000/$H$24/SIN($AD7*PI()/180))/PI()), #N/A) ->  | AJ7: =IF( $K$10 > AD7, #N/A, $K$16*$I$25-$M$4-$K$16*$K$15*$H$25*COS($AD7*PI()/180)) -> 1.384405874 | AK7: =IF(ABS(PI()*$K$18*$F$17*1000/$H$25/SIN($AD7*PI()/180))<1,$AF$4* ($K$16*$K$15*$I$25-$K$16*$H$25*COS($AD7*PI()/180))/$K$18/1000*(1-ASIN(PI()*$K$18*$F$17*1000/$H$25/SIN($AD7*PI()/180))/PI()), #N/A) -> -0.3656145194 | AL7: =IF( $K$10 > AD7, #N/A, $K$16*$I$26-$M$4-$K$16*$K$15*$H$26*COS($AD7*PI()/180)) -> 0.8357048548 | AM7: =IF(ABS(PI()*$K$18*$F$17*1000/$H$26/SIN($AD7*PI()/180))<1, $AF$4* ($K$16*$K$15*$I$26-$K$16*$H$26*COS($AD7*PI()/180))/$K$18/1000*(1-ASIN(PI()*$K$18*$F$17*1000/$H$26/SIN($AD7*PI()/180))/PI()), #N/A) -> -0.2664832881 | AN7: =IF( $K$10 > AD7, #N/A, $K$16*$I$27-$M$4-$K$16*$K$15*$H$27*COS($AD7*PI()/180)) -> 1.794488438 | AO7: =IF(ABS(PI()*$K$18*$F$17*1000/$H$27/SIN($AD7*PI()/180))<1, $AF$4*($K$16*$K$15*$I$27-$K$16*$H$27*COS($AD7*PI()/180))/$K$18/1000*(1-ASIN(PI()*$K$18*$F$17*1000/$H$27/SIN($AD7*PI()/180))/PI()), #N/A) -> -0.4284632256
O8: 4.744131271 | P8: =(COS($P$1*PI()/180)*SQRT($K$18*$K$18*R8*R8*1000000+$P$3)-$P$2*$K$17*R8*1000)/(1-$P$2)-$M$4 -> 4.744131271 | Q8: 14.86115558 | R8: =R7+$R$4 -> -0.99 | AD8: =AD7+AD$4 -> 1.802598487 | AE8: 1.969825146 | AF8: -0.4932174178 | AJ8: 1.387364871 | AK8: -0.4043357498 | AL8: 0.8384503016 | AM8: -0.3036391093 | AN8: 1.79758017 | AO8: -0.468312546
E9: =F6&IF(G6=0, "","-")&E6 -> n-Adding | J9: show infinite line | K9: =IF(Reaction1!C23="on",1,0) -> 0 | O9: 4.696450794 | P9: 4.696450794 | Q9: 14.81398124 | R9: -0.985 | AD9: 2.122338638 | AE9: 1.97357957 | AF9: -0.5174572066 | AJ9: 1.390899599 | AK9: -0.4267391202 | AL9: 0.8417299295 | AM9: -0.3234958058 | AN9: 1.801273458 | AO9: -0.4920687812
E10: =F2&"("&F3&","&F4&")"&F5 -> 15C(d,p)16C | J10: thetaCM limit | K10: =Reaction1!C25 -> 0 | L10: deg | O10: 4.649009344 | P10: 4.649009344 | Q10: 14.76704343 | R10: -0.98 | AD10: 2.44207879 | AE10: 1.977945391 | AF10: -0.5340046359 | AJ10: 1.395009949 | AK10: -0.4418157394 | AL10: 0.8455436361 | AM10: -0.3365398942 | AN10: 1.805568189 | AO10: -0.5082287632
J11: Ex A | K11: =Reaction1!C13 -> 0 | L11: MeV | O11: 4.601806958 | P11: =(COS($P$1*PI()/180)*SQRT($K$18*$K$18*R11*R11*1000000+$P$3)-$P$2*$K$17*R11*1000)/(1-$P$2)-$M$4 -> 4.601806958 | Q11: 14.7203422 | R11: -0.975 | AD11: 2.761818941 | AE11: 1.982922475 | AF11: -0.5460693224 | AJ11: 1.399695791 | AK11: -0.4527244942 | AL11: 0.8498913029 | AM11: -0.3458620724 | AN11: 1.810464229 | AO11: -0.5199884576
E12: Beam Energy /A | F12: =Reaction1!C15 -> 8 | G12: MeV/u | J12: k_beam_Lab | K12: =SQRT(POWER(M2+F13,2)-POWER(M2,2)) -> 1835.595947 | L12: MeV/c | O12: 4.554843672 | P12: 4.554843672 | Q12: 14.67387757 | R12: -0.97 | AD12: 3.081559092 | AE12: 1.988510665 | AF12: -0.5552352495 | AJ12: 1.404956982 | AK12: -0.4609708224 | AL12: 0.8547727943 | AM12: -0.3528518987 | AN12: 1.815961425 | AO12: -0.528911484
E13: Beam Energy | F13: =F12*G2 -> 120 | G13: MeV | J13: E_tot_cm | K13: =SQRT(POWER(M2+M3,2)+2*M3*F13) -> 15869.02114 | L13: MeV | O13: 4.50811952 | P13: 4.50811952 | Q13: 14.62764959 | R13: -0.965 | AD13: 3.401299243 | AE13: 1.994709789 | AF13: -0.5623949001 | AJ13: 1.410793355 | AK13: -0.4673874491 | AL13: 0.8601879584 | AM13: -0.358255874 | AN13: 1.822059606 | AO13: -0.5358747639
J14: KE_tot_cm | K14: =K13-M2-M3 -> 14.18954711 | O14: 4.461634539 | P14: 4.461634539 | Q14: 14.5816583 | R14: -0.96 | AD14: 3.721039395 | AE14: 2.001519653 | AF14: -0.5680959577 | AJ14: 1.41720473 | AK14: -0.4724796825 | AL14: 0.8661366265 | AM14: -0.3625192185 | AN14: 1.828758582 | AO14: -0.5414148974
E15: B-field | F15: =Reaction1!C18 -> 2 | G15: T | J15: beta_cm | K15: =K12/(M2+M3+F13) -> 0.1149054959 | O15: 4.415388764 | P15: 4.415388764 | Q15: 14.53590371 | R15: -0.955 | AD15: 4.040779546 | AE15: 2.008940044 | AF15: -0.5726955873 | AJ15: 1.424190908 | AK15: -0.4765746088 | AL15: 0.8726186134 | AM15: -0.3659268935 | AN15: 1.836058144 | AO15: -0.5458811566
J16: gamm_cm | K16: =1/SQRT(1-K15*K15) -> 1.006667737 | O16: 4.36938223 | P16: 4.36938223 | Q16: 14.49038587 | R16: -0.95 | AD16: 4.360519697 | AE16: 2.016970733 | AF16: -0.5764376885 | AJ16: 1.43175167 | AK16: -0.4798944209 | AL16: 0.8796337172 | AM16: -0.3686709653 | AN16: 1.843958066 | AO16: -0.5495117311
E17: radius | F17: =Reaction1!C20 -> 0.0115 | G17: m | J17: e-z slope | K17: =F15*B3*H4*K15/2/B7/1000000000 -> 0.01096507565 | L17: (MeV/mm) | O17: =(SQRT($K$18*$K$18*R17*R17*1000000+$M$4*$M$4))-$M$4 -> 4.323614973 | P17: 4.323614973 | Q17: 14.44510481 | R17: -0.945 | AD17: 4.680259849 | AE17: 2.025611468 | AF17: -0.5794949829 | AJ17: 1.439886781 | AK17: -0.4825958653 | AL17: 0.8871817194 | AM17: -0.3708861573 | AN17: 1.852458101 | AO17: -0.5524751325
E18: bore | F18: =Reaction1!C21 -> 0.462 | G18: m | J18: alpha=slope/beta_cm | K18: =K17/K15 -> 0.09542690329 | O18: 4.278087027 | P18: 4.278087027 | Q18: 14.40006057 | R18: -0.94 | AD18: 5 | AE18: 2.034861981 | AF18: -0.5819934606 | AJ18: 1.448595987 | AK18: -0.4847929455 | AL18: 0.895262385 | AM18: -0.3726700357 | AN18: 1.861557984 | AO18: -0.5548941872
J19: G | K19: =K18*K15*K16*F17*1000 -> 0.1269391607 | L19: (MeV) | O19: 4.232798426 | P19: 4.232798426 | Q19: 14.35525317 | R19: -0.935 | AD19: 6 | AE19: 2.067725861 | AF19: -0.5871172736 | AJ19: 1.479536793 | AK19: -0.4892359137 | AL19: 0.9239702011 | AM19: -0.3761698848 | AN19: 1.893886728 | AO19: -0.5598392944
H20: k_cm(Ex=0) | J20: alpha_B | K20: =K18*H5/H4 -> 0.5725614198 | O20: 4.187749206 | P20: 4.187749206 | Q20: 14.31068266 | R20: -0.93 | AD20: 7 | AE20: 2.10654132 | AF20: -0.5893645355 | AJ20: 1.516080912 | AK20: -0.4910786117 | AL20: 0.9578769414 | AM20: -0.3774351872 | AN20: 1.932070139 | AO20: -0.5619815834
E21: max Ex | F21: =K14+M6 -> 16.21531051 | G21: MeV | H21: =SQRT(($K$13*$K$13-POWER($M$4+$M$5,2))*($K$13*$K$13-POWER($M$4-$M$5,2)))/2/$K$13 -> 169.8428074 | J21: min(θcm) | K21: =ASIN(F17*1000*PI()*K18/H21)*180/PI() -> 1.163118184 | L21: deg | O21: 4.1429394 | P21: 4.1429394 | Q21: 14.26634907 | R21: -0.925 | AD21: 8 | AE21: 2.151296534 | AF21: -0.5896278106 | AJ21: 1.558217214 | AK21: -0.4911220933 | AL21: 0.9969722775 | AM21: -0.3771433762 | AN21: 1.976096586 | AO21: -0.5621893629
H22: k_cm | I22: E_light_cm | J22: intercept | O22: 4.098369043 | P22: 4.098369043 | Q22: 14.22225242 | R22: -0.92 | AD22: 9 | AE22: 2.20197787 | AF22: -0.5883959147 | AJ22: 1.605932862 | AK22: -0.4898041613 | AL22: 1.041244301 | AM22: -0.3756636154 | AN22: 2.025952657 | AO22: -0.5609379121
E23: Ex1 | F23: =IF(Reaction1!G25="", #N/A, Reaction1!G25) -> 0 | G23: MeV | H23: =IF(F23="","",SQRT(($K$13*$K$13-POWER($M$4+$M$5+F23,2))*($K$13*$K$13-POWER($M$4-$M$5-F23,2)))/2/$K$13) -> 169.8428074 | I23: =SQRT(H23*H23+$M$4*$M$4) -> 953.5203604 | J23: =I23/$K$16-$M$4 -> 8.932568039 | O23: 4.054038169 | P23: 4.054038169 | Q23: 14.17839275 | R23: -0.915 | AD23: 10 | AE23: 2.25856989 | AF23: -0.5859598786 | AJ23: 1.659213323 | AK23: -0.4873851586 | AL23: 1.090679525 | AM23: -0.3732150648 | AN23: 2.081623166 | AO23: -0.5585101121
E24: Ex2 | F24: =IF(Reaction1!G26="", #N/A, Reaction1!G26) ->  | G24: MeV | H24: =IF(F24="","",SQRT(($K$13*$K$13-POWER($M$4+$M$5+F24,2))*($K$13*$K$13-POWER($M$4-$M$5-F24,2)))/2/$K$13) ->  | I24: =SQRT(H24*H24+$M$4*$M$4) ->  | J24: =I24/$K$16-$M$4 ->  | O24: 4.009946812 | P24: 4.009946812 | Q24: 14.13477009 | R24: -0.91 | AD24: 11 | AE24: 2.321055355 | AF24: -0.5825043253 | AJ24: 1.718042367 | AK24: -0.4840301249 | AL24: 1.145262893 | AM24: -0.3699365344 | AN24: 2.143091156 | AO24: -0.5550853822
E25: Ex3 | F25: =IF(Reaction1!G27="", #N/A, Reaction1!G27) -> 1.83 | G25: MeV | H25: =IF(F25="","",SQRT(($K$13*$K$13-POWER($M$4+$M$5+F25,2))*($K$13*$K$13-POWER($M$4-$M$5-F25,2)))/2/$K$13) -> 159.9042245 | I25: 951.8003255 | J25: =I25/$K$16-$M$4 -> 7.223925851 | O25: 3.966095005 | P25: 3.966095005 | Q25: 14.09138449 | R25: -0.905 | AD25: 12 | AE25: 2.389415233 | AF25: -0.5781524328 | AJ25: 1.782402073 | AK25: -0.479849136 | AL25: 1.204977777 | AM25: -0.3659205796 | AN25: 2.210337902 | AO25: -0.5507834174
E26: Ex4 | F26: =IF(Reaction1!G28="", #N/A, Reaction1!G28) -> 3.82 | G26: MeV | H26: =IF(F26="","",SQRT(($K$13*$K$13-POWER($M$4+$M$5+F26,2))*($K$13*$K$13-POWER($M$4-$M$5-F26,2)))/2/$K$13) -> 148.3639805 | I26: 949.9296654 | J26: =I26/$K$16-$M$4 -> 5.365656251 | O26: 3.922482781 | P26: 3.922482781 | Q26: 14.04823596 | R26: -0.9 | AD26: 13 | AE26: 2.463628699 | AF26: -0.5729898753 | AJ26: 1.852272837 | AK26: -0.474918752 | AL26: 1.269805988 | AM26: -0.3612315903 | AN26: 2.28334292 | AO26: -0.5456874677
E27: Ex5 | F27: =IF(Reaction1!G29="", #N/A, Reaction1!G29) -> 0.52 | G27: MeV | H27: =IF(F27="","",SQRT(($K$13*$K$13-POWER($M$4+$M$5+F27,2))*($K$13*$K$13-POWER($M$4-$M$5-F27,2)))/2/$K$13) -> 167.0771886 | I27: 953.0316288 | J27: =I27/$K$16-$M$4 -> 8.447073547 | O27: 3.879110174 | P27: 3.879110174 | Q27: 14.00532454 | R27: -0.895 | AD27: 14 | AE27: 2.543673148 | AF27: -0.5670783927 | AJ27: 1.927633377 | AK27: -0.4692941601 | AL27: 1.339727777 | AM27: -0.3559160168 | AN27: 2.362083974 | AO27: -0.5398575293
O28: 3.835977217 | P28: 3.835977217 | Q28: 13.96265027 | R28: -0.89 | AD28: 15 | AE28: 2.629524198 | AF28: -0.5604638823 | AJ28: 2.008460735 | AK28: -0.46301641 | AL28: 1.414721848 | AM28: -0.3500084557 | AN28: 2.446537076 | AO28: -0.5333382089
O29: 3.793083943 | P29: 3.793083943 | Q29: 13.92021317 | R29: -0.885 | AD29: 16 | AE29: 2.721155696 | AF29: -0.5531814316 | AJ29: 2.094730292 | AK29: -0.4561169112 | AL29: 1.494765354 | AM29: -0.3435354297 | AN29: 2.536676502 | AO29: -0.5261636144
J30: Recoil y-scale | K30: 1 | O30: 3.750430385 | P30: 3.750430385 | Q30: 13.87801328 | R30: -0.88 | AD30: 17 | AE30: 2.818539733 | AF30: -0.545258563 | AJ30: 2.186415769 | AK30: -0.4486203309 | AL30: 1.579833916 | AM30: -0.3365178206 | AN30: 2.632474795 | AO30: -0.5183605066
J31: # of cycle | K31: =Reaction1!R23 -> 1 | O31: 3.708016575 | P31: 3.708016575 | Q31: 13.83605062 | R31: -0.875 | AD31: 18 | AE31: 2.921646643 | AF31: -0.5367173892 | AJ31: 2.283489238 | AK31: -0.4405465187 | AL31: 1.669901619 | AM31: -0.3289724855 | AN31: 2.733902773 | AO31: -0.5099503944
B32: CM | C32: Eb[MeV] | E32: Zb0[m] | F32: Zb[m] | G32: 2ρ[cm] | H32: θbLab [deg] | I32: Tcyc [ns] | J32: EB[MeV] | K32: θBLab [deg] | L32: ZB0/2[m] | M32: 2ρB[cm] | O32: 3.665842546 | P32: 3.665842546 | Q32: 13.79432524 | R32: -0.87 | AD32: 19 | AE32: 3.030445018 | AF32: -0.5275760848 | AJ32: 2.385921129 | AK32: -0.43191182 | AL32: 1.764941028 | AM32: -0.320913358 | AN32: 2.840929541 | AO32: -0.5009509639
A33: Ex1 | B33: =IF(OR(ISNA(F23),Reaction1!H25 = ""), #N/A, Reaction1!H25) -> 13 | C33: =IF( ISNA(B33), "", $K$16*SQRT($M$4*$M$4+$H23*$H23)-$K$16*$K$15*$H23*COS($B33*PI()/180)-$M$4) -> 2.463628699 | E33: =IF( OR(ISNA(F23), ISNA(B33)),"",($K$16*$K$15*SQRT($M$4*$M$4+$H23*$H23)-$K$16*$H23*COS($B33*PI()/180))/$K$18/1000) -> -0.5899584779 | F33: =IF( ISNA(B33), "",E33*(1-ASIN($F$17*100/G33/2)/PI())) -> -0.5814828402 | G33: =IF( ISNA(B33), "", 2*$H23*SIN(B33*PI()/180)/$B$3/$H$4/$F$15*100000000) -> 12.74425609 | H33: =IF( ISNA(B33), "", ATAN($H23*SIN($B33*PI()/180)/($K$16*$K$15*SQRT($M$4*$M$4+$H23*$H23)-$K$16*$H23*COS($B33*PI()/180)))*180/PI()) -> -34.16259681 | I33: =IF($C33="","",($M$4+$C33)/$K$18/$B$3*1000000) -> 32.88335313 | J33: =IF(C33="", "", $K$16*SQRT($M$5*$M$5+$H23*$H23)+$K$16*$K$15*$H23*COS($B33*PI()/180)-$M$5) -> 119.5621347 | K33: =IF( ISNA(B33), "", ATAN($H23*SIN($B33*PI()/180)/($K$16*$K$15*SQRT($M$5*$M$5+$H23*$H23)+$K$16*$H23*COS($B33*PI()/180)))*180/PI()) -> 1.156916538 | L33: =IF( ISNA(B33), "",($K$16*$K$15*SQRT($M$5*$M$5+$H23*$H23)+$K$16*$H23*COS($B33*PI()/180))/$K$20/2/1000) -> 1.652131799 | M33: =IF(ISNA(B33),"",$H23*SIN($B33*PI()/180)/$B$3/$F$15/$H$5*1000000*100*2) -> 2.124042682 | O33: 3.623908329 | P33: 3.623908329 | Q33: 13.75283716 | R33: -0.865 | AD33: 20 | AE33: 3.144901719 | AF33: -0.5178499137 | AJ33: 2.49368024 | AK33: -0.4227299925 | AL33: 1.864923194 | AM33: -0.3123522171 | AN33: 2.953522498 | AO33: -0.4913770761
A34: Ex2 | B34: =IF(OR(ISNA(F24),Reaction1!H26 = ""), #N/A, Reaction1!H26) ->  | C34: =IF( ISNA(B34), "", $K$16*SQRT($M$4*$M$4+$H24*$H24)-$K$16*$K$15*$H24*COS($B34*PI()/180)-$M$4) ->  | E34: =IF( OR(ISNA(F24), ISNA(B34)),"",($K$16*$K$15*SQRT($M$4*$M$4+$H24*$H24)-$K$16*$H24*COS($B34*PI()/180))/$K$18/1000) ->  | F34: =IF( ISNA(B34), "",E34*(1-ASIN($F$17*100/G34/2)/PI())) ->  | G34: =IF( ISNA(B34), "", 2*$H24*SIN(B34*PI()/180)/$B$3/$H$4/$F$15*100000000) ->  | H34: =IF( ISNA(B34), "", ATAN($H24*SIN($B34*PI()/180)/($K$16*$K$15*SQRT($M$4*$M$4+$H24*$H24)-$K$16*$H24*COS($B34*PI()/180)))*180/PI()) ->  | I34: =IF($C34="","",($M$4+$C34)/$K$18/$B$3*1000000) ->  | J34: =IF(C34="", "", $K$16*SQRT($M$5*$M$5+$H24*$H24)+$K$16*$K$15*$H24*COS($B34*PI()/180)-$M$5) ->  | K34: =IF( ISNA(B34), "", ATAN($H24*SIN($B34*PI()/180)/($K$16*$K$15*SQRT($M$5*$M$5+$H24*$H24)+$K$16*$H24*COS($B34*PI()/180)))*180/PI()) ->  | L34: =IF( ISNA(B34), "",($K$16*$K$15*SQRT($M$5*$M$5+$H24*$H24)+$K$16*$H24*COS($B34*PI()/180))/$K$20/2/1000) ->  | M34: =IF(ISNA(B34),"",$H24*SIN($B34*PI()/180)/$B$3/$F$15/$H$5*1000000*100*2) ->  | O34: 3.582213957 | P34: 3.582213957 | Q34: 13.7115864 | R34: -0.86 | AD34: 21 | AE34: 3.26498188 | AF34: -0.5075519616 | AJ34: 2.606733747 | AK34: -0.4130128595 | AL34: 1.96981766 | AM34: -0.303299235 | AN34: 3.071647345 | AO34: -0.4812414785
A35: Ex3 | B35: =IF(OR(ISNA(F25),Reaction1!H27 = ""), #N/A, Reaction1!H27) -> 15 | C35: =IF( ISNA(B35), "", $K$16*SQRT($M$4*$M$4+$H25*$H25)-$K$16*$K$15*$H25*COS($B35*PI()/180)-$M$4) -> 2.008460735 | E35: -0.4756433318 | F35: -0.4693353625 | G35: =IF( ISNA(B35), "", 2*$H25*SIN(B35*PI()/180)/$B$3/$H$4/$F$15*100000000) -> 13.80496994 | H35: =IF( ISNA(B35), "", ATAN($H25*SIN($B35*PI()/180)/($K$16*$K$15*SQRT($M$4*$M$4+$H25*$H25)-$K$16*$H25*COS($B35*PI()/180)))*180/PI()) -> -42.35884379 | I35: =IF($C35="","",($M$4+$C35)/$K$18/$B$3*1000000) -> 32.86744277 | J35: =IF(C35="", "", $K$16*SQRT($M$5*$M$5+$H25*$H25)+$K$16*$K$15*$H25*COS($B35*PI()/180)-$M$5) -> 118.1752066 | K35: =IF( ISNA(B35), "", ATAN($H25*SIN($B35*PI()/180)/($K$16*$K$15*SQRT($M$5*$M$5+$H25*$H25)+$K$16*$H25*COS($B35*PI()/180)))*180/PI()) -> 1.260585283 | L35: 1.642420695 | M35: 2.300828323 | O35: 3.540759462 | P35: 3.540759462 | Q35: 13.67057302 | R35: -0.855 | AD35: 22 | AE35: 3.390648924 | AF35: -0.4966936672 | AJ35: 2.725047213 | AK35: -0.4027707843 | AL35: 2.079592476 | AM35: -0.2937633741 | AN35: 3.195268102 | AO35: -0.4705553215
A36: Ex4 | B36: =IF(OR(ISNA(F26),Reaction1!H28 = ""), #N/A, Reaction1!H28) -> 16 | C36: =IF( ISNA(B36), "", $K$16*SQRT($M$4*$M$4+$H26*$H26)-$K$16*$K$15*$H26*COS($B36*PI()/180)-$M$4) -> 1.494765354 | E36: -0.3530199901 | F36: -0.3482819349 | G36: =IF( ISNA(B36), "", 2*$H26*SIN(B36*PI()/180)/$B$3/$H$4/$F$15*100000000) -> 13.64098869 | H36: =IF( ISNA(B36), "", ATAN($H26*SIN($B36*PI()/180)/($K$16*$K$15*SQRT($M$4*$M$4+$H26*$H26)-$K$16*$H26*COS($B36*PI()/180)))*180/PI()) -> -50.51948217 | I36: =IF($C36="","",($M$4+$C36)/$K$18/$B$3*1000000) -> 32.84948658 | J36: =IF(C36="", "", $K$16*SQRT($M$5*$M$5+$H26*$H26)+$K$16*$K$15*$H26*COS($B36*PI()/180)-$M$5) -> 116.6857175 | K36: =IF( ISNA(B36), "", ATAN($H26*SIN($B36*PI()/180)/($K$16*$K$15*SQRT($M$5*$M$5+$H26*$H26)+$K$16*$H26*COS($B36*PI()/180)))*180/PI()) -> 1.253566454 | L36: 1.632001077 | M36: 2.273498114 | O36: 3.499544876 | P36: 3.499544876 | Q36: 13.62979702 | R36: -0.85 | AD36: 23 | AE36: 3.521864571 | AF36: -0.485285215 | AJ36: 2.848584599 | AK36: -0.3920130196 | AL36: 2.194214202 | AM36: -0.2837526803 | AN36: 3.324347112 | AO36: -0.4593285389
A37: Ex5 | B37: =IF(OR(ISNA(F27),Reaction1!H29 = ""), #N/A, Reaction1!H29) -> 13 | C37: =IF( ISNA(B37), "", $K$16*SQRT($M$4*$M$4+$H27*$H27)-$K$16*$K$15*$H27*COS($B37*PI()/180)-$M$4) -> 2.28334292 | E37: =IF( OR(ISNA(F27), ISNA(B37)),"",($K$16*$K$15*SQRT($M$4*$M$4+$H27*$H27)-$K$16*$H27*COS($B37*PI()/180))/$K$18/1000) -> -0.5621238579 | F37: -0.5539143357 | G37: =IF( ISNA(B37), "", 2*$H27*SIN(B37*PI()/180)/$B$3/$H$4/$F$15*100000000) -> 12.53673624 | H37: =IF( ISNA(B37), "", ATAN($H27*SIN($B37*PI()/180)/($K$16*$K$15*SQRT($M$4*$M$4+$H27*$H27)-$K$16*$H27*COS($B37*PI()/180)))*180/PI()) -> -35.01708279 | I37: =IF($C37="","",($M$4+$C37)/$K$18/$B$3*1000000) -> 32.87705125 | J37: =IF(C37="", "", $K$16*SQRT($M$5*$M$5+$H27*$H27)+$K$16*$K$15*$H27*COS($B37*PI()/180)-$M$5) -> 119.2189861 | K37: =IF( ISNA(B37), "", ATAN($H27*SIN($B37*PI()/180)/($K$16*$K$15*SQRT($M$5*$M$5+$H27*$H27)+$K$16*$H27*COS($B37*PI()/180)))*180/PI()) -> 1.139718935 | L37: 1.649759724 | M37: 2.08945604 | O37: 3.458570229 | P37: 3.458570229 | Q37: 13.58925845 | R37: -0.845 | AD37: 24 | AE37: 3.658588852 | AF37: -0.4733358279 | AJ37: 2.977308272 | AK37: -0.3807479691 | AL37: 2.313647923 | AM37: -0.2732745015 | AN37: 3.458845056 | AO37: -0.4475701333
O38: 3.417835553 | P38: 3.417835553 | Q38: 13.54895733 | R38: -0.84 | AD38: 25 | AE38: =IF( $K$10 < AD38, $K$16*$I$23-$M$4-$K$16*$K$15*$H$23*COS($AD38*PI()/180), #N/A) -> 3.80078012 | AF38: -0.4608539904 | AJ38: 3.111179024 | AK38: -0.3689833862 | AL38: 2.43785726 | AM38: -0.2623356543 | AN38: 3.598720966 | AO38: -0.4352883919
O39: 3.37734088 | P39: 3.37734088 | Q39: 13.5088937 | R39: -0.835 | AD39: 26 | AE39: 3.948395061 | AF39: -0.4478476192 | AJ39: 3.250156076 | AK39: -0.3567265254 | AL39: 2.566804376 | AM39: -0.2509425513 | AN39: 3.743932233 | AO39: -0.4224910523
A40: proton mass and neutron mass are from CODATA | H40: Inverse Calculation | O40: 3.33708624 | P40: 3.33708624 | Q40: 13.46906758 | R40: -0.83 | AD40: 27 | AE40: 4.10138871 | AF40: -0.4343241954 | AJ40: 3.394197094 | AK40: -0.3439842614 | AL40: 2.700449993 | AM40: -0.239101299 | AN40: 3.894434626 | AO40: -0.4091854314
A41: https://physics.nist.gov/cuu/Constants/index.html | H41: e | I41: =Reaction1!V25 -> -4 | O41: 3.297071664 | P41: 3.297071664 | Q41: 13.42947901 | R41: -0.825 | AD41: 28 | AE41: 4.259714464 | AF41: -0.4202908684 | AJ41: 3.543258202 | AK41: -0.3307631804 | AL41: 2.838753401 | AM41: -0.2268177763 | AN41: 4.050182298 | AO41: -0.3953785257
H42: z | I42: =Reaction1!V26 -> -0.42 | O42: 3.257297183 | P42: 3.257297183 | Q42: 13.39012801 | R42: -0.82 | AD42: 29 | AE42: 4.423324097 | AF42: -0.4057545377 | AJ42: 3.697293994 | AK42: -0.3170696535 | AL42: 2.981672472 | AM42: -0.2140976941 | AN42: 4.211127809 | AO42: -0.3810770909
H43: y | I43: =M4+I41 -> 934.2720813 | O43: 3.217762827 | P43: 3.217762827 | Q43: 13.35101461 | R43: -0.815 | AD43: 30 | AE43: 4.592167769 | AF43: -0.3907219178 | AJ43: 3.856257549 | AK43: -0.3029098947 | AL43: 3.129163672 | AM43: -0.2009466448 | AN43: 4.377222132 | AO43: -0.3662877053
H44: Z | I44: =K18*K15*K16*I42*1000 -> -4.636038912 | O44: 3.178468626 | P44: 3.178468626 | Q44: 13.31213885 | R44: -0.81 | AD44: 31 | AE44: 4.766194051 | AF44: -0.3751995911 | AJ44: 4.020100446 | AK44: -0.2882900072 | AL44: 3.281182072 | AM44: -0.1873701405 | AN44: 4.548414673 | AO44: -0.3510168201
H45: G | I45: =K19 -> 0.1269391607 | O45: 3.139414611 | P45: 3.139414611 | Q45: 13.27350075 | R45: -0.805 | AD45: 32 | AE45: 4.945349932 | AF45: -0.3591940492 | AJ45: 4.188772777 | AK45: -0.2732160211 | AL45: 3.437681367 | AM45: -0.1733736444 | AN45: 4.724653287 | AO45: -0.3352708009
H46: H | I46: =K15*K16*SQRT(I43*I43-M4*M4) ->  | K46: Newton's method | O46: 3.100600811 | P46: 3.100600811 | Q46: 13.23510034 | R46: -0.8 | AD46: 33 | AE46: 5.129580839 | AF46: -0.3427117276 | AJ46: 4.362223162 | AK46: -0.2576939236 | AL46: 3.598613885 | AM46: -0.1589625963 | AN46: 4.905884288 | AO46: -0.3190559603
H47: F | K47: phi_i | L47: phi_(i+1) | O47: 3.062027256 | P47: 3.062027256 | Q47: 13.19693765 | R47: -0.795 | AD47: 34 | AE47: 5.318830654 | AF47: -0.3257590333 | AJ47: 4.540398767 | AK47: -0.2417296836 | AL47: 3.763930605 | AM47: -0.1441424328 | AN47: 5.092052472 | AO47: -0.3023785851
H48: |phi|< pi/2? | I48: =K59 ->  | K48: 0 | L48: =K48 - ($I$46 * SIN(K48)-$I$45* TAN(K48)-$I$44)/($I$46 * COS(K48)-$I$45* POWER(_xlfn.SEC(K48),2)) ->  | O48: 3.023693976 | P48: 3.023693976 | Q48: 13.1590127 | R48: -0.79 | AD48: 35 | AE48: 5.513041729 | AF48: -0.3083423677 | AJ48: 4.723245317 | AK48: -0.2253292721 | AL48: 3.93358117 | AM48: -0.128918604 | AN48: 5.28310113 | AO48: -0.2852449584
H49: Div > 0 ? | I49: =I46*COS(I48)-I45*POWER(_xlfn.SEC(I48),2) ->  | K49: =L48 ->  | L49: =K49 - ($I$46 * SIN(K49)-$I$45* TAN(K49)-$I$44)/($I$46 * COS(K49)-$I$45* POWER(_xlfn.SEC(K49),2)) ->  | O49: 2.985601 | P49: 2.985601 | Q49: 13.12132554 | R49: -0.785 | AD49: 36 | AE49: 5.712154907 | AF49: -0.2904681449 | AJ49: 4.910707116 | AK49: -0.2084986786 | AL49: 4.107513903 | AM49: -0.1132965878 | AN49: 5.478972068 | AO49: -0.2676613774
H50: K | I50: =I46*SIN(I48) ->  | K50: =L49 ->  | O50: 2.947748357 | P50: 2.947748357 | Q50: 13.08387617 | R50: -0.78 | AD50: 37 | AE50: 5.916109534 | AF50: -0.2721428074 | AJ50: 5.102727062 | AK50: -0.1912439246 | AL50: 4.285675821 | AM50: -0.0972819004 | AN50: 5.67960562 | AO50: -0.2496341687
H51: cos(x) | I51: =M4/(I43*K16-I50) ->  | O51: 2.910136076 | P51: 2.910136076 | Q51: 13.04666464 | R51: -0.775 | AD51: 38 | AE51: 6.124843486 | AF51: -0.2533728384 | AJ51: 5.299246662 | AK51: -0.1735710752 | AL51: 4.468012656 | AM51: -0.08088010593 | AN51: 5.884940673 | AO51: -0.2311697002
H52: x | I52: =ACOS(I51) ->  | O52: 2.872764185 | P52: 2.872764185 | Q52: 13.00969098 | R52: -0.77 | AD52: 39 | AE52: 6.338293178 | AF52: -0.2341647723 | AJ52: 5.500206055 | AK52: -0.1554862473 | AL52: 4.654468865 | AM52: -0.06409682382 | AN52: 6.094914678 | AO52: -0.2122743912
H53: k | I53: =M4*TAN(I52) ->  | O53: 2.835632715 | P53: 2.835632715 | Q53: 12.9729552 | R53: -0.765 | AD53: 40 | AE53: 6.556393593 | AF53: -0.2145252034 | AJ53: 5.705544028 | AK53: -0.1369956182 | AL53: 4.844987652 | AM53: -0.04693773486 | AN53: 6.309463676 | AO53: -0.1929547206
H54: EB2 | I54: =M4*M4+K13*K13-2*K13*SQRT(I53*I53+M4*M4) ->  | O54: 2.798741692 | P54: 2.798741692 | Q54: 12.93645733 | R54: -0.76 | AD54: 41 | AE54: 6.779078295 | AF54: -0.1944607924 | AJ54: 5.915198032 | AK54: -0.1181054309 | AL54: 5.039510984 | AM54: -0.02940858628 | AN54: 6.528522313 | AO54: -0.1732172338
H55: EB | I55: =SQRT(I54) ->  | O55: 2.762091146 | P55: 2.762091146 | Q55: 12.90019741 | R55: -0.755 | AD55: 42 | AE55: 7.006279452 | AF55: -0.1739782724 | AJ55: 6.129104204 | AK55: -0.09882199944 | AL55: 5.237979606 | AM55: -0.01151519566 | AN55: 6.752023862 | AO55: -0.1530685478
H56: Ex | I56: =I55-M5 ->  | O56: 2.725681104 | P56: 2.725681104 | Q56: 12.86417546 | R56: -0.75 | AD56: 43 | AE56: 7.237927856 | AF56: -0.1530844535 | AJ56: 6.347197386 | AK56: -0.07915171271 | AL56: 5.440333063 | AM56: 0.006736545836 | AN56: 6.979900242 | AO56: -0.1325153563
H57: Cos(theta) | I57: =(K16*SQRT(M4*M4+I53*I53)-I43)/K15/K16/I53 ->  | O57: 2.689511595 | P57: 2.689511595 | Q57: 12.82839151 | R57: -0.745 | AD57: 44 | AE57: 7.473952945 | AF57: -0.1317862262 | AJ57: 6.569411146 | AK57: -0.05910103781 | AL57: 5.646509717 | AM57: 0.025340671 | AN57: 7.212082039 | AO57: -0.1115644325
H58: thetacm | I58: =ACOS(I57)*180/PI() ->  | O58: 2.653582646 | P58: 2.653582646 | Q58: 12.79284559 | R58: -0.74 | AD58: 45 | AE58: 7.714282823 | AF58: -0.1100905648 | AJ58: 6.795677795 | AK58: -0.03867652241 | AL58: 5.856446764 | AM58: 0.04429113463 | AN58: 7.448498529 | AO58: -0.09022263239
O59: 2.617894284 | P59: 2.617894284 | Q59: 12.75753771 | R59: -0.735 | AD59: 46 | AE59: 7.958844285 | AF59: -0.08800452891 | AJ59: 7.02592841 | AK59: -0.01788479665 | AL59: 6.070080255 | AM59: 0.06358181218 | AN59: 7.689077698 | AO59: -0.0684968967
O60: 2.582446537 | P60: 2.582446537 | Q60: 12.72246791 | R60: -0.73 | AD60: 47 | AE60: 8.207562832 | AF60: -0.0655352658 | AJ60: 7.260092853 | AK60: 0.003267425498 | AL60: 6.287345115 | AM60: 0.08320649872 | AN60: 7.933746261 | AO60: -0.04639425248
O61: 2.547239433 | P61: 2.547239433 | Q61: 12.68763622 | R61: -0.725 | AD61: 48 | AE61: 8.460362705 | AF61: -0.04269001111 | AJ61: 7.498099798 | AK61: 0.02477334526 | AL61: 6.508175163 | AM61: 0.1031589084 | AN61: 8.182429692 | AO61: -0.0239218142
O62: 2.512272997 | P62: 2.512272997 | Q62: 12.65304266 | R62: -0.72 | AD62: 49 | AE62: 8.717166897 | AF62: -0.01947608973 | AJ62: 7.739876743 | AK62: 0.04662607856 | AL62: 6.732503133 | AM62: 0.123432674 | AN62: 8.435052238 | AO62: -0.001086784456
G63: thetaLab to thetaCM | O63: 2.477547258 | P63: 2.477547258 | Q63: 12.61868725 | R63: -0.715 | AD63: 50 | AE63: 8.977897184 | AF63: 0.00409908382 | AJ63: 7.985350043 | AK63: 0.06881865577 | AL63: 6.960260691 | AM63: 0.1440213473 | AN63: 8.691536948 | AO63: 0.0221035457
F64: thetaLab | G64: =Reaction1!S33 -> 95.32 | H64: deg | O64: 2.443062241 | P64: 2.443062241 | Q64: 12.58457002 | R64: -0.71 | AD64: 51 | AE64: 9.242474144 | AF64: 0.02802800541 | AJ64: 8.234444922 | AK64: 0.0913440218 | AL64: 7.191378461 | AM64: 0.1649183989 | AN64: 8.951805695 | AO64: 0.04564179678
F65: Ex | G65: =Reaction1!S34 -> 0 | H65: MeV | O65: 2.408817974 | P65: 2.408817974 | Q65: 12.55069101 | R65: -0.705 | AD65: 52 | AE65: 9.510817184 | AF65: 0.05230308149 | AJ65: 8.487085505 | AK65: 0.1141950364 | AL65: 7.425786043 | AM65: 0.1861172189 | AN65: 9.215779198 | AO65: 0.06952050111
F66: k_cm | G66: =SQRT(($K$13*$K$13-POWER($M$4+$M$5+G65,2))*($K$13*$K$13-POWER($M$4-$M$5-F23,2)))/2/$K$13 -> 169.8428074 | O66: 2.374814482 | P66: 2.374814482 | Q66: 12.51705022 | R66: -0.7 | AD66: 53 | AE66: 9.782844566 | AF66: 0.07691662966 | AJ66: 8.743194834 | AK66: 0.1373644749 | AL66: 7.663412032 | AM66: 0.2076111176 | AN66: 9.483377048 | AO66: 0.09373210336
F67: q | G67: =SQRT(G66*G66+$M$4*$M$4) -> 953.5203604 | O67: 2.341051792 | P67: 2.341051792 | Q67: 12.4836477 | R67: -0.695 | AD67: 54 | AE67: 10.05847343 | AF67: 0.1018608793 | AJ67: 9.002694896 | AK67: 0.1608450285 | AL67: 7.904184046 | AM67: 0.229393326 | AN67: 9.754517732 | AO67: 0.1182689612
F68: p1 | G68: =K16/COS(G64*PI()/180)/(1+POWER(K16*TAN(G64*PI()/180),2)) -> -0.09211448525 | H68: momt Lab | I68: y | J68: x | K68: thetaCM | L68: 180-thetaCM | O68: 2.307529929 | P68: 2.307529929 | Q68: 12.45048346 | R68: -0.69 | AD68: 55 | AE68: 10.33761981 | AF68: 0.1271279726 | AJ68: 9.265506646 | AK68: 0.1846293057 | AL68: 8.148028744 | AM68: 0.2514569972 | AN68: 10.02911866 | AO68: 0.1431233465
F69: p2+ | G69: =G67*K15+SQRT(G66*G66+(G66*G66-G67*G67*K15*K15)*POWER(K16*TAN(G64*PI()/180),2)) -> 1522.768024 | H69: =G68*G69 -> -140.2689927 | I69: =H69*SIN(G64*PI()/180) -> -139.6647691 | J69: =(K15*G67-H69/K16*COS(G64*PI()/180)) -> 96.64539041 | K69: =ATAN2(J69,I69)*180/PI() -> -55.31749523 | L69: =180-K69 -> 235.3174952 | O69: 2.274248919 | P69: 2.274248919 | Q69: 12.41755753 | R69: -0.685 | AD69: 56 | AE69: 10.62019867 | AF69: 0.1527099655 | AJ69: 9.531550028 | AK69: 0.2087098332 | AL69: 8.394871847 | AM69: 0.2737952073 | AN69: 10.30709618 | AO69: 0.1682874457
F70: p2- | G70: =G67*K15-SQRT(G66*G66+(G66*G66-G67*G67*K15*K15)*POWER(K16*TAN(G64*PI()/180),2)) -> -1303.638564 | H70: =G70*G68 -> 120.0839953 | I70: =H70*SIN(G64*PI()/180) -> 119.5667207 | J70: =(K15*G67-H70/K16*COS(G64*PI()/180)) -> 120.6249498 | K70: =ATAN2(J70,I70)*180/PI() -> 44.74756965 | L70: =180-K70 -> 135.2524303 | O70: =(SQRT($K$18*$K$18*R70*R70*1000000+$M$4*$M$4))-$M$4 -> 2.241208789 | P70: =(COS($P$1*PI()/180)*SQRT($K$18*$K$18*R70*R70*1000000+$P$3)-$P$2*$K$17*R70*1000)/(1-$P$2)-$M$4 -> 2.241208789 | Q70: 12.38486993 | R70: -0.68 | AD70: 57 | AE70: =IF( $K$10 < AD70, $K$16*$I$23-$M$4-$K$16*$K$15*$H$23*COS($AD70*PI()/180), #N/A) -> 10.90612395 | AF70: 0.1785988291 | AJ70: 9.800744002 | AK70: 0.2330790571 | AL70: 8.644638166 | AM70: 0.2964009566 | AN70: 10.58836563 | AO70: 0.1937533621
O71: 2.208409562 | P71: 2.208409562 | Q71: =SQRT((R71*R71+PI()*PI()*$F$18*$F$18)*$K$18*$K$18*1000000+$M$4*$M$4) - $M$4 -> 12.35242068 | R71: -0.675 | S71: =IF( AND($R71/S$3>= 0, $R71/S$3<=$K$31),S$2*ABS(SIN($R71/S$3*PI()))*$K$30,#N/A) ->  | T71: =IF( AND($R71/T$3>0,$R71/T$3<=$K$31),T$2*ABS(SIN($R71/T$3*PI()))*$K$30,#N/A) ->  | U71: =IF( AND($R71/U$3>= 0, $R71/U$3<=$K$31),U$2*ABS(SIN($R71/U$3*PI()))*$K$30,#N/A) ->  | V71: =IF( AND($R71/V$3>0,$R71/V$3<=$K$31),V$2*ABS(SIN($R71/V$3*PI()))*$K$30,#N/A) ->  | W71: =IF( AND($R71/W$3>= 0, $R71/W$3<=$K$31),W$2*ABS(SIN($R71/W$3*PI()))*$K$30,#N/A) ->  | X71: =IF( AND($R71/X$3>0,$R71/X$3<=$K$31),X$2*ABS(SIN($R71/X$3*PI()))*$K$30,#N/A) ->  | Y71: =IF( AND($R71/Y$3>= 0, $R71/Y$3<=$K$31),Y$2*ABS(SIN($R71/Y$3*PI()))*$K$30,#N/A) ->  | Z71: =IF( AND($R71/Z$3>0,$R71/Z$3<=$K$31),Z$2*ABS(SIN($R71/Z$3*PI()))*$K$30,#N/A) ->  | AA71: =IF( AND($R71/AA$3>= 0, $R71/AA$3<=$K$31),AA$2*ABS(SIN($R71/AA$3*PI()))*$K$30,#N/A) ->  | AB71: =IF( AND($R71/AB$3>0,$R71/AB$3<=$K$31),AB$2*ABS(SIN($R71/AB$3*PI()))*$K$30,#N/A) ->  | AD71: 58 | AE71: 11.19530855 | AF71: =IF(ABS(PI()*$K$18*$F$17*1000/$H$23/SIN($AD71*PI()/180))<1, $AF$4* ($K$16*$K$15*$I$23-$K$16*$H$23*COS($AD71*PI()/180))/$K$18/1000*(1-ASIN(PI()*$K$18*$F$17*1000/$H$23/SIN($AD71*PI()/180))/PI()), #N/A) -> 0.2047864509 | AG71: =IF($K$9=1, $AF$4*($K$16*$K$15*$I$23-$K$16*$H$23*COS($AD71*PI()/180))/$K$18/1000,#N/A) ->  | AH71: =IF( $K$10 < AD71, $K$16*$I$24-$M$4-$K$16*$K$15*$H$24*COS($AD71*PI()/180), #N/A) ->  | AI71: =IF(ABS(PI()*$K$18*$F$17*1000/$H$24/SIN($AD71*PI()/180))<1, $AF$4*($K$16*$K$15*$I$24-$K$16*$H$24*COS($AD71*PI()/180))/$K$18/1000*(1-ASIN(PI()*$K$18*$F$17*1000/$H$24/SIN($AD71*PI()/180))/PI()), #N/A) ->  | AJ71: =IF( $K$10 > AD71, #N/A, $K$16*$I$25-$M$4-$K$16*$K$15*$H$25*COS($AD71*PI()/180)) -> 10.07300657 | AK71: =IF(ABS(PI()*$K$18*$F$17*1000/$H$25/SIN($AD71*PI()/180))<1,$AF$4* ($K$16*$K$15*$I$25-$K$16*$H$25*COS($AD71*PI()/180))/$K$18/1000*(1-ASIN(PI()*$K$18*$F$17*1000/$H$25/SIN($AD71*PI()/180))/PI()), #N/A) -> 0.2577293441 | AL71: =IF( $K$10 > AD71, #N/A, $K$16*$I$26-$M$4-$K$16*$K$15*$H$26*COS($AD71*PI()/180)) -> 8.897251619 | AM71: =IF(ABS(PI()*$K$18*$F$17*1000/$H$26/SIN($AD71*PI()/180))<1, $AF$4* ($K$16*$K$15*$I$26-$K$16*$H$26*COS($AD71*PI()/180))/$K$18/1000*(1-ASIN(PI()*$K$18*$F$17*1000/$H$26/SIN($AD71*PI()/180))/PI()), #N/A) -> 0.3192671708 | AN71: =IF( $K$10 > AD71, #N/A, $K$16*$I$27-$M$4-$K$16*$K$15*$H$27*COS($AD71*PI()/180)) -> 10.87284131 | AO71: =IF(ABS(PI()*$K$18*$F$17*1000/$H$27/SIN($AD71*PI()/180))<1, $AF$4*($K$16*$K$15*$I$27-$K$16*$H$27*COS($AD71*PI()/180))/$K$18/1000*(1-ASIN(PI()*$K$18*$F$17*1000/$H$27/SIN($AD71*PI()/180))/PI()), #N/A) -> 0.2195131164
J72: min | K72: =MIN(ABS(K69),ABS(K70)) -> 44.74756965 | O72: 2.175851265 | P72: 2.175851265 | Q72: 12.32020983 | R72: =R71+$R$4 -> -0.67 | AD72: 59 | AE72: 11.48766438 | AF72: 0.2312646364 | AJ72: 10.3482548 | AK72: 0.2826529832 | AL72: 9.152635257 | AM72: 0.3423867028 | AN72: 11.16043659 | AO72: 0.2455586483
O73: 2.143533923 | P73: 2.143533923 | Q73: 12.28823737 | R73: -0.665 | AD73: 60 | AE73: 11.78310238 | AF73: 0.2580251106 | AJ73: 10.62640484 | AK73: 0.3078421874 | AL73: 9.410711289 | AM73: 0.3657523338 | AN73: 11.45106386 | AO73: 0.2718818186
O74: 2.111457559 | P74: 2.111457559 | Q74: 12.25650335 | R74: -0.66 | AD74: 61 | AE74: 12.08153256 | AF74: 0.2850595201 | AJ74: 10.90737197 | AK74: 0.3332890948 | AL74: 9.671401101 | AM74: 0.3893567752 | AN74: 11.74463458 | AO74: 0.2984744105
O75: 2.0796222 | P75: 2.0796222 | Q75: 12.22500778 | R75: -0.655 | AD75: 62 | AE75: 12.38286402 | AF75: 0.3123594342 | AJ75: 11.19107061 | AK75: 0.3589857708 | AL75: 9.934625285 | AM75: 0.41319267 | AN75: 12.04105934 | AO75: 0.3253281312
O76: 2.048027869 | P76: 2.048027869 | Q76: 12.19375069 | R76: -0.65 | AD76: 63 | AE76: 12.68700496 | AF76: 0.3399163477 | AJ76: 11.47741433 | AK76: 0.38492421 | AL76: 10.20030366 | AM76: 0.4372525948 | AN76: 12.34024783 | AO76: 0.3524346144
O77: 2.016674591 | P77: 2.016674591 | Q77: 12.16273211 | R77: -0.645 | AD77: 64 | AE77: 12.99386275 | AF77: 0.3677216821 | AJ77: 11.76631592 | AK77: 0.4110963376 | AL77: 10.4683553 | AM77: 0.4615290614 | AN77: 12.64210893 | AO77: 0.3797854217
O78: 1.98556239 | P78: 1.98556239 | Q78: 12.13195204 | R78: -0.64 | AD78: 65 | AE78: 13.30334391 | AF78: 0.395766788 | AJ78: 12.05768737 | AK78: 0.4374940118 | AL78: 10.73869855 | AM78: 0.4860145187 | AN78: 12.94655068 | AO78: 0.407372045
O79: 1.954691289 | P79: 1.954691289 | Q79: 12.10141053 | R79: -0.635 | AD79: 66 | AE79: 13.61535417 | AF79: 0.4240429474 | AJ79: 12.35143993 | AK79: 0.4641090254 | AL79: 11.01125106 | AM79: 0.5107013545 | AN79: 13.25348035 | AO79: 0.435185908
O80: 1.924061313 | P80: 1.924061313 | Q80: 12.07110759 | R80: -0.63 | AD80: 67 | AE80: 13.92979849 | AF80: 0.4525413753 | AJ80: 12.64748411 | AK80: 0.4909331085 | AL80: 11.28592982 | AM80: 0.5355818975 | AN80: 13.56280445 | AO80: 0.4632183693
O81: 1.893672485 | P81: 1.893672485 | Q81: 12.04104324 | R81: -0.625 | AD81: 68 | AE81: 14.24658108 | AF81: 0.4812532225 | AJ81: 12.94572974 | AK81: 0.5179579298 | AL81: 11.56265114 | AM81: 0.5606484196 | AN81: 13.87442875 | AO81: 0.4914607235
O82: 1.863524829 | P82: 1.863524829 | Q82: 12.01121751 | R82: -0.62 | AD82: 69 | AE82: 14.56560546 | AF82: 0.5101695777 | AJ82: 13.24608597 | AK82: 0.5451750993 | AL82: 11.84133075 | AM82: 0.5858931371 | AN82: 14.18825832 | AO82: 0.5199042044
O83: 1.833618367 | P83: 1.833618367 | Q83: 11.98163041 | R83: -0.615 | AD83: 70 | AE83: 14.88677444 | AF83: 0.5392814695 | AJ83: 13.54846131 | AK83: 0.5725761705 | AL83: 12.12188374 | AM83: 0.6113082137 | AN83: 14.50419758 | AO83: 0.5485399865
O84: 1.803953123 | P84: 1.803953123 | Q84: 11.95228198 | R84: -0.61 | AD84: 71 | AE84: 15.20999019 | AF84: 0.5685798692 | AJ84: 13.85276365 | AK84: 0.6001526421 | AL84: 12.40422467 | AM84: 0.6368857619 | AN84: 14.82215028 | AO84: 0.5773591879
O85: 1.77452912 | P85: 1.77452912 | Q85: 11.92317224 | R85: -0.605 | AD85: 72 | AE85: 15.53515426 | AF85: 0.5980556929 | AJ85: 14.1589003 | AK85: 0.6278959611 | AL85: 12.68826752 | AM85: 0.6626178454 | AN85: 15.14201957 | AO85: 0.6063528722
O86: 1.745346379 | P86: 1.745346379 | Q86: 11.89430119 | R86: -0.6 | AD86: 73 | AE86: 15.8621676 | AF86: 0.6276998041 | AJ86: 14.46677801 | AK86: 0.6557975241 | AL86: 12.97392578 | AM86: 0.6884964812 | AN86: 15.46370802 | AO86: 0.6355120515
O87: 1.716404925 | P87: 1.716404925 | Q87: 11.86566888 | R87: -0.595 | AD87: 74 | AE87: 16.1909306 | AF87: 0.6575030162 | AJ87: 14.776303 | AK87: 0.6838486805 | AL87: 13.26111243 | AM87: 0.7145136418 | AN87: 15.78711763 | AO87: 0.6648276879
O88: 1.687704778 | P88: 1.687704778 | Q88: 11.83727531 | R88: -0.59 | AD88: 75 | AE88: 16.52134311 | AF88: 0.6874560946 | AJ88: 15.08738097 | AK88: 0.7120407344 | AL88: 13.54973999 | AM88: 0.7406612572 | AN88: 16.1121499 | AO88: 0.694290697
O89: 1.659245961 | P89: 1.659245961 | Q89: 11.80912052 | R89: -0.585 | S89: 0.336465726 | AD89: 76 | AE89: 16.85330448 | AF89: 0.7175497596 | AJ89: 15.39991718 | AK89: 0.7403649469 | AL89: 13.83972055 | AM89: 0.7669312173 | AN89: 16.43870582 | AO89: 0.7238919494
O90: 1.631028497 | P90: 1.631028497 | Q90: 11.78120451 | R90: -0.58 | S90: 0.6755108178 | AD90: 77 | AE90: 17.18671361 | AF90: 0.7477746891 | AJ90: 15.71381641 | AK90: 0.7688125389 | AL90: 14.13096576 | AM90: 0.7933153741 | AN90: 16.76668591 | AO90: 0.753622274
O91: 1.603052406 | P91: 1.603052406 | Q91: 11.75352732 | R91: -0.575 | S91: 1.014077055 | AD91: 78 | AE91: 17.52146892 | AF91: 0.7781215204 | AJ91: 16.02898306 | AK91: 0.7973746929 | AL91: 14.42338692 | AM91: 0.8198055437 | AN91: 17.09599027 | AO91: 0.7834724599
O92: 1.57531771 | P92: 1.57531771 | Q92: 11.72608897 | R92: -0.57 | S92: 1.351924436 | AD92: 79 | AE92: 17.85746846 | AF92: 0.8085808536 | AJ92: 16.34532113 | AK92: 0.8260425561 | AL92: 14.71689495 | AM92: 0.846393509 | AN92: 17.42651859 | AO92: 0.8134332593
O93: 1.547824431 | P93: 1.547824431 | Q93: 11.69888946 | R93: -0.565 | S93: 1.688813468 | AD93: 80 | AE93: 18.19460986 | AF93: 0.8391432538 | AJ93: 16.66273424 | AK93: 0.8548072423 | AL93: 15.01140045 | AM93: 0.8730710214 | AN93: 17.75817018 | AO93: 0.8434953899
O94: 1.52057259 | P94: 1.52057259 | Q94: 11.67192883 | R94: -0.56 | S94: 2.024505339 | AA94: 0.1488050293 | AD94: 81 | AE94: 18.53279044 | AF94: 0.8697992536 | AJ94: 16.98112572 | AK94: 0.8836598345 | AL94: 15.3068137 | AM94: 0.8998298035 | AN94: 18.09084403 | AO94: 0.8736495376
O95: 1.493562207 | P95: 1.493562207 | Q95: 11.6452071 | R95: -0.555 | S95: 2.358762083 | AA95: 0.4990026498 | AD95: 82 | AE95: 18.87190717 | AF95: 0.9005393558 | AJ95: 17.30039858 | AK95: 0.9125913876 | AL95: 15.60304473 | AM95: 0.9266615512 | AN95: 18.42443879 | AO95: 0.9038863588
O96: 1.466793305 | P96: 1.466793305 | Q96: 11.61872428 | R96: -0.55 | S96: 2.691346753 | AA96: 0.8488106422 | AD96: 83 | AE96: 19.21185677 | AF96: 0.9313540365 | AJ96: 17.62045557 | AK96: 0.9415929304 | AL96: 15.90000329 | AM96: 0.953557936 | AN96: 18.75885285 | AO96: 0.9341964833
O97: 1.440265902 | P97: 1.440265902 | Q97: 11.5924804 | R97: -0.545 | S97: 3.022023589 | AA97: 1.197955871 | AD97: 84 | AE97: 19.55253568 | AF97: 0.9622337468 | AJ97: 17.94119919 | AK97: 0.9706554685 | AL97: 16.19759893 | AM97: 0.9805106072 | AN97: 19.09398435 | AO97: 0.9645705165
O98: 1.413980021 | P98: 1.413980021 | Q98: 11.56647547 | R98: -0.54 | S98: 3.350558179 | AA98: 1.54616572 | AD98: 85 | AE98: 19.89384012 | AF98: 0.9931689162 | AJ98: 18.26253174 | AK98: 0.9997699866 | AL98: 16.495741 | AM98: 1.007511195 | AN98: 19.42973119 | AO98: 0.9949990423
O99: 1.38793568 | P99: 1.38793568 | Q99: 11.54070951 | R99: -0.535 | S99: 3.676717635 | AA99: 1.893168302 | AD99: 86 | AE99: 20.23566614 | AF99: 1.024149955 | AJ99: 18.58435534 | AK99: 1.028927451 | AL99: 16.79433868 | AM99: 1.03455131 | AN99: 19.76599112 | AO99: 1.025472626
O100: 1.3621329 | P100: 1.3621329 | Q100: 11.51518255 | R100: -0.53 | S100: 4.000270747 | AA100: 2.238692671 | AD100: 87 | AE100: 20.5779096 | AF100: 1.055167257 | AJ100: 18.90657196 | AK100: 1.058118811 | AL100: 17.09330102 | AM100: 1.06162255 | AN100: 20.1026617 | AO100: 1.055981815
O101: 1.336571702 | P101: 1.336571702 | Q101: 11.48989461 | R101: -0.525 | S101: 4.320988158 | AA101: 2.582469039 | AD101: 88 | AE101: 20.92046627 | AF101: 1.086211201 | AJ101: 19.22908345 | AK101: 1.087335005 | AL101: 17.39253694 | AM101: 1.088716499 | AN101: 20.43964037 | AO101: 1.086517146
O102: 1.311252104 | P102: 1.311252104 | Q102: 11.46484569 | R102: -0.52 | S102: 4.638642518 | AA102: 2.924228979 | AD102: 89 | AE102: =IF( $K$10 < AD102, $K$16*$I$23-$M$4-$K$16*$K$15*$H$23*COS($AD102*PI()/180), #N/A) -> 21.26323178 | AF102: 1.117272157 | AJ102: 19.55179158 | AK102: 1.116566958 | AL102: 17.69195531 | AM102: 1.115824729 | AN102: 20.77682449 | AO102: 1.11706914
O103: 1.286174126 | P103: 1.286174126 | Q103: 11.44003583 | R103: -0.515 | S103: 4.953008648 | AA103: 3.263705641 | AD103: 90 | AE103: 21.60610173 | AF103: 1.148340483 | AJ103: 19.87459803 | AK103: 1.145805587 | AL103: 17.99146491 | AM103: 1.142938805 | AN103: 21.11411136 | AO103: 1.147628314
O104: 1.261337788 | P104: 1.261337788 | Q104: 11.41546504 | R104: -0.51 | S104: 5.263863702 | AA104: 3.600633957 | AD104: 91 | AE104: 21.94897169 | AF104: 1.179406533 | AJ104: 20.19740448 | AK104: 1.175041803 | AL104: 18.29097451 | AM104: 1.170050286 | AN104: 21.45139822 | AO104: 1.178185176
O105: 1.236743109 | P105: 1.236743109 | Q105: 11.39113333 | R105: -0.505 | S105: 5.57098732 | AA105: 3.934750848 | AD105: 92 | AE105: 22.2917372 | AF105: 1.210460658 | AJ105: 20.5201126 | AK105: 1.204266514 | AL105: 18.59039287 | AM105: 1.197150726 | AN105: 21.78858235 | AO105: 1.208730231
O106: 1.212390107 | P106: 1.212390107 | Q106: 11.36704073 | R106: -0.5 | S106: 5.874161792 | AA106: 4.265795432 | AD106: 93 | AE106: 22.63429386 | AF106: 1.241493207 | AJ106: 20.8426241 | AK106: 1.233470625 | AL106: 18.8896288 | AM106: 1.224231677 | AN106: 22.12556102 | AO106: 1.239253983
O107: 1.188278802 | P107: 1.188278802 | Q107: 11.34318726 | R107: -0.495 | S107: 6.173172202 | AA107: 4.593509223 | AD107: 94 | AE107: 22.97653733 | AF107: 1.272494531 | AJ107: 21.16484072 | AK107: 1.262645045 | AL107: 19.18859114 | AM107: 1.251284694 | AN107: 22.4622316 | AO107: 1.269746938
O108: 1.164409212 | P108: 1.164409212 | Q108: 11.31957293 | R108: -0.49 | S108: 6.467806589 | AA108: 4.91763634 | AD108: 95 | AE108: 23.31836334 | AF108: 1.303454984 | AJ108: 21.48666432 | AK108: 1.291780683 | AL108: 19.48718882 | AM108: 1.278301331 | AN108: 22.79849152 | AO108: 1.300199606
O109: 1.140781356 | P109: 1.140781356 | Q109: 11.29619776 | R109: -0.485 | S109: 6.757856093 | AA109: 5.237923698 | AD109: 96 | AE109: 23.65966779 | AF109: 1.334364929 | AJ109: 21.80799687 | AK109: 1.320868457 | AL109: 19.78533089 | AM109: 1.305273149 | AN109: 23.13423837 | AO109: 1.330602503
O110: 1.117395251 | P110: 1.117395251 | Q110: 11.27306177 | R110: -0.48 | S110: 7.043115105 | AA110: 5.554121214 | AD110: 97 | AE110: 24.0003467 | AF110: 1.365214738 | AJ110: 22.12874049 | AK110: 1.349899291 | AL110: 20.08292653 | AM110: 1.332191717 | AN110: 23.46936987 | AO110: 1.360946155
O111: 1.094250917 | P111: 1.094250917 | Q111: 11.25016498 | R111: -0.475 | S111: 7.323381411 | W111: 0.05865940448 | AA111: 5.865981995 | AD111: 98 | AE111: 24.3402963 | AF111: 1.395994793 | AJ111: 22.44879748 | AK111: 1.378864122 | AL111: 20.37988509 | AM111: 1.35904861 | AN111: 23.80378393 | AO111: 1.391221099
O112: 1.07134837 | P112: 1.07134837 | Q112: 11.2275074 | R112: -0.47 | S112: 7.598456337 | W112: 0.5144449919 | AA112: 6.173262537 | AD112: 99 | AE112: 24.67941303 | AF112: 1.426695493 | AJ112: 22.76807034 | AK112: 1.407753897 | AL112: 20.67611611 | AM112: 1.385835417 | AN112: 24.13737869 | AO112: 1.421417885
O113: 1.048687628 | P113: 1.048687628 | Q113: 11.20508905 | R113: -0.465 | S113: 7.868144888 | W113: 0.9696695618 | AA113: 6.475722911 | AD113: 100 | AE113: 25.01759361 | AF113: 1.45730725 | AJ113: 23.08646182 | AK113: 1.436559581 | AL113: 20.97152937 | AM113: 1.412543739 | AN113: 24.47005254 | AO113: 1.45152708
O114: 1.026268709 | P114: 1.026268709 | Q114: 11.18290995 | R114: -0.46 | S114: 8.132255887 | W114: 1.423836678 | AA114: 6.773126951 | AD114: 101 | AE114: 25.35473501 | AF114: 1.487820498 | AJ114: 23.40387493 | AK114: 1.465272153 | AL114: 21.26603486 | AM114: 1.439165193 | AN114: 24.80170413 | AO114: 1.481539271
O115: 1.004091631 | P115: 1.004091631 | Q115: 11.16097011 | R115: -0.455 | S115: 8.390602114 | W115: 1.876451059 | AA115: 7.06524244 | AD115: 102 | AE115: 25.69073454 | AF115: 1.518225693 | AJ115: 23.72021299 | AK115: 1.493882615 | AL115: 21.5595429 | AM115: 1.465691411 | AN115: 25.13223245 | AO115: 1.511445064
O116: 0.98215641 | P116: 0.98215641 | Q116: 11.13926956 | R116: -0.45 | S116: 8.643000431 | W116: 2.327019114 | AA116: 7.351841291 | AD116: 103 | AE116: 26.02548986 | AF116: 1.548513312 | AJ116: 24.03537965 | AK116: 1.522381988 | AL116: 21.85196406 | AM116: 1.492114047 | AN116: 25.4615368 | AO116: 1.541235087
O117: 0.9604630633 | P117: 0.9604630633 | Q117: 11.1178083 | R117: -0.445 | S117: 8.889271919 | W117: 2.775049486 | AA117: 7.632699723 | AD117: 104 | AE117: 26.35889898 | AF117: 1.57867386 | AJ117: 24.34927888 | AK117: 1.550761319 | AL117: 22.14320927 | AM117: 1.518424774 | AN117: 25.7895169 | AO117: 1.570899998
O118: 0.9390116076 | P118: 0.9390116076 | Q118: 11.09658635 | R118: -0.44 | S118: 9.129242003 | W118: 3.220053584 | AA118: 7.907598438 | AD118: 105 | AE118: 26.69086036 | AF118: 1.608697869 | AJ118: 24.66181509 | AK118: 1.579011678 | AL118: 22.43318983 | AM118: 1.544615289 | AN118: 26.11607281 | AO118: 1.600430477
O119: 0.9178020596 | P119: 0.9178020596 | Q119: 11.07560374 | R119: -0.435 | S119: 9.362740572 | W119: 3.661546119 | AA119: 8.176322792 | AD119: 106 | AE119: 27.02127287 | AF119: 1.638575903 | AJ119: 24.97289306 | AK119: 1.607124164 | AL119: 22.72181739 | AM119: 1.570677313 | AN119: 26.44110508 | AO119: 1.629817238
O120: 0.8968344356 | P120: 0.8968344356 | Q120: 11.05486047 | R120: -0.43 | S120: 9.589602104 | W120: 4.099045629 | AA120: 8.43866296 | AD120: 107 | AE120: 27.35003587 | AF120: 1.668298557 | AJ120: 25.28241805 | AK120: 1.635089907 | AL120: 23.00900404 | AM120: 1.596602594 | AN120: 26.7645147 | AO120: 1.659051024
O121: 0.8761087519 | P121: 0.8761087519 | Q121: 11.03435656 | R121: -0.425 | S121: 9.809665783 | W121: 4.532075008 | AA121: 8.694414104 | AD121: 108 | AE121: 27.67704921 | AF121: 1.69785646 | AJ121: 25.59029575 | AK121: 1.662900067 | AL121: 23.2946623 | AM121: 1.622382906 | AN121: 27.08620315 | AO121: 1.688122613
O122: 0.8556250244 | P122: 0.8556250244 | Q122: 11.01409203 | R122: -0.42 | S122: 10.02277561 | W122: 4.960162026 | AA122: 8.943376529 | AD122: 109 | AE122: 28.00221328 | AF122: 1.72724028 | AJ122: 25.89643241 | AK122: 1.690545836 | AL122: 23.57870515 | AM122: 1.648010055 | AN122: 27.40607244 | AO122: 1.717022817
O123: 0.835383269 | P123: 0.835383269 | Q123: 10.99406689 | R123: -0.415 | S123: 10.22878052 | W123: 5.38283984 | AA123: 9.185355844 | AD123: 110 | AE123: 28.32542903 | AF123: 1.756440719 | AJ123: 26.20073475 | AK123: 1.718018444 | AL123: 23.86104607 | AM123: 1.673475875 | AN123: 27.72402514 | AO123: 1.745742487
O124: 0.8153835013 | P124: 0.8153835013 | Q124: 10.97428115 | R124: -0.41 | S124: 10.42753447 | W124: 5.799647508 | AA124: 9.420163106 | AD124: 111 | AE124: 28.64659801 | AF124: 1.785448523 | AJ124: 26.50311009 | AK124: 1.745309154 | AL124: 24.14159907 | AM124: 1.698772235 | AN124: 28.0399644 | AO124: 1.774272512
O125: 0.7956257368 | P125: 0.7956257368 | Q125: 10.95473484 | R125: -0.405 | S125: 10.61889658 | W125: 6.210130489 | AA125: 9.647614975 | AD125: 112 | AE125: 28.96562238 | AF125: 1.814254478 | AJ125: 26.80346632 | AK125: 1.772409269 | AL125: 24.42027867 | AM125: 1.723891036 | AN125: 28.35379397 | AO125: 1.802603821
O126: 0.7761099908 | P126: 0.7761099908 | Q126: 10.93542797 | R126: -0.4 | S126: 10.8027312 | W126: 6.613841138 | AA126: 9.867533854 | AD126: 113 | AE126: 29.28240498 | AF126: 1.842849412 | AJ126: 27.10171195 | AK126: 1.799310131 | AL126: 24.697 | AM126: 1.748824214 | AN126: 28.66541827 | AO126: 1.830727388
O127: 0.7568362784 | P127: 0.7568362784 | Q127: 10.91636054 | R127: -0.395 | S127: 10.978908 | W127: 7.010339198 | AA127: 10.07974803 | AD127: 114 | AE127: 29.5968493 | AF127: 1.8712242 | AJ127: 27.39775613 | AK127: 1.826003122 | AL127: 24.97167875 | AM127: 1.773563739 | AN127: 28.97474236 | AO127: 1.858634225
O128: 0.7378046144 | P128: 0.7378046144 | Q128: 10.89753259 | R128: -0.39 | S128: 11.14730209 | W128: 7.399192276 | AA128: 10.28409179 | AD128: 115 | AE128: 29.90885956 | AF128: 1.899369761 | AJ128: 27.69150869 | AK128: 1.852479666 | AL128: 25.24423127 | AM128: 1.798101621 | AN128: 29.28167203 | AO128: 1.886315395
O129: 0.7190150136 | P129: 0.7190150136 | Q129: 10.87894411 | R129: -0.385 | S129: 11.30779412 | W129: 7.779976315 | AA129: 10.4804056 | AD129: 116 | AE129: 30.21834072 | AF129: 1.927277061 | AJ129: 27.98288014 | AK129: 1.878731229 | AL129: 25.51457452 | AM129: 1.822429904 | AN129: 29.58611379 | AO129: 1.913762002
O130: 0.7004674905 | P130: 0.7004674905 | Q130: 10.86059513 | R130: -0.38 | S130: 11.46027031 | W130: 8.15227606 | AA130: 10.66853616 | AD130: 117 | AE130: 30.5251985 | AF130: 1.954937115 | AJ130: 28.27178172 | AK130: 1.904749319 | AL130: 25.78262616 | AM130: 1.846540671 | AN130: 29.88797489 | AO130: 1.940965198
O131: 0.6821620595 | P131: 0.6821620595 | Q131: 10.84248565 | R131: -0.375 | S131: 11.60462256 | W131: 8.515685507 | AA131: 10.84833658 | AD131: 118 | AE131: 30.82933945 | AF131: 1.982340985 | AJ131: 28.55812545 | AK131: 1.930525491 | AL131: 26.04830453 | AM131: 1.870426042 | AN131: 30.18716338 | AO131: 1.967916184
O132: 0.6640987347 | P132: 0.6640987347 | Q132: 10.8246157 | R132: -0.37 | S132: 11.74074857 | W132: 8.869808347 | AA132: 11.01966647 | AD132: 119 | AE132: 31.13067091 | AF132: 2.009479785 | AJ132: 28.84182408 | AK132: 1.956051342 | AL132: 26.31152872 | AM132: 1.894078177 | AN132: 30.48358814 | AO132: 1.994606206
O133: 0.6462775301 | P133: 0.6462775301 | Q133: 10.80698528 | R133: -0.365 | S133: 11.86855181 | W133: 9.214258398 | AA133: 11.18239206 | AD133: 120 | AE133: 31.42910109 | AF133: 2.036344676 | AJ133: 29.12279122 | AK133: 1.981318514 | AL133: 26.57221853 | AM133: 1.917489273 | AN133: 30.77715886 | AO133: 2.02102656
O134: =(SQRT($K$18*$K$18*R134*R134*1000000+$M$4*$M$4))-$M$4 -> 0.6286984594 | P134: =(COS($P$1*PI()/180)*SQRT($K$18*$K$18*R134*R134*1000000+$P$3)-$P$2*$K$17*R134*1000)/(1-$P$2)-$M$4 -> 0.6286984594 | Q134: 10.78959442 | R134: -0.36 | S134: 11.98794171 | W134: 9.548660027 | AA134: 11.33638628 | AD134: 121 | AE134: =IF( $K$10 < AD134, $K$16*$I$23-$M$4-$K$16*$K$15*$H$23*COS($AD134*PI()/180), #N/A) -> 31.72453909 | AF134: 2.062926871 | AJ134: 29.40094126 | AK134: 2.006318692 | AL134: 26.83029456 | AM134: 1.940651565 | AN134: 31.06778612 | AO134: 2.047168591
O135: 0.6113615364 | P135: 0.6113615364 | Q135: =SQRT((R135*R135+PI()*PI()*$F$18*$F$18)*$K$18*$K$18*1000000+$M$4*$M$4) - $M$4 -> 10.77244311 | R135: -0.355 | S135: =IF( AND($R135/S$3>= 0, $R135/S$3<=$K$31),S$2*ABS(SIN($R135/S$3*PI()))*$K$30,#N/A) -> 12.09883363 | T135: =IF( AND($R135/T$3>0,$R135/T$3<=$K$31),T$2*ABS(SIN($R135/T$3*PI()))*$K$30,#N/A) ->  | U135: =IF( AND($R135/U$3>= 0, $R135/U$3<=$K$31),U$2*ABS(SIN($R135/U$3*PI()))*$K$30,#N/A) ->  | V135: =IF( AND($R135/V$3>0,$R135/V$3<=$K$31),V$2*ABS(SIN($R135/V$3*PI()))*$K$30,#N/A) ->  | W135: =IF( AND($R135/W$3>= 0, $R135/W$3<=$K$31),W$2*ABS(SIN($R135/W$3*PI()))*$K$30,#N/A) -> 9.87264856 | X135: =IF( AND($R135/X$3>0,$R135/X$3<=$K$31),X$2*ABS(SIN($R135/X$3*PI()))*$K$30,#N/A) ->  | Y135: =IF( AND($R135/Y$3>= 0, $R135/Y$3<=$K$31),Y$2*ABS(SIN($R135/Y$3*PI()))*$K$30,#N/A) ->  | Z135: =IF( AND($R135/Z$3>0,$R135/Z$3<=$K$31),Z$2*ABS(SIN($R135/Z$3*PI()))*$K$30,#N/A) ->  | AA135: =IF( AND($R135/AA$3>= 0, $R135/AA$3<=$K$31),AA$2*ABS(SIN($R135/AA$3*PI()))*$K$30,#N/A) -> 11.48152889 | AB135: =IF( AND($R135/AB$3>0,$R135/AB$3<=$K$31),AB$2*ABS(SIN($R135/AB$3*PI()))*$K$30,#N/A) ->  | AD135: 122 | AE135: 32.01689491 | AF135: =IF(ABS(PI()*$K$18*$F$17*1000/$H$23/SIN($AD135*PI()/180))<1, $AF$4* ($K$16*$K$15*$I$23-$K$16*$H$23*COS($AD135*PI()/180))/$K$18/1000*(1-ASIN(PI()*$K$18*$F$17*1000/$H$23/SIN($AD135*PI()/180))/PI()), #N/A) -> 2.089217629 | AG135: =IF($K$9=1, $AF$4*($K$16*$K$15*$I$23-$K$16*$H$23*COS($AD135*PI()/180))/$K$18/1000,#N/A) ->  | AH135: =IF( $K$10 < AD135, $K$16*$I$24-$M$4-$K$16*$K$15*$H$24*COS($AD135*PI()/180), #N/A) ->  | AI135: =IF(ABS(PI()*$K$18*$F$17*1000/$H$24/SIN($AD135*PI()/180))<1, $AF$4*($K$16*$K$15*$I$24-$K$16*$H$24*COS($AD135*PI()/180))/$K$18/1000*(1-ASIN(PI()*$K$18*$F$17*1000/$H$24/SIN($AD135*PI()/180))/PI()), #N/A) ->  | AJ135: =IF( $K$10 > AD135, #N/A, $K$16*$I$25-$M$4-$K$16*$K$15*$H$25*COS($AD135*PI()/180)) -> 29.67618949 | AK135: =IF(ABS(PI()*$K$18*$F$17*1000/$H$25/SIN($AD135*PI()/180))<1,$AF$4* ($K$16*$K$15*$I$25-$K$16*$H$25*COS($AD135*PI()/180))/$K$18/1000*(1-ASIN(PI()*$K$18*$F$17*1000/$H$25/SIN($AD135*PI()/180))/PI()), #N/A) -> 2.031043607 | AL135: =IF( $K$10 > AD135, #N/A, $K$16*$I$26-$M$4-$K$16*$K$15*$H$26*COS($AD135*PI()/180)) -> 27.0856782 | AM135: =IF(ABS(PI()*$K$18*$F$17*1000/$H$26/SIN($AD135*PI()/180))<1, $AF$4* ($K$16*$K$15*$I$26-$K$16*$H$26*COS($AD135*PI()/180))/$K$18/1000*(1-ASIN(PI()*$K$18*$F$17*1000/$H$26/SIN($AD135*PI()/180))/PI()), #N/A) -> 1.963557326 | AN135: =IF( $K$10 > AD135, #N/A, $K$16*$I$27-$M$4-$K$16*$K$15*$H$27*COS($AD135*PI()/180)) -> 31.3553814 | AO135: =IF(ABS(PI()*$K$18*$F$17*1000/$H$27/SIN($AD135*PI()/180))<1, $AF$4*($K$16*$K$15*$I$27-$K$16*$H$27*COS($AD135*PI()/180))/$K$18/1000*(1-ASIN(PI()*$K$18*$F$17*1000/$H$27/SIN($AD135*PI()/180))/PI()), #N/A) -> 2.073023689
O136: 0.5942667743 | P136: 0.5942667743 | Q136: 10.75553138 | R136: =R135+$R$4 -> -0.35 | S136: 12.20114896 | W136: 10.18587068 | Y136: 0.3665638675 | AA136: 11.61770656 | AD136: 123 | AE136: 32.30607951 | AF136: 2.115208263 | AJ136: 29.94845206 | AK136: 2.055485032 | AL136: 27.33829165 | AM136: 1.986198863 | AN136: 31.63985709 | AO136: 2.098583295
O137: 0.5774141865 | P137: 0.5774141865 | Q137: 10.73885924 | R137: -0.345 | S137: 12.29481516 | W137: 10.4879848 | Y137: 0.9727505453 | AA137: 11.74481297 | AD137: 124 | AE137: 32.59200479 | AF137: 2.140890131 | AJ137: 30.21764603 | AK137: 2.079634783 | AL137: 27.58805797 | AM137: 2.00856852 | AN137: 31.92112653 | AO137: 2.123838895
O138: 0.5608037859 | P138: 0.5608037859 | Q138: 10.72242669 | R138: -0.34 | S138: 12.37976585 | W138: 10.77866147 | Y138: 1.577011601 | AA138: 11.86274887 | AD138: 125 | AE138: 32.87458366 | AF138: 2.166254638 | AJ138: 30.48368941 | AK138: 2.103484715 | AL138: 27.83490107 | AM138: 2.030658673 | AN138: 32.19910406 | AO138: 2.14878202
O139: 0.5444355854 | P139: 0.5444355854 | Q139: 10.70623376 | R139: -0.335 | S139: 12.4559408 | W139: 11.05758369 | Y139: 2.178150862 | AA139: 11.97142218 | AD139: 126 | AE139: 33.15373004 | AF139: 2.191293236 | AJ139: 30.74650116 | AK139: 2.127026724 | AL139: 28.07874577 | AM139: 2.052461729 | AN139: 32.47370498 | AO139: 2.173404244
O140: 0.5283095977 | P140: 0.5283095977 | Q140: 10.69028046 | R140: -0.33 | S140: 12.52328601 | W140: 11.32444728 | Y140: 2.774978335 | AA140: 12.07074803 | AD140: 127 | AE140: 33.4293589 | AF140: 2.215997421 | AJ140: 31.00600122 | AK140: 2.150252741 | AL140: 28.31951779 | AM140: 2.073970126 | AN140: 32.74484567 | AO140: 2.197697186
O141: 0.5124258353 | P141: 0.5124258353 | Q141: 10.67456679 | R141: -0.325 | S141: 12.58175375 | W141: 11.57896123 | Y141: 3.36631256 | AA141: 12.16064887 | AD141: 128 | AE141: 33.70138628 | AF141: 2.240358727 | AJ141: 31.26211055 | AK141: 2.173154731 | AL141: 28.55714377 | AM141: 2.095176323 | AN141: 33.01244352 | AO141: 2.221652499
O142: 0.4967843105 | P142: 0.4967843105 | Q142: 10.65909277 | R142: -0.32 | S142: 12.63130256 | W142: 11.82084798 | Y142: 3.950982956 | AA142: 12.24105451 | AD142: 129 | AE142: 33.96972932 | AF142: 2.264368727 | AJ142: 31.51475114 | AK142: 2.19572469 | AL142: 28.79155136 | AM142: 2.116072802 | AN142: 33.27641702 | AO142: 2.245261874
O143: 0.4813850353 | P143: 0.4813850353 | Q143: 10.64385841 | R143: -0.315 | S143: 12.67189733 | W143: 12.04984375 | Y143: 4.527832128 | AA143: 12.31190217 | AD143: 130 | AE143: 34.23430628 | AF143: 2.288019027 | AJ143: 31.76384602 | AK143: 2.217954639 | AL143: 29.02266913 | AM143: 2.136652064 | AN143: 33.53668577 | AO143: 2.268517035
O144: 0.4662280217 | P144: 0.4662280217 | Q144: 10.62886372 | R144: -0.31 | S144: 12.70350928 | W144: 12.2656988 | Y144: 5.095718168 | AA144: 12.37313653 | AD144: 131 | AE144: 34.49503657 | AF144: 2.311301263 | AJ144: 32.00931931 | AK144: 2.239836618 | AL144: 29.25042668 | AM144: 2.156906616 | AN144: 33.79317048 | AO144: 2.291409727
O145: 0.4513132814 | P145: 0.4513132814 | Q145: 10.61410872 | R145: -0.305 | S145: 12.72611599 | W145: 12.46817775 | Y145: 5.653516909 | AA145: 12.42470977 | AD145: 132 | AE145: 34.75184076 | AF145: 2.334207093 | AJ145: 32.25109626 | AK145: 2.261362686 | AL145: 29.47475465 | AM145: 2.176828975 | AN145: 34.04579302 | AO145: 2.313931722
O146: 0.4366408261 | P146: 0.4366408261 | Q146: 10.59959341 | R146: -0.3 | S146: 12.73970145 | W146: 12.65705978 | Y146: 6.200124152 | AA146: 12.46658163 | AD146: 133 | AE146: 35.00464063 | AF146: 2.35672819 | AJ146: 32.4891032 | AK146: 2.282524905 | AL146: 29.6955847 | AM146: 2.196411652 | AN146: 34.29447645 | AO146: 2.336074801
O147: 0.4222106669 | P147: 0.4222106669 | Q147: 10.58531781 | R147: -0.295 | S147: 12.74425601 | W147: 12.83213891 | Y147: 6.734457855 | AA147: 12.49871941 | AD147: 134 | AE147: 35.25335918 | AF147: 2.378856236 | AJ147: 32.72326765 | AK147: 2.303315338 | AL147: 29.91284956 | AM147: 2.215647147 | AN147: 34.53914502 | AO147: 2.357830754
O148: 0.4080228152 | P148: 0.4080228152 | Q148: 10.57128193 | R148: -0.29 | S148: 12.73977647 | W148: 12.99322421 | Y148: 7.255460268 | AA148: 12.52109801 | AD148: 135 | AE148: 35.49792064 | AF148: 2.400582913 | AJ148: 32.95351826 | AK148: 2.323726038 | AL148: 30.12648305 | AM148: 2.234527939 | AN148: 34.77972419 | AO148: 2.379191365
O149: 0.3940772818 | P149: 0.3940772818 | Q149: 10.55748577 | R149: -0.285 | S149: 12.72626598 | W149: 13.14014002 | Y149: 7.762100035 | AA149: 12.53369997 | AD149: 136 | AE149: 35.73825052 | AF149: 2.42189989 | AJ149: 33.17978491 | AK149: 2.343749037 | AL149: 30.3364201 | AM149: 2.253046472 | AN149: 35.01614068 | AO149: 2.400148404
O150: 0.3803740777 | P150: 0.3803740777 | Q150: 10.54392935 | R150: -0.28 | S150: 12.70373412 | W150: 13.27272612 | Y150: 8.253374229 | AA150: 12.53651545 | AD150: 137 | AE150: 35.97427561 | AF150: 2.442798811 | AJ150: 33.40199867 | AK150: 2.363376329 | AL150: 30.54259675 | AM150: 2.271195143 | AN150: 35.24832247 | AO150: 2.420693614
O151: 0.3669132134 | P151: 0.3669132134 | Q151: 10.53061268 | R151: -0.275 | S151: 12.67219688 | W151: 13.39083791 | Y151: 8.728310343 | AA151: 12.52954224 | AD151: 138 | AE151: 36.20592401 | AF151: 2.463271281 | AJ151: 33.62009185 | AK151: 2.382599859 | AL151: 30.74495021 | AM151: 2.288966284 | AN151: 35.47619885 | AO151: 2.440818695
O152: 0.3536946993 | P152: 0.3536946993 | Q152: 10.51753577 | R152: -0.27 | S152: 12.6316766 | W152: 13.4943466 | Y152: 9.18596821 | AA152: 12.51278579 | AD152: 139 | AE152: 36.43312517 | AF152: 2.483308846 | AJ152: 33.83399803 | AK152: 2.401411505 | AL152: 30.94341883 | AM152: 2.306352148 | AN152: 35.6997004 | AO152: 2.460515286
O153: 0.3407185457 | P153: 0.3407185457 | Q153: 10.50469862 | R153: -0.265 | S153: 12.582202 | W153: 13.58313931 | Y153: 9.625441866 | AA153: 12.48625919 | AD153: 140 | AE153: 36.65580987 | AF153: 2.502902977 | AJ153: 34.04365203 | AK153: 2.419803052 | AL153: 31.13794217 | AM153: 2.323344879 | AN153: 35.91875904 | AO153: 2.479774945
O154: 0.3279847626 | P154: 0.3279847626 | Q154: 10.49210125 | R154: -0.26 | S154: 12.52380817 | W154: 13.6571192 | Y154: 10.04586135 | AA154: 12.44998314 | AD154: 141 | AE154: 36.87391029 | AF154: 2.522045041 | AJ154: 34.24899 | AK154: 2.437766173 | AL154: 31.32846095 | AM154: 2.339936493 | AN154: 36.13330804 | AO154: 2.498589126
O155: 0.31549336 | P155: 0.31549336 | Q155: 10.47974367 | R155: -0.255 | S155: 12.45653649 | W155: 13.7162056 | Y155: 10.4463944 | AA155: 12.40398598 | AD155: 142 | AE155: 37.08735998 | AF155: 2.540726276 | AJ155: 34.4499494 | AK155: 2.455292397 | AL155: 31.51491716 | AM155: 2.356118846 | AN155: 36.34328204 | AO155: 2.516949148
O156: 0.3032443474 | P156: 0.3032443474 | Q156: 10.46762589 | R156: -0.25 | S156: 12.38043465 | W156: 13.76033407 | Y156: 10.82624816 | AA156: 12.34830361 | AD156: 143 | AE156: 37.29609393 | AF156: 2.558937758 | AJ156: 34.646469 | AK156: 2.472373076 | AL156: 31.697254 | AM156: 2.371883599 | AN156: 36.5486171 | AO156: 2.534846166
O157: 0.2912377343 | P157: 0.2912377343 | Q157: 10.45574791 | R157: -0.245 | S157: 12.2955566 | W157: 13.78945649 | Y157: 11.18467066 | AA157: 12.28297952 | AD157: 144 | AE157: 37.50004856 | AF157: 2.576670362 | AJ157: 34.83848894 | AK157: 2.488999345 | AL157: 31.87541592 | AM157: 2.387222175 | AN157: 36.74925065 | AO157: 2.552271127
O158: 0.2794735301 | P158: 0.2794735301 | Q158: 10.44410975 | R158: -0.24 | S158: 12.20196251 | W158: 13.8035411 | Y158: 11.5209524 | AA158: 12.20806471 | AD158: 145 | AE158: 37.69916174 | AF158: 2.593914715 | AJ158: 35.02595074 | AK158: 2.505162074 | AL158: 32.04934865 | AM158: 2.402125712 | AN158: 36.94512159 | AO158: 2.569214726
O159: 0.2679517439 | P159: 0.2679517439 | Q159: 10.43271141 | R159: -0.235 | S159: 12.09971872 | W159: 13.80257253 | Y159: 11.83442767 | AA159: 12.12361768 | AD159: 146 | AE159: 37.89337281 | AF159: 2.610661142 | AJ159: 35.20879729 | AK159: 2.520851815 | AL159: 32.21899921 | AM159: 2.416585008 | AN159: 37.13617024 | AO159: 2.585667355
O160: 0.2566723847 | P160: 0.2566723847 | Q160: 10.4215529 | R160: -0.23 | S160: 11.98889771 | W160: 13.78655186 | Y160: 12.12447594 | AA160: 12.02970435 | AD160: 147 | AE160: 38.08262263 | AF160: 2.626899604 | AJ160: 35.3869729 | AK160: 2.536058733 | AL160: 32.38431593 | AM160: 2.430590446 | AN160: 37.32233843 | AO160: 2.60161903
O161: 0.245635461 | P161: 0.245635461 | Q161: 10.41063424 | R161: -0.225 | S161: 11.86957804 | W161: 13.75549654 | Y161: 12.39052304 | AA161: 11.92639807 | AD161: 148 | AE161: 38.26685354 | AF161: 2.642619617 | AJ161: 35.56042328 | AK161: 2.550772529 | AL161: 32.54524845 | AM161: 2.444131919 | AN161: 37.50356943 | AO161: 2.617059323
O162: 0.2348409816 | P162: 0.2348409816 | Q162: 10.39995542 | R162: -0.22 | S162: 11.7418443 | W162: 13.70944045 | Y162: 12.6320423 | AA162: 11.81377949 | AD162: 149 | AE162: 38.44600942 | AF162: 2.657810165 | AJ162: 35.72909561 | AK162: 2.564982344 | AL162: 32.70174775 | AM162: 2.457198729 | AN162: 37.67980804 | AO162: 2.631977262
O163: 0.2242889547 | P163: 0.2242889547 | Q163: 10.38951646 | R163: -0.215 | S163: 11.60578702 | W163: 13.6484338 | Y163: 12.84855564 | AA163: 11.69193655 | AD163: 150 | AE163: 38.6200357 | AF163: 2.672459584 | AJ163: 35.89293851 | AK163: 2.578676647 | AL163: 32.85376615 | AM163: 2.469779469 | AN163: 37.85100058 | AO163: 2.646361221
O164: 0.2139793886 | P164: 0.2139793886 | Q164: 10.37931736 | R164: -0.21 | S164: 11.46150267 | W164: 13.57254313 | Y164: 13.03963443 | AA164: 11.56096439 | AD164: 151 | AE164: 38.78887937 | AF164: 2.686555431 | AJ164: 36.05190206 | AK164: 2.591843095 | AL164: 33.00125735 | AM164: 2.481861882 | AN164: 38.01709491 | AO164: 2.660198788
O165: 0.2039122912 | P165: 0.2039122912 | Q165: 10.36935814 | R165: -0.205 | S165: 11.30909351 | W165: 13.48185121 | Y165: 13.20490044 | AA165: 11.42096526 | AD165: 152 | AE165: 38.952489 | AF165: 2.700084317 | AJ165: 36.20593786 | AK165: 2.604468368 | AL165: 33.14417642 | AM165: 2.493432691 | AN165: 38.17804042 | AO165: 2.673476596
O166: 0.1940876704 | P166: 0.1940876704 | Q166: 10.3596388 | R166: -0.2 | S166: 11.14866759 | W166: 13.37645692 | Y166: 13.34402651 | AA166: 11.27204849 | AD166: 153 | AE166: =IF( $K$10 < AD166, $K$16*$I$23-$M$4-$K$16*$K$15*$H$23*COS($AD166*PI()/180), #N/A) -> 39.11081476 | AF166: 2.713031712 | AJ166: 36.35499896 | AK166: 2.61653796 | AL166: 33.28247982 | AM166: 2.504477378 | AN166: 38.33378809 | AO166: 2.686180125
O167: 0.1845055337 | P167: 0.1845055337 | Q167: 10.35015935 | R167: -0.195 | S167: 10.98033863 | W167: 13.25647522 | Y167: 13.45673722 | AA167: 11.11433035 | AD167: 154 | AE167: 39.26380841 | AF167: 2.725381692 | AJ167: 36.49903998 | AK167: 2.62803593 | AL167: 33.41612544 | AM167: 2.514979934 | AN167: 38.48429048 | AO167: 2.698293448
O168: 0.1751658886 | P168: 0.1751658886 | Q168: 10.34091979 | R168: -0.19 | S168: 10.80422595 | W168: 13.12203693 | Y168: 13.54280947 | AA168: 10.94793398 | AD168: 155 | AE168: 39.41142335 | AF168: 2.737116637 | AJ168: 36.63801703 | AK168: 2.638944585 | AL168: 33.54507256 | AM168: 2.524922523 | AN168: 38.62950175 | AO168: 2.70979893
O169: 0.1660687423 | P169: 0.1660687423 | Q169: 10.33192013 | R169: -0.185 | S169: 10.6204544 | W169: 12.97328868 | Y169: 13.60207286 | AA169: 10.77298932 | AD169: 156 | AE169: 39.55361461 | AF169: 2.748216843 | AJ169: 36.77188779 | AK169: 2.649244085 | AL169: 33.66928189 | AM169: 2.534285086 | AN169: 38.76937766 | AO169: 2.720676834
O170: 0.1572141019 | P170: 0.1572141019 | Q170: 10.32316039 | R170: -0.18 | S170: 10.42915425 | W170: 12.81039267 | Y170: 13.63441007 | AA170: 10.58963296 | AD170: 157 | AE170: 39.6903389 | AF170: 2.75866004 | AJ170: 36.90061146 | AK170: 2.658911949 | AL170: 33.78871562 | AM170: 2.54304482 | AN170: 38.9038756 | AO170: 2.730904835
O171: 0.1486019742 | P171: 0.1486019742 | Q171: 10.31464055 | R171: -0.175 | S171: 10.23046111 | W171: 12.63352655 | Y171: 13.63975711 | AA171: 10.39800807 | AD171: 158 | AE171: 39.82155454 | AF171: 2.76842077 | AJ171: 37.02414884 | AK171: 2.667922421 | AL171: 33.90333734 | AM171: 2.551175528 | AN171: 39.03295461 | AO171: 2.740457401
O172: 0.140232366 | P172: 0.140232366 | Q172: 10.30636064 | R172: -0.17 | S172: 10.02451582 | W172: 12.44288319 | Y172: 13.61810337 | AA172: 10.19826427 | AD172: 159 | AE172: 39.94722159 | AF172: 2.777469597 | AJ172: 37.14246231 | AK172: 2.676245653 | AL172: 34.01311216 | AM172: 2.558646776 | AN172: 39.15657537 | AO172: 2.749304987
O173: 0.1321052836 | P173: 0.1321052836 | Q173: 10.29832066 | R173: -0.165 | S173: 9.811464384 | W173: 12.2386705 | Y173: 13.56949173 | AA173: 9.99055753 | AD173: 160 | AE173: 40.06730175 | AF173: 2.785772067 | AJ173: 37.25551582 | AK173: 2.683846643 | AL173: 34.11800662 | AM173: 2.565422796 | AN173: 39.27470022 | AO173: 2.757412996
O174: 0.1242207335 | P174: 0.1242207335 | Q174: 10.29052061 | R174: -0.16 | S174: 9.591457817 | W174: 12.02111118 | Y174: 13.49401842 | AA174: 9.775050022 | AD174: 161 | AE174: 40.18175845 | AF174: 2.793287343 | AJ174: 37.36327493 | AK174: 2.690683839 | AL174: 34.21798879 | AM174: 2.571461042 | AN174: 39.38729317 | AO174: 2.764740405
O175: 0.1165787217 | P175: 0.1165787217 | Q175: 10.28296051 | R175: -0.155 | S175: 9.364652081 | W175: 11.79044248 | Y175: 13.39183283 | AA175: 9.55191002 | AD175: 162 | AE175: 40.29055682 | AF175: 2.799966388 | AJ175: 37.46570682 | AK175: 2.696707269 | AL175: 34.3130282 | AM175: 2.576710265 | AN175: 39.49431994 | AO175: 2.77123793
O176: 0.1091792541 | P176: 0.1091792541 | Q176: 10.27564035 | R176: -0.15 | S176: 9.131207953 | W176: 11.54691595 | Y176: 13.26313726 | AA176: 9.321311755 | AD176: 163 | AE176: 40.39366373 | AF176: 2.805749495 | AJ176: 37.56278029 | AK176: 2.701856016 | AL176: 34.4030959 | AM176: 2.581107892 | AN176: 39.59574792 | AO176: 2.776845543
O177: 0.1020223365 | P177: 0.1020223365 | Q177: 10.26856014 | R177: -0.145 | S177: 8.891290918 | W177: 11.29079717 | Y177: 13.10818646 | AA177: 9.083435282 | AD177: 164 | AE177: 40.49104777 | AF177: 2.810562886 | AJ177: 37.65446577 | AK177: 2.706054724 | AL177: 34.48816446 | AM177: 2.584576429 | AN177: 39.69154621 | AO177: 2.781489051
O178: 0.0951079745 | P178: 0.0951079745 | Q178: 10.26171988 | R178: -0.14 | S178: 8.645071046 | W178: 11.02236545 | Y178: 12.92728717 | AA178: 8.838466337 | AD178: 165 | AE178: 40.58267927 | AF178: 2.814313951 | AJ178: 37.74073532 | AK178: 2.709208719 | AL178: 34.56820797 | AM178: 2.587018408 | AN178: 39.78168564 | AO178: 2.785075297
O179: 0.08843617335 | P179: 0.08843617335 | Q179: 10.25511959 | R179: -0.135 | S179: 8.392722878 | W179: 10.7419135 | Y179: 12.72079749 | AA179: 8.586596197 | AD179: 166 | AE179: 40.66853032 | AF179: 2.81688442 | AJ179: 37.82156268 | AK179: 2.711197002 | AL179: 34.64320204 | AM179: 2.588309143 | AN179: 39.86613874 | AO179: 2.787485287
O180: 0.08200693827 | P180: 0.08200693827 | Q180: 10.24875927 | R180: -0.13 | S180: 8.134425298 | W180: 10.44974718 | Y180: 12.48912619 | AA180: 8.328021524 | AD180: 167 | AE180: 40.74857477 | AF180: 2.81812037 | AJ180: 37.89692322 | AK180: 2.71186199 | AL180: 34.71312383 | AM180: 2.588286119 | AN180: 39.9448798 | AO180: 2.78856413
O181: 0.07582027424 | P181: 0.07582027424 | Q181: 10.24263892 | R181: -0.125 | S181: 7.870361406 | W181: 10.14618511 | Y181: 12.23273185 | AA181: 8.062944217 | AD181: 168 | AE181: 40.82278823 | AF181: 2.81781718 | AJ181: 37.96679399 | AK181: 2.710994073 | AL181: 34.77795204 | AM181: 2.586733003 | AN181: 40.01788481 | AO181: 2.788105879
O182: 0.06987618607 | P182: 0.06987618607 | Q182: 10.23675854 | R182: -0.12 | S182: 7.600718391 | W182: 9.831558315 | Y182: 11.95212205 | AA182: 7.791571253 | AD182: 169 | AE182: 40.89114811 | AF182: 2.815696198 | AJ182: 38.03115369 | AK182: 2.708307646 | AL182: 34.83766692 | AM182: 2.583354812 | AN182: 40.08513156 | AO182: 2.785830041
O183: 0.06417467836 | P183: 0.06417467836 | Q183: 10.23111815 | R183: -0.115 | S183: 7.325687399 | W183: 9.506209918 | Y183: 11.64785226 | AA183: 7.514114522 | AD183: 170 | AE183: 40.95363358 | AF183: 2.811367228 | AJ183: 38.08998274 | AK183: 2.703402549 | AL183: 34.89225029 | AM183: 2.577737942 | AN183: 40.14659955 | AO183: 2.78134378
O184: 0.05871575554 | P184: 0.05871575554 | Q184: 10.22571774 | R184: -0.11 | S184: 7.045463391 | W184: 9.170494718 | Y184: 11.3205248 | AA184: 7.230790667 | AD184: 171 | AE184: 41.0102256 | AF184: 2.804265627 | AJ184: 38.1432632 | AK184: 2.695699359 | AL184: 34.94168552 | AM184: 2.569282994 | AN184: 40.20227006 | AO184: 2.774078535
O185: 0.05349942184 | P185: 0.05349942184 | Q185: 10.22055732 | R185: -0.105 | S185: 6.760245013 | W185: 8.824778821 | Y185: 10.97078764 | AA185: 6.941820912 | AD185: 172 | AE185: 41.06090693 | AF185: 2.793541316 | AJ185: 38.19097884 | AK185: 2.684325097 | AL185: 34.98595754 | AM185: 2.557085956 | AN185: 40.25212613 | AO185: 2.763178166
O186: 0.0485256813 | P186: 0.0485256813 | Q186: 10.21563689 | R186: -0.1 | S186: 6.470234448 | W186: 8.469439242 | Y186: 10.5993331 | AA186: 6.647430887 | AD186: 173 | AE186: 41.10566215 | AF186: 2.777850344 | AJ186: 38.23311515 | AK186: 2.667898269 | AL186: 35.02505288 | AM186: 2.539714249 | AN186: 40.29615258 | AO186: 2.747288795
O187: 0.04379453779 | P187: 0.04379453779 | Q187: 10.21095647 | R187: -0.095 | S187: 6.175637281 | W187: 8.104863489 | Y187: 10.20689651 | AA187: 6.347850457 | AD187: 174 | AE187: 41.14447761 | AF187: 2.754931291 | AJ187: 38.26965927 | AK187: 2.64409106 | AL187: 35.05895962 | AM187: 2.514749215 | AN187: 40.33433599 | AO187: 2.72413148
O188: 0.03930599496 | P188: 0.03930599496 | Q188: 10.20651604 | R188: -0.09 | S188: 5.876662342 | W188: 7.731449142 | Y188: 9.794254722 | AA188: 6.043313538 | AD188: 175 | AE188: 41.17734149 | AF188: 2.720650478 | AJ188: 38.30060007 | AK188: 2.608639297 | AL188: 35.08766743 | AM188: 2.477746548 | AN188: 40.36666473 | AO188: 2.68953819
O189: 0.03506005632 | P189: 0.03506005632 | Q189: 10.20231561 | R189: -0.085 | S189: 5.57352157 | W189: 7.349603421 | Y189: 9.362224577 | AA189: 5.734057917 | AD189: 176 | AE189: 41.20424378 | AF189: 2.66651791 | AJ189: 38.32592814 | AK189: 2.552752347 | AL189: 35.11116758 | AM189: 2.419494649 | AN189: 40.39312896 | AO189: 2.634940141
O190: 0.03105672514 | P190: 0.03105672514 | Q190: 10.1983552 | R190: -0.08 | S190: 5.266429854 | W190: 6.959742741 | Y190: 8.911661312 | AA190: 5.420325064 | AD190: 177 | AE190: 41.22517628 | AF190: 2.571656508 | AJ190: 38.34563575 | AK190: 2.454647881 | AL190: 35.1294529 | AM190: 2.316908966 | AN190: 40.41372062 | AO190: 2.539224959
O191: 0.02729600453 | P191: 0.02729600453 | Q191: 10.19463479 | R191: -0.075 | S191: 4.955604884 | W191: 6.562292254 | Y191: 8.443456844 | AA191: 5.102359946 | AD191: 178 | AE191: 41.24013263 | AF191: 2.364232484 | AJ191: 38.35971691 | AK191: 2.237641328 | AL191: 35.14251782 | AM191: 2.085785281 | AN191: 40.42843342 | AO191: 2.329325662
O192: 0.02377789741 | P192: 0.02377789741 | Q192: 10.1911544 | R192: -0.07 | S192: 4.641266997 | W192: 6.157685394 | Y192: 7.958538015 | AA192: 4.780410836 | AD192: 179 | AE192: 41.24910826 | AJ192: 38.36816732 | AL192: 35.15035837 | AN192: 40.4372629
O193: 0.02050240651 | P193: 0.02050240651 | Q193: 10.18791402 | R193: -0.065 | S193: 4.32363902 | W193: 5.746363395 | Y193: 7.457864753 | AA193: 4.454729116
O194: 0.01746953438 | P194: 0.01746953438 | Q194: 10.18491366 | R194: -0.06 | S194: 4.002946113 | W194: 5.328774818 | Y194: 6.942428171 | AA194: 4.125569081
O195: 0.01467928335 | P195: 0.01467928335 | Q195: 10.18215332 | R195: -0.055 | S195: 3.679415607 | W195: 4.905375053 | Y195: 6.41324861 | AA195: 3.793187746
O196: 0.0121316556 | P196: 0.0121316556 | Q196: 10.179633 | R196: -0.05 | S196: 3.353276846 | W196: 4.476625832 | Y196: 5.871373614 | AA196: 3.457844637
O197: 0.009826653108 | P197: 0.009826653108 | Q197: 10.17735271 | R197: -0.045 | S197: 3.024761023 | W197: 4.042994718 | Y197: 5.317875859 | AA197: 3.119801596
O198: =(SQRT($K$18*$K$18*R198*R198*1000000+$M$4*$M$4))-$M$4 -> 0.007764277656 | P198: =(COS($P$1*PI()/180)*SQRT($K$18*$K$18*R198*R198*1000000+$P$3)-$P$2*$K$17*R198*1000)/(1-$P$2)-$M$4 -> 0.007764277656 | Q198: 10.17531244 | R198: -0.04 | S198: 2.694101015 | W198: 3.604954598 | Y198: 4.75385103 | AA198: 2.779322571
O199: 0.005944530845 | P199: 0.005944530845 | Q199: =SQRT((R199*R199+PI()*PI()*$F$18*$F$18)*$K$18*$K$18*1000000+$M$4*$M$4) - $M$4 -> 10.1735122 | R199: -0.035 | S199: =IF( AND($R199/S$3>= 0, $R199/S$3<=$K$31),S$2*ABS(SIN($R199/S$3*PI()))*$K$30,#N/A) -> 2.361531218 | T199: =IF( AND($R199/T$3>0,$R199/T$3<=$K$31),T$2*ABS(SIN($R199/T$3*PI()))*$K$30,#N/A) ->  | U199: =IF( AND($R199/U$3>= 0, $R199/U$3<=$K$31),U$2*ABS(SIN($R199/U$3*PI()))*$K$30,#N/A) ->  | V199: =IF( AND($R199/V$3>0,$R199/V$3<=$K$31),V$2*ABS(SIN($R199/V$3*PI()))*$K$30,#N/A) ->  | W199: =IF( AND($R199/W$3>= 0, $R199/W$3<=$K$31),W$2*ABS(SIN($R199/W$3*PI()))*$K$30,#N/A) -> 3.162983169 | X199: =IF( AND($R199/X$3>0,$R199/X$3<=$K$31),X$2*ABS(SIN($R199/X$3*PI()))*$K$30,#N/A) ->  | Y199: =IF( AND($R199/Y$3>= 0, $R199/Y$3<=$K$31),Y$2*ABS(SIN($R199/Y$3*PI()))*$K$30,#N/A) -> 4.18041565 | Z199: =IF( AND($R199/Z$3>0,$R199/Z$3<=$K$31),Z$2*ABS(SIN($R199/Z$3*PI()))*$K$30,#N/A) ->  | AA199: =IF( AND($R199/AA$3>= 0, $R199/AA$3<=$K$31),AA$2*ABS(SIN($R199/AA$3*PI()))*$K$30,#N/A) -> 2.436673412 | AB199: =IF( AND($R199/AB$3>0,$R199/AB$3<=$K$31),AB$2*ABS(SIN($R199/AB$3*PI()))*$K$30,#N/A) -> 
O200: 0.004367414087 | P200: 0.004367414087 | Q200: 10.17195199 | R200: =R199+$R$4 -> -0.03 | S200: 2.027287386 | W200: 2.717562413 | Y200: 3.59870487 | AA200: 2.092121665
... 206 more rows

Sheet Calculation2
A1: mp | B1: 938.2720813 | G1: A | H1: Z | I1: Sysmbol | J1: index | K1: Binding energy | L1: N | M1: Mass (MeV/c^2) | P1: =Reaction2!C25 -> 0
A2: mn | B2: 939.5654133 | E2: BEAM | F2: =Reaction2!C7 -> 14C | G2: =IF(F2="n",1,IF(F2="p",1,IF(F2="d",2,IF(F2="t",3,IF(F2="a",4,SUBSTITUTE(F2,I2,"")))))) -> 14 | H2: =VLOOKUP(I2,MASS2020!$D$3:$E$3800,2,FALSE) -> 6 | I2: =IF(F2="n","nn",IF(OR(F2="p",F2="d",F2="t"),"H",IF(F2="a","He",SUBSTITUTE(SUBSTITUTE(SUBSTITUTE(SUBSTITUTE(SUBSTITUTE(SUBSTITUTE(SUBSTITUTE(SUBSTITUTE(SUBSTITUTE(SUBSTITUTE(F2,"0",""),"1",""),"2",""),"3",""),"4",""),"5",""),"6",""),"7",""),"8",""),"9","")))) -> C | J2: =G2+10000*H2 -> 60014 | K2: =VLOOKUP(J2,MASS2020!$A$3:$I$3800, 9, FALSE)/1000*G2 -> 105.2844772 | L2: =G2-H2 -> 8 | M2: =H2*$B$1+L2*$B$2-K2 + K11 -> 13040.87132 | P2: =POWER(K16*SIN(P1*PI()/180),2) -> 0 | Q2: 2*rho-> | R2: =Reaction2!G35 -> -1 | S2: =IF(G33="", NA(), G33) -> 7.944605438 | T2: =IF(M33="", NA(), M33) -> 1.324100906 | U2: =IF(G34="", NA(), G34) -> 7.699630124 | V2: =IF(M34="", NA(), M34) -> 1.283271687 | W2: =IF(G35="", NA(), G35) -> 7.446834354 | X2: =IF(M35="", NA(), M35) -> 1.241139059 | Y2: =IF(G36="", NA(), G36) -> 7.185392819 | Z2: =IF(M36="", NA(), M36) -> 1.19756547 | AA2: =IF(G37="", NA(), G37) -> 22.87557965 | AB2: =IF(M37="", NA(), M37) -> 3.812596608
A3: c | B3: 299792458 | E3: TARGET | F3: =Reaction2!C8 -> d | G3: =IF(F3="n",1,IF(F3="p",1,IF(F3="d",2,IF(F3="t",3,IF(F3="a",4,SUBSTITUTE(F3,I3,"")))))) -> 2 | H3: =VLOOKUP(I3,MASS2020!$D$3:$E$3800,2,FALSE) -> 1 | I3: =IF(F3="n","nn",IF(OR(F3="p",F3="d",F3="t"),"H",IF(F3="a","He",SUBSTITUTE(SUBSTITUTE(SUBSTITUTE(SUBSTITUTE(SUBSTITUTE(SUBSTITUTE(SUBSTITUTE(SUBSTITUTE(SUBSTITUTE(SUBSTITUTE(F3,"0",""),"1",""),"2",""),"3",""),"4",""),"5",""),"6",""),"7",""),"8",""),"9","")))) -> H | J3: =G3+10000*H3 -> 10002 | K3: =VLOOKUP(J3,MASS2020!$A$3:$I$3800, 9, FALSE)/1000*G3 -> 2.2245662 | L3: =G3-H3 -> 1 | M3: =H3*$B$1+L3*$B$2-K3 -> 1875.612928 | P3: =M4*M4*(1-P2) -> 880354.4985 | Q3: z0-> | R3: =Reaction2!G36 -> 1 | S3: =IF(E33="", NA(),E33) -> -0.4012014833 | T3: =IF(L33="", NA(),2*L33) -> 2.743955232 | U3: =IF(E34="", NA(),E34) -> -0.3582036595 | V3: =IF(L34="", NA(), L34*2) -> 2.73660968 | W3: =IF(E35="", NA(),E35) -> -0.3138011279 | X3: =IF(L35="", NA(), L35*2) -> 2.729030009 | Y3: =IF(E36="", NA(),E36) -> -0.2678456386 | Z3: =IF(L36="", NA(), L36*2) -> 2.72119151 | AA3: =IF(E37="", NA(),E37) -> -0.2290744609 | AB3: =IF(L37="", NA(), L37*2) -> 2.715267395 | AD3: =K21 -> 1.440336987
A4: eV | B4: 1.60217646e-19 | E4: LIGHT | F4: =Reaction2!C9 -> p | G4: =IF(F4="n",1,IF(F4="p",1,IF(F4="d",2,IF(F4="t",3,IF(F4="a",4,SUBSTITUTE(F4,I4,"")))))) -> 1 | H4: =VLOOKUP(I4,MASS2020!$D$3:$E$3800,2,FALSE) -> 1 | I4: =IF(F4="n","nn",IF(OR(F4="p",F4="d",F4="t"),"H",IF(F4="a","He",SUBSTITUTE(SUBSTITUTE(SUBSTITUTE(SUBSTITUTE(SUBSTITUTE(SUBSTITUTE(SUBSTITUTE(SUBSTITUTE(SUBSTITUTE(SUBSTITUTE(F4,"0",""),"1",""),"2",""),"3",""),"4",""),"5",""),"6",""),"7",""),"8",""),"9","")))) -> H | J4: =G4+10000*H4 -> 10001 | K4: =VLOOKUP(J4,MASS2020!$A$3:$I$3800, 9, FALSE)/1000*G4 -> 0 | L4: =G4-H4 -> 0 | M4: =H4*$B$1+L4*$B$2-K4 -> 938.2720813 | R4: =(R3-R2)/400 -> 0.005 | AD4: =(AD18-AD3)/12 -> 0.2966385845
A5: MeV | B5: 1.60217646e-13 | E5: HEAVY | F5: =G5&I5 -> 15C | G5: =G2+G3-G4 -> 15 | H5: =H2+H3-H4 -> 6 | I5: =VLOOKUP(J5, MASS2020!A3:D3800, 4, FALSE) -> C | J5: =G5+10000*H5 -> 60015 | K5: =VLOOKUP(J5,MASS2020!$A$3:$I$3800, 9, FALSE)/1000*G5 -> 106.502544 | L5: =G5-H5 -> 9 | M5: =H5*$B$1+L5*$B$2-K5 -> 13979.21866 | O5: thetaCM = 0 | P5: ="thetaCM="&P1 -> thetaCM=0 | Q5: Bore radius Boundary | R5: z [m] | S5: Rb(Ex1) | T5: RB(Ex1) | U5: Rb(Ex2) | V5: RB(Ex2) | W5: Rb(Ex3) | X5: RB(Ex3) | Y5: Rb(Ex4) | Z5: RB(Ex4) | AA5: Rb(Ex5) | AB5: RB(Ex5) | AD5: thetaCM | AE5: e | AF5: z(Ex1) | AG5: z0(Ex1) | AH5: e | AI5: z(Ex2) | AJ5: e | AK5: z(Ex3) | AL5: e | AM5: z(Ex4) | AN5: e | AO5: z(Ex5)
A6: amu | B6: 1.66053886e-27 | E6: =IF( G2-G5 > 0, "Removal", IF( G2-G5 < 0, "Adding", "Inelastic")) -> Adding | F6: =IF(G6=0, "",IF( I6="nn", "n", IF(G6&I6 = "1H", "p", IF(G6&I6 = "2H", "d", IF(G6&I6="3H", "t", IF(G6&I6="4He", "a", G6&I6)))))) -> n | G6: =ABS(G2-G5) -> 1 | H6: =ABS(H2-H5) -> 0 | I6: =IF(ISNA(I7), IF( G6=1, IF(H6=1, "p","n"), ""), I7) -> nn | J6: =G6+10000*H6 -> 1 | L6: Q-value | M6: =M2+M3-M4-M5 -> -1.0064994 | O6: =(SQRT($K$18*$K$18*(R6-$F$16)*(R6-$F$16)*1000000+$M$4*$M$4))-$M$4 -> 7.551941826 | P6: =(COS($P$1*PI()/180)*SQRT($K$18*$K$18*(R6-$F$16)*(R6-$F$16)*1000000+$P$3)-$P$2*$K$17*(R6-$F$16)*1000)/(1-$P$2)-$M$4 -> 7.551941826 | Q6: =SQRT((R6*R6+PI()*PI()*$F$18*$F$18)*$K$18*$K$18*1000000+$M$4*$M$4) - $M$4 -> 23.26685693 | R6: =R2 -> -1 | S6: =IF( AND(($R6-$F$16)/S$3>= 0, ($R6-$F$16)/S$3<=$K$31),S$2*ABS(SIN(($R6-$F$16)/S$3*PI()))*$K$30,#N/A) ->  | T6: =IF( AND(($R6-$F$16)/T$3>0,($R6-$F$16)/T$3<=$K$31),T$2*ABS(SIN(($R6-$F$16)/T$3*PI()))*$K$30,#N/A) ->  | U6: =IF( AND(($R6-$F$16)/U$3>= 0, ($R6-$F$16)/U$3<=$K$31),U$2*ABS(SIN(($R6-$F$16)/U$3*PI()))*$K$30,#N/A) ->  | V6: =IF( AND(($R6-$F$16)/V$3>0,($R6-$F$16)/V$3<=$K$31),V$2*ABS(SIN(($R6-$F$16)/V$3*PI()))*$K$30,#N/A) ->  | W6: =IF( AND(($R6-$F$16)/W$3>= 0, ($R6-$F$16)/W$3<=$K$31),W$2*ABS(SIN(($R6-$F$16)/W$3*PI()))*$K$30,#N/A) ->  | X6: =IF( AND(($R6-$F$16)/X$3>0,($R6-$F$16)/X$3<=$K$31),X$2*ABS(SIN(($R6-$F$16)/X$3*PI()))*$K$30,#N/A) ->  | Y6: =IF( AND(($R6-$F$16)/Y$3>= 0, ($R6-$F$16)/Y$3<=$K$31),Y$2*ABS(SIN(($R6-$F$16)/Y$3*PI()))*$K$30,#N/A) ->  | Z6: =IF( AND(($R6-$F$16)/Z$3>0,($R6-$F$16)/Z$3<=$K$31),Z$2*ABS(SIN(($R6-$F$16)/Z$3*PI()))*$K$30,#N/A) ->  | AA6: =IF( AND(($R6-$F$16)/AA$3>= 0, ($R6-$F$16)/AA$3<=$K$31),AA$2*ABS(SIN(($R6-$F$16)/AA$3*PI()))*$K$30,#N/A) ->  | AB6: =IF( AND(($R6-$F$16)/AB$3>0,($R6-$F$16)/AB$3<=$K$31),AB$2*ABS(SIN(($R6-$F$16)/AB$3*PI()))*$K$30,#N/A) ->  | AD6: =AD3 -> 1.440336987 | AE6: =IF( $K$10 > AD6, #N/A, $K$16*$I$23-$M$4-$K$16*$K$15*$H$23*COS($AD6*PI()/180)) -> 1.364057031 | AF6: =IF(ABS(PI()*$K$18*$F$17*1000/$H$23/SIN($AD6*PI()/180))<1, ($K$16*$K$15*$I$23-$K$16*$H$23*COS($AD6*PI()/180))/$K$18/1000*(1-ASIN(PI()*$K$18*$F$17*1000/$H$23/SIN($AD6*PI()/180))/PI())+$F$16, #N/A) ->  | AG6: =IF($K$9=0,#N/A,($K$16*$K$15*$I$23-$K$16*$H$23*COS($AD6*PI()/180))/$K$18/1000+$F$16) ->  | AH6: =IF( $K$10 > AD6, #N/A, $K$16*$I$24-$M$4-$K$16*$K$15*$H$24*COS($AD6*PI()/180)) -> 1.098339511 | AI6: =IF(ABS(PI()*$K$18*$F$17*1000/$H$24/SIN($AD6*PI()/180))<1, ($K$16*$K$15*$I$24-$K$16*$H$24*COS($AD6*PI()/180))/$K$18/1000*(1-ASIN(PI()*$K$18*$F$17*1000/$H$24/SIN($AD6*PI()/180))/PI())+$F$16, #N/A) ->  | AJ6: =IF( $K$10 > AD6, #N/A, $K$16*$I$25-$M$4-$K$16*$K$15*$H$25*COS($AD6*PI()/180)) -> 0.8542001813 | AK6: =IF(ABS(PI()*$K$18*$F$17*1000/$H$25/SIN($AD6*PI()/180))<1, ($K$16*$K$15*$I$25-$K$16*$H$25*COS($AD6*PI()/180))/$K$18/1000*(1-ASIN(PI()*$K$18*$F$17*1000/$H$25/SIN($AD6*PI()/180))/PI())+$F$16, #N/A) ->  | AL6: =IF( $K$10 > AD6, #N/A, $K$16*$I$26-$M$4-$K$16*$K$15*$H$26*COS($AD6*PI()/180)) -> 0.6339233655 | AM6: =IF(ABS(PI()*$K$18*$F$17*1000/$H$26/SIN($AD6*PI()/180))<1, ($K$16*$K$15*$I$26-$K$16*$H$26*COS($AD6*PI()/180))/$K$18/1000*(1-ASIN(PI()*$K$18*$F$17*1000/$H$26/SIN($AD6*PI()/180))/PI())+$F$16, #N/A) ->  | AN6: =IF( $K$10 > AD6, #N/A, $K$16*$I$27-$M$4-$K$16*$K$15*$H$27*COS($AD6*PI()/180)) -> 1.364057031 | AO6: =IF(ABS(PI()*$K$18*$F$17*1000/$H$27/SIN($AD6*PI()/180))<1, ($K$16*$K$15*$I$27-$K$16*$H$27*COS($AD6*PI()/180))/$K$18/1000*(1-ASIN(PI()*$K$18*$F$17*1000/$H$27/SIN($AD6*PI()/180))/PI())+$F$16, #N/A) -> 
A7: PI | B7: 3.14159265 | I7: =VLOOKUP(J6, MASS2020!A3:D3800, 4, FALSE) -> nn | L7: min KE/A | M7: =(POWER(M4+M5,2)-POWER(M2+M3,2))/2/M3/G2 -> 0.5717726699 | O7: =(SQRT($K$18*$K$18*(R7-$F$16)*(R7-$F$16)*1000000+$M$4*$M$4))-$M$4 -> 7.476908969 | P7: =(COS($P$1*PI()/180)*SQRT($K$18*$K$18*(R7-$F$16)*(R7-$F$16)*1000000+$P$3)-$P$2*$K$17*(R7-$F$16)*1000)/(1-$P$2)-$M$4 -> 7.476908969 | Q7: =SQRT((R7*R7+PI()*PI()*$F$18*$F$18)*$K$18*$K$18*1000000+$M$4*$M$4) - $M$4 -> 23.19305046 | R7: =R6+$R$4 -> -0.995 | S7: =IF( AND(($R7-$F$16)/S$3>= 0, ($R7-$F$16)/S$3<=$K$31),S$2*ABS(SIN(($R7-$F$16)/S$3*PI()))*$K$30,#N/A) ->  | T7: =IF( AND(($R7-$F$16)/T$3>0,($R7-$F$16)/T$3<=$K$31),T$2*ABS(SIN(($R7-$F$16)/T$3*PI()))*$K$30,#N/A) ->  | U7: =IF( AND(($R7-$F$16)/U$3>= 0, ($R7-$F$16)/U$3<=$K$31),U$2*ABS(SIN(($R7-$F$16)/U$3*PI()))*$K$30,#N/A) ->  | V7: =IF( AND(($R7-$F$16)/V$3>0,($R7-$F$16)/V$3<=$K$31),V$2*ABS(SIN(($R7-$F$16)/V$3*PI()))*$K$30,#N/A) ->  | W7: =IF( AND(($R7-$F$16)/W$3>= 0, ($R7-$F$16)/W$3<=$K$31),W$2*ABS(SIN(($R7-$F$16)/W$3*PI()))*$K$30,#N/A) ->  | X7: =IF( AND(($R7-$F$16)/X$3>0,($R7-$F$16)/X$3<=$K$31),X$2*ABS(SIN(($R7-$F$16)/X$3*PI()))*$K$30,#N/A) ->  | Y7: =IF( AND(($R7-$F$16)/Y$3>= 0, ($R7-$F$16)/Y$3<=$K$31),Y$2*ABS(SIN(($R7-$F$16)/Y$3*PI()))*$K$30,#N/A) ->  | Z7: =IF( AND(($R7-$F$16)/Z$3>0,($R7-$F$16)/Z$3<=$K$31),Z$2*ABS(SIN(($R7-$F$16)/Z$3*PI()))*$K$30,#N/A) ->  | AA7: =IF( AND(($R7-$F$16)/AA$3>= 0, ($R7-$F$16)/AA$3<=$K$31),AA$2*ABS(SIN(($R7-$F$16)/AA$3*PI()))*$K$30,#N/A) ->  | AB7: =IF( AND(($R7-$F$16)/AB$3>0,($R7-$F$16)/AB$3<=$K$31),AB$2*ABS(SIN(($R7-$F$16)/AB$3*PI()))*$K$30,#N/A) ->  | AD7: =AD6+AD$4 -> 1.736975571 | AE7: 1.367214255 | AF7: =IF(ABS(PI()*$K$18*$F$17*1000/$H$23/SIN($AD7*PI()/180))<1, ($K$16*$K$15*$I$23-$K$16*$H$23*COS($AD7*PI()/180))/$K$18/1000*(1-ASIN(PI()*$K$18*$F$17*1000/$H$23/SIN($AD7*PI()/180))/PI())+$F$16, #N/A) -> -0.291036722 | AH7: 1.101399381 | AI7: =IF(ABS(PI()*$K$18*$F$17*1000/$H$24/SIN($AD7*PI()/180))<1, ($K$16*$K$15*$I$24-$K$16*$H$24*COS($AD7*PI()/180))/$K$18/1000*(1-ASIN(PI()*$K$18*$F$17*1000/$H$24/SIN($AD7*PI()/180))/PI())+$F$16, #N/A) -> -0.2550569039 | AJ7: 0.8571595887 | AK7: =IF(ABS(PI()*$K$18*$F$17*1000/$H$25/SIN($AD7*PI()/180))<1, ($K$16*$K$15*$I$25-$K$16*$H$25*COS($AD7*PI()/180))/$K$18/1000*(1-ASIN(PI()*$K$18*$F$17*1000/$H$25/SIN($AD7*PI()/180))/PI())+$F$16, #N/A) -> -0.2184366716 | AL7: 0.6367788748 | AM7: =IF(ABS(PI()*$K$18*$F$17*1000/$H$26/SIN($AD7*PI()/180))<1, ($K$16*$K$15*$I$26-$K$16*$H$26*COS($AD7*PI()/180))/$K$18/1000*(1-ASIN(PI()*$K$18*$F$17*1000/$H$26/SIN($AD7*PI()/180))/PI())+$F$16, #N/A) -> -0.1811079514 | AN7: 1.367214255 | AO7: =IF(ABS(PI()*$K$18*$F$17*1000/$H$27/SIN($AD7*PI()/180))<1, ($K$16*$K$15*$I$27-$K$16*$H$27*COS($AD7*PI()/180))/$K$18/1000*(1-ASIN(PI()*$K$18*$F$17*1000/$H$27/SIN($AD7*PI()/180))/PI())+$F$16, #N/A) -> -0.291036722
O8: 7.402246308 | P8: 7.402246308 | Q8: =SQRT(((R8-$F$16)*(R8-$F$16)+PI()*PI()*$F$18*$F$18)*$K$18*$K$18*1000000+$M$4*$M$4) - $M$4 -> 23.11960833 | R8: =R7+$R$4 -> -0.99 | AD8: =AD7+AD$4 -> 2.033614155 | AE8: 1.37096081 | AF8: -0.3164934716 | AH8: 1.105030408 | AI8: -0.2798686645 | AJ8: 0.8606714016 | AK8: -0.2426148214 | AL8: 0.6401673959 | AM8: -0.2047528523 | AN8: 1.37096081 | AO8: -0.3164934716
E9: =F6&IF(G6=0, "","-")&E6 -> n-Adding | J9: show infinite line | K9: =IF(Reaction2!C24="on", 1, 0) -> 0 | O9: 7.327953931 | P9: 7.327953931 | Q9: 23.04653062 | R9: -0.985 | AD9: 2.33025274 | AE9: 1.375296593 | AF9: -0.3324907006 | AH9: 1.109232496 | AI9: -0.2950642499 | AJ9: 0.8647355259 | AK9: -0.2569029658 | AL9: 0.644088838 | AM9: -0.2179988825 | AN9: 1.375296593 | AO9: -0.3324907006
E10: =F2&"("&F3&","&F4&")"&F5 -> 14C(d,p)15C | J10: thetaCM limit | K10: =Reaction2!C26 -> 0 | L10: deg | O10: 7.254031924 | P10: 7.254031924 | Q10: 22.97381741 | R10: -0.98 | AD10: 2.626891324 | AE10: 1.380221491 | AF10: -0.3437741276 | AH10: 1.114005532 | AI10: -0.3056773462 | AJ10: 0.8693518527 | AK10: -0.2667591496 | AL10: 0.6485430959 | AM10: -0.2269896379 | AN10: 1.380221491 | AO10: -0.3437741276
J11: Ex A | K11: =Reaction2!C13 -> 0 | L11: MeV | O11: 7.180480375 | P11: 7.180480375 | Q11: 22.90146878 | R11: -0.975 | AD11: 2.923529909 | AE11: 1.38573537 | AF11: -0.3522160997 | AH11: 1.119349388 | AI11: -0.3135747972 | AJ11: 0.8745202581 | AK11: -0.274044499 | AL11: 0.6535300504 | AM11: -0.2335794454 | AN11: 1.38573537 | AO11: -0.3522160997
E12: Beam Energy /A | F12: =Reaction2!C15 -> 10 | G12: MeV/u | J12: k_beam_Lab | K12: =SQRT(POWER(M2+F13,2)-POWER(M2,2)) -> 1915.99686 | L12: MeV/c | O12: 7.107299371 | P12: 7.107299371 | Q12: 22.82948482 | R12: -0.97 | AD12: 3.220168493 | AE12: 1.391838082 | AF12: -0.3587672075 | AH12: 1.125263921 | AI12: -0.3196808724 | AJ12: 0.8802406038 | AK12: -0.2796519185 | AL12: 0.6590495676 | AM12: -0.2386226566 | AN12: 1.391838082 | AO12: -0.3587672075
E13: Beam Energy | F13: =F12*G2 -> 140 | G13: MeV | J13: E_tot_cm | K13: =SQRT(POWER(M2+M3,2)+2*M3*F13) -> 14934.0776 | L13: MeV | O13: 7.034488997 | P13: 7.034488997 | Q13: 22.7578656 | R13: -0.965 | AD13: 3.516807078 | AE13: 1.398529465 | AF13: -0.3639775348 | AH13: 1.131748972 | AI13: -0.3245232202 | AJ13: 0.8865127363 | AK13: -0.2840828179 | AL13: 0.6651014997 | AM13: -0.2425893238 | AN13: 1.398529465 | AO13: -0.3639775348
J14: KE_tot_cm | K14: =K13-M2-M3 -> 17.59335796 | O14: 6.962049338 | P14: 6.962049338 | Q14: 22.68661122 | R14: -0.96 | AD14: 3.813445662 | AE14: 1.405809338 | AF14: -0.3681928988 | AH14: 1.138804368 | AI14: -0.3284307883 | AJ14: 0.8933364875 | AK14: -0.2876466724 | AL14: 0.6716856844 | AM14: -0.2457660549 | AN14: 1.405809338 | AO14: -0.3681928988
E15: B-field | F15: =Reaction2!C18 -> 2.5 | G15: T | J15: beta_cm | K15: =K12/(M2+M3+F13) -> 0.1272539345 | O15: 6.889980481 | P15: 6.889980481 | Q15: 22.61572174 | R15: -0.955 | AD15: 4.110084247 | AE15: 1.413677507 | AF15: -0.3716437423 | AH15: 1.146429918 | AI15: -0.3316215515 | AJ15: 0.9007116745 | AK15: -0.2905471954 | AL15: 0.6788019453 | AM15: -0.2483400103 | AN15: 1.413677507 | AO15: -0.3716437423
E16: target position | F16: =Reaction2!$C$20 -> 0 | G16: m | J16: gamm_cm | K16: =1/SQRT(1-K15*K15) -> 1.008196465 | O16: 6.818282509 | P16: 6.818282509 | Q16: 22.54519725 | R16: -0.95 | AD16: 4.406722831 | AE16: 1.422133761 | AF16: -0.3744904892 | AH16: 1.15462542 | AI16: -0.3342466506 | AJ16: 0.9086380997 | AK16: -0.2929249797 | AL16: 0.6864500916 | AM16: -0.2504396398 | AN16: 1.422133761 | AO16: -0.3744904892
E17: radius | F17: =Reaction2!C21 -> 0.0115 | G17: m | J17: e-z slope | K17: =F15*B3*H4*K15/2/B7/1000000000 -> 0.01517931113 | O17: 6.746955508 | P17: 6.746955508 | Q17: 22.47503784 | R17: -0.945 | AD17: 4.703361416 | AE17: 1.431177872 | AF17: -0.376848717 | AH17: 1.163390652 | AI17: -0.3364146554 | AJ17: 0.9171155505 | AK17: -0.2948806706 | AL17: 0.6946299183 | AM17: -0.252156522 | AN17: 1.431177872 | AO17: -0.376848717
E18: bore | F18: =Reaction2!C22 -> 0.462 | G18: m | J18: alpha=slope/beta_cm | K18: =K17/K15 -> 0.1192836291 | O18: 6.675999562 | P18: 6.675999562 | Q18: 22.40524357 | R18: -0.94 | AD18: 5 | AE18: 1.4408096 | AF18: -0.3788040421 | AH18: 1.172725381 | AI18: -0.3382058102 | AJ18: 0.9261437998 | AK18: -0.2964884609 | AL18: 0.7033412061 | AM18: -0.2535579581 | AN18: 1.4408096 | AO18: -0.3788040421
J19: G | K19: =K18*K15*K16*F17*1000 -> 0.1759928699 | L19: (MeV) | O19: 6.605414753 | P19: 6.605414753 | Q19: 22.33581454 | R19: -0.935 | AD19: 6 | AE19: 1.477605034 | AF19: -0.3831765319 | AH19: 1.208386213 | AI19: -0.3421681217 | AJ19: 0.9606338079 | AK19: -0.2999912959 | AL19: 0.7366203478 | AM19: -0.2565423587 | AN19: 1.477605034 | AO19: -0.3831765319
H20: k_cm(Ex=0) | J20: alpha_B | K20: =K18*H5/H4 -> 0.7157017747 | O20: 6.535201166 | P20: 6.535201166 | Q20: 22.26675082 | R20: -0.93 | AD20: 7 | AE20: 1.521064043 | AF20: -0.3851433285 | AH20: 1.250505145 | AI20: -0.3438774817 | AJ20: 1.001369883 | AK20: -0.3014096633 | AL20: 0.7759262712 | AM20: -0.2576296175 | AN20: 1.521064043 | AO20: -0.3851433285
E21: max Ex | F21: =K14+M6 -> 16.58685856 | G21: MeV | H21: =SQRT(($K$13*$K$13-POWER($M$4+$M$5,2))*($K$13*$K$13-POWER($M$4-$M$5,2)))/2/$K$13 -> 171.4481563 | J21: min(θcm) | K21: =ASIN(F17*1000*PI()*K18/H21)*180/PI() -> 1.440336987 | L21: deg | O21: 6.465358882 | P21: 6.465358882 | Q21: 22.19805248 | R21: -0.925 | AD21: 8 | AE21: 1.571173389 | AF21: -0.3854643523 | AH21: 1.299069347 | AI21: -0.3440414375 | AJ21: 1.048339616 | AK21: -0.3013927803 | AL21: 0.8212470031 | AM21: -0.2574034258 | AN21: 1.571173389 | AO21: -0.3854643523
H22: k_cm | I22: E_light_cm | J22: intercept | O22: 6.395887985 | P22: 6.395887985 | Q22: 22.12971961 | R22: -0.92 | AD22: 9 | AE22: 1.627917808 | AF22: -0.384552031 | AH22: 1.354064027 | AI22: -0.343043354 | AJ22: 1.1015287 | AK22: -0.3002917391 | AL22: 0.8725687384 | AM22: -0.2561787512 | AN22: 1.627917808 | AO22: -0.384552031
E23: Ex1 | F23: =IF(Reaction2!G25="", #N/A, Reaction2!G25) -> 0 | G23: MeV | H23: =IF(F23="","",SQRT(($K$13*$K$13-POWER($M$4+$M$5+F23,2))*($K$13*$K$13-POWER($M$4-$M$5-F23,2)))/2/$K$13) -> 171.4481563 | I23: =SQRT(H23*H23+$M$4*$M$4) -> 953.8076163 | J23: =I23/$K$16-$M$4 -> 7.781242155 | O23: 6.326788556 | P23: 6.326788556 | Q23: 22.06175229 | R23: -0.915 | AD23: 10 | AE23: 1.691280014 | AF23: -0.3826505143 | AH23: 1.415472433 | AI23: -0.3411099553 | AJ23: 1.160920933 | AK23: -0.2983139514 | AL23: 0.9298758442 | AM23: -0.2541414359 | AN23: 1.691280014 | AO23: -0.3826505143
E24: Ex2 | F24: =IF(Reaction2!G26="", #N/A, Reaction2!G26) -> 1 | G24: MeV | H24: =IF(F24="","",SQRT(($K$13*$K$13-POWER($M$4+$M$5+F24,2))*($K$13*$K$13-POWER($M$4-$M$5-F24,2)))/2/$K$13) -> 166.1614789 | I24: =SQRT(H24*H24+$M$4*$M$4) -> 952.871521 | J24: =I24/$K$16-$M$4 -> 6.852757229 | O24: 6.258060677 | P24: 6.258060677 | Q24: 21.99415059 | R24: -0.91 | AD24: 11 | AE24: 1.761240708 | AF24: -0.3799140811 | AH24: 1.483275859 | AI24: -0.3383844297 | AJ24: 1.226498223 | AK24: -0.2955903301 | AL24: 0.9931508639 | AM24: -0.2514087051 | AN24: 1.761240708 | AO24: -0.3799140811
E25: Ex3 | F25: =IF(Reaction2!G27="", #N/A, Reaction2!G27) -> 2 | G25: MeV | H25: =IF(F25="","",SQRT(($K$13*$K$13-POWER($M$4+$M$5+F25,2))*($K$13*$K$13-POWER($M$4-$M$5-F25,2)))/2/$K$13) -> 160.7060326 | I25: 951.9353589 | J25: =I25/$K$16-$M$4 -> 5.924205886 | O25: 6.189704428 | P25: 6.189704428 | Q25: 21.92691459 | R25: -0.905 | AD25: 12 | AE25: 1.837778578 | AF25: -0.3764453727 | AH25: 1.557453651 | AI25: -0.3349620156 | AJ25: 1.298240595 | AK25: -0.2922079287 | AL25: 1.062374524 | AM25: -0.2480584961 | AN25: 1.837778578 | AO25: -0.3764453727
E26: Ex4 | F26: =IF(Reaction2!G28="", #N/A, Reaction2!G28) -> 3 | G26: MeV | H26: =IF(F26="","",SQRT(($K$13*$K$13-POWER($M$4+$M$5+F26,2))*($K$13*$K$13-POWER($M$4-$M$5-F26,2)))/2/$K$13) -> 155.0640067 | I26: 950.9991297 | J26: =I26/$K$16-$M$4 -> 4.995588127 | O26: 6.121719892 | P26: 6.121719892 | Q26: 21.86004436 | R26: -0.9 | AD26: 13 | AE26: 1.920870311 | AF26: -0.3723156243 | AH26: 1.637983214 | AI26: -0.3309088106 | AJ26: 1.376126196 | AK26: -0.2882271687 | AL26: 1.137525737 | AM26: -0.2441449149 | AN26: 1.920870311 | AO26: -0.3723156243
E27: Ex5 | F27: =IF(Reaction2!G29="", #N/A, Reaction2!G29) -> 0 | G27: MeV | H27: =IF(F27="","",SQRT(($K$13*$K$13-POWER($M$4+$M$5+F27,2))*($K$13*$K$13-POWER($M$4-$M$5-F27,2)))/2/$K$13) -> 171.4481563 | I27: 953.8076163 | J27: =I27/$K$16-$M$4 -> 7.781242155 | O27: 6.054107147 | P27: 6.054107147 | Q27: 21.79353999 | R27: -0.895 | AD27: 14 | AE27: 2.010490595 | AF27: -0.3675760809 | AH27: 1.724840019 | AI27: -0.3262723745 | AJ27: 1.460131301 | AK27: -0.2836915423 | AL27: 1.218581612 | AM27: -0.2397069319 | AN27: 2.010490595 | AO27: -0.3675760809
O28: 5.986866273 | P28: 5.986866273 | Q28: 21.72740155 | R28: -0.89 | AD28: 15 | AE28: 2.106612132 | AF28: -0.3622647809 | AH28: 1.817997607 | AI28: -0.3210880271 | AJ28: 1.550230321 | AK28: -0.278633371 | AL28: 1.305517459 | AM28: -0.2347735382 | AN28: 2.106612132 | AO28: -0.3622647809
O29: 5.919997351 | P29: 5.919997351 | Q29: 21.66162911 | R29: -0.885 | AD29: 16 | AE29: 2.209205642 | AF29: -0.3564107651 | AH29: 1.917427602 | AI29: -0.3153827534 | AJ29: 1.646395811 | AK29: -0.2730773742 | AL29: 1.398306796 | AM29: -0.2293669392 | AN29: 2.209205642 | AO29: -0.3564107651
J30: Recoil y-scale | K30: 1 | O30: 5.853500459 | P30: 5.853500459 | Q30: 21.59622276 | R30: -0.88 | AD30: 17 | AE30: 2.318239874 | AF30: -0.3500367842 | AH30: 2.023099716 | AI30: -0.3091777147 | AJ30: 1.748598478 | AK30: -0.2670429632 | AL30: 1.496921358 | AM30: -0.2235046062 | AN30: 2.318239874 | AO30: -0.3500367842
J31: # of cycle | K31: =Reaction2!R23 -> 1 | O31: 5.787375676 | P31: 5.787375676 | Q31: 21.53118256 | R31: -0.875 | AD31: 18 | AE31: 2.433681615 | AF31: -0.3431610951 | AH31: 2.134981762 | AI31: -0.302489914 | AJ31: 1.85680719 | AK31: -0.2605457619 | AL31: 1.601331106 | AM31: -0.217200636 | AN31: 2.433681615 | AO31: -0.3431610951
B32: CM | C32: Eb[MeV] | E32: Zb0[m] | F32: Zb[m] | G32: 2ρ[cm] | H32: θbLab [deg] | I32: Tcyc [ns] | J32: EB[MeV] | K32: θBLab [deg] | L32: ZB0/2[m] | M32: 2ρB[cm] | O32: 5.72162308 | P32: 5.72162308 | Q32: 21.46650858 | R32: -0.87 | AD32: 19 | AE32: 2.5554957 | AF32: -0.3357986854 | AH32: 2.253039658 | AI32: -0.2953333309 | AJ32: 1.970988986 | AK32: -0.253598643 | AL32: 1.711504237 | AM32: -0.210466677 | AN32: 2.5554957 | AO32: -0.3357986854
A33: Ex1 | B33: =IF(OR(ISNA(F23),Reaction2!H25 = 0), #N/A, Reaction2!H25) -> 10 | C33: =IF( ISNA(B33), "", $K$16*SQRT($M$4*$M$4+$H23*$H23)-$K$16*$K$15*$H23*COS($B33*PI()/180)-$M$4) -> 1.691280014 | E33: =IF( OR(ISNA(F23), ISNA(B33)),"",($K$16*$K$15*SQRT($M$4*$M$4+$H23*$H23)-$K$16*$H23*COS($B33*PI()/180))/$K$18/1000) -> -0.4012014833 | F33: =IF( ISNA(B33), "",E33*(1-ASIN($F$17*100/G33/2)/PI())) -> -0.3919504965 | G33: =IF( ISNA(B33), "", 2*$H23*SIN(B33*PI()/180)/$B$3/$H$4/$F$15*100000000) -> 7.944605438 | H33: =IF( ISNA(B33), "", ATAN($H23*SIN($B33*PI()/180)/($K$16*$K$15*SQRT($M$4*$M$4+$H23*$H23)-$K$16*$H23*COS($B33*PI()/180)))*180/PI()) -> -31.88571209 | I33: =IF($C33="","",($M$4+$C33)/$K$18/$B$3*1000000) -> 26.28508459 | J33: =IF(C33="", "", $K$16*SQRT($M$5*$M$5+$H23*$H23)+$K$16*$K$15*$H23*COS($B33*PI()/180)-$M$5) -> 137.3022206 | K33: =IF( ISNA(B33), "", ATAN($H23*SIN($B33*PI()/180)/($K$16*$K$15*SQRT($M$5*$M$5+$H23*$H23)+$K$16*$H23*COS($B33*PI()/180)))*180/PI()) -> 0.8685269508 | L33: =IF( ISNA(B33), "",($K$16*$K$15*SQRT($M$5*$M$5+$H23*$H23)+$K$16*$H23*COS($B33*PI()/180))/$K$20/2/1000) -> 1.371977616 | M33: =IF(ISNA(B33),"",$H23*SIN($B33*PI()/180)/$B$3/$F$15/$H$5*1000000*100*2) -> 1.324100906 | O33: 5.656242749 | P33: 5.656242749 | Q33: 21.40220091 | R33: -0.865 | AD33: 20 | AE33: 2.683645024 | AF33: -0.3279621269 | AH33: 2.377237443 | AI33: -0.2877197128 | AJ33: 2.091109085 | AK33: -0.24621245 | AL33: 1.827407191 | AM33: -0.2033125745 | AN33: 2.683645024 | AO33: -0.3279621269
A34: Ex2 | B34: =IF(OR(ISNA(F24),Reaction2!H26 = 0), #N/A, Reaction2!H26) -> 10 | C34: =IF( ISNA(B34), "", $K$16*SQRT($M$4*$M$4+$H24*$H24)-$K$16*$K$15*$H24*COS($B34*PI()/180)-$M$4) -> 1.415472433 | E34: =IF( OR(ISNA(F24), ISNA(B34)),"",($K$16*$K$15*SQRT($M$4*$M$4+$H24*$H24)-$K$16*$H24*COS($B34*PI()/180))/$K$18/1000) -> -0.3582036595 | F34: =IF( ISNA(B34), "",E34*(1-ASIN($F$17*100/G34/2)/PI())) -> -0.349680853 | G34: =IF( ISNA(B34), "", 2*$H24*SIN(B34*PI()/180)/$B$3/$H$4/$F$15*100000000) -> 7.699630124 | H34: =IF( ISNA(B34), "", ATAN($H24*SIN($B34*PI()/180)/($K$16*$K$15*SQRT($M$4*$M$4+$H24*$H24)-$K$16*$H24*COS($B34*PI()/180)))*180/PI()) -> -34.0307265 | I34: =IF($C34="","",($M$4+$C34)/$K$18/$B$3*1000000) -> 26.27737192 | J34: =IF(C34="", "", $K$16*SQRT($M$5*$M$5+$H24*$H24)+$K$16*$K$15*$H24*COS($B34*PI()/180)-$M$5) -> 136.5699029 | K34: =IF( ISNA(B34), "", ATAN($H24*SIN($B34*PI()/180)/($K$16*$K$15*SQRT($M$5*$M$5+$H24*$H24)+$K$16*$H24*COS($B34*PI()/180)))*180/PI()) -> 0.8440085449 | L34: =IF( ISNA(B34), "",($K$16*$K$15*SQRT($M$5*$M$5+$H24*$H24)+$K$16*$H24*COS($B34*PI()/180))/$K$20/2/1000) -> 1.36830484 | M34: =IF(ISNA(B34),"",$H24*SIN($B34*PI()/180)/$B$3/$F$15/$H$5*1000000*100*2) -> 1.283271687 | O34: 5.59123476 | P34: 5.59123476 | Q34: 21.33825962 | R34: -0.86 | AD34: 21 | AE34: 2.818090552 | AF34: -0.319662184 | AH34: 2.507537285 | AI34: -0.2796591389 | AJ34: 2.217130897 | AK34: -0.2383965114 | AL34: 1.949004661 | AM34: -0.1957468297 | AN34: 2.818090552 | AO34: -0.319662184
A35: Ex3 | B35: =IF(OR(ISNA(F25),Reaction2!H27 = 0), #N/A, Reaction2!H27) -> 10 | C35: =IF( ISNA(B35), "", $K$16*SQRT($M$4*$M$4+$H25*$H25)-$K$16*$K$15*$H25*COS($B35*PI()/180)-$M$4) -> 1.160920933 | E35: -0.3138011279 | F35: -0.306080844 | G35: =IF( ISNA(B35), "", 2*$H25*SIN(B35*PI()/180)/$B$3/$H$4/$F$15*100000000) -> 7.446834354 | H35: =IF( ISNA(B35), "", ATAN($H25*SIN($B35*PI()/180)/($K$16*$K$15*SQRT($M$4*$M$4+$H25*$H25)-$K$16*$H25*COS($B35*PI()/180)))*180/PI()) -> -36.70575662 | I35: =IF($C35="","",($M$4+$C35)/$K$18/$B$3*1000000) -> 26.27025366 | J35: =IF(C35="", "", $K$16*SQRT($M$5*$M$5+$H25*$H25)+$K$16*$K$15*$H25*COS($B35*PI()/180)-$M$5) -> 135.8163199 | K35: =IF( ISNA(B35), "", ATAN($H25*SIN($B35*PI()/180)/($K$16*$K$15*SQRT($M$5*$M$5+$H25*$H25)+$K$16*$H25*COS($B35*PI()/180)))*180/PI()) -> 0.8185686111 | L35: =IF( ISNA(B35), "",($K$16*$K$15*SQRT($M$5*$M$5+$H25*$H25)+$K$16*$H25*COS($B35*PI()/180))/$K$20/2/1000) -> 1.364515005 | M35: 1.241139059 | O35: 5.52659919 | P35: 5.52659919 | Q35: 21.27468478 | R35: -0.855 | AD35: 22 | AE35: 2.958791329 | AF35: -0.3109082549 | AH35: 2.643899493 | AI35: -0.2711604284 | AJ35: 2.349016034 | AK35: -0.2301590136 | AL35: 2.07625961 | AM35: -0.187776933 | AN35: 2.958791329 | AO35: -0.3109082549
A36: Ex4 | B36: =IF(OR(ISNA(F26),Reaction2!H28 = 0), #N/A, Reaction2!H28) -> 10 | C36: =IF( ISNA(B36), "", $K$16*SQRT($M$4*$M$4+$H26*$H26)-$K$16*$K$15*$H26*COS($B36*PI()/180)-$M$4) -> 0.9298758442 | E36: -0.2678456386 | F36: -0.2610157024 | G36: =IF( ISNA(B36), "", 2*$H26*SIN(B36*PI()/180)/$B$3/$H$4/$F$15*100000000) -> 7.185392819 | H36: =IF( ISNA(B36), "", ATAN($H26*SIN($B36*PI()/180)/($K$16*$K$15*SQRT($M$4*$M$4+$H26*$H26)-$K$16*$H26*COS($B36*PI()/180)))*180/PI()) -> -40.12362256 | I36: =IF($C36="","",($M$4+$C36)/$K$18/$B$3*1000000) -> 26.26379272 | J36: =IF(C36="", "", $K$16*SQRT($M$5*$M$5+$H26*$H26)+$K$16*$K$15*$H26*COS($B36*PI()/180)-$M$5) -> 135.0392214 | K36: =IF( ISNA(B36), "", ATAN($H26*SIN($B36*PI()/180)/($K$16*$K$15*SQRT($M$5*$M$5+$H26*$H26)+$K$16*$H26*COS($B36*PI()/180)))*180/PI()) -> 0.7921090818 | L36: 1.360595755 | M36: 1.19756547 | O36: 5.462336115 | P36: 5.462336115 | Q36: 21.21147646 | R36: -0.85 | AD36: 23 | AE36: 3.105704497 | AF36: -0.3017086967 | AH36: 2.786282531 | AI36: -0.2622314417 | AJ36: 2.486724324 | AK36: -0.2215072758 | AL36: 2.209133273 | AM36: -0.1794096091 | AN36: 3.105704497 | AO36: -0.3017086967
A37: Ex5 | B37: =IF(OR(ISNA(F27),Reaction2!H29 = 0), #N/A, Reaction2!H29) -> 30 | C37: =IF( ISNA(B37), "", $K$16*SQRT($M$4*$M$4+$H27*$H27)-$K$16*$K$15*$H27*COS($B37*PI()/180)-$M$4) -> 4.304049641 | E37: =IF( OR(ISNA(F27), ISNA(B37)),"",($K$16*$K$15*SQRT($M$4*$M$4+$H27*$H27)-$K$16*$H27*COS($B37*PI()/180))/$K$18/1000) -> -0.2290744609 | F37: -0.2272414364 | G37: =IF( ISNA(B37), "", 2*$H27*SIN(B37*PI()/180)/$B$3/$H$4/$F$15*100000000) -> 22.87557965 | H37: =IF( ISNA(B37), "", ATAN($H27*SIN($B37*PI()/180)/($K$16*$K$15*SQRT($M$4*$M$4+$H27*$H27)-$K$16*$H27*COS($B37*PI()/180)))*180/PI()) -> -72.32014724 | I37: =IF($C37="","",($M$4+$C37)/$K$18/$B$3*1000000) -> 26.35814794 | J37: =IF(C37="", "", $K$16*SQRT($M$5*$M$5+$H27*$H27)+$K$16*$K$15*$H27*COS($B37*PI()/180)-$M$5) -> 134.689451 | K37: =IF( ISNA(B37), "", ATAN($H27*SIN($B37*PI()/180)/($K$16*$K$15*SQRT($M$5*$M$5+$H27*$H27)+$K$16*$H27*COS($B37*PI()/180)))*180/PI()) -> 2.52580198 | L37: =IF( ISNA(B37), "",($K$16*$K$15*SQRT($M$5*$M$5+$H27*$H27)+$K$16*$H27*COS($B37*PI()/180))/$K$20/2/1000) -> 1.357633697 | M37: 3.812596608 | O37: 5.398445612 | P37: 5.398445612 | Q37: 21.14863474 | R37: -0.845 | AD37: 24 | AE37: 3.258785305 | AF37: -0.2920710686 | AH37: 2.934643026 | AI37: -0.252879306 | AJ37: 2.630213819 | AK37: -0.212447955 | AL37: 2.347585175 | AM37: -0.170651 | AN37: 3.258785305 | AO37: -0.2920710686
O38: 5.334927757 | P38: 5.334927757 | Q38: 21.08615968 | R38: -0.84 | AD38: 25 | AE38: 3.417987123 | AF38: -0.2820023162 | AH38: 3.088935788 | AI38: -0.2431105857 | AJ38: 2.77944081 | AK38: -0.2029872019 | AL38: 2.491573144 | AM38: -0.1615068048 | AN38: 3.417987123 | AO38: -0.2820023162
O39: 5.271782624 | P39: 5.271782624 | Q39: 21.02405137 | R39: -0.835 | AD39: 26 | AE39: =IF( $K$10 > AD39, #N/A, $K$16*$I$23-$M$4-$K$16*$K$15*$H$23*COS($AD39*PI()/180)) -> 3.583261456 | AF39: -0.2715089129 | AG39: =IF($K$9=0,#N/A,($K$16*$K$15*$I$23-$K$16*$H$23*COS($AD39*PI()/180))/$K$18/1000+$F$16) ->  | AH39: =IF( $K$10 > AD39, #N/A, $K$16*$I$24-$M$4-$K$16*$K$15*$H$24*COS($AD39*PI()/180)) -> 3.249113816 | AI39: -0.2329314133 | AJ39: =IF( $K$10 > AD39, #N/A, $K$16*$I$25-$M$4-$K$16*$K$15*$H$25*COS($AD39*PI()/180)) -> 2.934359842 | AK39: -0.19313078 | AL39: =IF( $K$10 > AD39, #N/A, $K$16*$I$26-$M$4-$K$16*$K$15*$H$26*COS($AD39*PI()/180)) -> 2.641053318 | AM39: -0.1519823851 | AN39: =IF( $K$10 > AD39, #N/A, $K$16*$I$27-$M$4-$K$16*$K$15*$H$27*COS($AD39*PI()/180)) -> 3.583261456 | AO39: -0.2715089129
A40: proton mass and neutron mass are from CODATA | O40: 5.209010289 | P40: 5.209010289 | Q40: 20.96230986 | R40: -0.83 | AD40: 27 | AE40: 3.754557961 | AF40: -0.2605969698 | AH40: 3.41512832 | AI40: -0.2223475911 | AJ40: 3.094923725 | AK40: -0.1828841586 | AL40: 2.795980166 | AM40: -0.1420828483 | AN40: 3.754557961 | AO40: -0.2605969698
A41: https://physics.nist.gov/cuu/Constants/index.html | O41: 5.146610825 | P41: 5.146610825 | Q41: 20.90093524 | R41: -0.825 | AD41: 28 | AE41: 3.931824458 | AF41: -0.249272321 | AH41: 3.586928729 | AI41: -0.2113646704 | AJ41: 3.261083549 | AK41: -0.1722525845 | AL41: 2.956306494 | AM41: -0.1318131116 | AN41: 3.931824458 | AO41: -0.249272321
O42: 5.084584308 | P42: 5.084584308 | Q42: 20.83992756 | R42: -0.82 | AD42: 29 | AE42: 4.115006951 | AF42: -0.2375405918 | AH42: 3.764462711 | AI42: -0.1999880143 | AJ42: 3.4327887 | AK42: -0.1612411395 | AL42: 3.121983466 | AM42: -0.1211779531 | AN42: 4.115006951 | AO42: -0.2375405918
O43: 5.02293081 | P43: 5.02293081 | Q43: 20.77928691 | R43: -0.815 | AD43: 30 | AE43: 4.304049641 | AF43: -0.2254072522 | AH43: 3.947676188 | AI43: -0.1882228475 | AJ43: 3.609986877 | AK43: -0.1498547857 | AL43: 3.292960614 | AM43: -0.1101820524 | AN43: 4.304049641 | AO43: -0.2254072522
O44: 4.961650404 | P44: 4.961650404 | Q44: 20.71901335 | R44: -0.81 | AD44: 31 | AE44: 4.498894943 | AF44: -0.2128776604 | AH44: 4.136513352 | AI44: -0.1760742962 | AJ44: 3.792624101 | AK44: -0.1380984018 | AL44: 3.469185858 | AM44: -0.0988300226 | AN44: 4.498894943 | AO44: -0.2128776604
O45: 4.900743164 | P45: 4.900743164 | Q45: 20.65910696 | R45: -0.805 | AD45: 32 | AE45: 4.699483505 | AF45: -0.1999570977 | AH45: 4.33091668 | AI45: -0.1635474204 | AJ45: 3.980644741 | AK45: -0.1259768126 | AL45: 3.650605518 | AM45: -0.08712643664 | AN45: 4.699483505 | AO45: -0.1999570977
O46: 4.840209161 | P46: 4.840209161 | Q46: 20.59956779 | R46: -0.8 | AD46: 33 | AE46: 4.905754227 | AF46: -0.1866507964 | AH46: 4.530826955 | AI46: -0.1506472401 | AJ46: 4.173991523 | AK46: -0.1134948123 | AL46: 3.837164331 | AM46: -0.07507584834 | AN46: 4.905754227 | AO46: -0.1866507964
O47: 4.780048468 | P47: 4.780048468 | Q47: 20.54039591 | R47: -0.795 | AD47: 34 | AE47: 5.117644275 | AF47: -0.1729639632 | AH47: 4.736183283 | AI47: -0.1373787562 | AJ47: 4.372605552 | AK47: -0.1006571844 | AL47: 4.02880547 | AM47: -0.06268280948 | AN47: 5.117644275 | AO47: -0.1729639632
O48: 4.720261156 | P48: 4.720261156 | Q48: 20.48159141 | R48: -0.79 | AD48: 35 | AE48: 5.335089108 | AF48: -0.1589017976 | AH48: 4.946923111 | AI48: -0.1237469681 | AJ48: 4.576426328 | AK48: -0.08746871704 | AL48: 4.225470559 | AM48: -0.04995188383 | AN48: 5.335089108 | AO48: -0.1589017976
O49: 4.660847296 | P49: 4.660847296 | Q49: 20.42315434 | R49: -0.785 | AD49: 36 | AE49: 5.558022488 | AF49: -0.1444695076 | AH49: 5.162982245 | AI49: -0.1097568882 | AJ49: 4.785391766 | AK49: -0.07393421592 | AL49: 4.427099692 | AM49: -0.03688765858 | AN49: 5.558022488 | AO49: -0.1444695076
O50: 4.601806958 | P50: 4.601806958 | Q50: 20.36508476 | R50: -0.78 | AD50: 37 | AE50: 5.786376507 | AF50: -0.1296723225 | AH50: 5.38429487 | AI50: -0.09541355293 | AJ50: 4.999438212 | AK50: -0.06005851503 | AL50: 4.633631451 | AM50: -0.02349475362 | AN50: 5.786376507 | AO50: -0.1296723225
O51: 4.543140213 | P51: 4.543140213 | Q51: 20.30738276 | R51: -0.775 | AD51: 38 | AE51: 6.020081608 | AF51: -0.1145155029 | AH51: 5.610793574 | AI51: -0.08072203288 | AJ51: 5.218500466 | AK51: -0.04584648526 | AL51: 4.845002924 | AM51: -0.009777829275 | AN51: 6.020081608 | AO51: -0.1145155029
O52: 4.484847131 | P52: 4.484847131 | Q52: 20.25004839 | R52: -0.77 | AD52: 39 | AE52: 6.259066602 | AF52: -0.0990043497 | AH52: 5.842409363 | AI52: -0.06568744047 | AJ52: 5.442511799 | AK52: -0.03130304149 | AL52: 5.061149725 | AM52: 0.004258407511 | AN52: 6.259066602 | AO52: -0.0990043497
O53: 4.42692778 | P53: 4.42692778 | Q53: 20.19308172 | R53: -0.765 | AD53: 40 | AE53: 6.50325869 | AF53: -0.08314421096 | AH53: 6.079071683 | AI53: -0.05031493648 | AJ53: 5.671403976 | AK53: -0.01643314846 | AL53: 5.282006015 | AM53: 0.01860919803 | AN53: 6.50325869 | AO53: -0.08314421096
O54: 4.36938223 | P54: 4.36938223 | Q54: 20.13648281 | R54: -0.76 | AD54: 41 | AE54: 6.75258349 | AF54: -0.06694048773 | AH54: 6.320708447 | AI54: -0.03460973529 | AJ54: 5.905107274 | AK54: -0.001241825467 | AL54: 5.507504517 | AM54: 0.03326972771 | AN54: 6.75258349 | AO54: -0.06694048773
O55: 4.31221055 | P55: 4.31221055 | Q55: 20.08025174 | R55: -0.755 | AD55: 42 | AE55: 7.006965056 | AF55: -0.05039863872 | AH55: 6.567246047 | AI55: -0.01857710925 | AJ55: 6.143550504 | AK55: 0.01426584976 | AL55: 5.737576544 | AM55: 0.04823512275 | AN55: 7.006965056 | AO55: -0.05039863872
O56: 4.255412806 | P56: 4.255412806 | Q56: 20.02438856 | R56: -0.75 | AD56: 43 | AE56: 7.266325899 | AF56: -0.0335241842 | AH56: 6.818609388 | AI56: -0.002222392107 | AJ56: 6.386661034 | AK56: 0.03008473799 | AL56: 5.972152012 | AM56: 0.06350044748 | AN56: 7.266325899 | AO56: -0.0335241842
O57: 4.198989067 | P57: 4.198989067 | Q57: 19.96889334 | R57: -0.745 | AD57: 44 | AE57: 7.530587017 | AF57: -0.01632270901 | AH57: 7.074721901 | AI57: 0.01444901822 | AJ57: 6.63436481 | AK57: 0.04620963602 | AL57: 6.211159469 | AM57: 0.07906070233 | AN57: 7.530587017 | AO57: -0.01632270901
O58: 4.1429394 | P58: 4.1429394 | Q58: 19.91376614 | R58: -0.74 | AD58: 45 | AE58: 7.799667912 | AF58: 0.001200135007 | AH58: 7.335505571 | AI58: 0.03143165744 | AJ58: 6.88658638 | AK58: 0.06263527482 | AL58: 6.454526109 | AM58: 0.09491082216 | AN58: 7.799667912 | AO58: 0.001200135007
O59: 4.087263872 | P59: 4.087263872 | Q59: 19.85900704 | R59: -0.735 | AD59: 46 | AE59: 8.073486621 | AF59: 0.01903862712 | AH59: 7.600880963 | AI59: 0.04871999326 | AJ59: 7.143248914 | AK59: 0.07935631807 | AL59: 6.702177801 | AM59: 0.1110456752 | AN59: 8.073486621 | AO59: 0.01903862712
O60: 4.031962549 | P60: 4.031962549 | Q60: 19.80461608 | R60: -0.73 | AD60: 47 | AE60: 8.351959734 | AF60: 0.03718697632 | AH60: 7.870767238 | AI60: 0.06630842412 | AJ60: 7.404274231 | AK60: 0.09636736115 | AL60: 6.954039108 | AM60: 0.1274600621 | AN60: 8.351959734 | AO60: 0.03718697632
O61: 3.977035497 | P61: 3.977035497 | Q61: 19.75059333 | R61: -0.725 | AD61: 48 | AE61: 8.635002428 | AF61: 0.05563932032 | AH61: 8.145082189 | AI61: 0.0841912784 | AJ61: 7.669582819 | AK61: 0.1136629304 | AL61: 7.210033311 | AM61: 0.1441487155 | AN61: 8.635002428 | AO61: 0.05563932032
O62: 3.922482781 | P62: 3.922482781 | Q62: 19.69693886 | R62: -0.72 | AD62: 49 | AE62: 8.922528483 | AF62: 0.07438972493 | AH62: 8.423742255 | AI62: 0.1023628138 | AJ62: 7.939093863 | AK62: 0.1312374829 | AL62: 7.470082431 | AM62: 0.1611062999 | AN62: 8.922528483 | AO62: 0.07438972493
O63: 3.868304466 | P63: 3.868304466 | Q63: 19.64365273 | R63: -0.715 | AD63: 50 | AE63: 9.214450317 | AF63: 0.09343218369 | AH63: 8.706662555 | AI63: 0.1208172173 | AJ63: 8.212725267 | AK63: 0.149085406 | AL63: 7.734107255 | AM63: 0.1783274115 | AN63: 9.214450317 | AO63: 0.09343218369
O64: 3.814500618 | P64: 3.814500618 | Q64: 19.59073499 | R64: -0.71 | AD64: 51 | AE64: 9.510679008 | AF64: 0.1127606178 | AH64: 8.993756907 | AI64: 0.1395486048 | AJ64: 8.490393682 | AK64: 0.1672010178 | AL64: 8.002027358 | AM64: 0.1958065785 | AN64: 9.510679008 | AO64: 0.1127606178
O65: 3.7610713 | P65: 3.7610713 | Q65: 19.53818571 | R65: -0.705 | AD65: 52 | AE65: 9.811124321 | AF65: 0.1323688764 | AH65: 9.28493786 | AI65: 0.1585510218 | AJ65: 8.772014525 | AK65: 0.1855785674 | AL65: 8.27376113 | AM65: 0.2135382615 | AN65: 9.811124321 | AO65: 0.1323688764
O66: 3.708016575 | P66: 3.708016575 | Q66: 19.48600496 | R66: -0.7 | AD66: 53 | AE66: 10.11569474 | AF66: 0.1522507366 | AH66: 9.580116718 | AI66: 0.1778184435 | AJ66: 9.057502012 | AK66: 0.2042122349 | AL66: 8.549225796 | AM66: 0.2315168538 | AN66: 10.11569474 | AO66: 0.1522507366
O67: 3.655336508 | P67: 3.655336508 | Q67: 19.43419278 | R67: -0.695 | AD67: 54 | AE67: 10.42429748 | AF67: 0.1723999046 | AH67: 9.879203566 | AI67: 0.1973447755 | AJ67: 9.346769182 | AK67: 0.2230961328 | AL67: 8.828337449 | AM67: 0.2497366826 | AN67: 10.42429748 | AO67: 0.1723999046
O68: 3.603031161 | P68: 3.603031161 | Q68: 19.38274925 | R68: -0.69 | AD68: 55 | AE68: 10.73683856 | AF68: 0.1928100158 | AH68: 10.1821073 | AI68: 0.2171238545 | AJ68: 9.639727921 | AK68: 0.2422243061 | AL68: 9.111011069 | AM68: 0.2681920092 | AN68: 10.73683856 | AO68: 0.1928100158
O69: 3.551100596 | P69: 3.551100596 | Q69: 19.33167441 | R69: -0.685 | AD69: 56 | AE69: 11.05322275 | AF69: 0.2134746361 | AH69: 10.48873565 | AI69: 0.2371494493 | AJ69: 9.936288991 | AK69: 0.2615907335 | AL69: 9.397160549 | AM69: 0.2868770305 | AN69: 11.05322275 | AO69: 0.2134746361
O70: 3.499544876 | P70: 3.499544876 | Q70: 19.28096834 | R70: -0.68 | AD70: 57 | AE70: 11.37335369 | AF70: 0.2343872624 | AH70: 10.79899522 | AI70: 0.2574152614 | AJ70: 10.23636206 | AK70: 0.2811893286 | AL70: 9.686698726 | AM70: 0.3057858794 | AN70: 11.37335369 | AO70: 0.2343872624
O71: =(SQRT($K$18*$K$18*(R71-$F$16)*(R71-$F$16)*1000000+$M$4*$M$4))-$M$4 -> 3.448364062 | P71: =(COS($P$1*PI()/180)*SQRT($K$18*$K$18*(R71-$F$16)*(R71-$F$16)*1000000+$P$3)-$P$2*$K$17*(R71-$F$16)*1000)/(1-$P$2)-$M$4 -> 3.448364062 | Q71: =SQRT(((R71-$F$16)*(R71-$F$16)+PI()*PI()*$F$18*$F$18)*$K$18*$K$18*1000000+$M$4*$M$4) - $M$4 -> 19.23063108 | R71: -0.675 | S71: =IF( AND(($R71-$F$16)/S$3>= 0, ($R71-$F$16)/S$3<=$K$31),S$2*ABS(SIN(($R71-$F$16)/S$3*PI()))*$K$30,#N/A) ->  | T71: =IF( AND(($R71-$F$16)/T$3>0,($R71-$F$16)/T$3<=$K$31),T$2*ABS(SIN(($R71-$F$16)/T$3*PI()))*$K$30,#N/A) ->  | U71: =IF( AND(($R71-$F$16)/U$3>= 0, ($R71-$F$16)/U$3<=$K$31),U$2*ABS(SIN(($R71-$F$16)/U$3*PI()))*$K$30,#N/A) ->  | V71: =IF( AND(($R71-$F$16)/V$3>0,($R71-$F$16)/V$3<=$K$31),V$2*ABS(SIN(($R71-$F$16)/V$3*PI()))*$K$30,#N/A) ->  | W71: =IF( AND(($R71-$F$16)/W$3>= 0, ($R71-$F$16)/W$3<=$K$31),W$2*ABS(SIN(($R71-$F$16)/W$3*PI()))*$K$30,#N/A) ->  | X71: =IF( AND(($R71-$F$16)/X$3>0,($R71-$F$16)/X$3<=$K$31),X$2*ABS(SIN(($R71-$F$16)/X$3*PI()))*$K$30,#N/A) ->  | Y71: =IF( AND(($R71-$F$16)/Y$3>= 0, ($R71-$F$16)/Y$3<=$K$31),Y$2*ABS(SIN(($R71-$F$16)/Y$3*PI()))*$K$30,#N/A) ->  | Z71: =IF( AND(($R71-$F$16)/Z$3>0,($R71-$F$16)/Z$3<=$K$31),Z$2*ABS(SIN(($R71-$F$16)/Z$3*PI()))*$K$30,#N/A) ->  | AA71: =IF( AND(($R71-$F$16)/AA$3>= 0, ($R71-$F$16)/AA$3<=$K$31),AA$2*ABS(SIN(($R71-$F$16)/AA$3*PI()))*$K$30,#N/A) ->  | AB71: =IF( AND(($R71-$F$16)/AB$3>0,($R71-$F$16)/AB$3<=$K$31),AB$2*ABS(SIN(($R71-$F$16)/AB$3*PI()))*$K$30,#N/A) ->  | AD71: 58 | AE71: =IF( $K$10 > AD71, #N/A, $K$16*$I$23-$M$4-$K$16*$K$15*$H$23*COS($AD71*PI()/180)) -> 11.69713387 | AF71: =IF(ABS(PI()*$K$18*$F$17*1000/$H$23/SIN($AD71*PI()/180))<1, ($K$16*$K$15*$I$23-$K$16*$H$23*COS($AD71*PI()/180))/$K$18/1000*(1-ASIN(PI()*$K$18*$F$17*1000/$H$23/SIN($AD71*PI()/180))/PI())+$F$16, #N/A) -> 0.2555413245 | AG71: =IF($K$9=0,#N/A,($K$16*$K$15*$I$23-$K$16*$H$23*COS($AD71*PI()/180))/$K$18/1000+$F$16) ->  | AH71: =IF( $K$10 > AD71, #N/A, $K$16*$I$24-$M$4-$K$16*$K$15*$H$24*COS($AD71*PI()/180)) -> 11.1127915 | AI71: =IF(ABS(PI()*$K$18*$F$17*1000/$H$24/SIN($AD71*PI()/180))<1, ($K$16*$K$15*$I$24-$K$16*$H$24*COS($AD71*PI()/180))/$K$18/1000*(1-ASIN(PI()*$K$18*$F$17*1000/$H$24/SIN($AD71*PI()/180))/PI())+$F$16, #N/A) -> 0.2779149267 | AJ71: =IF( $K$10 > AD71, #N/A, $K$16*$I$25-$M$4-$K$16*$K$15*$H$25*COS($AD71*PI()/180)) -> 10.53985571 | AK71: =IF(ABS(PI()*$K$18*$F$17*1000/$H$25/SIN($AD71*PI()/180))<1, ($K$16*$K$15*$I$25-$K$16*$H$25*COS($AD71*PI()/180))/$K$18/1000*(1-ASIN(PI()*$K$18*$F$17*1000/$H$25/SIN($AD71*PI()/180))/PI())+$F$16, #N/A) -> 0.3010139403 | AL71: =IF( $K$10 > AD71, #N/A, $K$16*$I$26-$M$4-$K$16*$K$15*$H$26*COS($AD71*PI()/180)) -> 9.979537404 | AM71: =IF(ABS(PI()*$K$18*$F$17*1000/$H$26/SIN($AD71*PI()/180))<1, ($K$16*$K$15*$I$26-$K$16*$H$26*COS($AD71*PI()/180))/$K$18/1000*(1-ASIN(PI()*$K$18*$F$17*1000/$H$26/SIN($AD71*PI()/180))/PI())+$F$16, #N/A) -> 0.3249126265 | AN71: =IF( $K$10 > AD71, #N/A, $K$16*$I$27-$M$4-$K$16*$K$15*$H$27*COS($AD71*PI()/180)) -> 11.69713387 | AO71: =IF(ABS(PI()*$K$18*$F$17*1000/$H$27/SIN($AD71*PI()/180))<1, ($K$16*$K$15*$I$27-$K$16*$H$27*COS($AD71*PI()/180))/$K$18/1000*(1-ASIN(PI()*$K$18*$F$17*1000/$H$27/SIN($AD71*PI()/180))/PI())+$F$16, #N/A) -> 0.2555413245
O72: 3.397558214 | P72: 3.397558214 | Q72: 19.1806627 | R72: =R71+$R$4 -> -0.67 | AD72: 59 | AE72: 12.02446465 | AF72: 0.2769301853 | AH72: 11.43002889 | AI72: 0.2986420162 | AJ72: 10.84667751 | AK72: 0.3210583548 | AL72: 10.27558738 | AM72: 0.344251281 | AN72: 12.02446465 | AO72: 0.2769301853
O73: 3.347127395 | P73: 3.347127395 | Q73: 19.13106325 | R73: -0.665 | AD73: 60 | AE73: 12.35524634 | AF73: 0.2985471429 | AH73: 11.75061078 | AI73: 0.3195900374 | AJ73: 11.15673399 | AK73: 0.3413162965 | AL73: 10.57475848 | AM73: 0.363795792 | AN73: 12.35524634 | AO73: 0.2985471429
O74: 3.297071664 | P74: 3.297071664 | Q74: 19.08183279 | R74: -0.66 | AD74: 61 | AE74: 12.68937816 | AF74: 0.3203854315 | AH74: 12.07443951 | AI74: 0.3407524359 | AJ74: 11.46993071 | AK74: 0.3617814292 | AL74: 10.87695957 | AM74: 0.3835400497 | AN74: 12.68937816 | AO74: 0.3203854315
O75: 3.247391081 | P75: 3.247391081 | Q75: 19.03297137 | R75: -0.655 | AD75: 62 | AE75: 13.02675834 | AF75: 0.3424382232 | AH75: 12.40141643 | AI75: 0.3621225963 | AJ75: 11.78617225 | AK75: 0.3824473577 | AL75: 11.18209859 | AM75: 0.4034778869 | AN75: 13.02675834 | AO75: 0.3424382232
O76: 3.198085705 | P76: 3.198085705 | Q76: 18.98447907 | R76: -0.65 | AD76: 63 | AE76: 13.36728412 | AF76: 0.3646986291 | AH76: 12.73144194 | AI76: 0.3836938444 | AJ76: 12.10536231 | AK76: 0.4033076292 | AL76: 11.4900826 | AM76: 0.4236030806 | AN76: 13.36728412 | AO76: 0.3646986291
O77: 3.149155596 | P77: 3.149155596 | Q77: 18.93635592 | R77: -0.645 | AD77: 64 | AE77: 13.71085175 | AF77: 0.3871597012 | AH77: 13.06441552 | AI77: 0.405459448 | AJ77: 12.42740363 | AK77: 0.4243557349 | AL77: 11.80081778 | AM77: 0.4439093532 | AN77: 13.71085175 | AO77: 0.3871597012
O78: 3.100600811 | P78: 3.100600811 | Q78: 18.88860199 | R78: -0.64 | AD78: 65 | AE78: 14.0573566 | AF78: 0.409814434 | AH78: 13.40023574 | AI78: 0.4274126191 | AJ78: 12.75219814 | AK78: 0.4455851115 | AL78: 12.11420949 | AM78: 0.4643903743 | AN78: 14.0573566 | AO78: 0.409814434
O79: 3.052421409 | P79: 3.052421409 | Q79: 18.84121732 | R79: -0.635 | AD79: 66 | AE79: 14.4066931 | AF79: 0.4326557662 | AH79: 13.73880031 | AI79: 0.4495465152 | AJ79: 13.07964689 | AK79: 0.4669891428 | AL79: 12.43016225 | AM79: 0.485039762 | AN79: 14.4066931 | AO79: 0.4326557662
O80: 3.004617448 | P80: 3.004617448 | Q80: 18.79420199 | R80: -0.63 | AD80: 67 | AE80: 14.75875486 | AF80: 0.4556765821 | AH80: 14.08000609 | AI80: 0.4718542412 | AJ80: 13.40965013 | AK80: 0.4885611613 | AL80: 12.74857982 | AM80: 0.5058510846 | AN80: 14.75875486 | AO80: 0.4556765821
O81: 2.957188985 | P81: 2.957188985 | Q81: 18.74755603 | R81: -0.625 | AD81: 68 | AE81: 15.11343462 | AF81: 0.478869714 | AH81: 14.42374915 | AI81: 0.494328851 | AJ81: 13.74210735 | AK81: 0.51029445 | AL81: 13.06936522 | AM81: 0.5268178625 | AN81: 15.11343462 | AO81: 0.478869714
O82: 2.910136076 | P82: 2.910136076 | Q82: 18.70127951 | R82: -0.62 | AD82: 69 | AE82: 15.47062435 | AF82: 0.5022279433 | AH82: 14.76992478 | AI82: 0.5169633492 | AJ82: 14.07691728 | AK82: 0.5321822441 | AL82: 13.39242073 | AM82: 0.5479335694 | AN82: 15.47062435 | AO82: 0.5022279433
O83: 2.863458777 | P83: 2.863458777 | Q83: 18.65537248 | R83: -0.615 | AD83: 70 | AE83: 15.83021525 | AF83: 0.5257440031 | AH83: 15.11842754 | AI83: 0.5397506933 | AJ83: 14.41397793 | AK83: 0.5542177327 | AL83: 13.71764794 | AM83: 0.5691916347 | AN83: 15.83021525 | AO83: 0.5257440031
O84: 2.817157146 | P84: 2.817157146 | Q84: 18.60983499 | R84: -0.61 | AD84: 71 | AE84: 16.19209778 | AF84: 0.5494105794 | AH84: 15.46915127 | AI84: 0.5626837948 | AJ84: 14.75318662 | AK84: 0.5763940607 | AL84: 14.04494778 | AM84: 0.5905854442 | AN84: 16.19209778 | AO84: 0.5494105794
O85: 2.771231237 | P85: 2.771231237 | Q85: 18.56466709 | R85: -0.605 | AD85: 72 | AE85: 16.5561617 | AF85: 0.5732203135 | AH85: 15.82198912 | AI85: 0.585755522 | AJ85: 15.09444004 | AK85: 0.5987043304 | AL85: 14.37422056 | AM85: 0.6121083431 | AN85: 16.5561617 | AO85: 0.5732203135
O86: 2.725681104 | P86: 2.725681104 | Q86: 18.51986884 | R86: -0.6 | AD86: 73 | AE86: 16.92229613 | AF86: 0.5971658036 | AH86: 16.17683364 | AI86: 0.6089587011 | AJ86: 15.43763423 | AK86: 0.6211416035 | AL86: 14.70536598 | AM86: 0.6337536366 | AN86: 16.92229613 | AO86: 0.5971658036
O87: 2.680506804 | P87: 2.680506804 | Q87: 18.47544029 | R87: -0.595 | AD87: 74 | AE87: 17.29038953 | AF87: 0.6212396071 | AH87: 16.53357672 | AI87: 0.6322861184 | AJ87: 15.78266465 | AK87: 0.6436989029 | AL87: 15.03828316 | AM87: 0.6555145925 | AN87: 17.29038953 | AO87: 0.6212396071
O88: 2.63570839 | P88: 2.63570839 | Q88: 18.43138148 | R88: -0.59 | AD88: 75 | AE88: 17.66032977 | AF88: 0.6454342424 | AH88: 16.8921097 | AI88: 0.6557305224 | AJ88: 16.1294262 | AK88: 0.6663692147 | AL88: 15.3728707 | AM88: 0.6773844427 | AN88: 17.66032977 | AO88: 0.6454342424
O89: 2.591285915 | P89: 2.591285915 | Q89: 18.38769248 | R89: -0.585 | AD89: 76 | AE89: 18.03200418 | AF89: 0.6697421909 | AH89: 17.25232336 | AI89: 0.6792846255 | AJ89: 16.47781326 | AK89: 0.6891454897 | AL89: 15.70902668 | AM89: 0.699356385 | AN89: 18.03200418 | AO89: 0.6697421909
O90: 2.547239433 | P90: 2.547239433 | Q90: 18.34437333 | R90: -0.58 | AD90: 77 | AE90: 18.40529953 | AF90: 0.6941558988 | AH90: 17.61410799 | AI90: 0.7029411061 | AJ90: 16.8277197 | AK90: 0.7120206459 | AL90: 16.04664869 | AM90: 0.7214235851 | AN90: 18.40529953 | AO90: 0.6941558988
O91: 2.503568996 | P91: 2.503568996 | Q91: 18.30142408 | R91: -0.575 | AD91: 78 | AE91: 18.78010211 | AF91: 0.7186677799 | AH91: 17.97735338 | AI91: 0.7266926103 | AJ91: 17.17903895 | AK91: 0.7349875697 | AL91: 16.38563391 | AM91: 0.7435791783 | AN91: 18.78010211 | AO91: 0.7186677799
O92: 2.460274658 | P92: 2.460274658 | Q92: 18.25884478 | R92: -0.57 | AD92: 79 | AE92: 19.15629776 | AF92: 0.7432702167 | AH92: 18.34194887 | AI92: 0.7505317546 | AJ92: 17.53166397 | AK92: 0.7580391186 | AL92: 16.72587907 | AM92: 0.7658162714 | AN92: 19.15629776 | AO92: 0.7432702167
O93: 2.417356469 | P93: 2.417356469 | Q93: 18.21663548 | R93: -0.565 | AD93: 80 | AE93: 19.53377189 | AF93: 0.7679555632 | AH93: 18.70778342 | AI93: 0.7744511269 | AJ93: 17.88548737 | AK93: 0.7811681224 | AL93: 17.06728053 | AM93: 0.7881279445 | AN93: 19.53377189 | AO93: 0.7679555632
O94: 2.374814482 | P94: 2.374814482 | Q94: 18.17479623 | R94: -0.56 | AD94: 81 | AE94: 19.9124095 | AF94: 0.7927161464 | AH94: 19.07474558 | AI94: 0.7984432893 | AJ94: 18.24040136 | AK94: 0.8043673858 | AL94: 17.40973429 | AM94: 0.8105072531 | AN94: 19.9124095 | AO94: 0.7927161464
O95: 2.332648747 | P95: 2.332648747 | Q95: 18.13332709 | R95: -0.555 | AD95: 82 | AE95: 20.29209527 | AF95: 0.817544269 | AH95: 19.44272358 | AI95: 0.8225007798 | AJ95: 18.59629783 | AK95: 0.8276296897 | AL95: 17.75313604 | AM95: 0.8329472298 | AN95: 20.29209527 | AO95: 0.817544269
O96: 2.290859316 | P96: 2.290859316 | Q96: 18.09222808 | R96: -0.55 | AD96: 83 | AE96: 20.67271354 | AF96: 0.8424322109 | AH96: 19.81160532 | AI96: 0.8466161145 | AJ96: 18.95306837 | AK96: 0.8509477939 | AL96: 18.09738117 | AM96: 0.8554408861 | AN96: 20.67271354 | AO96: 0.8424322109
O97: 2.249446238 | P97: 2.249446238 | Q97: 18.05149927 | R97: -0.545 | AD97: 84 | AE97: 21.05414837 | AF97: 0.8673722317 | AH97: 20.18127844 | AI97: 0.8707817893 | AJ97: 19.31060431 | AK97: 0.8743144383 | AL97: 18.44236483 | AM97: 0.8779812145 | AN97: 21.05414837 | AO97: 0.8673722317
O98: 2.208409562 | P98: 2.208409562 | Q98: 18.01114071 | R98: -0.54 | AD98: 85 | AE98: 21.43628357 | AF98: 0.8923565725 | AH98: 20.55163034 | AI98: 0.8949902821 | AJ98: 19.66879674 | AK98: 0.8977223452 | AL98: 18.78798193 | AM98: 0.9005611903 | AN98: 21.43628357 | AO98: 0.8923565725
O99: 2.167749339 | P99: 2.167749339 | Q99: 17.97115243 | R99: -0.535 | AD99: 86 | AE99: 21.81900273 | AF99: 0.9173774583 | AH99: 20.9225482 | AI99: 0.9192340551 | AJ99: 20.02753655 | AK99: 0.9211642216 | AL99: 19.1341272 | AM99: 0.9231737734 | AN99: 21.81900273 | AO99: 0.9173774583
O100: 2.127465617 | P100: 2.127465617 | Q100: 17.93153449 | R100: -0.53 | AD100: 87 | AE100: 22.20218929 | AF100: 0.9424270997 | AH100: 21.29391903 | AI100: 0.9435055562 | AJ100: 20.38671446 | AK100: 0.9446327603 | AL100: 19.48069518 | AM100: 0.9458119102 | AN100: 22.20218929 | AO100: 0.9424270997
O101: 2.087558444 | P101: 2.087558444 | Q101: 17.89228692 | R101: -0.525 | AD101: 88 | AE101: 22.58572651 | AF101: 0.9674976955 | AH101: 21.66562971 | AI101: 0.9677972218 | AJ101: 20.74622107 | AK101: 0.9681206428 | AL101: 19.82758033 | AM101: 0.9684685356 | AN101: 22.58572651 | AO101: 0.9674976955
O102: 2.048027869 | P102: 2.048027869 | Q102: 17.85340979 | R102: -0.52 | AD102: 89 | AE102: 22.96949756 | AF102: 0.9925814343 | AH102: 22.03756702 | AI102: 0.9921014779 | AJ102: 21.10594686 | AK102: 0.9916205405 | AL102: 20.17467696 | AM102: 0.9911365748 | AN102: 22.96949756 | AO102: 0.9925814343
O103: 2.008873939 | P103: 2.008873939 | Q103: 17.81490312 | R103: -0.515 | AD103: 90 | AE103: =IF( $K$10 > AD103, #N/A, $K$16*$I$23-$M$4-$K$16*$K$15*$H$23*COS($AD103*PI()/180)) -> 23.35338555 | AF103: 1.017670497 | AG103: =IF($K$9=0,#N/A,($K$16*$K$15*$I$23-$K$16*$H$23*COS($AD103*PI()/180))/$K$18/1000+$F$16) ->  | AH103: =IF( $K$10 > AD103, #N/A, $K$16*$I$24-$M$4-$K$16*$K$15*$H$24*COS($AD103*PI()/180)) -> 22.40961766 | AI103: 1.016410743 | AJ103: =IF( $K$10 > AD103, #N/A, $K$16*$I$25-$M$4-$K$16*$K$15*$H$25*COS($AD103*PI()/180)) -> 21.46578226 | AK103: 1.015125117 | AL103: =IF( $K$10 > AD103, #N/A, $K$16*$I$26-$M$4-$K$16*$K$15*$H$26*COS($AD103*PI()/180)) -> 20.52187935 | AM103: 1.013808945 | AN103: =IF( $K$10 > AD103, #N/A, $K$16*$I$27-$M$4-$K$16*$K$15*$H$27*COS($AD103*PI()/180)) -> 23.35338555 | AO103: 1.017670497
O104: 1.9700967 | P104: 1.9700967 | Q104: 17.77676698 | R104: -0.51 | AD104: 91 | AE104: 23.73727355 | AF104: 1.042757058 | AH104: 22.7816683 | AI104: 1.04071743 | AJ104: 21.82561766 | AK104: 1.03862703 | AL104: 20.86908174 | AM104: 1.036478557 | AN104: 23.73727355 | AO104: 1.042757058
O105: 1.931696201 | P105: 1.931696201 | Q105: 17.73900139 | R105: -0.505 | AD105: 92 | AE105: 24.1210446 | AF105: 1.067833289 | AH105: 23.15360561 | AI105: 1.065013946 | AJ105: 22.18534345 | AK105: 1.062118933 | AL105: 21.21617837 | AM105: 1.059138319 | AN105: 24.1210446 | AO105: 1.067833289
O106: 1.893672485 | P106: 1.893672485 | Q106: 17.70160641 | R106: -0.5 | AD106: 93 | AE106: 24.50458182 | AF106: 1.092891358 | AH106: 23.5253163 | AI106: 1.089292699 | AJ106: 22.54485006 | AK106: 1.085593478 | AL106: 21.56306351 | AM106: 1.081781134 | AN106: 24.50458182 | AO106: 1.092891358
O107: 1.856025601 | P107: 1.856025601 | Q107: 17.66458208 | R107: -0.495 | AD107: 94 | AE107: 24.88776837 | AF107: 1.117923436 | AH107: 23.89668713 | AI107: 1.113546096 | AJ107: 22.90402797 | AK107: 1.109043315 | AL107: 21.9096315 | AM107: 1.104399908 | AN107: 24.88776837 | AO107: 1.117923436
O108: 1.818755592 | P108: 1.818755592 | Q108: 17.62792843 | R108: -0.49 | AD108: 95 | AE108: 25.27048754 | AF108: 1.142921694 | AH108: 24.26760499 | AI108: 1.137766543 | AJ108: 23.26276778 | AK108: 1.132461097 | AL108: 22.25577676 | AM108: 1.126987544 | AN108: 25.27048754 | AO108: 1.142921694
O109: 1.781862503 | P109: 1.781862503 | Q109: 17.59164553 | R109: -0.485 | AD109: 96 | AE109: 25.65262274 | AF109: 1.167878308 | AH109: 24.63795688 | AI109: 1.161946455 | AJ109: 23.62096021 | AK109: 1.155839481 | AL109: 22.60139387 | AM109: 1.149536952 | AN109: 25.65262274 | AO109: 1.167878308
O110: 1.745346379 | P110: 1.745346379 | Q110: 17.55573339 | R110: -0.48 | AD110: 97 | AE110: 26.03405756 | AF110: 1.192785461 | AH110: 25.00763 | AI110: 1.186078248 | AJ110: 23.97849615 | AK110: 1.179171128 | AL110: 22.94637753 | AM110: 1.172041043 | AN110: 26.03405756 | AO110: 1.192785461
O111: 1.709207265 | P111: 1.709207265 | Q111: 17.52019208 | R111: -0.475 | AD111: 98 | AE111: 26.41467583 | AF111: 1.217635342 | AH111: 25.37651174 | AI111: 1.210154349 | AJ111: 24.33526669 | AK111: 1.202448705 | AL111: 23.29062266 | AM111: 1.194492738 | AN111: 26.41467583 | AO111: 1.217635342
O112: 1.673445202 | P112: 1.673445202 | Q112: 17.48502163 | R112: -0.47 | AD112: 99 | AE112: 26.7943616 | AF112: 1.242420152 | AH112: 25.74448974 | AI112: 1.234167192 | AJ112: 24.69116316 | AK112: 1.22566489 | AL112: 23.63402441 | AM112: 1.216884964 | AN112: 26.7943616 | AO112: 1.242420152
O113: 1.638060235 | P113: 1.638060235 | Q113: 17.45022207 | R113: -0.465 | AD113: 100 | AE113: 27.17299922 | AF113: 1.267132103 | AH113: 26.1114519 | AI113: 1.258109223 | AJ113: 25.04607715 | AK113: 1.24881237 | AL113: 23.97647817 | AM113: 1.239210656 | AN113: 27.17299922 | AO113: 1.267132103
O114: 1.603052406 | P114: 1.603052406 | Q114: 17.41579346 | R114: -0.46 | AD114: 101 | AE114: 27.55047334 | AF114: 1.291763421 | AH114: 26.47728645 | AI114: 1.281972902 | AJ114: 25.39990055 | AK114: 1.271883844 | AL114: 24.31787963 | AM114: 1.261462764 | AN114: 27.55047334 | AO114: 1.291763421
O115: 1.568421757 | P115: 1.568421757 | Q115: 17.38173583 | R115: -0.455 | AD115: 102 | AE115: 27.926669 | AF115: 1.316306348 | AH115: 26.84188195 | AI115: 1.305750701 | AJ115: 25.75252557 | AK115: 1.294872027 | AL115: 24.65812479 | AM115: 1.283634248 | AN115: 27.926669 | AO115: 1.316306348
O116: 1.534168329 | P116: 1.534168329 | Q116: 17.34804921 | R116: -0.45 | AD116: 103 | AE116: 28.30147158 | AF116: 1.340753142 | AH116: 27.20512733 | AI116: 1.329435112 | AJ116: 26.10384482 | AK116: 1.317769646 | AL116: 24.99711 | AM116: 1.305718083 | AN116: 28.30147158 | AO116: 1.340753142
O117: 1.500292165 | P117: 1.500292165 | Q117: 17.31473366 | R117: -0.445 | AD117: 104 | AE117: 28.67476693 | AF117: 1.36509608 | AH117: 27.56691196 | AI117: 1.353018641 | AJ117: 26.45375126 | AK117: 1.340569447 | AL117: 25.33473202 | AM117: 1.327707261 | AN117: 28.67476693 | AO117: 1.36509608
O118: 1.466793305 | P118: 1.466793305 | Q118: 17.28178921 | R118: -0.44 | AD118: 105 | AE118: 29.04644133 | AF118: 1.389327461 | AH118: 27.92712563 | AI118: 1.376493817 | AJ118: 26.80213832 | AK118: 1.363264193 | AL118: 25.670888 | AM118: 1.349594789 | AN118: 29.04644133 | AO118: 1.389327461
O119: 1.433671788 | P119: 1.433671788 | Q119: 17.24921589 | R119: -0.435 | AD119: 106 | AE119: 29.41638158 | AF119: 1.413439606 | AH119: 28.28565861 | AI119: 1.399853187 | AJ119: 27.14889987 | AK119: 1.385846669 | AL119: 26.00547554 | AM119: 1.371373694 | AN119: 29.41638158 | AO119: 1.413439606
O120: 1.400927656 | P120: 1.400927656 | Q120: 17.21701375 | R120: -0.43 | AD120: 107 | AE120: 29.78447498 | AF120: 1.437424858 | AH120: 28.64240169 | AI120: 1.423089323 | AJ120: 27.49393029 | AK120: 1.408309678 | AL120: 26.33839272 | AM120: 1.393037022 | AN120: 29.78447498 | AO120: 1.437424858
O121: 1.368560948 | P121: 1.368560948 | Q121: 17.18518282 | R121: -0.425 | AD121: 108 | AE121: 30.1506094 | AF121: 1.461275586 | AH121: 28.9972462 | AI121: 1.446194819 | AJ121: 27.83712448 | AK121: 1.430646049 | AL121: 26.66953814 | AM121: 1.414577842 | AN121: 30.1506094 | AO121: 1.461275586
O122: 1.336571702 | P122: 1.336571702 | Q122: 17.15372314 | R122: -0.42 | AD122: 109 | AE122: 30.51467333 | AF122: 1.484984186 | AH122: 29.35008406 | AI122: 1.469162295 | AJ122: 28.1783779 | AK122: 1.452848631 | AL122: 26.99881092 | AM122: 1.435989241 | AN122: 30.51467333 | AO122: 1.484984186
O123: 1.304959957 | P123: 1.304959957 | Q123: 17.12263475 | R123: -0.415 | AD123: 110 | AE123: 30.87655586 | AF123: 1.508543082 | AH123: 29.70080778 | AI123: 1.491984396 | AJ123: 28.5175866 | AK123: 1.474910301 | AL123: 27.32611076 | AM123: 1.457264334 | AN123: 30.87655586 | AO123: 1.508543082
O124: 1.273725751 | P124: 1.273725751 | Q124: 17.09191768 | R124: -0.41 | AD124: 111 | AE124: 31.23614675 | AF124: 1.531944725 | AH124: 30.04931054 | AI124: 1.514653796 | AJ124: 28.85464724 | AK124: 1.496823958 | AL124: 27.65133797 | AM124: 1.478396256 | AN124: 31.23614675 | AO124: 1.531944725
O125: 1.242869122 | P125: 1.242869122 | Q125: 17.06157197 | R125: -0.405 | AD125: 112 | AE125: 31.59333649 | AF125: 1.555181599 | AH125: 30.39548618 | AI125: 1.537163198 | AJ125: 29.18945717 | AK125: 1.518582533 | AL125: 27.97439348 | AM125: 1.499378169 | AN125: 31.59333649 | AO125: 1.555181599
O126: 1.212390107 | P126: 1.212390107 | Q126: 17.03159765 | R126: -0.4 | S126: 0.07474308356 | AD126: 113 | AE126: 31.94801625 | AF126: 1.578246216 | AH126: 30.73922924 | AI126: 1.559505331 | AJ126: 29.52191439 | AK126: 1.540178978 | AL126: 28.29517887 | AM126: 1.52020326 | AN126: 31.94801625 | AO126: 1.578246216
O127: 1.182288743 | P127: 1.182288743 | Q127: 17.00199476 | R127: -0.395 | S127: 0.3856422031 | AD127: 114 | AE127: 32.300078 | AF127: 1.601131122 | AH127: 31.08043502 | AI127: 1.581672957 | AJ127: 29.85191764 | AK127: 1.56160628 | AL127: 28.61359645 | AM127: 1.540864742 | AN127: 32.300078 | AO127: 1.601131122
O128: 1.152565066 | P128: 1.152565066 | Q128: 16.97276333 | R128: -0.39 | S128: 0.695950246 | AD128: 115 | AE128: 32.64941451 | AF128: 1.623828895 | AH128: 31.41899958 | AI128: 1.603658868 | AJ128: 30.17936638 | AK128: 1.582857448 | AL128: 28.92954921 | AM128: 1.561355856 | AN128: 32.64941451 | AO128: 1.623828895
O129: 1.123219112 | P129: 1.123219112 | Q129: 16.94390341 | R129: -0.385 | S129: 1.005191601 | AD129: 116 | AE129: 32.99591936 | AF129: 1.646332146 | AH129: 31.7548198 | AI129: 1.625455887 | AJ129: 30.50416089 | AK129: 1.603925526 | AL129: 29.24294091 | AM129: 1.581669868 | AN129: 32.99591936 | AO129: 1.646332146
O130: 1.094250917 | P130: 1.094250917 | Q130: 16.91541501 | R130: -0.38 | S130: 1.312892291 | AD130: 117 | AE130: 33.33948699 | AF130: 1.668633519 | AH130: 32.08779338 | AI130: 1.647056868 | AJ130: 30.82620221 | AK130: 1.624803583 | AL130: 29.5536761 | AM130: 1.601800073 | AN130: 33.33948699 | AO130: 1.668633519
O131: 1.065660514 | P131: 1.065660514 | Q131: 16.88729817 | R131: -0.375 | S131: 1.618580702 | AD131: 118 | AE131: 33.68001277 | AF131: 1.690725693 | AH131: 32.4178189 | AI131: 1.668454698 | AJ131: 31.14539227 | AK131: 1.64548472 | AL131: 29.86166011 | AM131: 1.62173979 | AN131: 33.68001277 | AO131: 1.690725693
O132: 1.03744794 | P132: 1.03744794 | Q132: 16.85955294 | R132: -0.37 | S132: 1.921788303 | AD132: 119 | AE132: 34.01739295 | AF132: 1.71260138 | AH132: 32.74479582 | AI132: 1.689642293 | AJ132: 31.46163382 | AK132: 1.665962065 | AL132: 30.16679913 | AM132: 1.641482368 | AN132: 34.01739295 | AO132: 1.71260138
O133: 1.009613227 | P133: 1.009613227 | Q133: 16.83217933 | R133: -0.365 | S133: 2.222050364 | AD133: 120 | AE133: 34.35152477 | AF133: 1.734253325 | AH133: 33.06862454 | AI133: 1.710612603 | AJ133: 31.77483053 | AK133: 1.686228778 | AL133: 30.46900022 | AM133: 1.661021181 | AN133: 34.35152477 | AO133: 1.734253325
O134: 0.98215641 | P134: 0.98215641 | Q134: 16.80517739 | R134: -0.36 | S134: 2.518906673 | AD134: 121 | AE134: 34.68230645 | AF134: 1.755674307 | AH134: 33.38920643 | AI134: 1.731358606 | AJ134: 32.08488701 | AK134: 1.706278042 | AL134: 30.76817132 | AM134: 1.680349627 | AN134: 34.68230645 | AO134: 1.755674307
O135: =(SQRT($K$18*$K$18*(R135-$F$16)*(R135-$F$16)*1000000+$M$4*$M$4))-$M$4 -> 0.9550775214 | P135: =(COS($P$1*PI()/180)*SQRT($K$18*$K$18*(R135-$F$16)*(R135-$F$16)*1000000+$P$3)-$P$2*$K$17*(R135-$F$16)*1000)/(1-$P$2)-$M$4 -> 0.9550775214 | Q135: =SQRT(((R135-$F$16)*(R135-$F$16)+PI()*PI()*$F$18*$F$18)*$K$18*$K$18*1000000+$M$4*$M$4) - $M$4 -> 16.77854713 | R135: -0.355 | S135: =IF( AND(($R135-$F$16)/S$3>= 0, ($R135-$F$16)/S$3<=$K$31),S$2*ABS(SIN(($R135-$F$16)/S$3*PI()))*$K$30,#N/A) -> 2.811902236 | T135: =IF( AND(($R135-$F$16)/T$3>0,($R135-$F$16)/T$3<=$K$31),T$2*ABS(SIN(($R135-$F$16)/T$3*PI()))*$K$30,#N/A) ->  | U135: =IF( AND(($R135-$F$16)/U$3>= 0, ($R135-$F$16)/U$3<=$K$31),U$2*ABS(SIN(($R135-$F$16)/U$3*PI()))*$K$30,#N/A) -> 0.2163111607 | V135: =IF( AND(($R135-$F$16)/V$3>0,($R135-$F$16)/V$3<=$K$31),V$2*ABS(SIN(($R135-$F$16)/V$3*PI()))*$K$30,#N/A) ->  | W135: =IF( AND(($R135-$F$16)/W$3>= 0, ($R135-$F$16)/W$3<=$K$31),W$2*ABS(SIN(($R135-$F$16)/W$3*PI()))*$K$30,#N/A) ->  | X135: =IF( AND(($R135-$F$16)/X$3>0,($R135-$F$16)/X$3<=$K$31),X$2*ABS(SIN(($R135-$F$16)/X$3*PI()))*$K$30,#N/A) ->  | Y135: =IF( AND(($R135-$F$16)/Y$3>= 0, ($R135-$F$16)/Y$3<=$K$31),Y$2*ABS(SIN(($R135-$F$16)/Y$3*PI()))*$K$30,#N/A) ->  | Z135: =IF( AND(($R135-$F$16)/Z$3>0,($R135-$F$16)/Z$3<=$K$31),Z$2*ABS(SIN(($R135-$F$16)/Z$3*PI()))*$K$30,#N/A) ->  | AA135: =IF( AND(($R135-$F$16)/AA$3>= 0, ($R135-$F$16)/AA$3<=$K$31),AA$2*ABS(SIN(($R135-$F$16)/AA$3*PI()))*$K$30,#N/A) ->  | AB135: =IF( AND(($R135-$F$16)/AB$3>0,($R135-$F$16)/AB$3<=$K$31),AB$2*ABS(SIN(($R135-$F$16)/AB$3*PI()))*$K$30,#N/A) ->  | AD135: 122 | AE135: =IF( $K$10 > AD135, #N/A, $K$16*$I$23-$M$4-$K$16*$K$15*$H$23*COS($AD135*PI()/180)) -> 35.00963724 | AF135: =IF(ABS(PI()*$K$18*$F$17*1000/$H$23/SIN($AD135*PI()/180))<1, ($K$16*$K$15*$I$23-$K$16*$H$23*COS($AD135*PI()/180))/$K$18/1000*(1-ASIN(PI()*$K$18*$F$17*1000/$H$23/SIN($AD135*PI()/180))/PI())+$F$16, #N/A) -> 1.776857137 | AG135: =IF($K$9=0,#N/A,($K$16*$K$15*$I$23-$K$16*$H$23*COS($AD135*PI()/180))/$K$18/1000+$F$16) ->  | AH135: =IF( $K$10 > AD135, #N/A, $K$16*$I$24-$M$4-$K$16*$K$15*$H$24*COS($AD135*PI()/180)) -> 33.70644383 | AI135: =IF(ABS(PI()*$K$18*$F$17*1000/$H$24/SIN($AD135*PI()/180))<1, ($K$16*$K$15*$I$24-$K$16*$H$24*COS($AD135*PI()/180))/$K$18/1000*(1-ASIN(PI()*$K$18*$F$17*1000/$H$24/SIN($AD135*PI()/180))/PI())+$F$16, #N/A) -> 1.751873313 | AJ135: =IF( $K$10 > AD135, #N/A, $K$16*$I$25-$M$4-$K$16*$K$15*$H$25*COS($AD135*PI()/180)) -> 32.39170881 | AK135: =IF(ABS(PI()*$K$18*$F$17*1000/$H$25/SIN($AD135*PI()/180))<1, ($K$16*$K$15*$I$25-$K$16*$H$25*COS($AD135*PI()/180))/$K$18/1000*(1-ASIN(PI()*$K$18*$F$17*1000/$H$25/SIN($AD135*PI()/180))/PI())+$F$16, #N/A) -> 1.726103073 | AL135: =IF( $K$10 > AD135, #N/A, $K$16*$I$26-$M$4-$K$16*$K$15*$H$26*COS($AD135*PI()/180)) -> 31.06422129 | AM135: =IF(ABS(PI()*$K$18*$F$17*1000/$H$26/SIN($AD135*PI()/180))<1, ($K$16*$K$15*$I$26-$K$16*$H$26*COS($AD135*PI()/180))/$K$18/1000*(1-ASIN(PI()*$K$18*$F$17*1000/$H$26/SIN($AD135*PI()/180))/PI())+$F$16, #N/A) -> 1.69946113 | AN135: =IF( $K$10 > AD135, #N/A, $K$16*$I$27-$M$4-$K$16*$K$15*$H$27*COS($AD135*PI()/180)) -> 35.00963724 | AO135: =IF(ABS(PI()*$K$18*$F$17*1000/$H$27/SIN($AD135*PI()/180))<1, ($K$16*$K$15*$I$27-$K$16*$H$27*COS($AD135*PI()/180))/$K$18/1000*(1-ASIN(PI()*$K$18*$F$17*1000/$H$27/SIN($AD135*PI()/180))/PI())+$F$16, #N/A) -> 1.776857137
O136: 0.9283765941 | P136: 0.9283765941 | Q136: 16.7522886 | R136: =R135+$R$4 -> -0.35 | S136: 3.100587975 | U136: 0.5535063107 | AD136: 123 | AE136: 35.33341741 | AF136: 1.797794658 | AH136: 34.0202401 | AI136: 1.772149759 | AJ136: 32.69520247 | AK136: 1.745697108 | AL136: 31.35705997 | AM136: 1.718349137 | AN136: 35.33341741 | AO136: 1.797794658
O137: 0.9020536603 | P137: 0.9020536603 | Q137: 16.72640183 | R137: -0.345 | S137: 3.384521421 | U137: 0.8896372375 | AD137: 124 | AE137: 35.65354836 | AF137: 1.81847974 | AH137: 34.33049967 | AI137: 1.792181011 | AJ137: 32.99527553 | AK137: 1.76505341 | AL137: 31.64659815 | AM137: 1.737007115 | AN137: 35.65354836 | AO137: 1.81847974
O138: 0.8761087519 | P138: 0.8761087519 | Q138: 16.70088684 | R138: -0.34 | S138: 3.663267386 | U138: 1.224057664 | AD138: 125 | AE138: 35.96993255 | AF138: 1.838905285 | AH138: 34.63712802 | AI138: 1.811960159 | AJ138: 33.2918366 | AK138: 1.784165266 | AL138: 31.93274763 | AM138: 1.755428551 | AN138: 35.96993255 | AO138: 1.838905285
O139: 0.8505419 | P139: 0.8505419 | Q139: 16.67574367 | R139: -0.335 | S139: 3.936398634 | U139: 1.556124603 | AD139: 126 | AE139: 36.28247362 | AF139: 1.859064217 | AH139: 34.94003176 | AI139: 1.831480313 | AJ139: 33.58479534 | AK139: 1.803025979 | AL139: 32.21542125 | AM139: 1.773606947 | AN139: 36.28247362 | AO139: 1.859064217
O140: 0.8253531357 | P140: 0.8253531357 | Q140: 16.65097234 | R140: -0.33 | S140: 4.203496536 | U140: 1.885199591 | AD140: 127 | AE140: 36.59107637 | AF140: 1.878949486 | AH140: 35.23911861 | AI140: 1.850734609 | AJ140: 33.87406251 | AK140: 1.821628871 | AL140: 32.4945329 | AM140: 1.791535821 | AN140: 36.59107637 | AO140: 1.878949486
O141: 0.8005424893 | P141: 0.8005424893 | Q141: 16.62657288 | R141: -0.325 | S141: 4.464151708 | U141: 2.210649917 | AD141: 128 | AE141: 36.89564679 | AF141: 1.89855406 | AH141: 35.53429746 | AI141: 1.869716193 | AJ141: 34.15955 | AK141: 1.839967278 | AL141: 32.76999757 | AM141: 1.809208697 | AN141: 36.89564679 | AO141: 1.89855406
O142: 0.7761099908 | P142: 0.7761099908 | Q142: 16.60254532 | R142: -0.32 | S142: 4.717964642 | U142: 2.531849841 | AD142: 129 | AE142: 37.1960921 | AF142: 1.917870923 | AH142: 35.82547842 | AI142: 1.888418228 | AJ142: 34.44117084 | AK142: 1.858034542 | AL142: 33.04173134 | AM142: 1.826619107 | AN142: 37.1960921 | AO142: 1.917870923
O143: 0.7520556698 | P143: 0.7520556698 | Q143: 16.5788897 | R143: -0.315 | S143: 4.964546318 | U143: 2.848181792 | AD143: 130 | AE143: 37.49232079 | AF143: 1.93689307 | AH143: 36.11257277 | AI143: 1.906833883 | AJ143: 34.71883925 | AK143: 1.875824011 | AL143: 33.30965144 | AM143: 1.843760582 | AN143: 37.49232079 | AO143: 1.93689307
O144: 0.7283795552 | P144: 0.7283795552 | Q144: 16.55560603 | R144: -0.31 | S144: 5.203518797 | U144: 3.159037562 | W144: 0.283318363 | AD144: 131 | AE144: 37.78424263 | AF144: 1.955613502 | AH144: 36.39549307 | AI144: 1.924956329 | AJ144: 34.99247066 | AK144: 1.893329031 | AL144: 33.57367627 | AM144: 1.860626646 | AN144: 37.78424263 | AO144: 1.955613502
O145: 0.7050816757 | P145: 0.7050816757 | Q145: 16.53269434 | R145: -0.305 | S145: 5.434515806 | U145: 3.46381947 | W145: 0.6553047254 | AD145: 132 | AE145: 38.07176868 | AF145: 1.974025218 | AH145: 36.67415314 | AI145: 1.94277873 | AJ145: 35.2619817 | AK145: 1.910542937 | AL145: 33.83372539 | AM145: 1.877210812 | AN145: 38.07176868 | AO145: 1.974025218
O146: 0.6821620595 | P146: 0.6821620595 | Q146: 16.51015467 | R146: -0.3 | S146: 5.657183292 | U146: 3.761941514 | W146: 1.025649427 | AD146: 133 | AE146: 38.35481137 | AF146: 1.99212121 | AH146: 36.94846809 | AI146: 1.960294242 | AJ146: 35.52729029 | AK146: 1.92745905 | AL146: 34.08971959 | AM146: 1.893506571 | AN146: 38.35481137 | AO146: 1.99212121
O147: 0.6596207342 | P147: 0.6596207342 | Q147: 16.48798703 | R147: -0.295 | S147: 5.871179973 | U147: 4.052830497 | W147: 1.393424686 | AD147: 134 | AE147: 38.63328449 | AF147: 2.009894452 | AH147: 37.21835436 | AI147: 1.977495995 | AJ147: 35.78831561 | AK147: 1.944070665 | AL147: 34.3415809 | AM147: 1.909507382 | AN147: 38.63328449 | AO147: 2.009894452
O148: 0.6374577272 | P148: 0.6374577272 | Q148: 16.46619146 | R148: -0.29 | S148: 6.076177853 | U148: 4.335927127 | W148: 1.757709156 | AD148: 135 | AE148: 38.9071032 | AF148: 2.02733789 | AH148: 37.48372975 | AI148: 1.994377091 | AJ148: 36.04497814 | AK148: 1.960371038 | AL148: 34.58923259 | AM148: 1.925206665 | AN148: 38.9071032 | AO148: 2.02733789
O149: 0.6156730651 | P149: 0.6156730651 | Q149: 16.44476798 | R149: -0.285 | S149: 6.271862732 | U149: 4.610687098 | W149: 2.117590237 | AD149: 136 | AE149: 39.17618409 | AF149: 2.044444431 | AH149: 37.74451342 | AI149: 2.010930586 | AJ149: 36.29719971 | AK149: 1.97635338 | AL149: 34.83259923 | AM149: 1.940597785 | AN149: 39.17618409 | AO149: 2.044444431
O150: 0.5942667743 | P150: 0.5942667743 | Q150: 16.42371661 | R150: -0.28 | S150: 6.457934681 | U150: 4.876582129 | W150: 2.472166359 | AD150: 137 | AE150: 39.44044521 | AF150: 2.06120693 | AH150: 38.00062594 | AI150: 2.027149478 | AJ150: 36.54490349 | AK150: 1.992010834 | AL150: 35.07160669 | AM150: 1.955674037 | AN150: 39.44044521 | AO150: 2.06120693
O151: 0.5732388808 | P151: 0.5732388808 | Q151: 16.40303738 | R151: -0.275 | S151: 6.634108506 | U151: 5.133100986 | W151: 2.820549243 | AD151: 138 | AE151: 39.69980605 | AF151: 2.07761817 | AH151: 38.25198928 | AI151: 2.043026691 | AJ151: 36.78801402 | AK151: 2.007336469 | AL151: 35.30618215 | AM151: 1.970428634 | AN151: 39.69980605 | AO151: 2.07761817
O152: 0.5525894098 | P152: 0.5525894098 | Q152: 16.38273031 | R152: -0.27 | S152: 6.800114185 | U152: 5.379750462 | W152: 3.161866125 | AD152: 139 | AE152: 39.95418762 | AF152: 2.09367085 | AH152: 38.49852688 | AI152: 2.058555056 | AJ152: 37.02645725 | AK152: 2.02232325 | AL152: 35.53625418 | AM152: 1.98485468 | AN152: 39.95418762 | AO152: 2.09367085
O153: 0.5323183865 | P153: 0.5323183865 | Q153: 16.36279543 | R153: -0.265 | S153: 6.95569728 | U153: 5.616056325 | W153: 3.495261943 | Y153: 0.2397810793 | AD153: 140 | AE153: 40.20351242 | AF153: 2.109357556 | AH153: 38.74016364 | AI153: 2.073727288 | AJ153: 37.26016054 | AK153: 2.036964022 | AL153: 35.76175268 | AM153: 1.998945152 | AN153: 40.20351242 | AO153: 2.109357556
O154: 0.5124258353 | P154: 0.5124258353 | Q154: 16.34323276 | R154: -0.26 | S154: 7.100619327 | U154: 5.841564231 | W154: 3.819901478 | Y154: 0.6602843299 | AD154: 141 | AE154: 40.44770451 | AF154: 2.124670742 | AH154: 38.97682596 | AI154: 2.088535962 | AJ154: 37.48905272 | AK154: 2.051251484 | AL154: 35.98260897 | AM154: 2.012692874 | AN154: 40.44770451 | AO154: 2.124670742
O155: 0.4929117803 | P155: 0.4929117803 | Q155: 16.32404232 | R155: -0.255 | S155: 7.234658203 | U155: 6.055840598 | W155: 4.134971447 | Y155: 1.078517313 | AD155: 142 | AE155: 40.6866895 | AF155: 2.139602694 | AH155: 39.20844175 | AI155: 2.102973481 | AJ155: 37.71306406 | AK155: 2.065178155 | AL155: 36.19875577 | AM155: 2.026090481 | AN155: 40.6866895 | AO155: 2.139602694
O156: 0.4737762451 | P156: 0.4737762451 | Q156: 16.30522414 | R156: -0.25 | S156: 7.357608466 | U156: 6.258473438 | W156: 4.439682541 | Y156: 1.493042009 | AD156: 143 | AE156: 40.9203946 | AF156: 2.154145502 | AH156: 39.43494045 | AI156: 2.117032041 | AJ156: 37.93212631 | AK156: 2.078736339 | AL156: 36.41012725 | AM156: 2.039130388 | AN156: 40.9203946 | AO156: 2.154145502
O157: 0.4550192527 | P157: 0.4550192527 | Q157: 16.28677823 | R157: -0.245 | S157: 7.469281669 | U157: 6.449073151 | W157: 4.733271403 | Y157: 1.902433151 | AD157: 144 | AE157: 41.14874862 | AF157: 2.168291015 | AH157: 39.65625308 | AI157: 2.130703591 | AJ157: 38.14617276 | AK157: 2.091918087 | AL157: 36.61665901 | AM157: 2.051804743 | AN157: 41.14874862 | AO157: 2.168291015
O158: 0.4366408261 | P158: 0.4366408261 | Q158: 16.26870463 | R158: -0.24 | S158: 7.56950665 | U158: 6.62727327 | W158: 5.015002537 | Y158: 2.305283122 | AD158: 145 | AE158: 41.371682 | AF158: 2.182030793 | AH158: 39.87231221 | AI158: 2.143979783 | AJ158: 38.35513819 | AK158: 2.10471514 | AL158: 36.81828814 | AM158: 2.064105379 | AN158: 41.371682 | AO158: 2.182030793
O159: 0.4186409872 | P159: 0.4186409872 | Q159: 16.25100334 | R159: -0.235 | S159: 7.658129793 | U159: 6.792731172 | W159: 5.284170154 | Y159: 2.700206795 | AD159: 146 | AE159: 41.58912683 | AF159: 2.195356051 | AH159: 40.08305204 | AI159: 2.156851915 | AJ159: 38.55895897 | AK159: 2.117118879 | AL159: 37.01495323 | AM159: 2.076023756 | AN159: 41.58912683 | AO159: 2.195356051
O160: 0.401019758 | P160: 0.401019758 | Q160: 16.23367439 | R160: -0.23 | S160: 7.735015265 | U160: 6.945128733 | W160: 5.540099939 | Y160: 3.085846297 | AD160: 147 | AE160: 41.80101688 | AF160: 2.208257592 | AH160: 40.28840837 | AI160: 2.169310863 | AJ160: 38.757573 | AK160: 2.129120247 | AL160: 37.20659437 | AM160: 2.087550884 | AN160: 41.80101688 | AO160: 2.208257592
O161: 0.3837771598 | P161: 0.3837771598 | Q161: 16.21671781 | R161: -0.225 | S161: 7.800045223 | U161: 7.084172938 | W161: 5.78215074 | Y161: 3.460875676 | AA161: 1.27758391 | AD161: 148 | AE161: 42.0072876 | AF161: 2.220725726 | AH161: 40.48831864 | AI161: 2.181346995 | AJ161: 38.95091978 | AK161: 2.140709674 | AL161: 37.39315318 | AM161: 2.098677247 | AN161: 42.0072876 | AO161: 2.220725726
O162: 0.3669132134 | P162: 0.3669132134 | Q162: 16.2001336 | R162: -0.22 | S162: 7.853119995 | U162: 7.209596447 | W162: 6.009716175 | Y162: 3.824005462 | AA162: 2.83951732 | AD162: 149 | AE162: 42.20787617 | AF162: 2.232750172 | AH162: 40.68272197 | AI162: 2.192950082 | AJ162: 39.13894042 | AK162: 2.151876972 | AL162: 37.57457284 | AM162: 2.109392695 | AN162: 42.20787617 | AO162: 2.232750172
O163: 0.3504279392 | P163: 0.3504279392 | Q163: 16.1839218 | R163: -0.215 | S163: 7.894158232 | U163: 7.32115811 | W163: 6.222226151 | Y163: 4.173987098 | AA163: 4.388104434 | AD163: 150 | AE163: 42.40272147 | AF163: 2.244319947 | AH163: 40.87155914 | AI163: 2.204109171 | AJ163: 39.32157764 | AK163: 2.162611217 | AL163: 37.75079808 | AM163: 2.119686328 | AN163: 42.40272147 | AO163: 2.244319947
O164: 0.3343213572 | P164: 0.3343213572 | Q164: 16.16808241 | R164: -0.21 | S164: 7.923097036 | U164: 7.418643428 | W164: 6.419148289 | Y164: 4.509617237 | AA164: 5.916066584 | AD164: 151 | AE164: 42.59176416 | AF164: 2.255423217 | AH164: 41.05477261 | AI164: 2.214812449 | AJ164: 39.49877582 | AK164: 2.172900607 | AL164: 37.92177523 | AM164: 2.129546345 | AN164: 42.59176416 | AO164: 2.255423217
O165: 0.3185934869 | P165: 0.3185934869 | Q165: 16.15261547 | R165: -0.205 | S165: 7.939892052 | U165: 7.501864967 | W165: 6.599989263 | Y165: 4.829741875 | AA165: 7.416222046 | AD165: 152 | AE165: 42.77494665 | AF165: 2.266047135 | AH165: 41.2323066 | AI165: 2.225047066 | AJ165: 39.67048097 | AK165: 2.182732284 | AL165: 38.0874522 | AM165: 2.138959868 | AN165: 42.77494665 | AO165: 2.266047135
O166: 0.3032443474 | P166: 0.3032443474 | Q166: 16.13752098 | R166: -0.2 | S166: 7.944517537 | U166: 7.570662716 | W166: 6.764296033 | Y166: 5.133260322 | AA166: 8.881519789 | AD166: 153 | AE166: 42.95221315 | AF166: 2.276177625 | AH166: 41.404107 | AI166: 2.234798925 | AJ166: 39.8366408 | AK166: 2.192092118 | AL166: 38.24777853 | AM166: 2.147912723 | AN166: 42.95221315 | AO166: 2.276177625
O167: 0.2882739571 | P167: 0.2882739571 | Q167: 16.12279896 | R167: -0.195 | S167: 7.936966403 | U167: 7.6249044 | W167: 6.91165698 | Y167: 5.419128984 | AA167: 10.30507262 | AD167: 154 | AE167: =IF( $K$10 > AD167, #N/A, $K$16*$I$23-$M$4-$K$16*$K$15*$H$23*COS($AD167*PI()/180)) -> 43.12350965 | AF167: 2.28579913 | AG167: =IF($K$9=0,#N/A,($K$16*$K$15*$I$23-$K$16*$H$23*COS($AD167*PI()/180))/$K$18/1000+$F$16) ->  | AH167: =IF( $K$10 > AD167, #N/A, $K$16*$I$24-$M$4-$K$16*$K$15*$H$24*COS($AD167*PI()/180)) -> 41.57012151 | AI167: 2.244052422 | AJ167: =IF( $K$10 > AD167, #N/A, $K$16*$I$25-$M$4-$K$16*$K$15*$H$25*COS($AD167*PI()/180)) -> 39.99720468 | AK167: 2.200964444 | AL167: =IF( $K$10 > AD167, #N/A, $K$16*$I$26-$M$4-$K$16*$K$15*$H$26*COS($AD167*PI()/180)) -> 38.40270538 | AM167: 2.156389169 | AN167: =IF( $K$10 > AD167, #N/A, $K$16*$I$27-$M$4-$K$16*$K$15*$H$27*COS($AD167*PI()/180)) -> 43.12350965 | AO167: 2.28579913
O168: 0.2736823342 | P168: 0.2736823342 | Q168: 16.10844943 | R168: -0.19 | S168: 7.917250223 | U168: 7.664485727 | W168: 7.041702937 | Y168: 5.686364953 | AA168: 11.68018957 | AD168: 155 | AE168: 43.28878399 | AF168: 2.294894285 | AH168: 41.73029954 | AI168: 2.252790115 | AJ168: 40.15212371 | AK168: 2.20933173 | AL168: 38.55218555 | AM168: 2.164371566 | AN168: 43.28878399 | AO168: 2.294894285
O169: 0.2594694965 | P169: 0.2594694965 | Q169: 16.09447241 | R169: -0.185 | S169: 7.885399215 | U169: 7.689330595 | W169: 7.154108115 | Y169: 5.934049389 | AA169: 13.0004073 | AD169: 156 | AE169: 43.4479858 | AF169: 2.303443521 | AH169: 41.8845923 | AI169: 2.260992325 | AJ169: 40.3013507 | AK169: 2.217174166 | AL169: 38.69617352 | AM169: 2.171839951 | AN169: 43.4479858 | AO169: 2.303443521
O170: 0.245635461 | P170: 0.245635461 | Q170: 16.08086792 | R170: -0.18 | S170: 7.841462199 | U170: 7.699391235 | W170: 7.248590917 | Y170: 6.161330671 | AA170: 14.25952053 | AD170: 157 | AE170: 43.60106661 | AF170: 2.311424556 | AH170: 42.03295279 | AI170: 2.268636617 | AJ170: 40.4448402 | AK170: 2.224469144 | AL170: 38.83462543 | AM170: 2.178771511 | AN170: 43.60106661 | AO170: 2.311424556
O171: 0.2321802446 | P171: 0.2321802446 | Q171: 16.06763596 | R171: -0.175 | S171: 7.785506517 | U171: 7.694648304 | W171: 7.324914648 | Y171: 6.367427336 | AA171: 15.45161118 | AD171: 158 | AE171: 43.74797978 | AF171: 2.318811748 | AH171: 42.17533583 | AI171: 2.275697148 | AJ171: 40.58254849 | AK171: 2.231190588 | AL171: 38.96749909 | AM171: 2.185139909 | AN171: 43.74797978 | AO171: 2.318811748
O172: 0.2191038636 | P172: 0.2191038636 | Q172: 16.05477656 | R172: -0.17 | S172: 7.717617933 | U172: 7.67511092 | W172: 7.3828881 | Y172: 6.551630757 | AA172: 16.57107619 | AD172: 159 | AE172: 43.88868056 | AF172: 2.325575267 | AH172: 42.31169804 | AI172: 2.282143823 | AJ172: 40.71443362 | AK172: 2.237308106 | AL172: 39.09475404 | AM172: 2.190914412 | AN172: 43.88868056 | AO172: 2.325575267
O173: 0.2064063337 | P173: 0.2064063337 | Q173: 16.04228973 | R173: -0.165 | S173: 7.6379005 | U173: 7.640816648 | W173: 7.422366041 | Y173: 6.713307583 | AA173: 17.61265384 | AD173: 160 | AE173: 44.02312608 | AF173: 2.331680011 | AH173: 42.44199788 | AI173: 2.287941198 | AJ173: 40.84045544 | AK173: 2.24278587 | AL173: 39.21635151 | AM173: 2.196058762 | AN173: 44.02312608 | AO173: 2.331680011
O174: 0.1940876704 | P174: 0.1940876704 | Q174: 16.03017548 | R174: -0.16 | S174: 7.5464764 | U174: 7.591831426 | W174: 7.443249571 | Y174: 6.85190192 | AA174: 18.57144852 | AD174: 161 | AE174: 44.15127541 | AF174: 2.337084178 | AH174: 42.56619567 | AI174: 2.293047034 | AJ174: 40.96057554 | AK174: 2.247581153 | AL174: 39.33225446 | AM174: 2.200529678 | AN174: 44.15127541 | AO174: 2.337084178
O175: 0.1821478885 | P175: 0.1821478885 | Q175: 16.01843384 | R175: -0.155 | S175: 7.443485762 | U175: 7.528249436 | W175: 7.445486372 | Y175: 6.966937234 | AA175: 19.4429537 | AD175: 162 | AE175: 44.27308949 | AF175: 2.341737359 | AH175: 42.68425356 | AI175: 2.297410363 | AJ175: 41.07475733 | AK175: 2.251642362 | AL175: 39.44242759 | AM175: 2.204274866 | AN175: 44.27308949 | AO175: 2.341737359
O176: 0.1705870026 | P176: 0.1705870026 | Q176: 16.00706481 | R176: -0.15 | S176: 7.329086439 | U176: 7.450192928 | W176: 7.429070841 | Y176: 7.058017998 | AA176: 20.22307313 | AD176: 163 | AE176: 44.38853123 | AF176: 2.34557796 | AH176: 42.79613561 | AI176: 2.30096887 | AJ176: 41.18296604 | AK176: 2.254906381 | AL176: 39.54683734 | AM176: 2.207230313 | AN176: 44.38853123 | AO176: 2.34557796
O177: 0.1594050267 | P177: 0.1594050267 | Q177: 15.9960684 | R177: -0.145 | S177: 7.203453772 | U177: 7.357811981 | W177: 7.394044101 | Y177: 7.124831047 | AA177: 20.9081401 | AD177: 164 | AE177: 44.49756547 | AF177: 2.348529635 | AH177: 42.90180772 | AI177: 2.30364528 | AJ177: 41.28516871 | AK177: 2.257294902 | AL177: 39.6454519 | AM177: 2.209316555 | AN177: 44.49756547 | AO177: 2.348529635
O178: 0.1486019742 | P178: 0.1486019742 | Q178: 15.98544463 | R178: -0.14 | S178: 7.066780319 | U178: 7.251284214 | W178: 7.340493902 | Y178: 7.167146657 | AA178: 21.49493465 | AD178: 165 | AE178: 44.60015898 | AF178: 2.350496293 | AH178: 43.00123772 | AI178: 2.305342291 | AJ178: 41.3813342 | AK178: 2.258709277 | AL178: 39.73824124 | AM178: 2.21043344 | AN178: 44.60015898 | AO178: 2.350496293
O179: 0.1381778583 | P179: 0.1381778583 | Q179: 15.97519352 | R179: -0.135 | S179: 6.919275561 | U179: 7.130814448 | W179: 7.268554397 | Y179: 7.184819333 | AA179: 21.98069874 | AD179: 166 | AE179: 44.69628051 | AF179: 2.351354929 | AH179: 43.09439531 | AI179: 2.3059353 | AJ179: 41.47143322 | AK179: 2.259023131 | AL179: 39.82517709 | AM179: 2.21045261 | AN179: 44.69628051 | AO179: 2.351354929
O180: 0.1281326917 | P180: 0.1281326917 | Q180: 15.96531506 | R180: -0.13 | S180: 6.761165578 | U180: 6.99663431 | W180: 7.178405807 | Y180: 7.177788311 | AA180: 22.36314917 | AD180: 167 | AE180: 44.7859008 | AF180: 2.350945119 | AH180: 43.18125211 | AI180: 2.305261743 | AJ180: 41.55543832 | AK180: 2.258071526 | AL180: 39.90623296 | AM180: 2.209206475 | AN180: 44.7859008 | AO180: 2.350945119
O181: 0.1184664864 | P181: 0.1184664864 | Q181: 15.95580929 | R181: -0.125 | S181: 6.592692709 | U181: 6.849001787 | W181: 7.070273972 | Y181: 7.146077766 | AA181: 22.64048835 | AD181: 168 | AE181: 44.86899253 | AF181: 2.349053179 | AH181: 43.26178167 | AI181: 2.303105013 | AJ181: 41.63332393 | AK181: 2.255634611 | AL181: 39.98138417 | AM181: 2.206471559 | AN181: 44.86899253 | AO181: 2.349053179
O182: 0.1091792541 | P182: 0.1091792541 | Q182: 15.9466762 | R182: -0.12 | S182: 6.414115171 | U182: 6.68820073 | W182: 6.944429781 | Y182: 7.089796729 | AA182: 22.81141274 | AD182: 169 | AE182: 44.9455304 | AF182: 2.345387546 | AH182: 43.33595947 | AI182: 2.29916946 | AJ182: 41.7050663 | AK182: 2.2514122 | AL182: 40.05060783 | AM182: 2.2019426 | AN182: 44.9455304 | AO182: 2.345387546
O183: 0.1002710062 | P183: 0.1002710062 | Q183: 15.9379158 | R183: -0.115 | S183: 6.225706672 | U183: 6.514540311 | W183: 6.801188499 | Y183: 7.009138711 | AA183: 22.87511895 | AD183: 170 | AE183: 45.01549109 | AF183: 2.339539094 | AH183: 43.40376289 | AI183: 2.29304007 | AJ183: 41.77064359 | AK183: 2.244982734 | AL183: 40.11388285 | AM183: 2.195190714 | AN183: 45.01549109 | AO183: 2.339539094
O184: 0.09174175349 | P184: 0.09174175349 | Q184: 15.92952812 | R184: -0.11 | S184: 6.027755987 | U184: 6.328354427 | W184: 6.640908971 | Y184: 6.904381041 | AA184: 22.83130756 | AD184: 171 | AE184: 45.0788533 | AF184: 2.330914365 | AH184: 43.4651713 | AI184: 2.284114581 | AJ184: 41.83003582 | AK184: 2.235734157 | AL184: 40.17118996 | AM184: 2.185592863 | AN184: 45.0788533 | AO184: 2.330914365
O185: 0.0835915062 | P185: 0.0835915062 | Q185: 15.92151315 | R185: -0.105 | S185: 5.820566517 | U185: 6.130001055 | W185: 6.463992727 | Y185: 6.775883909 | AA185: 22.68018448 | AD185: 172 | AE185: 45.13559772 | AF185: 2.318617235 | AH185: 43.52016598 | AI185: 2.271483073 | AJ185: 41.88322491 | AK185: 2.222741174 | AL185: 40.2225117 | AM185: 2.172206473 | AN185: 45.13559772 | AO185: 2.318617235
O186: 0.07582027424 | P186: 0.07582027424 | Q186: 15.91387091 | R186: -0.1 | S186: 5.604455822 | U186: 5.919861567 | W186: 6.270882976 | Y186: 6.62408913 | AA186: 22.42246002 | AD186: 173 | AE186: 45.18570706 | AF186: 2.301225278 | AH186: 43.56873018 | AI186: 2.253700142 | AJ186: 41.93019464 | AK186: 2.2045327 | AL186: 40.26783243 | AM186: 2.153531519 | AN186: 45.18570706 | AO186: 2.301225278
O187: 0.06842806705 | P187: 0.06842806705 | Q187: 15.9066014 | R187: -0.095 | S187: 5.379755137 | U187: 5.698339999 | W187: 6.062063493 | Y187: 6.449518621 | AA187: 22.05934554 | AD187: 174 | AE187: 45.22916607 | AF187: 2.276331162 | AH187: 43.61084911 | AI187: 2.228316888 | AJ187: 41.97093071 | AK187: 2.178613209 | AL187: 40.30713835 | AM187: 2.127019704 | AN187: 45.22916607 | AO187: 2.276331162
O188: 0.06141489357 | P188: 0.06141489357 | Q188: 15.89970464 | R188: -0.09 | S188: 5.146808863 | U188: 5.465862268 | W188: 5.83805741 | Y188: 6.252772613 | AA188: 21.59254776 | AD188: 175 | AE188: 45.26596151 | AF188: 2.239494401 | AH188: 43.64650994 | AI188: 2.190808305 | AJ188: 42.00542072 | AK188: 2.140362338 | AL188: 40.34041749 | AM188: 2.087942034 | AN188: 45.26596151 | AO188: 2.239494401
O189: 0.05478076231 | P189: 0.05478076231 | Q189: 15.89318063 | R189: -0.085 | S189: 4.905974037 | U189: 5.222875358 | W189: 5.599425905 | Y189: 6.034527579 | AA189: 21.02426071 | AD189: 176 | AE189: 45.29608216 | AF189: 2.181448627 | AH189: 43.67570181 | AI189: 2.131702417 | AJ189: 42.03365416 | AK189: 2.080073926 | AL189: 40.36765972 | AM189: 2.026322662 | AN189: 45.29608216 | AO189: 2.181448627
O190: 0.0485256813 | P190: 0.0485256813 | Q190: 15.88702938 | R190: -0.08 | S190: 4.657619789 | U190: 4.969846457 | W190: 5.346766793 | Y190: 5.795533918 | AA190: 20.35715545 | AD190: 177 | AE190: 45.31951885 | AF190: 2.078633272 | AH190: 43.69841582 | AI190: 2.026753961 | AJ190: 42.05562242 | AK190: 1.97270818 | AL190: 40.38885672 | AM190: 1.916186907 | AN190: 45.31951885 | AO190: 2.078633272
O191: 0.04264965813 | P191: 0.04264965813 | Q191: 15.88125089 | R191: -0.075 | S191: 4.402126773 | U191: 4.707262064 | W191: 5.080713033 | Y191: 5.536613364 | AA191: 19.59436751 | AD191: 178 | AE191: 45.33626445 | AF191: 1.840804552 | AH191: 43.71464506 | AI191: 1.780837301 | AJ191: 42.07131882 | AK191: 1.717094622 | AL191: 40.40400205 | AM191: 1.64865784 | AN191: 45.33626445 | AO191: 1.840804552
O192: 0.03715269991 | P192: 0.03715269991 | Q192: 15.87584518 | R192: -0.07 | S192: 4.139886586 | U192: 4.435627048 | W192: 4.80193114 | Y192: 5.258656169 | AA192: 18.73948216 | AD192: 179 | AE192: 45.34631385 | AH192: 43.72438458 | AJ192: 42.08073857 | AL192: 40.4130911 | AN192: 45.34631385
O193: 0.03203481331 | P193: 0.03203481331 | Q193: 15.87081225 | R193: -0.065 | S193: 3.871301164 | U193: 4.155463679 | W193: 4.511119513 | Y193: 4.962618038 | AA193: 17.7965175
O194: 0.02729600453 | P194: 0.02729600453 | Q194: 15.86615211 | R194: -0.06 | S194: 3.596782171 | U194: 3.867310625 | W194: 4.20900669 | Y194: 4.649516846 | AA194: 16.76990568
O195: 0.02293627931 | P195: 0.02293627931 | Q195: 15.86186476 | R195: -0.055 | S195: 3.316750364 | U195: 3.571721918 | W195: 3.896349521 | Y195: 4.320429133 | AA195: 15.66447197
O196: 0.01895564295 | P196: 0.01895564295 | Q196: 15.8579502 | R196: -0.05 | S196: 3.031634949 | U196: 3.269265883 | W196: 3.573931269 | Y196: 3.976486409 | AA196: 14.48541213
O197: 0.01535410026 | P197: 0.01535410026 | Q197: 15.85440844 | R197: -0.045 | S197: 2.741872926 | U197: 2.960524051 | W197: 3.242559653 | Y197: 3.618871257 | AA197: 13.23826797
O198: 0.0121316556 | P198: 0.0121316556 | Q198: 15.85123949 | R198: -0.04 | S198: 2.447908414 | U198: 2.646090038 | W198: 2.90306482 | Y198: 3.248813272 | AA198: 11.92890132
O199: =(SQRT($K$18*$K$18*(R199-$F$16)*(R199-$F$16)*1000000+$M$4*$M$4))-$M$4 -> 0.009288312894 | P199: =(COS($P$1*PI()/180)*SQRT($K$18*$K$18*(R199-$F$16)*(R199-$F$16)*1000000+$P$3)-$P$2*$K$17*(R199-$F$16)*1000)/(1-$P$2)-$M$4 -> 0.009288312894 | Q199: =SQRT(((R199-$F$16)*(R199-$F$16)+PI()*PI()*$F$18*$F$18)*$K$18*$K$18*1000000+$M$4*$M$4) - $M$4 -> 15.84844335 | R199: -0.035 | S199: =IF( AND(($R199-$F$16)/S$3>= 0, ($R199-$F$16)/S$3<=$K$31),S$2*ABS(SIN(($R199-$F$16)/S$3*PI()))*$K$30,#N/A) -> 2.150191975 | T199: =IF( AND(($R199-$F$16)/T$3>0,($R199-$F$16)/T$3<=$K$31),T$2*ABS(SIN(($R199-$F$16)/T$3*PI()))*$K$30,#N/A) ->  | U199: =IF( AND(($R199-$F$16)/U$3>= 0, ($R199-$F$16)/U$3<=$K$31),U$2*ABS(SIN(($R199-$F$16)/U$3*PI()))*$K$30,#N/A) -> 2.326568404 | V199: =IF( AND(($R199-$F$16)/V$3>0,($R199-$F$16)/V$3<=$K$31),V$2*ABS(SIN(($R199-$F$16)/V$3*PI()))*$K$30,#N/A) ->  | W199: =IF( AND(($R199-$F$16)/W$3>= 0, ($R199-$F$16)/W$3<=$K$31),W$2*ABS(SIN(($R199-$F$16)/W$3*PI()))*$K$30,#N/A) -> 2.556297268 | X199: =IF( AND(($R199-$F$16)/X$3>0,($R199-$F$16)/X$3<=$K$31),X$2*ABS(SIN(($R199-$F$16)/X$3*PI()))*$K$30,#N/A) ->  | Y199: =IF( AND(($R199-$F$16)/Y$3>= 0, ($R199-$F$16)/Y$3<=$K$31),Y$2*ABS(SIN(($R199-$F$16)/Y$3*PI()))*$K$30,#N/A) -> 2.867584833 | Z199: =IF( AND(($R199-$F$16)/Z$3>0,($R199-$F$16)/Z$3<=$K$31),Z$2*ABS(SIN(($R199-$F$16)/Z$3*PI()))*$K$30,#N/A) ->  | AA199: =IF( AND(($R199-$F$16)/AA$3>= 0, ($R199-$F$16)/AA$3<=$K$31),AA$2*ABS(SIN(($R199-$F$16)/AA$3*PI()))*$K$30,#N/A) -> 10.56346645 | AB199: =IF( AND(($R199-$F$16)/AB$3>0,($R199-$F$16)/AB$3<=$K$31),AB$2*ABS(SIN(($R199-$F$16)/AB$3*PI()))*$K$30,#N/A) -> 
O200: 0.006824075577 | P200: 0.006824075577 | Q200: 15.84602002 | R200: =R199+$R$4 -> -0.03 | S200: 1.849179921 | U200: 2.002573491 | W200: 2.203125715 | Y200: 2.476496723 | AA200: 9.148381202
... 206 more rows

Sheet Calculation3
A1: mp | B1: 938.2720813 | G1: A | H1: Z | I1: Sysmbol | J1: index | K1: Binding energy | L1: N | M1: Mass (MeV/c^2) | P1: =Reaction3!C25 -> 0
A2: mn | B2: 939.5654133 | E2: BEAM | F2: =Reaction3!C7 -> 14C | G2: =IF(F2="n",1,IF(F2="p",1,IF(F2="d",2,IF(F2="t",3,IF(F2="a",4,SUBSTITUTE(F2,I2,"")))))) -> 14 | H2: =VLOOKUP(I2,MASS2020!$D$3:$E$3800,2,FALSE) -> 6 | I2: =IF(F2="n","nn",IF(OR(F2="p",F2="d",F2="t"),"H",IF(F2="a","He",SUBSTITUTE(SUBSTITUTE(SUBSTITUTE(SUBSTITUTE(SUBSTITUTE(SUBSTITUTE(SUBSTITUTE(SUBSTITUTE(SUBSTITUTE(SUBSTITUTE(F2,"0",""),"1",""),"2",""),"3",""),"4",""),"5",""),"6",""),"7",""),"8",""),"9","")))) -> C | J2: =G2+10000*H2 -> 60014 | K2: =VLOOKUP(J2,MASS2020!$A$3:$I$3800, 9, FALSE)/1000*G2 -> 105.2844772 | L2: =G2-H2 -> 8 | M2: =H2*$B$1+L2*$B$2-K2 + K11 -> 13040.87132 | P2: =POWER(K16*SIN(P1*PI()/180),2) -> 0 | Q2: 2*rho-> | R2: =Reaction3!G35 -> -1 | S2: =IF(G33="", NA(), G33) ->  | T2: =IF(M33="", NA(), M33) ->  | U2: =IF(G34="", NA(), G34) ->  | V2: =IF(M34="", NA(), M34) ->  | W2: =IF(G35="", NA(), G35) ->  | X2: =IF(M35="", NA(), M35) ->  | Y2: =IF(G36="", NA(), G36) ->  | Z2: =IF(M36="", NA(), M36) ->  | AA2: =IF(G37="", NA(), G37) ->  | AB2: =IF(M37="", NA(), M37) -> 
A3: c | B3: 299792458 | E3: TARGET | F3: =Reaction3!C8 -> d | G3: =IF(F3="n",1,IF(F3="p",1,IF(F3="d",2,IF(F3="t",3,IF(F3="a",4,SUBSTITUTE(F3,I3,"")))))) -> 2 | H3: =VLOOKUP(I3,MASS2020!$D$3:$E$3800,2,FALSE) -> 1 | I3: =IF(F3="n","nn",IF(OR(F3="p",F3="d",F3="t"),"H",IF(F3="a","He",SUBSTITUTE(SUBSTITUTE(SUBSTITUTE(SUBSTITUTE(SUBSTITUTE(SUBSTITUTE(SUBSTITUTE(SUBSTITUTE(SUBSTITUTE(SUBSTITUTE(F3,"0",""),"1",""),"2",""),"3",""),"4",""),"5",""),"6",""),"7",""),"8",""),"9","")))) -> H | J3: =G3+10000*H3 -> 10002 | K3: =VLOOKUP(J3,MASS2020!$A$3:$I$3800, 9, FALSE)/1000*G3 -> 2.2245662 | L3: =G3-H3 -> 1 | M3: =H3*$B$1+L3*$B$2-K3 -> 1875.612928 | P3: =M4*M4*(1-P2) -> 880354.4985 | Q3: z0-> | R3: =Reaction3!G36 -> 1 | S3: =IF(E33="", NA(),E33) ->  | T3: =IF(L33="", NA(),2*L33) ->  | U3: =IF(E34="", NA(),E34) ->  | V3: =IF(L34="", NA(), L34*2) ->  | W3: =IF(E35="", NA(),E35) ->  | X3: =IF(L35="", NA(), L35*2) ->  | Y3: =IF(E36="", NA(),E36) ->  | Z3: =IF(L36="", NA(), L36*2) ->  | AA3: =IF(E37="", NA(),E37) ->  | AB3: =IF(L37="", NA(), L37*2) ->  | AD3: =K21 -> 1.280662877
A4: eV | B4: 1.60217646e-19 | E4: LIGHT | F4: =Reaction3!C9 -> p | G4: =IF(F4="n",1,IF(F4="p",1,IF(F4="d",2,IF(F4="t",3,IF(F4="a",4,SUBSTITUTE(F4,I4,"")))))) -> 1 | H4: =VLOOKUP(I4,MASS2020!$D$3:$E$3800,2,FALSE) -> 1 | I4: =IF(F4="n","nn",IF(OR(F4="p",F4="d",F4="t"),"H",IF(F4="a","He",SUBSTITUTE(SUBSTITUTE(SUBSTITUTE(SUBSTITUTE(SUBSTITUTE(SUBSTITUTE(SUBSTITUTE(SUBSTITUTE(SUBSTITUTE(SUBSTITUTE(F4,"0",""),"1",""),"2",""),"3",""),"4",""),"5",""),"6",""),"7",""),"8",""),"9","")))) -> H | J4: =G4+10000*H4 -> 10001 | K4: =VLOOKUP(J4,MASS2020!$A$3:$I$3800, 9, FALSE)/1000*G4 -> 0 | L4: =G4-H4 -> 0 | M4: =H4*$B$1+L4*$B$2-K4 -> 938.2720813 | R4: =(R3-R2)/400 -> 0.005 | AD4: =(AD18-AD3)/12 -> 0.3099447602
A5: MeV | B5: 1.60217646e-13 | E5: HEAVY | F5: =G5&I5 -> 15C | G5: =G2+G3-G4 -> 15 | H5: =H2+H3-H4 -> 6 | I5: =VLOOKUP(J5, MASS2020!A3:D3800, 4, FALSE) -> C | J5: =G5+10000*H5 -> 60015 | K5: =VLOOKUP(J5,MASS2020!$A$3:$I$3800, 9, FALSE)/1000*G5 -> 106.502544 | L5: =G5-H5 -> 9 | M5: =H5*$B$1+L5*$B$2-K5 -> 13979.21866 | O5: thetaCM = 0 | P5: ="thetaCM="&P1 -> thetaCM=0 | Q5: Bore radius Boundary | R5: z [m] | S5: Rb(Ex1) | T5: RB(Ex1) | U5: Rb(Ex2) | V5: RB(Ex2) | W5: Rb(Ex3) | X5: RB(Ex3) | Y5: Rb(Ex4) | Z5: RB(Ex4) | AA5: Rb(Ex5) | AB5: RB(Ex5) | AD5: thetaCM | AE5: e | AF5: z(Ex1) | AG5: z0(Ex1) | AH5: e | AI5: z(Ex2) | AJ5: e | AK5: z(Ex3) | AL5: e | AM5: z(Ex4) | AN5: e | AO5: z(Ex5)
A6: amu | B6: 1.66053886e-27 | E6: =IF( G2-G5 > 0, "Removal", IF( G2-G5 < 0, "Adding", "Inelastic")) -> Adding | F6: =IF(G6=0, "",IF( I6="nn", "n", IF(G6&I6 = "1H", "p", IF(G6&I6 = "2H", "d", IF(G6&I6="3H", "t", IF(G6&I6="4He", "a", G6&I6)))))) -> n | G6: =ABS(G2-G5) -> 1 | H6: =ABS(H2-H5) -> 0 | I6: =IF(ISNA(I7), IF( G6=1, IF(H6=1, "p","n"), ""), I7) -> nn | J6: =G6+10000*H6 -> 1 | L6: Q-value | M6: =M2+M3-M4-M5 -> -1.0064994 | O6: =(SQRT($K$18*$K$18*(R6-$F$16)*(R6-$F$16)*1000000+$M$4*$M$4))-$M$4 -> 9.802792611 | P6: =(COS($P$1*PI()/180)*SQRT($K$18*$K$18*(R6-$F$16)*(R6-$F$16)*1000000+$P$3)-$P$2*$K$17*(R6-$F$16)*1000)/(1-$P$2)-$M$4 -> 9.802792611 | Q6: =SQRT((R6*R6+PI()*PI()*$F$18*$F$18)*$K$18*$K$18*1000000+$M$4*$M$4) - $M$4 -> 29.95501067 | R6: =R2 -> -1 | S6: =IF( AND(($R6-$F$16)/S$3>= 0, ($R6-$F$16)/S$3<=$K$31),S$2*ABS(SIN(($R6-$F$16)/S$3*PI()))*$K$30,#N/A) ->  | T6: =IF( AND(($R6-$F$16)/T$3>0,($R6-$F$16)/T$3<=$K$31),T$2*ABS(SIN(($R6-$F$16)/T$3*PI()))*$K$30,#N/A) ->  | U6: =IF( AND(($R6-$F$16)/U$3>= 0, ($R6-$F$16)/U$3<=$K$31),U$2*ABS(SIN(($R6-$F$16)/U$3*PI()))*$K$30,#N/A) ->  | V6: =IF( AND(($R6-$F$16)/V$3>0,($R6-$F$16)/V$3<=$K$31),V$2*ABS(SIN(($R6-$F$16)/V$3*PI()))*$K$30,#N/A) ->  | W6: =IF( AND(($R6-$F$16)/W$3>= 0, ($R6-$F$16)/W$3<=$K$31),W$2*ABS(SIN(($R6-$F$16)/W$3*PI()))*$K$30,#N/A) ->  | X6: =IF( AND(($R6-$F$16)/X$3>0,($R6-$F$16)/X$3<=$K$31),X$2*ABS(SIN(($R6-$F$16)/X$3*PI()))*$K$30,#N/A) ->  | Y6: =IF( AND(($R6-$F$16)/Y$3>= 0, ($R6-$F$16)/Y$3<=$K$31),Y$2*ABS(SIN(($R6-$F$16)/Y$3*PI()))*$K$30,#N/A) ->  | Z6: =IF( AND(($R6-$F$16)/Z$3>0,($R6-$F$16)/Z$3<=$K$31),Z$2*ABS(SIN(($R6-$F$16)/Z$3*PI()))*$K$30,#N/A) ->  | AA6: =IF( AND(($R6-$F$16)/AA$3>= 0, ($R6-$F$16)/AA$3<=$K$31),AA$2*ABS(SIN(($R6-$F$16)/AA$3*PI()))*$K$30,#N/A) ->  | AB6: =IF( AND(($R6-$F$16)/AB$3>0,($R6-$F$16)/AB$3<=$K$31),AB$2*ABS(SIN(($R6-$F$16)/AB$3*PI()))*$K$30,#N/A) ->  | AD6: =AD3 -> 1.280662877 | AE6: =IF( $K$10 > AD6, #N/A, $K$16*$I$23-$M$4-$K$16*$K$15*$H$23*COS($AD6*PI()/180)) ->  | AF6: =IF(ABS(PI()*$K$18*$F$17*1000/$H$23/SIN($AD6*PI()/180))<1, ($K$16*$K$15*$I$23-$K$16*$H$23*COS($AD6*PI()/180))/$K$18/1000*(1-ASIN(PI()*$K$18*$F$17*1000/$H$23/SIN($AD6*PI()/180))/PI())+$F$16, #N/A) ->  | AG6: =IF($K$9=0,#N/A,($K$16*$K$15*$I$23-$K$16*$H$23*COS($AD6*PI()/180))/$K$18/1000+$F$16) ->  | AH6: =IF( $K$10 > AD6, #N/A, $K$16*$I$24-$M$4-$K$16*$K$15*$H$24*COS($AD6*PI()/180)) ->  | AI6: =IF(ABS(PI()*$K$18*$F$17*1000/$H$24/SIN($AD6*PI()/180))<1, ($K$16*$K$15*$I$24-$K$16*$H$24*COS($AD6*PI()/180))/$K$18/1000*(1-ASIN(PI()*$K$18*$F$17*1000/$H$24/SIN($AD6*PI()/180))/PI())+$F$16, #N/A) ->  | AJ6: =IF( $K$10 > AD6, #N/A, $K$16*$I$25-$M$4-$K$16*$K$15*$H$25*COS($AD6*PI()/180)) ->  | AK6: =IF(ABS(PI()*$K$18*$F$17*1000/$H$25/SIN($AD6*PI()/180))<1, ($K$16*$K$15*$I$25-$K$16*$H$25*COS($AD6*PI()/180))/$K$18/1000*(1-ASIN(PI()*$K$18*$F$17*1000/$H$25/SIN($AD6*PI()/180))/PI())+$F$16, #N/A) ->  | AL6: =IF( $K$10 > AD6, #N/A, $K$16*$I$26-$M$4-$K$16*$K$15*$H$26*COS($AD6*PI()/180)) ->  | AM6: =IF(ABS(PI()*$K$18*$F$17*1000/$H$26/SIN($AD6*PI()/180))<1, ($K$16*$K$15*$I$26-$K$16*$H$26*COS($AD6*PI()/180))/$K$18/1000*(1-ASIN(PI()*$K$18*$F$17*1000/$H$26/SIN($AD6*PI()/180))/PI())+$F$16, #N/A) ->  | AN6: =IF( $K$10 > AD6, #N/A, $K$16*$I$27-$M$4-$K$16*$K$15*$H$27*COS($AD6*PI()/180)) ->  | AO6: =IF(ABS(PI()*$K$18*$F$17*1000/$H$27/SIN($AD6*PI()/180))<1, ($K$16*$K$15*$I$27-$K$16*$H$27*COS($AD6*PI()/180))/$K$18/1000*(1-ASIN(PI()*$K$18*$F$17*1000/$H$27/SIN($AD6*PI()/180))/PI())+$F$16, #N/A) -> 
A7: PI | B7: 3.14159265 | I7: =VLOOKUP(J6, MASS2020!A3:D3800, 4, FALSE) -> nn | L7: min KE/A | M7: =(POWER(M4+M5,2)-POWER(M2+M3,2))/2/M3/G2 -> 0.5717726699 | O7: =(SQRT($K$18*$K$18*(R7-$F$16)*(R7-$F$16)*1000000+$M$4*$M$4))-$M$4 -> 9.705510285 | P7: =(COS($P$1*PI()/180)*SQRT($K$18*$K$18*(R7-$F$16)*(R7-$F$16)*1000000+$P$3)-$P$2*$K$17*(R7-$F$16)*1000)/(1-$P$2)-$M$4 -> 9.705510285 | Q7: =SQRT((R7*R7+PI()*PI()*$F$18*$F$18)*$K$18*$K$18*1000000+$M$4*$M$4) - $M$4 -> 29.85975333 | R7: =R6+$R$4 -> -0.995 | S7: =IF( AND(($R7-$F$16)/S$3>= 0, ($R7-$F$16)/S$3<=$K$31),S$2*ABS(SIN(($R7-$F$16)/S$3*PI()))*$K$30,#N/A) ->  | T7: =IF( AND(($R7-$F$16)/T$3>0,($R7-$F$16)/T$3<=$K$31),T$2*ABS(SIN(($R7-$F$16)/T$3*PI()))*$K$30,#N/A) ->  | U7: =IF( AND(($R7-$F$16)/U$3>= 0, ($R7-$F$16)/U$3<=$K$31),U$2*ABS(SIN(($R7-$F$16)/U$3*PI()))*$K$30,#N/A) ->  | V7: =IF( AND(($R7-$F$16)/V$3>0,($R7-$F$16)/V$3<=$K$31),V$2*ABS(SIN(($R7-$F$16)/V$3*PI()))*$K$30,#N/A) ->  | W7: =IF( AND(($R7-$F$16)/W$3>= 0, ($R7-$F$16)/W$3<=$K$31),W$2*ABS(SIN(($R7-$F$16)/W$3*PI()))*$K$30,#N/A) ->  | X7: =IF( AND(($R7-$F$16)/X$3>0,($R7-$F$16)/X$3<=$K$31),X$2*ABS(SIN(($R7-$F$16)/X$3*PI()))*$K$30,#N/A) ->  | Y7: =IF( AND(($R7-$F$16)/Y$3>= 0, ($R7-$F$16)/Y$3<=$K$31),Y$2*ABS(SIN(($R7-$F$16)/Y$3*PI()))*$K$30,#N/A) ->  | Z7: =IF( AND(($R7-$F$16)/Z$3>0,($R7-$F$16)/Z$3<=$K$31),Z$2*ABS(SIN(($R7-$F$16)/Z$3*PI()))*$K$30,#N/A) ->  | AA7: =IF( AND(($R7-$F$16)/AA$3>= 0, ($R7-$F$16)/AA$3<=$K$31),AA$2*ABS(SIN(($R7-$F$16)/AA$3*PI()))*$K$30,#N/A) ->  | AB7: =IF( AND(($R7-$F$16)/AB$3>0,($R7-$F$16)/AB$3<=$K$31),AB$2*ABS(SIN(($R7-$F$16)/AB$3*PI()))*$K$30,#N/A) ->  | AD7: =AD6+AD$4 -> 1.590607638 | AF7: =IF(ABS(PI()*$K$18*$F$17*1000/$H$23/SIN($AD7*PI()/180))<1, ($K$16*$K$15*$I$23-$K$16*$H$23*COS($AD7*PI()/180))/$K$18/1000*(1-ASIN(PI()*$K$18*$F$17*1000/$H$23/SIN($AD7*PI()/180))/PI())+$F$16, #N/A) ->  | AI7: =IF(ABS(PI()*$K$18*$F$17*1000/$H$24/SIN($AD7*PI()/180))<1, ($K$16*$K$15*$I$24-$K$16*$H$24*COS($AD7*PI()/180))/$K$18/1000*(1-ASIN(PI()*$K$18*$F$17*1000/$H$24/SIN($AD7*PI()/180))/PI())+$F$16, #N/A) ->  | AK7: =IF(ABS(PI()*$K$18*$F$17*1000/$H$25/SIN($AD7*PI()/180))<1, ($K$16*$K$15*$I$25-$K$16*$H$25*COS($AD7*PI()/180))/$K$18/1000*(1-ASIN(PI()*$K$18*$F$17*1000/$H$25/SIN($AD7*PI()/180))/PI())+$F$16, #N/A) ->  | AM7: =IF(ABS(PI()*$K$18*$F$17*1000/$H$26/SIN($AD7*PI()/180))<1, ($K$16*$K$15*$I$26-$K$16*$H$26*COS($AD7*PI()/180))/$K$18/1000*(1-ASIN(PI()*$K$18*$F$17*1000/$H$26/SIN($AD7*PI()/180))/PI())+$F$16, #N/A) ->  | AO7: =IF(ABS(PI()*$K$18*$F$17*1000/$H$27/SIN($AD7*PI()/180))<1, ($K$16*$K$15*$I$27-$K$16*$H$27*COS($AD7*PI()/180))/$K$18/1000*(1-ASIN(PI()*$K$18*$F$17*1000/$H$27/SIN($AD7*PI()/180))/PI())+$F$16, #N/A) -> 
O8: 9.608705681 | P8: 9.608705681 | Q8: =SQRT(((R8-$F$16)*(R8-$F$16)+PI()*PI()*$F$18*$F$18)*$K$18*$K$18*1000000+$M$4*$M$4) - $M$4 -> 29.76496417 | R8: =R7+$R$4 -> -0.99 | AD8: =AD7+AD$4 -> 1.900552398
E9: =F6&IF(G6=0, "","-")&E6 -> n-Adding | J9: show infinite line | K9: =IF( Reaction3!C24="on", 1, 0) -> 0 | O9: 9.512378945 | P9: 9.512378945 | Q9: 29.67064333 | R9: -0.985 | AD9: 2.210497158
E10: =F2&"("&F3&","&F4&")"&F5 -> 14C(d,p)15C | J10: thetaCM limit | K10: =Reaction3!C26 -> 0 | L10: deg | O10: 9.416530222 | P10: 9.416530222 | Q10: 29.57679093 | R10: -0.98 | AD10: 2.520441918
J11: Ex A | K11: =Reaction3!C13 -> 0 | L11: MeV | O11: 9.321159658 | P11: 9.321159658 | Q11: 29.48340713 | R11: -0.975 | AD11: 2.830386679
E12: Beam Energy /A | F12: =Reaction3!C15 -> 16 | G12: MeV/u | J12: k_beam_Lab | K12: =SQRT(POWER(M2+F13,2)-POWER(M2,2)) -> 2427.444407 | L12: MeV/c | O12: 9.226267397 | P12: 9.226267397 | Q12: 29.39049205 | R12: -0.97 | AD12: 3.140331439
E13: Beam Energy | F13: =F12*G2 -> 224 | G13: MeV | J13: E_tot_cm | K13: =SQRT(POWER(M2+M3,2)+2*M3*F13) -> 14944.62368 | L13: MeV | O13: 9.131853582 | P13: 9.131853582 | Q13: 29.29804583 | R13: -0.965 | AD13: 3.450276199
J14: KE_tot_cm | K14: =K13-M2-M3 -> 28.1394312 | O14: 9.037918357 | P14: 9.037918357 | Q14: 29.2060686 | R14: -0.96 | AD14: 3.760220959
E15: B-field | F15: =Reaction3!C18 -> 2.85 | G15: T | J15: beta_cm | K15: =K12/(M2+M3+F13) -> 0.1603280561 | O15: 8.944461865 | P15: 8.944461865 | Q15: 29.11456049 | R15: -0.955 | AD15: 4.070165719
E16: target position | F16: =Reaction3!$C$20 -> 0 | G16: m | J16: gamm_cm | K16: =1/SQRT(1-K15*K15) -> 1.013105754 | O16: 8.851484246 | P16: 8.851484246 | Q16: 29.02352165 | R16: -0.95 | AD16: 4.38011048
E17: radius | F17: =Reaction3!C21 -> 0.0115 | G17: m | J17: e-z slope | K17: =F15*B3*H4*K15/2/B7/1000000000 -> 0.02180194411 | O17: 8.758985642 | P17: 8.758985642 | Q17: 28.9329522 | R17: -0.945 | AD17: 4.69005524
E18: bore | F18: =Reaction3!C22 -> 0.46 | G18: m | J18: alpha=slope/beta_cm | K18: =K17/K15 -> 0.1359833372 | O18: 8.666966193 | P18: 8.666966193 | Q18: 28.84285228 | R18: -0.94 | AD18: 5
J19: G | K19: =K18*K15*K16*F17*1000 -> 0.2540082629 | L19: (MeV) | O19: 8.575426039 | P19: 8.575426039 | Q19: 28.753222 | R19: -0.935 | AD19: 6
H20: k_cm(Ex=0) | J20: alpha_B | K20: =K18*H5/H4 -> 0.8159000232 | O20: 8.484365319 | P20: 8.484365319 | Q20: 28.66406152 | R20: -0.93 | AD20: 7
E21: max Ex | F21: =K14+M6 -> 27.1329318 | G21: MeV | H21: =SQRT(($K$13*$K$13-POWER($M$4+$M$5,2))*($K$13*$K$13-POWER($M$4-$M$5,2)))/2/$K$13 -> 219.8150292 | J21: min(θcm) | K21: =ASIN(F17*1000*PI()*K18/H21)*180/PI() -> 1.280662877 | L21: deg | O21: 8.393784172 | P21: 8.393784172 | Q21: 28.57537095 | R21: -0.925 | AD21: 8
H22: k_cm | I22: E_light_cm | J22: intercept | O22: 8.303682734 | P22: 8.303682734 | Q22: 28.48715043 | R22: -0.92 | AD22: 9
E23: Ex1 | F23: =IF(Reaction3!G25="", #N/A, Reaction3!G25) ->  | G23: MeV | H23: =IF(F23="","",SQRT(($K$13*$K$13-POWER($M$4+$M$5+F23,2))*($K$13*$K$13-POWER($M$4-$M$5-F23,2)))/2/$K$13) ->  | I23: =SQRT(H23*H23+$M$4*$M$4) ->  | J23: =I23/$K$16-$M$4 ->  | O23: 8.214061144 | P23: 8.214061144 | Q23: 28.39940008 | R23: -0.915 | AD23: 10
E24: Ex2 | F24: =IF(Reaction3!G26="", #N/A, Reaction3!G26) ->  | G24: MeV | H24: =IF(F24="","",SQRT(($K$13*$K$13-POWER($M$4+$M$5+F24,2))*($K$13*$K$13-POWER($M$4-$M$5-F24,2)))/2/$K$13) ->  | I24: =SQRT(H24*H24+$M$4*$M$4) ->  | J24: =I24/$K$16-$M$4 ->  | O24: 8.124919537 | P24: 8.124919537 | Q24: 28.31212003 | R24: -0.91 | AD24: 11
E25: Ex3 | F25: =IF(Reaction3!G27="", #N/A, Reaction3!G27) ->  | G25: MeV | H25: =IF(F25="","",SQRT(($K$13*$K$13-POWER($M$4+$M$5+F25,2))*($K$13*$K$13-POWER($M$4-$M$5-F25,2)))/2/$K$13) ->  | J25: =I25/$K$16-$M$4 ->  | O25: 8.036258049 | P25: 8.036258049 | Q25: 28.22531042 | R25: -0.905 | AD25: 12
E26: Ex4 | F26: =IF(Reaction3!G28="", #N/A, Reaction3!G28) ->  | G26: MeV | H26: =IF(F26="","",SQRT(($K$13*$K$13-POWER($M$4+$M$5+F26,2))*($K$13*$K$13-POWER($M$4-$M$5-F26,2)))/2/$K$13) ->  | J26: =I26/$K$16-$M$4 ->  | O26: 7.948076815 | P26: 7.948076815 | Q26: 28.13897136 | R26: -0.9 | AD26: 13
E27: Ex5 | F27: =IF(Reaction3!G29="", #N/A, Reaction3!G29) ->  | G27: MeV | H27: =IF(F27="","",SQRT(($K$13*$K$13-POWER($M$4+$M$5+F27,2))*($K$13*$K$13-POWER($M$4-$M$5-F27,2)))/2/$K$13) ->  | J27: =I27/$K$16-$M$4 ->  | O27: 7.860375969 | P27: 7.860375969 | Q27: 28.05310298 | R27: -0.895 | AD27: 14
O28: 7.773155644 | P28: 7.773155644 | Q28: 27.96770541 | R28: -0.89 | AD28: 15
O29: 7.686415975 | P29: 7.686415975 | Q29: 27.88277877 | R29: -0.885 | AD29: 16
J30: Recoil y-scale | K30: 1 | O30: 7.600157093 | P30: 7.600157093 | Q30: 27.79832319 | R30: -0.88 | AD30: 17
J31: # of cycle | K31: =Reaction3!R23 -> 1 | O31: 7.514379129 | P31: 7.514379129 | Q31: 27.71433879 | R31: -0.875 | AD31: 18
B32: CM | C32: Eb[MeV] | E32: Zb0[m] | F32: Zb[m] | G32: 2ρ[cm] | H32: θbLab [deg] | I32: Tcyc [ns] | J32: EB[MeV] | K32: θBLab [deg] | L32: ZB0/2[m] | M32: 2ρB[cm] | O32: 7.429082214 | P32: 7.429082214 | Q32: 27.6308257 | R32: -0.87 | AD32: 19
A33: Ex1 | B33: =IF(OR(ISNA(F23),Reaction3!H25 = 0), #N/A, Reaction3!H25) ->  | C33: =IF( ISNA(B33), "", $K$16*SQRT($M$4*$M$4+$H23*$H23)-$K$16*$K$15*$H23*COS($B33*PI()/180)-$M$4) ->  | E33: =IF( OR(ISNA(F23), ISNA(B33)),"",($K$16*$K$15*SQRT($M$4*$M$4+$H23*$H23)-$K$16*$H23*COS($B33*PI()/180))/$K$18/1000) ->  | F33: =IF( ISNA(B33), "",E33*(1-ASIN($F$17*100/G33/2)/PI())) ->  | G33: =IF( ISNA(B33), "", 2*$H23*SIN(B33*PI()/180)/$B$3/$H$4/$F$15*100000000) ->  | H33: =IF( ISNA(B33), "", ATAN($H23*SIN($B33*PI()/180)/($K$16*$K$15*SQRT($M$4*$M$4+$H23*$H23)-$K$16*$H23*COS($B33*PI()/180)))*180/PI()) ->  | I33: =IF($C33="","",($M$4+$C33)/$K$18/$B$3*1000000) ->  | J33: =IF(C33="", "", $K$16*SQRT($M$5*$M$5+$H23*$H23)+$K$16*$K$15*$H23*COS($B33*PI()/180)-$M$5) ->  | K33: =IF( ISNA(B33), "", ATAN($H23*SIN($B33*PI()/180)/($K$16*$K$15*SQRT($M$5*$M$5+$H23*$H23)+$K$16*$H23*COS($B33*PI()/180)))*180/PI()) ->  | L33: =IF( ISNA(B33), "",($K$16*$K$15*SQRT($M$5*$M$5+$H23*$H23)+$K$16*$H23*COS($B33*PI()/180))/$K$20/2/1000) ->  | M33: =IF(ISNA(B33),"",$H23*SIN($B33*PI()/180)/$B$3/$F$15/$H$5*1000000*100*2) ->  | O33: 7.344266479 | P33: 7.344266479 | Q33: 27.54778403 | R33: -0.865 | AD33: 20
A34: Ex2 | B34: =IF(OR(ISNA(F24),Reaction3!H26 = 0), #N/A, Reaction3!H26) ->  | C34: =IF( ISNA(B34), "", $K$16*SQRT($M$4*$M$4+$H24*$H24)-$K$16*$K$15*$H24*COS($B34*PI()/180)-$M$4) ->  | E34: =IF( OR(ISNA(F24), ISNA(B34)),"",($K$16*$K$15*SQRT($M$4*$M$4+$H24*$H24)-$K$16*$H24*COS($B34*PI()/180))/$K$18/1000) ->  | F34: =IF( ISNA(B34), "",E34*(1-ASIN($F$17*100/G34/2)/PI())) ->  | G34: =IF( ISNA(B34), "", 2*$H24*SIN(B34*PI()/180)/$B$3/$H$4/$F$15*100000000) ->  | H34: =IF( ISNA(B34), "", ATAN($H24*SIN($B34*PI()/180)/($K$16*$K$15*SQRT($M$4*$M$4+$H24*$H24)-$K$16*$H24*COS($B34*PI()/180)))*180/PI()) ->  | I34: =IF($C34="","",($M$4+$C34)/$K$18/$B$3*1000000) ->  | J34: =IF(C34="", "", $K$16*SQRT($M$5*$M$5+$H24*$H24)+$K$16*$K$15*$H24*COS($B34*PI()/180)-$M$5) ->  | K34: =IF( ISNA(B34), "", ATAN($H24*SIN($B34*PI()/180)/($K$16*$K$15*SQRT($M$5*$M$5+$H24*$H24)+$K$16*$H24*COS($B34*PI()/180)))*180/PI()) ->  | L34: =IF( ISNA(B34), "",($K$16*$K$15*SQRT($M$5*$M$5+$H24*$H24)+$K$16*$H24*COS($B34*PI()/180))/$K$20/2/1000) ->  | M34: =IF(ISNA(B34),"",$H24*SIN($B34*PI()/180)/$B$3/$F$15/$H$5*1000000*100*2) ->  | O34: 7.259932053 | P34: 7.259932053 | Q34: 27.46521391 | R34: -0.86 | AD34: 21
A35: Ex3 | B35: =IF(OR(ISNA(F25),Reaction3!H27 = 0), #N/A, Reaction3!H27) ->  | C35: =IF( ISNA(B35), "", $K$16*SQRT($M$4*$M$4+$H25*$H25)-$K$16*$K$15*$H25*COS($B35*PI()/180)-$M$4) ->  | F35: =IF( ISNA(B35), "",E35*(1-ASIN($F$17*100/G35/2)/PI())) ->  | G35: =IF( ISNA(B35), "", 2*$H25*SIN(B35*PI()/180)/$B$3/$H$4/$F$15*100000000) ->  | H35: =IF( ISNA(B35), "", ATAN($H25*SIN($B35*PI()/180)/($K$16*$K$15*SQRT($M$4*$M$4+$H25*$H25)-$K$16*$H25*COS($B35*PI()/180)))*180/PI()) ->  | I35: =IF($C35="","",($M$4+$C35)/$K$18/$B$3*1000000) ->  | J35: =IF(C35="", "", $K$16*SQRT($M$5*$M$5+$H25*$H25)+$K$16*$K$15*$H25*COS($B35*PI()/180)-$M$5) ->  | K35: =IF( ISNA(B35), "", ATAN($H25*SIN($B35*PI()/180)/($K$16*$K$15*SQRT($M$5*$M$5+$H25*$H25)+$K$16*$H25*COS($B35*PI()/180)))*180/PI()) ->  | O35: 7.176079065 | P35: 7.176079065 | Q35: 27.38311545 | R35: -0.855 | AD35: 22
A36: Ex4 | B36: =IF(OR(ISNA(F26),Reaction3!H28 = 0), #N/A, Reaction3!H28) ->  | C36: =IF( ISNA(B36), "", $K$16*SQRT($M$4*$M$4+$H26*$H26)-$K$16*$K$15*$H26*COS($B36*PI()/180)-$M$4) ->  | G36: =IF( ISNA(B36), "", 2*$H26*SIN(B36*PI()/180)/$B$3/$H$4/$F$15*100000000) ->  | H36: =IF( ISNA(B36), "", ATAN($H26*SIN($B36*PI()/180)/($K$16*$K$15*SQRT($M$4*$M$4+$H26*$H26)-$K$16*$H26*COS($B36*PI()/180)))*180/PI()) ->  | I36: =IF($C36="","",($M$4+$C36)/$K$18/$B$3*1000000) ->  | J36: =IF(C36="", "", $K$16*SQRT($M$5*$M$5+$H26*$H26)+$K$16*$K$15*$H26*COS($B36*PI()/180)-$M$5) ->  | K36: =IF( ISNA(B36), "", ATAN($H26*SIN($B36*PI()/180)/($K$16*$K$15*SQRT($M$5*$M$5+$H26*$H26)+$K$16*$H26*COS($B36*PI()/180)))*180/PI()) ->  | O36: 7.092707643 | P36: 7.092707643 | Q36: 27.30148879 | R36: -0.85 | AD36: 23
